Workbook

Sheet ACCUEIL
F7: 2020-07-19
E21: Date des Données :
E23: Clients | F23: Particuliers | G23: Fin Mai
F24: Pros | G24: Fin Mai
F25: Premium | G25: Fin Mai
E27: Edoc et Opt'in | G27: Fin Mai
E28: SED | G28: 2020-07-19
E29: Remises commerciales | G29: Fin Mai
E31: QHD | G31: Fin Mai
E33: Base PNB réel | G33: Fin Mai
E35: Données Hebdo | G35: 2020-07-19
E36: CA UC + Arbitrage | G36: 2020-07-12
E38: ETP | G38: Fin Mai

Sheet Accueilagence
A1: Accueil
E7: =ACCUEIL!F7 -> 2020-07-19

Sheet Accueilsecteur
A1: Accueil
E7: =ACCUEIL!F7 -> 2020-07-19

Sheet AccueilDircom
A1: Accueil
E7: =ACCUEIL!F7 -> 2020-07-19

Sheet DC_FICHE
A1: Accueil
A2: BAROMETRE BDD
A4: UNITE: | B4: DIRECTION REGIONALE | E4: ETP perf : | F4: =VLOOKUP(A5,'RECAP DIRCOM'!$G$6:$I$12,3,FALSE) -> 258.16
A5: =VLOOKUP(B5,LISTES!$M$6:$N$12,2,FALSE) -> 262 | B5: BAS-RHIN
C6: Coefficient du critére | E6: Résultats | I6: Ecart au 1ier | M6: Evolution | O6: Rang
E7: du 1ier | G7: DIRECTION | I7: Du mois | K7: Au 31/12/2019
A9: RANG au CLASSEMENT GENERAL | K9: =VLOOKUP($A$5,'RECAP DIRCOM AN'!$G$6:$FS$312,168,FALSE) -> 6 | M9: =+K9-O9 -> 0 | O9: =VLOOKUP($A$5,'RECAP DIRCOM'!$G$6:$FS$312,168,FALSE) -> 6
A11: CRITERE CLIENTS | C11: 15% | O11: =VLOOKUP($A$5,'RECAP DIRCOM'!$G$6:$FS$312,23,FALSE) -> 6
B12: PNB Evolution nette Clients BP | C12: 4% | E12: ='RECAP DIRCOM'!K4 -> -1.5 | G12: =VLOOKUP($A$5,'RECAP DIRCOM'!$G$6:$FS$312,6,FALSE) -> -3.2 | I12: =VLOOKUP($A$5,'RECAP DIRCOM'!$G$6:$FS$312,7,FALSE) -> 88% | K12: =VLOOKUP($A$5,'RECAP DIRCOM AN'!$G$6:$FS$312,7,FALSE) -> 130% | M12: =+K12-I12 -> 42% | O12: =VLOOKUP($A$5,'RECAP DIRCOM'!$G$6:$FS$312,8,FALSE) -> 6
B13: PNB Evolution nette Clients PREMIUM | C13: 5% | E13: ='RECAP DIRCOM'!O4 -> 0.5 | G13: =VLOOKUP($A$5,'RECAP DIRCOM'!$G$6:$FS$312,10,FALSE) -> 0.4 | I13: =VLOOKUP($A$5,'RECAP DIRCOM'!$G$6:$FS$312,11,FALSE) -> 32% | K13: =VLOOKUP($A$5,'RECAP DIRCOM AN'!$G$6:$FS$312,11,FALSE) -> 1% | M13: =+K13-I13 -> -31% | O13: =VLOOKUP($A$5,'RECAP DIRCOM'!$G$6:$FS$312,12,FALSE) -> 6
B14: PNB Evolution nette Clients Jeunes Equipés | C14: 3% | E14: ='RECAP DIRCOM'!S4 -> -0.6 | G14: =VLOOKUP($A$5,'RECAP DIRCOM'!$G$6:$FS$312,14,FALSE) -> -0.9 | I14: =VLOOKUP($A$5,'RECAP DIRCOM'!$G$6:$FS$312,15,FALSE) -> 53% | K14: =VLOOKUP($A$5,'RECAP DIRCOM AN'!$G$6:$FS$312,15,FALSE) -> 69% | M14: =+K14-I14 -> 16% | O14: =VLOOKUP($A$5,'RECAP DIRCOM'!$G$6:$FS$312,16,FALSE) -> 5
B15: PNB Evolution nette Clients Pro Actifs Equipés | C15: 3% | E15: ='RECAP DIRCOM'!W4 -> 0.5 | G15: =VLOOKUP($A$5,'RECAP DIRCOM'!$G$6:$FS$312,18,FALSE) -> 0.1 | I15: =VLOOKUP($A$5,'RECAP DIRCOM'!$G$6:$FS$312,19,FALSE) -> 89% | K15: =VLOOKUP($A$5,'RECAP DIRCOM AN'!$G$6:$FS$312,19,FALSE) -> 0% | M15: =+K15-I15 -> -89% | O15: =VLOOKUP($A$5,'RECAP DIRCOM'!$G$6:$FS$312,20,FALSE) -> 7
A17: CRITERE BANCARISATION | C17: 15% | O17: =VLOOKUP($A$5,'RECAP DIRCOM'!$G$6:$FS$312,48,FALSE) -> 3
B18: PNB Ventes nettes forfaits | C18: 4% | E18: ='RECAP DIRCOM'!AJ4 -> 4.7 | G18: =VLOOKUP($A$5,'RECAP DIRCOM'!$G$6:$FS$312,31,FALSE) -> 2.3 | I18: =VLOOKUP($A$5,'RECAP DIRCOM'!$G$6:$FS$312,32,FALSE) -> 51% | K18: =VLOOKUP($A$5,'RECAP DIRCOM AN'!$G$6:$FS$312,32,FALSE) -> 126% | M18: =+K18-I18 -> 75% | O18: =VLOOKUP($A$5,'RECAP DIRCOM'!$G$6:$FS$312,33,FALSE) -> 5
B19: PNB Ventes nettes IZICARTES Débit Différé | C19: 4% | E19: ='RECAP DIRCOM'!AN4 -> 4.7 | G19: =VLOOKUP($A$5,'RECAP DIRCOM'!$G$6:$FS$312,35,FALSE) -> 4.3 | I19: =VLOOKUP($A$5,'RECAP DIRCOM'!$G$6:$FS$312,36,FALSE) -> 10% | K19: =VLOOKUP($A$5,'RECAP DIRCOM AN'!$G$6:$FS$312,36,FALSE) -> 0% | M19: =+K19-I19 -> -10% | O19: =VLOOKUP($A$5,'RECAP DIRCOM'!$G$6:$FS$312,37,FALSE) -> 2
B20: PNB Ventes nettes cartes HDG Débit Différé | C20: 4% | E20: ='RECAP DIRCOM'!AR4 -> 7.2 | G20: =VLOOKUP($A$5,'RECAP DIRCOM'!$G$6:$FS$312,39,FALSE) -> 7.2 | I20: =VLOOKUP($A$5,'RECAP DIRCOM'!$G$6:$FS$312,40,FALSE) -> 0% | K20: =VLOOKUP($A$5,'RECAP DIRCOM AN'!$G$6:$FS$312,40,FALSE) -> 0% | M20: =+K20-I20 -> 0% | O20: =VLOOKUP($A$5,'RECAP DIRCOM'!$G$6:$FS$312,41,FALSE) -> 1
B21: PNB Ventes nettes Forfaits Pro, Carte pro | C21: 3% | E21: ='RECAP DIRCOM'!AV4 -> 1.1 | G21: =VLOOKUP($A$5,'RECAP DIRCOM'!$G$6:$FS$312,43,FALSE) -> 0.4 | I21: =VLOOKUP($A$5,'RECAP DIRCOM'!$G$6:$FS$312,44,FALSE) -> 63% | K21: =VLOOKUP($A$5,'RECAP DIRCOM AN'!$G$6:$FS$312,44,FALSE) -> 44% | M21: =+K21-I21 -> -19% | O21: =VLOOKUP($A$5,'RECAP DIRCOM'!$G$6:$FS$312,45,FALSE) -> 5
A23: CRITERE EPARGNE | C23: 10% | O23: =VLOOKUP($A$5,'RECAP DIRCOM'!$G$6:$FS$312,69,FALSE) -> 3
B24: PNB Epargne Liquide | C24: 3% | E24: ='RECAP DIRCOM'!BI4 -> 7.8 | G24: =VLOOKUP($A$5,'RECAP DIRCOM'!$G$6:$FS$312,56,FALSE) -> 7.8 | I24: =VLOOKUP($A$5,'RECAP DIRCOM'!$G$6:$FS$312,57,FALSE) -> 0% | K24: =VLOOKUP($A$5,'RECAP DIRCOM AN'!$G$6:$FS$312,57,FALSE) -> 23% | M24: =+K24-I24 -> 23% | O24: =VLOOKUP($A$5,'RECAP DIRCOM'!$G$6:$FS$312,58,FALSE) -> 1
B25: PNB CA UC + arbitrage | C25: 4% | E25: ='RECAP DIRCOM'!BM4 -> 0.8 | G25: =VLOOKUP($A$5,'RECAP DIRCOM'!$G$6:$FS$312,60,FALSE) -> 0.8 | I25: =VLOOKUP($A$5,'RECAP DIRCOM'!$G$6:$FS$312,61,FALSE) -> 0% | K25: =VLOOKUP($A$5,'RECAP DIRCOM AN'!$G$6:$FS$312,61,FALSE) -> 0% | M25: =+K25-I25 -> -0% | O25: =VLOOKUP($A$5,'RECAP DIRCOM'!$G$6:$FS$312,62,FALSE) -> 2
B26: PNB Excédent assurance vie | C26: 3% | E26: ='RECAP DIRCOM'!BQ4 -> 1.5 | G26: =VLOOKUP($A$5,'RECAP DIRCOM'!$G$6:$FS$312,64,FALSE) -> -0.5 | I26: =VLOOKUP($A$5,'RECAP DIRCOM'!$G$6:$FS$312,65,FALSE) -> 74% | K26: =VLOOKUP($A$5,'RECAP DIRCOM AN'!$G$6:$FS$312,65,FALSE) -> 63% | M26: =+K26-I26 -> -11% | O26: =VLOOKUP($A$5,'RECAP DIRCOM'!$G$6:$FS$312,66,FALSE) -> 5
A28: CRITERE CREDITS | C28: 15% | O28: =VLOOKUP($A$5,'RECAP DIRCOM'!$G$6:$FS$312,102,FALSE) -> 6
B29: PNB crédit conso | C29: 4% | E29: ='RECAP DIRCOM'!CD4 -> 26.6 | G29: =VLOOKUP($A$5,'RECAP DIRCOM'!$G$6:$FS$312,77,FALSE) -> 19.7 | I29: =VLOOKUP($A$5,'RECAP DIRCOM'!$G$6:$FS$312,78,FALSE) -> 26% | K29: =VLOOKUP($A$5,'RECAP DIRCOM AN'!$G$6:$FS$312,78,FALSE) -> 29% | M29: =+K29-I29 -> 3% | O29: =VLOOKUP($A$5,'RECAP DIRCOM'!$G$6:$FS$312,79,FALSE) -> 6
B30: PNB ADE crédit conso | C30: 1% | E30: ='RECAP DIRCOM'!CH4 -> 6.2 | G30: =VLOOKUP($A$5,'RECAP DIRCOM'!$G$6:$FS$312,81,FALSE) -> 5.0 | I30: =VLOOKUP($A$5,'RECAP DIRCOM'!$G$6:$FS$312,82,FALSE) -> 20% | K30: =VLOOKUP($A$5,'RECAP DIRCOM AN'!$G$6:$FS$312,82,FALSE) -> 29% | M30: 9% | O30: =VLOOKUP($A$5,'RECAP DIRCOM'!$G$6:$FS$312,83,FALSE) -> 6
B31: PNB crédit immo | C31: 4% | E31: ='RECAP DIRCOM'!CL4 -> 39.3 | G31: =VLOOKUP($A$5,'RECAP DIRCOM'!$G$6:$FS$312,85,FALSE) -> 21.2 | I31: =VLOOKUP($A$5,'RECAP DIRCOM'!$G$6:$FS$312,86,FALSE) -> 46% | K31: =VLOOKUP($A$5,'RECAP DIRCOM AN'!$G$6:$FS$312,86,FALSE) -> 33% | M31: -12% | O31: =VLOOKUP($A$5,'RECAP DIRCOM'!$G$6:$FS$312,87,FALSE) -> 7
B32: PNB ADE crédit immo | C32: 2% | E32: ='RECAP DIRCOM'!CP4 -> 26.8 | G32: =VLOOKUP($A$5,'RECAP DIRCOM'!$G$6:$FS$312,89,FALSE) -> 13.9 | I32: =VLOOKUP($A$5,'RECAP DIRCOM'!$G$6:$FS$312,90,FALSE) -> 48% | K32: =VLOOKUP($A$5,'RECAP DIRCOM AN'!$G$6:$FS$312,90,FALSE) -> 47% | M32: -1% | O32: =VLOOKUP($A$5,'RECAP DIRCOM'!$G$6:$FS$312,91,FALSE) -> 5
B33: PNB SACCEF | C33: 2% | E33: ='RECAP DIRCOM'!CT4 -> 2.5 | G33: =VLOOKUP($A$5,'RECAP DIRCOM'!$G$6:$FS$312,93,FALSE) -> 1.4 | I33: =VLOOKUP($A$5,'RECAP DIRCOM'!$G$6:$FS$312,94,FALSE) -> 44% | K33: =VLOOKUP($A$5,'RECAP DIRCOM AN'!$G$6:$FS$312,94,FALSE) -> 36% | M33: -8% | O33: =VLOOKUP($A$5,'RECAP DIRCOM'!$G$6:$FS$312,95,FALSE) -> 4
B34: PNB Crédit MLT + Crédit Bail | C34: 2% | E34: ='RECAP DIRCOM'!CX4 -> 5.0 | G34: =VLOOKUP($A$5,'RECAP DIRCOM'!$G$6:$FS$312,97,FALSE) -> 2.9 | I34: =VLOOKUP($A$5,'RECAP DIRCOM'!$G$6:$FS$312,98,FALSE) -> 42% | K34: =VLOOKUP($A$5,'RECAP DIRCOM AN'!$G$6:$FS$312,98,FALSE) -> 0% | M34: -42% | O34: =VLOOKUP($A$5,'RECAP DIRCOM'!$G$6:$FS$312,99,FALSE) -> 4
A36: CRITERE IARD PREVOYANCE | C36: 15% | O36: =VLOOKUP($A$5,'RECAP DIRCOM'!$G$6:$FS$312,119,FALSE) -> 6
B37: PNB Ventes nettes IARD | C37: 9% | E37: ='RECAP DIRCOM'!DK4 -> 1.2 | G37: =VLOOKUP($A$5,'RECAP DIRCOM'!$G$6:$FS$312,110,FALSE) -> 0.6 | I37: =VLOOKUP($A$5,'RECAP DIRCOM'!$G$6:$FS$312,111,FALSE) -> 53% | K37: =VLOOKUP($A$5,'RECAP DIRCOM AN'!$G$6:$FS$312,111,FALSE) -> 69% | M37: =+K37-I37 -> 16% | O37: =VLOOKUP($A$5,'RECAP DIRCOM'!$G$6:$FS$312,112,FALSE) -> 6
B38: PNB Ventes nettes Prévoyance | C38: 6% | E38: ='RECAP DIRCOM'!DO4 -> 1.4 | G38: =VLOOKUP($A$5,'RECAP DIRCOM'!$G$6:$FS$312,114,FALSE) -> 1.1 | I38: =VLOOKUP($A$5,'RECAP DIRCOM'!$G$6:$FS$312,115,FALSE) -> 23% | K38: =VLOOKUP($A$5,'RECAP DIRCOM AN'!$G$6:$FS$312,115,FALSE) -> 42% | M38: =+K38-I38 -> 19% | O38: =VLOOKUP($A$5,'RECAP DIRCOM'!$G$6:$FS$312,116,FALSE) -> 3
A40: CRITERE ACCELERATEURS PNB | C40: 15% | O40: =VLOOKUP($A$5,'RECAP DIRCOM'!$G$6:$FS$312,144,FALSE) -> 2
B41: PNB Ventes brutes SED Finalisées | C41: 6% | E41: ='RECAP DIRCOM'!EB4 -> 0.4 | G41: =VLOOKUP($A$5,'RECAP DIRCOM'!$G$6:$FS$312,127,FALSE) -> 0.3 | I41: =VLOOKUP($A$5,'RECAP DIRCOM'!$G$6:$FS$312,128,FALSE) -> 18% | K41: =VLOOKUP($A$5,'RECAP DIRCOM AN'!$G$6:$FS$312,128,FALSE) -> 11% | M41: =+K41-I41 -> -7% | O41: =VLOOKUP($A$5,'RECAP DIRCOM'!$G$6:$FS$312,129,FALSE) -> 4
B42: PNB clients équipés E documents | C42: 3% | E42: ='RECAP DIRCOM'!EF4 -> 1.0 | G42: =VLOOKUP($A$5,'RECAP DIRCOM'!$G$6:$FS$312,131,FALSE) -> 0.8 | I42: =VLOOKUP($A$5,'RECAP DIRCOM'!$G$6:$FS$312,132,FALSE) -> 18% | K42: =VLOOKUP($A$5,'RECAP DIRCOM AN'!$G$6:$FS$312,132,FALSE) -> 0% | M42: =+K42-I42 -> -18% | O42: =VLOOKUP($A$5,'RECAP DIRCOM'!$G$6:$FS$312,133,FALSE) -> 3
B43: Economie opt'in | C43: 3% | E43: ='RECAP DIRCOM'!EJ4 -> 0.4 | G43: =VLOOKUP($A$5,'RECAP DIRCOM'!$G$6:$FS$312,135,FALSE) -> 0.4 | I43: =VLOOKUP($A$5,'RECAP DIRCOM'!$G$6:$FS$312,136,FALSE) -> 0% | K43: =VLOOKUP($A$5,'RECAP DIRCOM AN'!$G$6:$FS$312,136,FALSE) -> 2% | M43: =+K43-I43 -> 2% | O43: =VLOOKUP($A$5,'RECAP DIRCOM'!$G$6:$FS$312,137,FALSE) -> 1
B44: Remises commerciales | C44: 3% | E44: ='RECAP DIRCOM'!EN4 -> -1.4 | G44: =VLOOKUP($A$5,'RECAP DIRCOM'!$G$6:$FS$312,139,FALSE) -> -1.7 | I44: =VLOOKUP($A$5,'RECAP DIRCOM'!$G$6:$FS$312,140,FALSE) -> 20% | K44: =VLOOKUP($A$5,'RECAP DIRCOM AN'!$G$6:$FS$312,140,FALSE) -> 17% | M44: =+K44-I44 -> -3% | O44: =VLOOKUP($A$5,'RECAP DIRCOM'!$G$6:$FS$312,141,FALSE) -> 5
A46: CRITERE Qualité-Satisfaction Clients | C46: 15% | O46: =VLOOKUP($A$5,'RECAP DIRCOM'!$G$6:$FS$312,159,FALSE) -> 6
B47: Objectifs NPS* | C47: 8% | E47: ='RECAP DIRCOM'!FA4 -> -9 | G47: =VLOOKUP($A$5,'RECAP DIRCOM'!$G$6:$FS$312,151,FALSE) -> -21 | I47: =VLOOKUP($A$5,'RECAP DIRCOM'!$G$6:$FS$312,152,FALSE) -> 133% | K47: =VLOOKUP($A$5,'RECAP DIRCOM AN'!$G$6:$FS$312,152,FALSE) -> 150% | M47: =+K47-I47 -> 17% | O47: =VLOOKUP($A$5,'RECAP DIRCOM'!$G$6:$FS$312,153,FALSE) -> 6
B48: Enquête Qualité Haute Définition | C48: 7% | E48: ='RECAP DIRCOM'!FD4 -> 58% | G48: =VLOOKUP($A$5,'RECAP DIRCOM'!$G$6:$FS$312,154,FALSE) -> 40% | I48: =VLOOKUP($A$5,'RECAP DIRCOM'!$G$6:$FS$312,155,FALSE) -> 31% | K48: =VLOOKUP($A$5,'RECAP DIRCOM AN'!$G$6:$FS$312,155,FALSE) -> 8% | M48: =+K48-I48 -> -23% | O48: =VLOOKUP($A$5,'RECAP DIRCOM'!$G$6:$FS$312,156,FALSE) -> 6

Sheet DC_TOTAL
B1: Accueil | D1: BAROMETRE BDD - DIRECTIONS REGIONALES
D2: TOTAL GENERAL
D3: =ACCUEIL!F7 -> 2020-07-19
D7: TOTAL GENERAL | G7: Total Clients | J7: Total Bancarisation | M7: Total Epargne | P7: Total Crédits | S7: Total IARD Prévoyance | V7: Total Accélérateurs PNB | Y7: Total Qualité-Satisfaction Clients
E8: coef | F8: 100% | H8: coef | I8: ='RECAP DIRCOM'!$AC$4 -> 15% | K8: coef | L8: ='RECAP DIRCOM'!$BB$4 -> 15% | N8: coef | O8: ='RECAP DIRCOM'!$BW$4 -> 10% | Q8: coef | R8: ='RECAP DIRCOM'!$DD$4 -> 15% | T8: coef | U8: ='RECAP DIRCOM'!$DU$4 -> 15% | W8: coef | X8: ='RECAP DIRCOM'!$ET$4 -> 15% | Z8: coef | AA8: ='RECAP DIRCOM'!$FI$4 -> 15%
A9: eds | B9: Direction | C9: ="ETP perf "&DATEMAJ!$C$39 -> ETP perf au 31/05 | D9: Moyenne ecart au 1er | E9: % Ecart au 1er | F9: Rang CEGEE | G9: Moyenne ecart au 1er | H9: % Ecart au 1er | I9: Rang CEGEE | J9: Moyenne ecart au 1er | K9: % Ecart au 1er | L9: Rang CEGEE | M9: Moyenne ecart au 1er | N9: % Ecart au 1er | O9: Rang CEGEE | P9: Moyenne ecart au 1er | Q9: % Ecart au 1er | R9: Rang CEGEE | S9: Moyenne ecart au 1er | T9: % Ecart au 1er | U9: Rang CEGEE | V9: Moyenne ecart au 1er | W9: % Ecart au 1er | X9: Rang CEGEE | Y9: Moyenne ecart au 1er | Z9: % Ecart au 1er | AA9: Rang CEGEE
A10: 30 | B10: Marne-Ardennes | C10: 223 | D10: 1% | E10: 0% | F10: 1 | G10: 17% | H10: 0% | I10: 1 | J10: 11% | K10: 0% | L10: 1 | M10: 26% | N10: 11% | O10: 4 | P10: 7% | Q10: 0% | R10: 1 | S10: 5% | T10: 0% | U10: 1 | V10: 13% | W10: 0% | X10: 1 | Y10: 0% | Z10: 0% | AA10: 1
A11: 110 | B11: Meurthe et Moselle Meuse | C11: 229 | D11: 4% | E11: 3% | F11: 2 | G11: 18% | H11: 1% | I11: 2 | J11: 12% | K11: 0% | L11: 2 | M11: 17% | N11: 2% | O11: 2 | P11: 8% | Q11: 1% | R11: 2 | S11: 12% | T11: 7% | U11: 2 | V11: 17% | W11: 4% | X11: 3 | Y11: 12% | Z11: 12% | AA11: 2
A12: 50 | B12: Aube Haute Marne | C12: 125 | D12: 19% | E12: 18% | F12: 3 | G12: 22% | H12: 5% | I12: 3 | J12: 38% | K12: 27% | L12: 5 | M12: 40% | N12: 25% | O12: 6 | P12: 27% | Q12: 20% | R12: 4 | S12: 34% | T12: 29% | U12: 4 | V12: 25% | W12: 12% | X12: 4 | Y12: 17% | Z12: 17% | AA12: 4
A13: 80 | B13: Vosges | C13: 131 | D13: 23% | E13: 22% | F13: 4 | G13: 46% | H13: 30% | I13: 5 | J13: 36% | K13: 24% | L13: 4 | M13: 15% | N13: 0% | O13: 1 | P13: 37% | Q13: 30% | R13: 5 | S13: 35% | T13: 30% | U13: 5 | V13: 34% | W13: 21% | X13: 6 | Y13: 16% | Z13: 16% | AA13: 3
A14: 160 | B14: Moselle | C14: 266 | D14: 24% | E14: 23% | F14: 5 | G14: 42% | H14: 26% | I14: 4 | J14: 45% | K14: 33% | L14: 6 | M14: 28% | N14: 12% | O14: 5 | P14: 22% | Q14: 15% | R14: 3 | S14: 34% | T14: 29% | U14: 3 | V14: 27% | W14: 15% | X14: 5 | Y14: 38% | Z14: 38% | AA14: 5
A15: 262 | B15: Bas-Rhin | C15: 258 | D15: 33% | E15: 32% | F15: 6 | G15: 62% | H15: 46% | I15: 6 | J15: 29% | K15: 17% | L15: 3 | M15: 22% | N15: 7% | O15: 3 | P15: 38% | Q15: 31% | R15: 6 | S15: 41% | T15: 36% | U15: 6 | V15: 15% | W15: 2% | X15: 2 | Y15: 86% | Z15: 86% | AA15: 6
A16: 264 | B16: Haut-Rhin | C16: 157 | D16: 52% | E16: 51% | F16: 7 | G16: 89% | H16: 73% | I16: 7 | J16: 60% | K16: 48% | L16: 7 | M16: 51% | N16: 36% | O16: 7 | P16: 39% | Q16: 32% | R16: 7 | S16: 53% | T16: 47% | U16: 7 | V16: 42% | W16: 29% | X16: 7 | Y16: 92% | Z16: 92% | AA16: 7
B17: Total CEGEE Directions Régionales | C17: =SUM(C10:C16) -> 1390

Sheet DC_BANCA
B1: Accueil | D1: BAROMETRE BDD - DIRECTIONS REGIONALES
D2: BANCARISATION
D3: =ACCUEIL!F7 -> 2020-07-19
D7: Ventes nettes FORFAITS | H7: Ventes nettes IZICARTES débit différé | L7: Ventes nettes Cartes HDG débit différé | P7: Ventes nettes Forfaits Pro Cartes Pro | T7: Total Bancarisation
D8: =DATEMAJ!C12 -> au 19/07 | F8: coef | G8: ='RECAP DIRCOM'!AM4 -> 4% | H8: =DATEMAJ!C13 -> au 19/07 | J8: coef | K8: ='RECAP DIRCOM'!AQ4 -> 4% | L8: =DATEMAJ!C14 -> au 19/07 | N8: coef | O8: ='RECAP DIRCOM'!AU4 -> 4% | P8: =DATEMAJ!C15 -> au 19/07 | R8: coef | S8: ='RECAP DIRCOM'!AY4 -> 3% | U8: coef | V8: ='RECAP DIRCOM'!BB4 -> 15%
B9: Direction | C9: ="ETP perf "&DATEMAJ!$C$39 -> ETP perf au 31/05 | D9: Nb / ETP | E9: PNB / ETP | F9: % Ecart au 1er | G9: Rang | H9: Nb / ETP | I9: PNB / ETP | J9: % Ecart au 1er | K9: Rang | L9: Nb / ETP | M9: PNB / ETP | N9: % Ecart au 1er | O9: Rang | P9: Nb / ETP | Q9: PNB / ETP | R9: % Ecart au 1er | S9: Rang | T9: Moyenne ecart au 1er | U9: % Ecart au 1er | V9: Rang CEGEE
A10: 50 | B10: Aube Haute Marne | C10: =VLOOKUP($A10,'RECAP DIRCOM'!$G$6:$FJ$12,3,FALSE) -> 125 | D10: =VLOOKUP($A10,'RECAP DIRCOM'!$G$6:$FJ$12,30,FALSE) -> 3.91 | E10: =VLOOKUP($A10,'RECAP DIRCOM'!$G$6:$FJ$12,31,FALSE) -> 2.02 | F10: =VLOOKUP($A10,'RECAP DIRCOM'!$G$6:$FJ$12,32,FALSE) -> 57% | G10: =VLOOKUP($A10,'RECAP DIRCOM'!$G$6:$FJ$12,33,FALSE) -> 6 | H10: =VLOOKUP($A10,'RECAP DIRCOM'!$G$6:$FJ$12,34,FALSE) -> 4.52 | I10: =VLOOKUP($A10,'RECAP DIRCOM'!$G$6:$FJ$12,35,FALSE) -> 2.76 | J10: =VLOOKUP($A10,'RECAP DIRCOM'!$G$6:$FJ$12,36,FALSE) -> 42% | K10: =VLOOKUP($A10,'RECAP DIRCOM'!$G$6:$FJ$12,37,FALSE) -> 6 | L10: =VLOOKUP($A10,'RECAP DIRCOM'!$G$6:$FJ$12,38,FALSE) -> 6.05 | M10: =VLOOKUP($A10,'RECAP DIRCOM'!$G$6:$FJ$12,39,FALSE) -> 4.09 | N10: =VLOOKUP($A10,'RECAP DIRCOM'!$G$6:$FJ$12,40,FALSE) -> 43% | O10: =VLOOKUP($A10,'RECAP DIRCOM'!$G$6:$FJ$12,41,FALSE) -> 7 | P10: =VLOOKUP($A10,'RECAP DIRCOM'!$G$6:$FJ$12,42,FALSE) -> 1.88 | Q10: =VLOOKUP($A10,'RECAP DIRCOM'!$G$6:$FJ$12,43,FALSE) -> 1.07 | R10: =VLOOKUP($A10,'RECAP DIRCOM'!$G$6:$FJ$12,44,FALSE) -> 0% | S10: =VLOOKUP($A10,'RECAP DIRCOM'!$G$6:$FJ$12,45,FALSE) -> 1 | T10: =VLOOKUP($A10,'RECAP DIRCOM'!$G$6:$FJ$12,46,FALSE) -> 38% | U10: =VLOOKUP($A10,'RECAP DIRCOM'!$G$6:$FJ$12,47,FALSE) -> 27% | V10: =VLOOKUP($A10,'RECAP DIRCOM'!$G$6:$FJ$12,48,FALSE) -> 5
A11: 262 | B11: Bas-Rhin | C11: =VLOOKUP($A11,'RECAP DIRCOM'!$G$6:$FJ$12,3,FALSE) -> 258 | D11: =VLOOKUP($A11,'RECAP DIRCOM'!$G$6:$FJ$12,30,FALSE) -> 6.15 | E11: =VLOOKUP($A11,'RECAP DIRCOM'!$G$6:$FJ$12,31,FALSE) -> 2.33 | F11: =VLOOKUP($A11,'RECAP DIRCOM'!$G$6:$FJ$12,32,FALSE) -> 51% | G11: =VLOOKUP($A11,'RECAP DIRCOM'!$G$6:$FJ$12,33,FALSE) -> 5 | H11: =VLOOKUP($A11,'RECAP DIRCOM'!$G$6:$FJ$12,34,FALSE) -> 6.35 | I11: =VLOOKUP($A11,'RECAP DIRCOM'!$G$6:$FJ$12,35,FALSE) -> 4.29 | J11: =VLOOKUP($A11,'RECAP DIRCOM'!$G$6:$FJ$12,36,FALSE) -> 10% | K11: =VLOOKUP($A11,'RECAP DIRCOM'!$G$6:$FJ$12,37,FALSE) -> 2 | L11: =VLOOKUP($A11,'RECAP DIRCOM'!$G$6:$FJ$12,38,FALSE) -> 10.82 | M11: =VLOOKUP($A11,'RECAP DIRCOM'!$G$6:$FJ$12,39,FALSE) -> 7.23 | N11: =VLOOKUP($A11,'RECAP DIRCOM'!$G$6:$FJ$12,40,FALSE) -> 0% | O11: =VLOOKUP($A11,'RECAP DIRCOM'!$G$6:$FJ$12,41,FALSE) -> 1 | P11: =VLOOKUP($A11,'RECAP DIRCOM'!$G$6:$FJ$12,42,FALSE) -> 0.84 | Q11: =VLOOKUP($A11,'RECAP DIRCOM'!$G$6:$FJ$12,43,FALSE) -> 0.40 | R11: =VLOOKUP($A11,'RECAP DIRCOM'!$G$6:$FJ$12,44,FALSE) -> 63% | S11: =VLOOKUP($A11,'RECAP DIRCOM'!$G$6:$FJ$12,45,FALSE) -> 5 | T11: =VLOOKUP($A11,'RECAP DIRCOM'!$G$6:$FJ$12,46,FALSE) -> 29% | U11: =VLOOKUP($A11,'RECAP DIRCOM'!$G$6:$FJ$12,47,FALSE) -> 17% | V11: =VLOOKUP($A11,'RECAP DIRCOM'!$G$6:$FJ$12,48,FALSE) -> 3
A12: 264 | B12: Haut-Rhin | C12: =VLOOKUP($A12,'RECAP DIRCOM'!$G$6:$FJ$12,3,FALSE) -> 157 | D12: =VLOOKUP($A12,'RECAP DIRCOM'!$G$6:$FJ$12,30,FALSE) -> 2.12 | E12: =VLOOKUP($A12,'RECAP DIRCOM'!$G$6:$FJ$12,31,FALSE) -> 0.89 | F12: =VLOOKUP($A12,'RECAP DIRCOM'!$G$6:$FJ$12,32,FALSE) -> 81% | G12: =VLOOKUP($A12,'RECAP DIRCOM'!$G$6:$FJ$12,33,FALSE) -> 7 | H12: =VLOOKUP($A12,'RECAP DIRCOM'!$G$6:$FJ$12,34,FALSE) -> 3.74 | I12: =VLOOKUP($A12,'RECAP DIRCOM'!$G$6:$FJ$12,35,FALSE) -> 2.68 | J12: =VLOOKUP($A12,'RECAP DIRCOM'!$G$6:$FJ$12,36,FALSE) -> 43% | K12: =VLOOKUP($A12,'RECAP DIRCOM'!$G$6:$FJ$12,37,FALSE) -> 7 | L12: =VLOOKUP($A12,'RECAP DIRCOM'!$G$6:$FJ$12,38,FALSE) -> 6.68 | M12: =VLOOKUP($A12,'RECAP DIRCOM'!$G$6:$FJ$12,39,FALSE) -> 4.69 | N12: =VLOOKUP($A12,'RECAP DIRCOM'!$G$6:$FJ$12,40,FALSE) -> 35% | O12: =VLOOKUP($A12,'RECAP DIRCOM'!$G$6:$FJ$12,41,FALSE) -> 5 | P12: =VLOOKUP($A12,'RECAP DIRCOM'!$G$6:$FJ$12,42,FALSE) -> 0.70 | Q12: =VLOOKUP($A12,'RECAP DIRCOM'!$G$6:$FJ$12,43,FALSE) -> 0.16 | R12: =VLOOKUP($A12,'RECAP DIRCOM'!$G$6:$FJ$12,44,FALSE) -> 85% | S12: =VLOOKUP($A12,'RECAP DIRCOM'!$G$6:$FJ$12,45,FALSE) -> 6 | T12: =VLOOKUP($A12,'RECAP DIRCOM'!$G$6:$FJ$12,46,FALSE) -> 60% | U12: =VLOOKUP($A12,'RECAP DIRCOM'!$G$6:$FJ$12,47,FALSE) -> 48% | V12: =VLOOKUP($A12,'RECAP DIRCOM'!$G$6:$FJ$12,48,FALSE) -> 7
A13: 30 | B13: Marne-Ardennes | C13: =VLOOKUP($A13,'RECAP DIRCOM'!$G$6:$FJ$12,3,FALSE) -> 223 | D13: =VLOOKUP($A13,'RECAP DIRCOM'!$G$6:$FJ$12,30,FALSE) -> 8.19 | E13: =VLOOKUP($A13,'RECAP DIRCOM'!$G$6:$FJ$12,31,FALSE) -> 4.73 | F13: =VLOOKUP($A13,'RECAP DIRCOM'!$G$6:$FJ$12,32,FALSE) -> 0% | G13: =VLOOKUP($A13,'RECAP DIRCOM'!$G$6:$FJ$12,33,FALSE) -> 1 | H13: =VLOOKUP($A13,'RECAP DIRCOM'!$G$6:$FJ$12,34,FALSE) -> 6.32 | I13: =VLOOKUP($A13,'RECAP DIRCOM'!$G$6:$FJ$12,35,FALSE) -> 4.24 | J13: =VLOOKUP($A13,'RECAP DIRCOM'!$G$6:$FJ$12,36,FALSE) -> 11% | K13: =VLOOKUP($A13,'RECAP DIRCOM'!$G$6:$FJ$12,37,FALSE) -> 3 | L13: =VLOOKUP($A13,'RECAP DIRCOM'!$G$6:$FJ$12,38,FALSE) -> 8.54 | M13: =VLOOKUP($A13,'RECAP DIRCOM'!$G$6:$FJ$12,39,FALSE) -> 5.83 | N13: =VLOOKUP($A13,'RECAP DIRCOM'!$G$6:$FJ$12,40,FALSE) -> 19% | O13: =VLOOKUP($A13,'RECAP DIRCOM'!$G$6:$FJ$12,41,FALSE) -> 3 | P13: =VLOOKUP($A13,'RECAP DIRCOM'!$G$6:$FJ$12,42,FALSE) -> 1.40 | Q13: =VLOOKUP($A13,'RECAP DIRCOM'!$G$6:$FJ$12,43,FALSE) -> 0.89 | R13: =VLOOKUP($A13,'RECAP DIRCOM'!$G$6:$FJ$12,44,FALSE) -> 17% | S13: =VLOOKUP($A13,'RECAP DIRCOM'!$G$6:$FJ$12,45,FALSE) -> 2 | T13: =VLOOKUP($A13,'RECAP DIRCOM'!$G$6:$FJ$12,46,FALSE) -> 11% | U13: =VLOOKUP($A13,'RECAP DIRCOM'!$G$6:$FJ$12,47,FALSE) -> 0% | V13: =VLOOKUP($A13,'RECAP DIRCOM'!$G$6:$FJ$12,48,FALSE) -> 1
A14: 110 | B14: Meurthe et Moselle Meuse | C14: =VLOOKUP($A14,'RECAP DIRCOM'!$G$6:$FJ$12,3,FALSE) -> 229 | D14: =VLOOKUP($A14,'RECAP DIRCOM'!$G$6:$FJ$12,30,FALSE) -> 7.98 | E14: =VLOOKUP($A14,'RECAP DIRCOM'!$G$6:$FJ$12,31,FALSE) -> 4.21 | F14: =VLOOKUP($A14,'RECAP DIRCOM'!$G$6:$FJ$12,32,FALSE) -> 11% | G14: =VLOOKUP($A14,'RECAP DIRCOM'!$G$6:$FJ$12,33,FALSE) -> 2 | H14: =VLOOKUP($A14,'RECAP DIRCOM'!$G$6:$FJ$12,34,FALSE) -> 7.28 | I14: =VLOOKUP($A14,'RECAP DIRCOM'!$G$6:$FJ$12,35,FALSE) -> 4.74 | J14: =VLOOKUP($A14,'RECAP DIRCOM'!$G$6:$FJ$12,36,FALSE) -> 0% | K14: =VLOOKUP($A14,'RECAP DIRCOM'!$G$6:$FJ$12,37,FALSE) -> 1 | L14: =VLOOKUP($A14,'RECAP DIRCOM'!$G$6:$FJ$12,38,FALSE) -> 9.89 | M14: =VLOOKUP($A14,'RECAP DIRCOM'!$G$6:$FJ$12,39,FALSE) -> 6.65 | N14: =VLOOKUP($A14,'RECAP DIRCOM'!$G$6:$FJ$12,40,FALSE) -> 8% | O14: =VLOOKUP($A14,'RECAP DIRCOM'!$G$6:$FJ$12,41,FALSE) -> 2 | P14: =VLOOKUP($A14,'RECAP DIRCOM'!$G$6:$FJ$12,42,FALSE) -> 1.20 | Q14: =VLOOKUP($A14,'RECAP DIRCOM'!$G$6:$FJ$12,43,FALSE) -> 0.72 | R14: =VLOOKUP($A14,'RECAP DIRCOM'!$G$6:$FJ$12,44,FALSE) -> 32% | S14: =VLOOKUP($A14,'RECAP DIRCOM'!$G$6:$FJ$12,45,FALSE) -> 3 | T14: =VLOOKUP($A14,'RECAP DIRCOM'!$G$6:$FJ$12,46,FALSE) -> 12% | U14: =VLOOKUP($A14,'RECAP DIRCOM'!$G$6:$FJ$12,47,FALSE) -> 0% | V14: =VLOOKUP($A14,'RECAP DIRCOM'!$G$6:$FJ$12,48,FALSE) -> 2
A15: 160 | B15: Moselle | C15: =VLOOKUP($A15,'RECAP DIRCOM'!$G$6:$FJ$12,3,FALSE) -> 266 | D15: =VLOOKUP($A15,'RECAP DIRCOM'!$G$6:$FJ$12,30,FALSE) -> 6.58 | E15: =VLOOKUP($A15,'RECAP DIRCOM'!$G$6:$FJ$12,31,FALSE) -> 3.98 | F15: =VLOOKUP($A15,'RECAP DIRCOM'!$G$6:$FJ$12,32,FALSE) -> 16% | G15: =VLOOKUP($A15,'RECAP DIRCOM'!$G$6:$FJ$12,33,FALSE) -> 3 | H15: =VLOOKUP($A15,'RECAP DIRCOM'!$G$6:$FJ$12,34,FALSE) -> 4.52 | I15: =VLOOKUP($A15,'RECAP DIRCOM'!$G$6:$FJ$12,35,FALSE) -> 3.08 | J15: =VLOOKUP($A15,'RECAP DIRCOM'!$G$6:$FJ$12,36,FALSE) -> 35% | K15: =VLOOKUP($A15,'RECAP DIRCOM'!$G$6:$FJ$12,37,FALSE) -> 5 | L15: =VLOOKUP($A15,'RECAP DIRCOM'!$G$6:$FJ$12,38,FALSE) -> 6.49 | M15: =VLOOKUP($A15,'RECAP DIRCOM'!$G$6:$FJ$12,39,FALSE) -> 4.60 | N15: =VLOOKUP($A15,'RECAP DIRCOM'!$G$6:$FJ$12,40,FALSE) -> 36% | O15: =VLOOKUP($A15,'RECAP DIRCOM'!$G$6:$FJ$12,41,FALSE) -> 6 | P15: =VLOOKUP($A15,'RECAP DIRCOM'!$G$6:$FJ$12,42,FALSE) -> 0.27 | Q15: =VLOOKUP($A15,'RECAP DIRCOM'!$G$6:$FJ$12,43,FALSE) -> -0.07 | R15: =VLOOKUP($A15,'RECAP DIRCOM'!$G$6:$FJ$12,44,FALSE) -> 107% | S15: =VLOOKUP($A15,'RECAP DIRCOM'!$G$6:$FJ$12,45,FALSE) -> 7 | T15: =VLOOKUP($A15,'RECAP DIRCOM'!$G$6:$FJ$12,46,FALSE) -> 45% | U15: =VLOOKUP($A15,'RECAP DIRCOM'!$G$6:$FJ$12,47,FALSE) -> 33% | V15: =VLOOKUP($A15,'RECAP DIRCOM'!$G$6:$FJ$12,48,FALSE) -> 6
A16: 80 | B16: Vosges | C16: =VLOOKUP($A16,'RECAP DIRCOM'!$G$6:$FJ$12,3,FALSE) -> 131 | D16: =VLOOKUP($A16,'RECAP DIRCOM'!$G$6:$FJ$12,30,FALSE) -> 5.90 | E16: =VLOOKUP($A16,'RECAP DIRCOM'!$G$6:$FJ$12,31,FALSE) -> 2.36 | F16: =VLOOKUP($A16,'RECAP DIRCOM'!$G$6:$FJ$12,32,FALSE) -> 50% | G16: =VLOOKUP($A16,'RECAP DIRCOM'!$G$6:$FJ$12,33,FALSE) -> 4 | H16: =VLOOKUP($A16,'RECAP DIRCOM'!$G$6:$FJ$12,34,FALSE) -> 4.93 | I16: =VLOOKUP($A16,'RECAP DIRCOM'!$G$6:$FJ$12,35,FALSE) -> 3.32 | J16: =VLOOKUP($A16,'RECAP DIRCOM'!$G$6:$FJ$12,36,FALSE) -> 30% | K16: =VLOOKUP($A16,'RECAP DIRCOM'!$G$6:$FJ$12,37,FALSE) -> 4 | L16: =VLOOKUP($A16,'RECAP DIRCOM'!$G$6:$FJ$12,38,FALSE) -> 8.49 | M16: =VLOOKUP($A16,'RECAP DIRCOM'!$G$6:$FJ$12,39,FALSE) -> 5.69 | N16: =VLOOKUP($A16,'RECAP DIRCOM'!$G$6:$FJ$12,40,FALSE) -> 21% | O16: =VLOOKUP($A16,'RECAP DIRCOM'!$G$6:$FJ$12,41,FALSE) -> 4 | P16: =VLOOKUP($A16,'RECAP DIRCOM'!$G$6:$FJ$12,42,FALSE) -> 1.13 | Q16: =VLOOKUP($A16,'RECAP DIRCOM'!$G$6:$FJ$12,43,FALSE) -> 0.61 | R16: =VLOOKUP($A16,'RECAP DIRCOM'!$G$6:$FJ$12,44,FALSE) -> 43% | S16: =VLOOKUP($A16,'RECAP DIRCOM'!$G$6:$FJ$12,45,FALSE) -> 4 | T16: =VLOOKUP($A16,'RECAP DIRCOM'!$G$6:$FJ$12,46,FALSE) -> 36% | U16: =VLOOKUP($A16,'RECAP DIRCOM'!$G$6:$FJ$12,47,FALSE) -> 24% | V16: =VLOOKUP($A16,'RECAP DIRCOM'!$G$6:$FJ$12,48,FALSE) -> 4
B17: Total CEGEE Directions Régionales | C17: =SUM(C10:C16) -> 1390

Sheet DC_EPARGNE
B1: Accueil | D1: BAROMETRE BDD - DIRECTIONS REGIONALES
D2: EPARGNE
D3: =ACCUEIL!F7 -> 2020-07-19
D7: Excédent Epargne Liquide | H7: CA UC + arbitrage | L7: Excédent Assurance Vie | P7: Total Epargne
D8: =DATEMAJ!C17 -> au 19/07 | F8: coef | G8: ='RECAP DIRCOM'!BL4 -> 3% | H8: =DATEMAJ!C18 -> au 12/07 | J8: coef | K8: ='RECAP DIRCOM'!BP4 -> 4% | L8: =DATEMAJ!C19 -> au 19/07 | N8: coef | O8: ='RECAP DIRCOM'!BT4 -> 3% | Q8: coef | R8: ='RECAP DIRCOM'!BW4 -> 10%
B9: Direction | C9: ="ETP perf "&DATEMAJ!$C$39 -> ETP perf au 31/05 | D9: Réal / ETP | E9: PNB / ETP | F9: % Ecart au 1er | G9: Rang | H9: Réal / ETP | I9: PNB / ETP | J9: % Ecart au 1er | K9: Rang | L9: Réal / ETP | M9: PNB / ETP | N9: % Ecart au 1er | O9: Rang | P9: Moyenne ecart au 1er | Q9: % Ecart au 1er | R9: Rang CEGEE
A10: 50 | B10: Aube Haute Marne | C10: =VLOOKUP($A10,'RECAP DIRCOM'!$G$6:$FJ$12,3,FALSE) -> 125 | D10: =VLOOKUP($A10,'RECAP DIRCOM'!$G$6:$FJ$12,55,FALSE) -> 243.13 | E10: =VLOOKUP($A10,'RECAP DIRCOM'!$G$6:$FJ$12,56,FALSE) -> 5.53 | F10: =VLOOKUP($A10,'RECAP DIRCOM'!$G$6:$FJ$12,57,FALSE) -> 29% | G10: =VLOOKUP($A10,'RECAP DIRCOM'!$G$6:$FJ$12,58,FALSE) -> 6 | H10: =VLOOKUP($A10,'RECAP DIRCOM'!$G$6:$FJ$12,59,FALSE) -> 117.27 | I10: =VLOOKUP($A10,'RECAP DIRCOM'!$G$6:$FJ$12,60,FALSE) -> 0.80 | J10: =VLOOKUP($A10,'RECAP DIRCOM'!$G$6:$FJ$12,61,FALSE) -> 3% | K10: =VLOOKUP($A10,'RECAP DIRCOM'!$G$6:$FJ$12,62,FALSE) -> 3 | L10: =VLOOKUP($A10,'RECAP DIRCOM'!$G$6:$FJ$12,63,FALSE) -> -33 | M10: =VLOOKUP($A10,'RECAP DIRCOM'!$G$6:$FJ$12,64,FALSE) -> -1.17 | N10: =VLOOKUP($A10,'RECAP DIRCOM'!$G$6:$FJ$12,65,FALSE) -> 100% | O10: =VLOOKUP($A10,'RECAP DIRCOM'!$G$6:$FJ$12,66,FALSE) -> 6 | P10: =VLOOKUP($A10,'RECAP DIRCOM'!$G$6:$FJ$12,67,FALSE) -> 40% | Q10: =VLOOKUP($A10,'RECAP DIRCOM'!$G$6:$FJ$12,68,FALSE) -> 25% | R10: =VLOOKUP($A10,'RECAP DIRCOM'!$G$6:$FJ$12,69,FALSE) -> 6
A11: 262 | B11: Bas-Rhin | C11: =VLOOKUP($A11,'RECAP DIRCOM'!$G$6:$FJ$12,3,FALSE) -> 258 | D11: =VLOOKUP($A11,'RECAP DIRCOM'!$G$6:$FJ$12,55,FALSE) -> 336.16 | E11: =VLOOKUP($A11,'RECAP DIRCOM'!$G$6:$FJ$12,56,FALSE) -> 7.76 | F11: =VLOOKUP($A11,'RECAP DIRCOM'!$G$6:$FJ$12,57,FALSE) -> 0% | G11: =VLOOKUP($A11,'RECAP DIRCOM'!$G$6:$FJ$12,58,FALSE) -> 1 | H11: =VLOOKUP($A11,'RECAP DIRCOM'!$G$6:$FJ$12,59,FALSE) -> 114.31 | I11: =VLOOKUP($A11,'RECAP DIRCOM'!$G$6:$FJ$12,60,FALSE) -> 0.82 | J11: =VLOOKUP($A11,'RECAP DIRCOM'!$G$6:$FJ$12,61,FALSE) -> 0% | K11: =VLOOKUP($A11,'RECAP DIRCOM'!$G$6:$FJ$12,62,FALSE) -> 2 | L11: =VLOOKUP($A11,'RECAP DIRCOM'!$G$6:$FJ$12,63,FALSE) -> -13 | M11: =VLOOKUP($A11,'RECAP DIRCOM'!$G$6:$FJ$12,64,FALSE) -> -0.48 | N11: =VLOOKUP($A11,'RECAP DIRCOM'!$G$6:$FJ$12,65,FALSE) -> 74% | O11: =VLOOKUP($A11,'RECAP DIRCOM'!$G$6:$FJ$12,66,FALSE) -> 5 | P11: =VLOOKUP($A11,'RECAP DIRCOM'!$G$6:$FJ$12,67,FALSE) -> 22% | Q11: =VLOOKUP($A11,'RECAP DIRCOM'!$G$6:$FJ$12,68,FALSE) -> 7% | R11: =VLOOKUP($A11,'RECAP DIRCOM'!$G$6:$FJ$12,69,FALSE) -> 3
A12: 264 | B12: Haut-Rhin | C12: =VLOOKUP($A12,'RECAP DIRCOM'!$G$6:$FJ$12,3,FALSE) -> 157 | D12: =VLOOKUP($A12,'RECAP DIRCOM'!$G$6:$FJ$12,55,FALSE) -> 286.74 | E12: =VLOOKUP($A12,'RECAP DIRCOM'!$G$6:$FJ$12,56,FALSE) -> 6.67 | F12: =VLOOKUP($A12,'RECAP DIRCOM'!$G$6:$FJ$12,57,FALSE) -> 14% | G12: =VLOOKUP($A12,'RECAP DIRCOM'!$G$6:$FJ$12,58,FALSE) -> 4 | H12: =VLOOKUP($A12,'RECAP DIRCOM'!$G$6:$FJ$12,59,FALSE) -> 96.87 | I12: =VLOOKUP($A12,'RECAP DIRCOM'!$G$6:$FJ$12,60,FALSE) -> 0.78 | J12: =VLOOKUP($A12,'RECAP DIRCOM'!$G$6:$FJ$12,61,FALSE) -> 5% | K12: =VLOOKUP($A12,'RECAP DIRCOM'!$G$6:$FJ$12,62,FALSE) -> 5 | L12: =VLOOKUP($A12,'RECAP DIRCOM'!$G$6:$FJ$12,63,FALSE) -> -70 | M12: =VLOOKUP($A12,'RECAP DIRCOM'!$G$6:$FJ$12,64,FALSE) -> -2.53 | N12: =VLOOKUP($A12,'RECAP DIRCOM'!$G$6:$FJ$12,65,FALSE) -> 150% | O12: =VLOOKUP($A12,'RECAP DIRCOM'!$G$6:$FJ$12,66,FALSE) -> 7 | P12: =VLOOKUP($A12,'RECAP DIRCOM'!$G$6:$FJ$12,67,FALSE) -> 51% | Q12: =VLOOKUP($A12,'RECAP DIRCOM'!$G$6:$FJ$12,68,FALSE) -> 36% | R12: =VLOOKUP($A12,'RECAP DIRCOM'!$G$6:$FJ$12,69,FALSE) -> 7
A13: 30 | B13: Marne-Ardennes | C13: =VLOOKUP($A13,'RECAP DIRCOM'!$G$6:$FJ$12,3,FALSE) -> 223 | D13: =VLOOKUP($A13,'RECAP DIRCOM'!$G$6:$FJ$12,55,FALSE) -> 321.18 | E13: =VLOOKUP($A13,'RECAP DIRCOM'!$G$6:$FJ$12,56,FALSE) -> 7.45 | F13: =VLOOKUP($A13,'RECAP DIRCOM'!$G$6:$FJ$12,57,FALSE) -> 4% | G13: =VLOOKUP($A13,'RECAP DIRCOM'!$G$6:$FJ$12,58,FALSE) -> 2 | H13: =VLOOKUP($A13,'RECAP DIRCOM'!$G$6:$FJ$12,59,FALSE) -> 114.75 | I13: =VLOOKUP($A13,'RECAP DIRCOM'!$G$6:$FJ$12,60,FALSE) -> 0.73 | J13: =VLOOKUP($A13,'RECAP DIRCOM'!$G$6:$FJ$12,61,FALSE) -> 12% | K13: =VLOOKUP($A13,'RECAP DIRCOM'!$G$6:$FJ$12,62,FALSE) -> 6 | L13: =VLOOKUP($A13,'RECAP DIRCOM'!$G$6:$FJ$12,63,FALSE) -> -7 | M13: =VLOOKUP($A13,'RECAP DIRCOM'!$G$6:$FJ$12,64,FALSE) -> -0.24 | N13: =VLOOKUP($A13,'RECAP DIRCOM'!$G$6:$FJ$12,65,FALSE) -> 65% | O13: =VLOOKUP($A13,'RECAP DIRCOM'!$G$6:$FJ$12,66,FALSE) -> 4 | P13: =VLOOKUP($A13,'RECAP DIRCOM'!$G$6:$FJ$12,67,FALSE) -> 26% | Q13: =VLOOKUP($A13,'RECAP DIRCOM'!$G$6:$FJ$12,68,FALSE) -> 11% | R13: =VLOOKUP($A13,'RECAP DIRCOM'!$G$6:$FJ$12,69,FALSE) -> 4
A14: 110 | B14: Meurthe et Moselle Meuse | C14: =VLOOKUP($A14,'RECAP DIRCOM'!$G$6:$FJ$12,3,FALSE) -> 229 | D14: =VLOOKUP($A14,'RECAP DIRCOM'!$G$6:$FJ$12,55,FALSE) -> 289.73 | E14: =VLOOKUP($A14,'RECAP DIRCOM'!$G$6:$FJ$12,56,FALSE) -> 6.71 | F14: =VLOOKUP($A14,'RECAP DIRCOM'!$G$6:$FJ$12,57,FALSE) -> 14% | G14: =VLOOKUP($A14,'RECAP DIRCOM'!$G$6:$FJ$12,58,FALSE) -> 3 | H14: =VLOOKUP($A14,'RECAP DIRCOM'!$G$6:$FJ$12,59,FALSE) -> 122.74 | I14: =VLOOKUP($A14,'RECAP DIRCOM'!$G$6:$FJ$12,60,FALSE) -> 0.82 | J14: =VLOOKUP($A14,'RECAP DIRCOM'!$G$6:$FJ$12,61,FALSE) -> 0% | K14: =VLOOKUP($A14,'RECAP DIRCOM'!$G$6:$FJ$12,62,FALSE) -> 1 | L14: =VLOOKUP($A14,'RECAP DIRCOM'!$G$6:$FJ$12,63,FALSE) -> 9 | M14: =VLOOKUP($A14,'RECAP DIRCOM'!$G$6:$FJ$12,64,FALSE) -> 0.32 | N14: =VLOOKUP($A14,'RECAP DIRCOM'!$G$6:$FJ$12,65,FALSE) -> 45% | O14: =VLOOKUP($A14,'RECAP DIRCOM'!$G$6:$FJ$12,66,FALSE) -> 2 | P14: =VLOOKUP($A14,'RECAP DIRCOM'!$G$6:$FJ$12,67,FALSE) -> 17% | Q14: =VLOOKUP($A14,'RECAP DIRCOM'!$G$6:$FJ$12,68,FALSE) -> 2% | R14: =VLOOKUP($A14,'RECAP DIRCOM'!$G$6:$FJ$12,69,FALSE) -> 2
A15: 160 | B15: Moselle | C15: =VLOOKUP($A15,'RECAP DIRCOM'!$G$6:$FJ$12,3,FALSE) -> 266 | D15: =VLOOKUP($A15,'RECAP DIRCOM'!$G$6:$FJ$12,55,FALSE) -> 255.42 | E15: =VLOOKUP($A15,'RECAP DIRCOM'!$G$6:$FJ$12,56,FALSE) -> 5.85 | F15: =VLOOKUP($A15,'RECAP DIRCOM'!$G$6:$FJ$12,57,FALSE) -> 25% | G15: =VLOOKUP($A15,'RECAP DIRCOM'!$G$6:$FJ$12,58,FALSE) -> 5 | H15: =VLOOKUP($A15,'RECAP DIRCOM'!$G$6:$FJ$12,59,FALSE) -> 117.78 | I15: =VLOOKUP($A15,'RECAP DIRCOM'!$G$6:$FJ$12,60,FALSE) -> 0.79 | J15: =VLOOKUP($A15,'RECAP DIRCOM'!$G$6:$FJ$12,61,FALSE) -> 4% | K15: =VLOOKUP($A15,'RECAP DIRCOM'!$G$6:$FJ$12,62,FALSE) -> 4 | L15: =VLOOKUP($A15,'RECAP DIRCOM'!$G$6:$FJ$12,63,FALSE) -> -4 | M15: =VLOOKUP($A15,'RECAP DIRCOM'!$G$6:$FJ$12,64,FALSE) -> -0.14 | N15: =VLOOKUP($A15,'RECAP DIRCOM'!$G$6:$FJ$12,65,FALSE) -> 62% | O15: =VLOOKUP($A15,'RECAP DIRCOM'!$G$6:$FJ$12,66,FALSE) -> 3 | P15: =VLOOKUP($A15,'RECAP DIRCOM'!$G$6:$FJ$12,67,FALSE) -> 28% | Q15: =VLOOKUP($A15,'RECAP DIRCOM'!$G$6:$FJ$12,68,FALSE) -> 12% | R15: =VLOOKUP($A15,'RECAP DIRCOM'!$G$6:$FJ$12,69,FALSE) -> 5
A16: 80 | B16: Vosges | C16: =VLOOKUP($A16,'RECAP DIRCOM'!$G$6:$FJ$12,3,FALSE) -> 131 | D16: =VLOOKUP($A16,'RECAP DIRCOM'!$G$6:$FJ$12,55,FALSE) -> 199.88 | E16: =VLOOKUP($A16,'RECAP DIRCOM'!$G$6:$FJ$12,56,FALSE) -> 5.30 | F16: =VLOOKUP($A16,'RECAP DIRCOM'!$G$6:$FJ$12,57,FALSE) -> 32% | G16: =VLOOKUP($A16,'RECAP DIRCOM'!$G$6:$FJ$12,58,FALSE) -> 7 | H16: =VLOOKUP($A16,'RECAP DIRCOM'!$G$6:$FJ$12,59,FALSE) -> 128.22 | I16: =VLOOKUP($A16,'RECAP DIRCOM'!$G$6:$FJ$12,60,FALSE) -> 0.71 | J16: =VLOOKUP($A16,'RECAP DIRCOM'!$G$6:$FJ$12,61,FALSE) -> 14% | K16: =VLOOKUP($A16,'RECAP DIRCOM'!$G$6:$FJ$12,62,FALSE) -> 7 | L16: =VLOOKUP($A16,'RECAP DIRCOM'!$G$6:$FJ$12,63,FALSE) -> 43 | M16: =VLOOKUP($A16,'RECAP DIRCOM'!$G$6:$FJ$12,64,FALSE) -> 1.54 | N16: =VLOOKUP($A16,'RECAP DIRCOM'!$G$6:$FJ$12,65,FALSE) -> 0% | O16: =VLOOKUP($A16,'RECAP DIRCOM'!$G$6:$FJ$12,66,FALSE) -> 1 | P16: =VLOOKUP($A16,'RECAP DIRCOM'!$G$6:$FJ$12,67,FALSE) -> 15% | Q16: =VLOOKUP($A16,'RECAP DIRCOM'!$G$6:$FJ$12,68,FALSE) -> 0% | R16: =VLOOKUP($A16,'RECAP DIRCOM'!$G$6:$FJ$12,69,FALSE) -> 1
B17: Total CEGEE Directions Régionales | C17: =SUM(C10:C16) -> 1390

Sheet DC_CREDIT
B1: Accueil | D1: BAROMETRE BDD - DIRECTIONS REGIONALES
D2: CREDITS
D3: =ACCUEIL!F7 -> 2020-07-19
D7: Engagements crédits conso | H7: ADE crédits conso | L7: Engagements crédits immo | P7: ADE crédits immo | T7: SACCEF | X7: Engagement Crédits MLT + Crédits Bail | AB7: Total Crédits
D8: =DATEMAJ!C21 -> au 19/07 | F8: coef | G8: ='RECAP DIRCOM'!CG4 -> 4% | I8: =DATEMAJ!C22 -> au 19/07 | J8: coef | K8: ='RECAP DIRCOM'!CK4 -> 1% | L8: =DATEMAJ!C23 -> au 19/07 | N8: coef | O8: ='RECAP DIRCOM'!CO4 -> 4% | Q8: =DATEMAJ!C24 -> au 19/07 | R8: coef | S8: ='RECAP DIRCOM'!CS4 -> 2% | U8: =DATEMAJ!C25 -> au 19/07 | V8: coef | W8: ='RECAP DIRCOM'!CW4 -> 2% | X8: =DATEMAJ!C26 -> au 19/07 | Z8: coef | AA8: ='RECAP DIRCOM'!DA4 -> 2% | AC8: coef | AD8: ='RECAP DIRCOM'!DD4 -> 15%
B9: Direction | C9: ="ETP perf "&DATEMAJ!$C$39 -> ETP perf au 31/05 | D9: Réal / ETP | E9: PNB / ETP | F9: % Ecart au 1er | G9: Rang | I9: PNB / ETP | J9: % Ecart au 1er | K9: Rang | L9: Réal / ETP | M9: PNB / ETP | N9: % Ecart au 1er | O9: Rang | Q9: PNB / ETP | R9: % Ecart au 1er | S9: Rang | U9: PNB / ETP | V9: % Ecart au 1er | W9: Rang | X9: Réal / ETP | Y9: PNB / ETP | Z9: % Ecart au 1er | AA9: Rang | AB9: Moyenne ecart au 1er | AC9: % Ecart au 1er | AD9: Rang CEGEE
A10: 50 | B10: Aube Haute Marne | C10: =VLOOKUP($A10,'RECAP DIRCOM'!$G$6:$FJ$12,3,FALSE) -> 125 | D10: =VLOOKUP($A10,'RECAP DIRCOM'!$G$6:$FJ$12,76,FALSE) -> 271.93 | E10: =VLOOKUP($A10,'RECAP DIRCOM'!$G$6:$FJ$12,77,FALSE) -> 26.29 | F10: =VLOOKUP($A10,'RECAP DIRCOM'!$G$6:$FJ$12,78,FALSE) -> 1% | G10: =VLOOKUP($A10,'RECAP DIRCOM'!$G$6:$FJ$12,79,FALSE) -> 2 | I10: =VLOOKUP($A10,'RECAP DIRCOM'!$G$6:$FJ$12,81,FALSE) -> 5.73 | J10: =VLOOKUP($A10,'RECAP DIRCOM'!$G$6:$FJ$12,82,FALSE) -> 8% | K10: =VLOOKUP($A10,'RECAP DIRCOM'!$G$6:$FJ$12,83,FALSE) -> 2 | L10: =VLOOKUP($A10,'RECAP DIRCOM'!$G$6:$FJ$12,84,FALSE) -> 549.87 | M10: =VLOOKUP($A10,'RECAP DIRCOM'!$G$6:$FJ$12,85,FALSE) -> 21.95 | N10: =VLOOKUP($A10,'RECAP DIRCOM'!$G$6:$FJ$12,86,FALSE) -> 44% | O10: =VLOOKUP($A10,'RECAP DIRCOM'!$G$6:$FJ$12,87,FALSE) -> 4 | Q10: =VLOOKUP($A10,'RECAP DIRCOM'!$G$6:$FJ$12,89,FALSE) -> 10.77 | R10: =VLOOKUP($A10,'RECAP DIRCOM'!$G$6:$FJ$12,90,FALSE) -> 60% | S10: =VLOOKUP($A10,'RECAP DIRCOM'!$G$6:$FJ$12,91,FALSE) -> 7 | U10: =VLOOKUP($A10,'RECAP DIRCOM'!$G$6:$FJ$12,93,FALSE) -> 1.32 | V10: =VLOOKUP($A10,'RECAP DIRCOM'!$G$6:$FJ$12,94,FALSE) -> 48% | W10: =VLOOKUP($A10,'RECAP DIRCOM'!$G$6:$FJ$12,95,FALSE) -> 5 | X10: =VLOOKUP($A10,'RECAP DIRCOM'!$G$6:$FJ$12,96,FALSE) -> 131.66 | Y10: =VLOOKUP($A10,'RECAP DIRCOM'!$G$6:$FJ$12,97,FALSE) -> 5.03 | Z10: =VLOOKUP($A10,'RECAP DIRCOM'!$G$6:$FJ$12,98,FALSE) -> 0% | AA10: =VLOOKUP($A10,'RECAP DIRCOM'!$G$6:$FJ$12,99,FALSE) -> 1 | AB10: =VLOOKUP($A10,'RECAP DIRCOM'!$G$6:$FJ$12,100,FALSE) -> 27% | AC10: =VLOOKUP($A10,'RECAP DIRCOM'!$G$6:$FJ$12,101,FALSE) -> 20% | AD10: =VLOOKUP($A10,'RECAP DIRCOM'!$G$6:$FJ$12,102,FALSE) -> 4
A11: 262 | B11: Bas-Rhin | C11: =VLOOKUP($A11,'RECAP DIRCOM'!$G$6:$FJ$12,3,FALSE) -> 258 | D11: =VLOOKUP($A11,'RECAP DIRCOM'!$G$6:$FJ$12,76,FALSE) -> 230.31 | E11: =VLOOKUP($A11,'RECAP DIRCOM'!$G$6:$FJ$12,77,FALSE) -> 19.74 | F11: =VLOOKUP($A11,'RECAP DIRCOM'!$G$6:$FJ$12,78,FALSE) -> 26% | G11: =VLOOKUP($A11,'RECAP DIRCOM'!$G$6:$FJ$12,79,FALSE) -> 6 | I11: =VLOOKUP($A11,'RECAP DIRCOM'!$G$6:$FJ$12,81,FALSE) -> 4.98 | J11: =VLOOKUP($A11,'RECAP DIRCOM'!$G$6:$FJ$12,82,FALSE) -> 20% | K11: =VLOOKUP($A11,'RECAP DIRCOM'!$G$6:$FJ$12,83,FALSE) -> 6 | L11: =VLOOKUP($A11,'RECAP DIRCOM'!$G$6:$FJ$12,84,FALSE) -> 750.40 | M11: =VLOOKUP($A11,'RECAP DIRCOM'!$G$6:$FJ$12,85,FALSE) -> 21.25 | N11: =VLOOKUP($A11,'RECAP DIRCOM'!$G$6:$FJ$12,86,FALSE) -> 46% | O11: =VLOOKUP($A11,'RECAP DIRCOM'!$G$6:$FJ$12,87,FALSE) -> 7 | Q11: =VLOOKUP($A11,'RECAP DIRCOM'!$G$6:$FJ$12,89,FALSE) -> 13.91 | R11: =VLOOKUP($A11,'RECAP DIRCOM'!$G$6:$FJ$12,90,FALSE) -> 48% | S11: =VLOOKUP($A11,'RECAP DIRCOM'!$G$6:$FJ$12,91,FALSE) -> 5 | U11: =VLOOKUP($A11,'RECAP DIRCOM'!$G$6:$FJ$12,93,FALSE) -> 1.43 | V11: =VLOOKUP($A11,'RECAP DIRCOM'!$G$6:$FJ$12,94,FALSE) -> 44% | W11: =VLOOKUP($A11,'RECAP DIRCOM'!$G$6:$FJ$12,95,FALSE) -> 4 | X11: =VLOOKUP($A11,'RECAP DIRCOM'!$G$6:$FJ$12,96,FALSE) -> 94.26 | Y11: =VLOOKUP($A11,'RECAP DIRCOM'!$G$6:$FJ$12,97,FALSE) -> 2.92 | Z11: =VLOOKUP($A11,'RECAP DIRCOM'!$G$6:$FJ$12,98,FALSE) -> 42% | AA11: =VLOOKUP($A11,'RECAP DIRCOM'!$G$6:$FJ$12,99,FALSE) -> 4 | AB11: =VLOOKUP($A11,'RECAP DIRCOM'!$G$6:$FJ$12,100,FALSE) -> 38% | AC11: =VLOOKUP($A11,'RECAP DIRCOM'!$G$6:$FJ$12,101,FALSE) -> 31% | AD11: =VLOOKUP($A11,'RECAP DIRCOM'!$G$6:$FJ$12,102,FALSE) -> 6
A12: 264 | B12: Haut-Rhin | C12: =VLOOKUP($A12,'RECAP DIRCOM'!$G$6:$FJ$12,3,FALSE) -> 157 | D12: =VLOOKUP($A12,'RECAP DIRCOM'!$G$6:$FJ$12,76,FALSE) -> 215.95 | E12: =VLOOKUP($A12,'RECAP DIRCOM'!$G$6:$FJ$12,77,FALSE) -> 18.98 | F12: =VLOOKUP($A12,'RECAP DIRCOM'!$G$6:$FJ$12,78,FALSE) -> 29% | G12: =VLOOKUP($A12,'RECAP DIRCOM'!$G$6:$FJ$12,79,FALSE) -> 7 | I12: =VLOOKUP($A12,'RECAP DIRCOM'!$G$6:$FJ$12,81,FALSE) -> 4.69 | J12: =VLOOKUP($A12,'RECAP DIRCOM'!$G$6:$FJ$12,82,FALSE) -> 24% | K12: =VLOOKUP($A12,'RECAP DIRCOM'!$G$6:$FJ$12,83,FALSE) -> 7 | L12: =VLOOKUP($A12,'RECAP DIRCOM'!$G$6:$FJ$12,84,FALSE) -> 663.43 | M12: =VLOOKUP($A12,'RECAP DIRCOM'!$G$6:$FJ$12,85,FALSE) -> 21.54 | N12: =VLOOKUP($A12,'RECAP DIRCOM'!$G$6:$FJ$12,86,FALSE) -> 45% | O12: =VLOOKUP($A12,'RECAP DIRCOM'!$G$6:$FJ$12,87,FALSE) -> 6 | Q12: =VLOOKUP($A12,'RECAP DIRCOM'!$G$6:$FJ$12,89,FALSE) -> 14.88 | R12: =VLOOKUP($A12,'RECAP DIRCOM'!$G$6:$FJ$12,90,FALSE) -> 44% | S12: =VLOOKUP($A12,'RECAP DIRCOM'!$G$6:$FJ$12,91,FALSE) -> 4 | U12: =VLOOKUP($A12,'RECAP DIRCOM'!$G$6:$FJ$12,93,FALSE) -> 1.15 | V12: =VLOOKUP($A12,'RECAP DIRCOM'!$G$6:$FJ$12,94,FALSE) -> 55% | W12: =VLOOKUP($A12,'RECAP DIRCOM'!$G$6:$FJ$12,95,FALSE) -> 7 | X12: =VLOOKUP($A12,'RECAP DIRCOM'!$G$6:$FJ$12,96,FALSE) -> 92.81 | Y12: =VLOOKUP($A12,'RECAP DIRCOM'!$G$6:$FJ$12,97,FALSE) -> 3.26 | Z12: =VLOOKUP($A12,'RECAP DIRCOM'!$G$6:$FJ$12,98,FALSE) -> 35% | AA12: =VLOOKUP($A12,'RECAP DIRCOM'!$G$6:$FJ$12,99,FALSE) -> 3 | AB12: =VLOOKUP($A12,'RECAP DIRCOM'!$G$6:$FJ$12,100,FALSE) -> 39% | AC12: =VLOOKUP($A12,'RECAP DIRCOM'!$G$6:$FJ$12,101,FALSE) -> 32% | AD12: =VLOOKUP($A12,'RECAP DIRCOM'!$G$6:$FJ$12,102,FALSE) -> 7
A13: 30 | B13: Marne-Ardennes | C13: =VLOOKUP($A13,'RECAP DIRCOM'!$G$6:$FJ$12,3,FALSE) -> 223 | D13: =VLOOKUP($A13,'RECAP DIRCOM'!$G$6:$FJ$12,76,FALSE) -> 264.45 | E13: =VLOOKUP($A13,'RECAP DIRCOM'!$G$6:$FJ$12,77,FALSE) -> 23.63 | F13: =VLOOKUP($A13,'RECAP DIRCOM'!$G$6:$FJ$12,78,FALSE) -> 11% | G13: =VLOOKUP($A13,'RECAP DIRCOM'!$G$6:$FJ$12,79,FALSE) -> 4 | I13: =VLOOKUP($A13,'RECAP DIRCOM'!$G$6:$FJ$12,81,FALSE) -> 5.52 | J13: =VLOOKUP($A13,'RECAP DIRCOM'!$G$6:$FJ$12,82,FALSE) -> 11% | K13: =VLOOKUP($A13,'RECAP DIRCOM'!$G$6:$FJ$12,83,FALSE) -> 4 | L13: =VLOOKUP($A13,'RECAP DIRCOM'!$G$6:$FJ$12,84,FALSE) -> 1022.06 | M13: =VLOOKUP($A13,'RECAP DIRCOM'!$G$6:$FJ$12,85,FALSE) -> 37.98 | N13: =VLOOKUP($A13,'RECAP DIRCOM'!$G$6:$FJ$12,86,FALSE) -> 3% | O13: =VLOOKUP($A13,'RECAP DIRCOM'!$G$6:$FJ$12,87,FALSE) -> 2 | Q13: =VLOOKUP($A13,'RECAP DIRCOM'!$G$6:$FJ$12,89,FALSE) -> 26.78 | R13: =VLOOKUP($A13,'RECAP DIRCOM'!$G$6:$FJ$12,90,FALSE) -> 0% | S13: =VLOOKUP($A13,'RECAP DIRCOM'!$G$6:$FJ$12,91,FALSE) -> 1 | U13: =VLOOKUP($A13,'RECAP DIRCOM'!$G$6:$FJ$12,93,FALSE) -> 2.36 | V13: =VLOOKUP($A13,'RECAP DIRCOM'!$G$6:$FJ$12,94,FALSE) -> 7% | W13: =VLOOKUP($A13,'RECAP DIRCOM'!$G$6:$FJ$12,95,FALSE) -> 2 | X13: =VLOOKUP($A13,'RECAP DIRCOM'!$G$6:$FJ$12,96,FALSE) -> 166.87 | Y13: =VLOOKUP($A13,'RECAP DIRCOM'!$G$6:$FJ$12,97,FALSE) -> 4.34 | Z13: =VLOOKUP($A13,'RECAP DIRCOM'!$G$6:$FJ$12,98,FALSE) -> 14% | AA13: =VLOOKUP($A13,'RECAP DIRCOM'!$G$6:$FJ$12,99,FALSE) -> 2 | AB13: =VLOOKUP($A13,'RECAP DIRCOM'!$G$6:$FJ$12,100,FALSE) -> 7% | AC13: =VLOOKUP($A13,'RECAP DIRCOM'!$G$6:$FJ$12,101,FALSE) -> 0% | AD13: =VLOOKUP($A13,'RECAP DIRCOM'!$G$6:$FJ$12,102,FALSE) -> 1
A14: 110 | B14: Meurthe et Moselle Meuse | C14: =VLOOKUP($A14,'RECAP DIRCOM'!$G$6:$FJ$12,3,FALSE) -> 229 | D14: =VLOOKUP($A14,'RECAP DIRCOM'!$G$6:$FJ$12,76,FALSE) -> 281.63 | E14: =VLOOKUP($A14,'RECAP DIRCOM'!$G$6:$FJ$12,77,FALSE) -> 26.64 | F14: =VLOOKUP($A14,'RECAP DIRCOM'!$G$6:$FJ$12,78,FALSE) -> 0% | G14: =VLOOKUP($A14,'RECAP DIRCOM'!$G$6:$FJ$12,79,FALSE) -> 1 | I14: =VLOOKUP($A14,'RECAP DIRCOM'!$G$6:$FJ$12,81,FALSE) -> 6.19 | J14: =VLOOKUP($A14,'RECAP DIRCOM'!$G$6:$FJ$12,82,FALSE) -> 0% | K14: =VLOOKUP($A14,'RECAP DIRCOM'!$G$6:$FJ$12,83,FALSE) -> 1 | L14: =VLOOKUP($A14,'RECAP DIRCOM'!$G$6:$FJ$12,84,FALSE) -> 1098.67 | M14: =VLOOKUP($A14,'RECAP DIRCOM'!$G$6:$FJ$12,85,FALSE) -> 39.27 | N14: =VLOOKUP($A14,'RECAP DIRCOM'!$G$6:$FJ$12,86,FALSE) -> 0% | O14: =VLOOKUP($A14,'RECAP DIRCOM'!$G$6:$FJ$12,87,FALSE) -> 1 | Q14: =VLOOKUP($A14,'RECAP DIRCOM'!$G$6:$FJ$12,89,FALSE) -> 25.20 | R14: =VLOOKUP($A14,'RECAP DIRCOM'!$G$6:$FJ$12,90,FALSE) -> 6% | S14: =VLOOKUP($A14,'RECAP DIRCOM'!$G$6:$FJ$12,91,FALSE) -> 2 | U14: =VLOOKUP($A14,'RECAP DIRCOM'!$G$6:$FJ$12,93,FALSE) -> 2.53 | V14: =VLOOKUP($A14,'RECAP DIRCOM'!$G$6:$FJ$12,94,FALSE) -> 0% | W14: =VLOOKUP($A14,'RECAP DIRCOM'!$G$6:$FJ$12,95,FALSE) -> 1 | X14: =VLOOKUP($A14,'RECAP DIRCOM'!$G$6:$FJ$12,96,FALSE) -> 50.31 | Y14: =VLOOKUP($A14,'RECAP DIRCOM'!$G$6:$FJ$12,97,FALSE) -> 2.22 | Z14: =VLOOKUP($A14,'RECAP DIRCOM'!$G$6:$FJ$12,98,FALSE) -> 56% | AA14: =VLOOKUP($A14,'RECAP DIRCOM'!$G$6:$FJ$12,99,FALSE) -> 5 | AB14: =VLOOKUP($A14,'RECAP DIRCOM'!$G$6:$FJ$12,100,FALSE) -> 8% | AC14: =VLOOKUP($A14,'RECAP DIRCOM'!$G$6:$FJ$12,101,FALSE) -> 1% | AD14: =VLOOKUP($A14,'RECAP DIRCOM'!$G$6:$FJ$12,102,FALSE) -> 2
A15: 160 | B15: Moselle | C15: =VLOOKUP($A15,'RECAP DIRCOM'!$G$6:$FJ$12,3,FALSE) -> 266 | D15: =VLOOKUP($A15,'RECAP DIRCOM'!$G$6:$FJ$12,76,FALSE) -> 282.71 | E15: =VLOOKUP($A15,'RECAP DIRCOM'!$G$6:$FJ$12,77,FALSE) -> 25.94 | F15: =VLOOKUP($A15,'RECAP DIRCOM'!$G$6:$FJ$12,78,FALSE) -> 3% | G15: =VLOOKUP($A15,'RECAP DIRCOM'!$G$6:$FJ$12,79,FALSE) -> 3 | I15: =VLOOKUP($A15,'RECAP DIRCOM'!$G$6:$FJ$12,81,FALSE) -> 5.65 | J15: =VLOOKUP($A15,'RECAP DIRCOM'!$G$6:$FJ$12,82,FALSE) -> 9% | K15: =VLOOKUP($A15,'RECAP DIRCOM'!$G$6:$FJ$12,83,FALSE) -> 3 | L15: =VLOOKUP($A15,'RECAP DIRCOM'!$G$6:$FJ$12,84,FALSE) -> 959.90 | M15: =VLOOKUP($A15,'RECAP DIRCOM'!$G$6:$FJ$12,85,FALSE) -> 33.67 | N15: =VLOOKUP($A15,'RECAP DIRCOM'!$G$6:$FJ$12,86,FALSE) -> 14% | O15: =VLOOKUP($A15,'RECAP DIRCOM'!$G$6:$FJ$12,87,FALSE) -> 3 | Q15: =VLOOKUP($A15,'RECAP DIRCOM'!$G$6:$FJ$12,89,FALSE) -> 16.21 | R15: =VLOOKUP($A15,'RECAP DIRCOM'!$G$6:$FJ$12,90,FALSE) -> 39% | S15: =VLOOKUP($A15,'RECAP DIRCOM'!$G$6:$FJ$12,91,FALSE) -> 3 | U15: =VLOOKUP($A15,'RECAP DIRCOM'!$G$6:$FJ$12,93,FALSE) -> 2.06 | V15: =VLOOKUP($A15,'RECAP DIRCOM'!$G$6:$FJ$12,94,FALSE) -> 19% | W15: =VLOOKUP($A15,'RECAP DIRCOM'!$G$6:$FJ$12,95,FALSE) -> 3 | X15: =VLOOKUP($A15,'RECAP DIRCOM'!$G$6:$FJ$12,96,FALSE) -> 38.03 | Y15: =VLOOKUP($A15,'RECAP DIRCOM'!$G$6:$FJ$12,97,FALSE) -> 1.54 | Z15: =VLOOKUP($A15,'RECAP DIRCOM'!$G$6:$FJ$12,98,FALSE) -> 69% | AA15: =VLOOKUP($A15,'RECAP DIRCOM'!$G$6:$FJ$12,99,FALSE) -> 7 | AB15: =VLOOKUP($A15,'RECAP DIRCOM'!$G$6:$FJ$12,100,FALSE) -> 22% | AC15: =VLOOKUP($A15,'RECAP DIRCOM'!$G$6:$FJ$12,101,FALSE) -> 15% | AD15: =VLOOKUP($A15,'RECAP DIRCOM'!$G$6:$FJ$12,102,FALSE) -> 3
A16: 80 | B16: Vosges | C16: =VLOOKUP($A16,'RECAP DIRCOM'!$G$6:$FJ$12,3,FALSE) -> 131 | D16: =VLOOKUP($A16,'RECAP DIRCOM'!$G$6:$FJ$12,76,FALSE) -> 258.49 | E16: =VLOOKUP($A16,'RECAP DIRCOM'!$G$6:$FJ$12,77,FALSE) -> 22.98 | F16: =VLOOKUP($A16,'RECAP DIRCOM'!$G$6:$FJ$12,78,FALSE) -> 14% | G16: =VLOOKUP($A16,'RECAP DIRCOM'!$G$6:$FJ$12,79,FALSE) -> 5 | I16: =VLOOKUP($A16,'RECAP DIRCOM'!$G$6:$FJ$12,81,FALSE) -> 5.40 | J16: =VLOOKUP($A16,'RECAP DIRCOM'!$G$6:$FJ$12,82,FALSE) -> 13% | K16: =VLOOKUP($A16,'RECAP DIRCOM'!$G$6:$FJ$12,83,FALSE) -> 5 | L16: =VLOOKUP($A16,'RECAP DIRCOM'!$G$6:$FJ$12,84,FALSE) -> 563.09 | M16: =VLOOKUP($A16,'RECAP DIRCOM'!$G$6:$FJ$12,85,FALSE) -> 21.88 | N16: =VLOOKUP($A16,'RECAP DIRCOM'!$G$6:$FJ$12,86,FALSE) -> 44% | O16: =VLOOKUP($A16,'RECAP DIRCOM'!$G$6:$FJ$12,87,FALSE) -> 5 | Q16: =VLOOKUP($A16,'RECAP DIRCOM'!$G$6:$FJ$12,89,FALSE) -> 13.14 | R16: =VLOOKUP($A16,'RECAP DIRCOM'!$G$6:$FJ$12,90,FALSE) -> 51% | S16: =VLOOKUP($A16,'RECAP DIRCOM'!$G$6:$FJ$12,91,FALSE) -> 6 | U16: =VLOOKUP($A16,'RECAP DIRCOM'!$G$6:$FJ$12,93,FALSE) -> 1.29 | V16: =VLOOKUP($A16,'RECAP DIRCOM'!$G$6:$FJ$12,94,FALSE) -> 49% | W16: =VLOOKUP($A16,'RECAP DIRCOM'!$G$6:$FJ$12,95,FALSE) -> 6 | X16: =VLOOKUP($A16,'RECAP DIRCOM'!$G$6:$FJ$12,96,FALSE) -> 60.66 | Y16: =VLOOKUP($A16,'RECAP DIRCOM'!$G$6:$FJ$12,97,FALSE) -> 2.14 | Z16: =VLOOKUP($A16,'RECAP DIRCOM'!$G$6:$FJ$12,98,FALSE) -> 57% | AA16: =VLOOKUP($A16,'RECAP DIRCOM'!$G$6:$FJ$12,99,FALSE) -> 6 | AB16: =VLOOKUP($A16,'RECAP DIRCOM'!$G$6:$FJ$12,100,FALSE) -> 37% | AC16: =VLOOKUP($A16,'RECAP DIRCOM'!$G$6:$FJ$12,101,FALSE) -> 30% | AD16: =VLOOKUP($A16,'RECAP DIRCOM'!$G$6:$FJ$12,102,FALSE) -> 5
B17: Total CEGEE Directions Régionales | C17: =SUM(C10:C16) -> 1390

Sheet DC_IARD
B1: Accueil | D1: BAROMETRE BDD - DIRECTIONS REGIONALES
D2: IARD ET PREVOYANCE
D3: =ACCUEIL!F7 -> 2020-07-19
D7: Ventes nettes IARD | H7: Ventes nettes Prévoyance | L7: Total IARD Prévoyance
D8: =DATEMAJ!C28 -> au 19/07 | F8: coef | G8: ='RECAP DIRCOM'!DN4 -> 9% | H8: =DATEMAJ!C29 -> au 19/07 | J8: coef | K8: ='RECAP DIRCOM'!DR4 -> 6% | M8: coef | N8: ='RECAP DIRCOM'!DU4 -> 15%
B9: Direction | C9: ="ETP perf "&DATEMAJ!$C$39 -> ETP perf au 31/05 | D9: Nb / ETP | E9: PNB / ETP | F9: % Ecart au 1er | G9: Rang | H9: Nb / ETP | I9: PNB / ETP | J9: % Ecart au 1er | K9: Rang | L9: Moyenne ecart au 1er | M9: % Ecart au 1er | N9: Rang CEGEE
A10: 50 | B10: Aube Haute Marne | C10: =VLOOKUP($A10,'RECAP DIRCOM'!$G$6:$FJ$12,3,FALSE) -> 125 | D10: =VLOOKUP($A10,'RECAP DIRCOM'!$G$6:$FJ$12,109,FALSE) -> 5.88 | E10: =VLOOKUP($A10,'RECAP DIRCOM'!$G$6:$FJ$12,110,FALSE) -> 0.62 | F10: =VLOOKUP($A10,'RECAP DIRCOM'!$G$6:$FJ$12,111,FALSE) -> 49% | G10: =VLOOKUP($A10,'RECAP DIRCOM'!$G$6:$FJ$12,112,FALSE) -> 5 | H10: =VLOOKUP($A10,'RECAP DIRCOM'!$G$6:$FJ$12,113,FALSE) -> 8.04 | I10: =VLOOKUP($A10,'RECAP DIRCOM'!$G$6:$FJ$12,114,FALSE) -> 1.21 | J10: =VLOOKUP($A10,'RECAP DIRCOM'!$G$6:$FJ$12,115,FALSE) -> 12% | K10: =VLOOKUP($A10,'RECAP DIRCOM'!$G$6:$FJ$12,116,FALSE) -> 2 | L10: =VLOOKUP($A10,'RECAP DIRCOM'!$G$6:$FJ$12,117,FALSE) -> 34% | M10: =VLOOKUP($A10,'RECAP DIRCOM'!$G$6:$FJ$12,118,FALSE) -> 29% | N10: =VLOOKUP($A10,'RECAP DIRCOM'!$G$6:$FJ$12,119,FALSE) -> 4
A11: 262 | B11: Bas-Rhin | C11: =VLOOKUP($A11,'RECAP DIRCOM'!$G$6:$FJ$12,3,FALSE) -> 258 | D11: =VLOOKUP($A11,'RECAP DIRCOM'!$G$6:$FJ$12,109,FALSE) -> 5.71 | E11: =VLOOKUP($A11,'RECAP DIRCOM'!$G$6:$FJ$12,110,FALSE) -> 0.56 | F11: =VLOOKUP($A11,'RECAP DIRCOM'!$G$6:$FJ$12,111,FALSE) -> 53% | G11: =VLOOKUP($A11,'RECAP DIRCOM'!$G$6:$FJ$12,112,FALSE) -> 6 | H11: =VLOOKUP($A11,'RECAP DIRCOM'!$G$6:$FJ$12,113,FALSE) -> 6.76 | I11: =VLOOKUP($A11,'RECAP DIRCOM'!$G$6:$FJ$12,114,FALSE) -> 1.06 | J11: =VLOOKUP($A11,'RECAP DIRCOM'!$G$6:$FJ$12,115,FALSE) -> 23% | K11: =VLOOKUP($A11,'RECAP DIRCOM'!$G$6:$FJ$12,116,FALSE) -> 3 | L11: =VLOOKUP($A11,'RECAP DIRCOM'!$G$6:$FJ$12,117,FALSE) -> 41% | M11: =VLOOKUP($A11,'RECAP DIRCOM'!$G$6:$FJ$12,118,FALSE) -> 36% | N11: =VLOOKUP($A11,'RECAP DIRCOM'!$G$6:$FJ$12,119,FALSE) -> 6
A12: 264 | B12: Haut-Rhin | C12: =VLOOKUP($A12,'RECAP DIRCOM'!$G$6:$FJ$12,3,FALSE) -> 157 | D12: =VLOOKUP($A12,'RECAP DIRCOM'!$G$6:$FJ$12,109,FALSE) -> 4.74 | E12: =VLOOKUP($A12,'RECAP DIRCOM'!$G$6:$FJ$12,110,FALSE) -> 0.49 | F12: =VLOOKUP($A12,'RECAP DIRCOM'!$G$6:$FJ$12,111,FALSE) -> 60% | G12: =VLOOKUP($A12,'RECAP DIRCOM'!$G$6:$FJ$12,112,FALSE) -> 7 | H12: =VLOOKUP($A12,'RECAP DIRCOM'!$G$6:$FJ$12,113,FALSE) -> 4.10 | I12: =VLOOKUP($A12,'RECAP DIRCOM'!$G$6:$FJ$12,114,FALSE) -> 0.79 | J12: =VLOOKUP($A12,'RECAP DIRCOM'!$G$6:$FJ$12,115,FALSE) -> 42% | K12: =VLOOKUP($A12,'RECAP DIRCOM'!$G$6:$FJ$12,116,FALSE) -> 6 | L12: =VLOOKUP($A12,'RECAP DIRCOM'!$G$6:$FJ$12,117,FALSE) -> 53% | M12: =VLOOKUP($A12,'RECAP DIRCOM'!$G$6:$FJ$12,118,FALSE) -> 47% | N12: =VLOOKUP($A12,'RECAP DIRCOM'!$G$6:$FJ$12,119,FALSE) -> 7
A13: 30 | B13: Marne-Ardennes | C13: =VLOOKUP($A13,'RECAP DIRCOM'!$G$6:$FJ$12,3,FALSE) -> 223 | D13: =VLOOKUP($A13,'RECAP DIRCOM'!$G$6:$FJ$12,109,FALSE) -> 10.48 | E13: =VLOOKUP($A13,'RECAP DIRCOM'!$G$6:$FJ$12,110,FALSE) -> 1.10 | F13: =VLOOKUP($A13,'RECAP DIRCOM'!$G$6:$FJ$12,111,FALSE) -> 9% | G13: =VLOOKUP($A13,'RECAP DIRCOM'!$G$6:$FJ$12,112,FALSE) -> 2 | H13: =VLOOKUP($A13,'RECAP DIRCOM'!$G$6:$FJ$12,113,FALSE) -> 8.00 | I13: =VLOOKUP($A13,'RECAP DIRCOM'!$G$6:$FJ$12,114,FALSE) -> 1.37 | J13: =VLOOKUP($A13,'RECAP DIRCOM'!$G$6:$FJ$12,115,FALSE) -> 0% | K13: =VLOOKUP($A13,'RECAP DIRCOM'!$G$6:$FJ$12,116,FALSE) -> 1 | L13: =VLOOKUP($A13,'RECAP DIRCOM'!$G$6:$FJ$12,117,FALSE) -> 5% | M13: =VLOOKUP($A13,'RECAP DIRCOM'!$G$6:$FJ$12,118,FALSE) -> 0% | N13: =VLOOKUP($A13,'RECAP DIRCOM'!$G$6:$FJ$12,119,FALSE) -> 1
A14: 110 | B14: Meurthe et Moselle Meuse | C14: =VLOOKUP($A14,'RECAP DIRCOM'!$G$6:$FJ$12,3,FALSE) -> 229 | D14: =VLOOKUP($A14,'RECAP DIRCOM'!$G$6:$FJ$12,109,FALSE) -> 12.10 | E14: =VLOOKUP($A14,'RECAP DIRCOM'!$G$6:$FJ$12,110,FALSE) -> 1.21 | F14: =VLOOKUP($A14,'RECAP DIRCOM'!$G$6:$FJ$12,111,FALSE) -> 0% | G14: =VLOOKUP($A14,'RECAP DIRCOM'!$G$6:$FJ$12,112,FALSE) -> 1 | H14: =VLOOKUP($A14,'RECAP DIRCOM'!$G$6:$FJ$12,113,FALSE) -> 7.26 | I14: =VLOOKUP($A14,'RECAP DIRCOM'!$G$6:$FJ$12,114,FALSE) -> 0.95 | J14: =VLOOKUP($A14,'RECAP DIRCOM'!$G$6:$FJ$12,115,FALSE) -> 31% | K14: =VLOOKUP($A14,'RECAP DIRCOM'!$G$6:$FJ$12,116,FALSE) -> 5 | L14: =VLOOKUP($A14,'RECAP DIRCOM'!$G$6:$FJ$12,117,FALSE) -> 12% | M14: =VLOOKUP($A14,'RECAP DIRCOM'!$G$6:$FJ$12,118,FALSE) -> 7% | N14: =VLOOKUP($A14,'RECAP DIRCOM'!$G$6:$FJ$12,119,FALSE) -> 2
A15: 160 | B15: Moselle | C15: =VLOOKUP($A15,'RECAP DIRCOM'!$G$6:$FJ$12,3,FALSE) -> 266 | D15: =VLOOKUP($A15,'RECAP DIRCOM'!$G$6:$FJ$12,109,FALSE) -> 8.38 | E15: =VLOOKUP($A15,'RECAP DIRCOM'!$G$6:$FJ$12,110,FALSE) -> 0.87 | F15: =VLOOKUP($A15,'RECAP DIRCOM'!$G$6:$FJ$12,111,FALSE) -> 28% | G15: =VLOOKUP($A15,'RECAP DIRCOM'!$G$6:$FJ$12,112,FALSE) -> 3 | H15: =VLOOKUP($A15,'RECAP DIRCOM'!$G$6:$FJ$12,113,FALSE) -> 5.08 | I15: =VLOOKUP($A15,'RECAP DIRCOM'!$G$6:$FJ$12,114,FALSE) -> 0.78 | J15: =VLOOKUP($A15,'RECAP DIRCOM'!$G$6:$FJ$12,115,FALSE) -> 43% | K15: =VLOOKUP($A15,'RECAP DIRCOM'!$G$6:$FJ$12,116,FALSE) -> 7 | L15: =VLOOKUP($A15,'RECAP DIRCOM'!$G$6:$FJ$12,117,FALSE) -> 34% | M15: =VLOOKUP($A15,'RECAP DIRCOM'!$G$6:$FJ$12,118,FALSE) -> 29% | N15: =VLOOKUP($A15,'RECAP DIRCOM'!$G$6:$FJ$12,119,FALSE) -> 3
A16: 80 | B16: Vosges | C16: =VLOOKUP($A16,'RECAP DIRCOM'!$G$6:$FJ$12,3,FALSE) -> 131 | D16: =VLOOKUP($A16,'RECAP DIRCOM'!$G$6:$FJ$12,109,FALSE) -> 6.39 | E16: =VLOOKUP($A16,'RECAP DIRCOM'!$G$6:$FJ$12,110,FALSE) -> 0.70 | F16: =VLOOKUP($A16,'RECAP DIRCOM'!$G$6:$FJ$12,111,FALSE) -> 43% | G16: =VLOOKUP($A16,'RECAP DIRCOM'!$G$6:$FJ$12,112,FALSE) -> 4 | H16: =VLOOKUP($A16,'RECAP DIRCOM'!$G$6:$FJ$12,113,FALSE) -> 6.33 | I16: =VLOOKUP($A16,'RECAP DIRCOM'!$G$6:$FJ$12,114,FALSE) -> 1.04 | J16: =VLOOKUP($A16,'RECAP DIRCOM'!$G$6:$FJ$12,115,FALSE) -> 24% | K16: =VLOOKUP($A16,'RECAP DIRCOM'!$G$6:$FJ$12,116,FALSE) -> 4 | L16: =VLOOKUP($A16,'RECAP DIRCOM'!$G$6:$FJ$12,117,FALSE) -> 35% | M16: =VLOOKUP($A16,'RECAP DIRCOM'!$G$6:$FJ$12,118,FALSE) -> 30% | N16: =VLOOKUP($A16,'RECAP DIRCOM'!$G$6:$FJ$12,119,FALSE) -> 5
B17: Total CEGEE Directions Régionales | C17: =SUM(C10:C16) -> 1390

Sheet DC_CONQUETE
B1: Accueil | D1: BAROMETRE BDD - DIRECTIONS REGIONALES
D2: CLIENTS
D3: =ACCUEIL!F7 -> 2020-07-19
D7: Evolution nette clients Bancarisés Principaux | H7: Evolution nette relations PREMIUM | L7: Evolution nette clients Jeunes équipés | P7: Evolution nette clients Pro actif équipés | T7: Total Clients
D8: =DATEMAJ!C7 -> au 31/05 | F8: coef | G8: ='RECAP DIRCOM'!N4 -> 4% | H8: =DATEMAJ!C8 -> au 31/05 | J8: coef | K8: ='RECAP DIRCOM'!R4 -> 5% | L8: =DATEMAJ!C9 -> au 31/05 | N8: coef | O8: ='RECAP DIRCOM'!V4 -> 3% | P8: =DATEMAJ!C10 -> au 31/05 | R8: coef | S8: ='RECAP DIRCOM'!Z4 -> 3% | U8: coef | V8: ='RECAP DIRCOM'!AC4 -> 15%
B9: Direction | C9: ="ETP perf "&DATEMAJ!$C$39 -> ETP perf au 31/05 | D9: Nb / ETP | E9: PNB / ETP | F9: % Ecart au 1er | G9: Rang | H9: Nb / ETP | I9: PNB / ETP | J9: % Ecart au 1er | K9: Rang | L9: Nb / ETP | M9: PNB / ETP | N9: % Ecart au 1er | O9: Rang | P9: Nb / ETP | Q9: PNB / ETP | R9: % Ecart au 1er | S9: Rang | T9: Moyenne ecart au 1er | U9: % Ecart au 1er | V9: Rang CEGEE
A10: 50 | B10: Aube Haute Marne | C10: =VLOOKUP($A10,'RECAP DIRCOM'!$G$6:$FJ$12,3,FALSE) -> 125 | D10: =VLOOKUP($A10,'RECAP DIRCOM'!$G$6:$FJ$12,5,FALSE) -> -5.02 | E10: =VLOOKUP($A10,'RECAP DIRCOM'!$G$6:$FJ$12,6,FALSE) -> -2.51 | F10: =VLOOKUP($A10,'RECAP DIRCOM'!$G$6:$FJ$12,7,FALSE) -> 52% | G10: =VLOOKUP($A10,'RECAP DIRCOM'!$G$6:$FJ$12,8,FALSE) -> 3 | H10: =VLOOKUP($A10,'RECAP DIRCOM'!$G$6:$FJ$12,9,FALSE) -> 0.75 | I10: =VLOOKUP($A10,'RECAP DIRCOM'!$G$6:$FJ$12,10,FALSE) -> 0.52 | J10: =VLOOKUP($A10,'RECAP DIRCOM'!$G$6:$FJ$12,11,FALSE) -> 0% | K10: =VLOOKUP($A10,'RECAP DIRCOM'!$G$6:$FJ$12,12,FALSE) -> 1 | L10: =VLOOKUP($A10,'RECAP DIRCOM'!$G$6:$FJ$12,13,FALSE) -> -5.48 | M10: =VLOOKUP($A10,'RECAP DIRCOM'!$G$6:$FJ$12,14,FALSE) -> -0.82 | N10: =VLOOKUP($A10,'RECAP DIRCOM'!$G$6:$FJ$12,15,FALSE) -> 40% | O10: =VLOOKUP($A10,'RECAP DIRCOM'!$G$6:$FJ$12,16,FALSE) -> 3 | P10: =VLOOKUP($A10,'RECAP DIRCOM'!$G$6:$FJ$12,17,FALSE) -> 0.21 | Q10: =VLOOKUP($A10,'RECAP DIRCOM'!$G$6:$FJ$12,18,FALSE) -> 0.52 | R10: =VLOOKUP($A10,'RECAP DIRCOM'!$G$6:$FJ$12,19,FALSE) -> 0% | S10: =VLOOKUP($A10,'RECAP DIRCOM'!$G$6:$FJ$12,20,FALSE) -> 1 | T10: =VLOOKUP($A10,'RECAP DIRCOM'!$G$6:$FJ$12,21,FALSE) -> 22% | U10: =VLOOKUP($A10,'RECAP DIRCOM'!$G$6:$FJ$12,22,FALSE) -> 5% | V10: =VLOOKUP($A10,'RECAP DIRCOM'!$G$6:$FJ$12,23,FALSE) -> 3
A11: 262 | B11: Bas-Rhin | C11: =VLOOKUP($A11,'RECAP DIRCOM'!$G$6:$FJ$12,3,FALSE) -> 258 | D11: =VLOOKUP($A11,'RECAP DIRCOM'!$G$6:$FJ$12,5,FALSE) -> -6.38 | E11: =VLOOKUP($A11,'RECAP DIRCOM'!$G$6:$FJ$12,6,FALSE) -> -3.19 | F11: =VLOOKUP($A11,'RECAP DIRCOM'!$G$6:$FJ$12,7,FALSE) -> 88% | G11: =VLOOKUP($A11,'RECAP DIRCOM'!$G$6:$FJ$12,8,FALSE) -> 6 | H11: =VLOOKUP($A11,'RECAP DIRCOM'!$G$6:$FJ$12,9,FALSE) -> 0.51 | I11: =VLOOKUP($A11,'RECAP DIRCOM'!$G$6:$FJ$12,10,FALSE) -> 0.36 | J11: =VLOOKUP($A11,'RECAP DIRCOM'!$G$6:$FJ$12,11,FALSE) -> 32% | K11: =VLOOKUP($A11,'RECAP DIRCOM'!$G$6:$FJ$12,12,FALSE) -> 6 | L11: =VLOOKUP($A11,'RECAP DIRCOM'!$G$6:$FJ$12,13,FALSE) -> -5.98 | M11: =VLOOKUP($A11,'RECAP DIRCOM'!$G$6:$FJ$12,14,FALSE) -> -0.90 | N11: =VLOOKUP($A11,'RECAP DIRCOM'!$G$6:$FJ$12,15,FALSE) -> 53% | O11: =VLOOKUP($A11,'RECAP DIRCOM'!$G$6:$FJ$12,16,FALSE) -> 5 | P11: =VLOOKUP($A11,'RECAP DIRCOM'!$G$6:$FJ$12,17,FALSE) -> 0.02 | Q11: =VLOOKUP($A11,'RECAP DIRCOM'!$G$6:$FJ$12,18,FALSE) -> 0.06 | R11: =VLOOKUP($A11,'RECAP DIRCOM'!$G$6:$FJ$12,19,FALSE) -> 89% | S11: =VLOOKUP($A11,'RECAP DIRCOM'!$G$6:$FJ$12,20,FALSE) -> 7 | T11: =VLOOKUP($A11,'RECAP DIRCOM'!$G$6:$FJ$12,21,FALSE) -> 62% | U11: =VLOOKUP($A11,'RECAP DIRCOM'!$G$6:$FJ$12,22,FALSE) -> 46% | V11: =VLOOKUP($A11,'RECAP DIRCOM'!$G$6:$FJ$12,23,FALSE) -> 6
A12: 264 | B12: Haut-Rhin | C12: =VLOOKUP($A12,'RECAP DIRCOM'!$G$6:$FJ$12,3,FALSE) -> 157 | D12: =VLOOKUP($A12,'RECAP DIRCOM'!$G$6:$FJ$12,5,FALSE) -> -8.70 | E12: =VLOOKUP($A12,'RECAP DIRCOM'!$G$6:$FJ$12,6,FALSE) -> -4.35 | F12: =VLOOKUP($A12,'RECAP DIRCOM'!$G$6:$FJ$12,7,FALSE) -> 150% | G12: =VLOOKUP($A12,'RECAP DIRCOM'!$G$6:$FJ$12,8,FALSE) -> 7 | H12: =VLOOKUP($A12,'RECAP DIRCOM'!$G$6:$FJ$12,9,FALSE) -> 0.16 | I12: =VLOOKUP($A12,'RECAP DIRCOM'!$G$6:$FJ$12,10,FALSE) -> 0.11 | J12: =VLOOKUP($A12,'RECAP DIRCOM'!$G$6:$FJ$12,11,FALSE) -> 79% | K12: =VLOOKUP($A12,'RECAP DIRCOM'!$G$6:$FJ$12,12,FALSE) -> 7 | L12: =VLOOKUP($A12,'RECAP DIRCOM'!$G$6:$FJ$12,13,FALSE) -> -6.68 | M12: =VLOOKUP($A12,'RECAP DIRCOM'!$G$6:$FJ$12,14,FALSE) -> -1.00 | N12: =VLOOKUP($A12,'RECAP DIRCOM'!$G$6:$FJ$12,15,FALSE) -> 71% | O12: =VLOOKUP($A12,'RECAP DIRCOM'!$G$6:$FJ$12,16,FALSE) -> 7 | P12: =VLOOKUP($A12,'RECAP DIRCOM'!$G$6:$FJ$12,17,FALSE) -> 0.11 | Q12: =VLOOKUP($A12,'RECAP DIRCOM'!$G$6:$FJ$12,18,FALSE) -> 0.29 | R12: =VLOOKUP($A12,'RECAP DIRCOM'!$G$6:$FJ$12,19,FALSE) -> 45% | S12: =VLOOKUP($A12,'RECAP DIRCOM'!$G$6:$FJ$12,20,FALSE) -> 5 | T12: =VLOOKUP($A12,'RECAP DIRCOM'!$G$6:$FJ$12,21,FALSE) -> 89% | U12: =VLOOKUP($A12,'RECAP DIRCOM'!$G$6:$FJ$12,22,FALSE) -> 73% | V12: =VLOOKUP($A12,'RECAP DIRCOM'!$G$6:$FJ$12,23,FALSE) -> 7
A13: 30 | B13: Marne-Ardennes | C13: =VLOOKUP($A13,'RECAP DIRCOM'!$G$6:$FJ$12,3,FALSE) -> 223 | D13: =VLOOKUP($A13,'RECAP DIRCOM'!$G$6:$FJ$12,5,FALSE) -> -3.05 | E13: =VLOOKUP($A13,'RECAP DIRCOM'!$G$6:$FJ$12,6,FALSE) -> -1.53 | F13: =VLOOKUP($A13,'RECAP DIRCOM'!$G$6:$FJ$12,7,FALSE) -> 0% | G13: =VLOOKUP($A13,'RECAP DIRCOM'!$G$6:$FJ$12,8,FALSE) -> 1 | H13: =VLOOKUP($A13,'RECAP DIRCOM'!$G$6:$FJ$12,9,FALSE) -> 0.56 | I13: =VLOOKUP($A13,'RECAP DIRCOM'!$G$6:$FJ$12,10,FALSE) -> 0.39 | J13: =VLOOKUP($A13,'RECAP DIRCOM'!$G$6:$FJ$12,11,FALSE) -> 25% | K13: =VLOOKUP($A13,'RECAP DIRCOM'!$G$6:$FJ$12,12,FALSE) -> 4 | L13: =VLOOKUP($A13,'RECAP DIRCOM'!$G$6:$FJ$12,13,FALSE) -> -3.91 | M13: =VLOOKUP($A13,'RECAP DIRCOM'!$G$6:$FJ$12,14,FALSE) -> -0.59 | N13: =VLOOKUP($A13,'RECAP DIRCOM'!$G$6:$FJ$12,15,FALSE) -> 0% | O13: =VLOOKUP($A13,'RECAP DIRCOM'!$G$6:$FJ$12,16,FALSE) -> 1 | P13: =VLOOKUP($A13,'RECAP DIRCOM'!$G$6:$FJ$12,17,FALSE) -> 0.12 | Q13: =VLOOKUP($A13,'RECAP DIRCOM'!$G$6:$FJ$12,18,FALSE) -> 0.30 | R13: =VLOOKUP($A13,'RECAP DIRCOM'!$G$6:$FJ$12,19,FALSE) -> 41% | S13: =VLOOKUP($A13,'RECAP DIRCOM'!$G$6:$FJ$12,20,FALSE) -> 3 | T13: =VLOOKUP($A13,'RECAP DIRCOM'!$G$6:$FJ$12,21,FALSE) -> 17% | U13: =VLOOKUP($A13,'RECAP DIRCOM'!$G$6:$FJ$12,22,FALSE) -> 0% | V13: =VLOOKUP($A13,'RECAP DIRCOM'!$G$6:$FJ$12,23,FALSE) -> 1
A14: 110 | B14: Meurthe et Moselle Meuse | C14: =VLOOKUP($A14,'RECAP DIRCOM'!$G$6:$FJ$12,3,FALSE) -> 229 | D14: =VLOOKUP($A14,'RECAP DIRCOM'!$G$6:$FJ$12,5,FALSE) -> -3.97 | E14: =VLOOKUP($A14,'RECAP DIRCOM'!$G$6:$FJ$12,6,FALSE) -> -1.98 | F14: =VLOOKUP($A14,'RECAP DIRCOM'!$G$6:$FJ$12,7,FALSE) -> 24% | G14: =VLOOKUP($A14,'RECAP DIRCOM'!$G$6:$FJ$12,8,FALSE) -> 2 | H14: =VLOOKUP($A14,'RECAP DIRCOM'!$G$6:$FJ$12,9,FALSE) -> 0.72 | I14: =VLOOKUP($A14,'RECAP DIRCOM'!$G$6:$FJ$12,10,FALSE) -> 0.50 | J14: =VLOOKUP($A14,'RECAP DIRCOM'!$G$6:$FJ$12,11,FALSE) -> 4% | K14: =VLOOKUP($A14,'RECAP DIRCOM'!$G$6:$FJ$12,12,FALSE) -> 2 | L14: =VLOOKUP($A14,'RECAP DIRCOM'!$G$6:$FJ$12,13,FALSE) -> -4.73 | M14: =VLOOKUP($A14,'RECAP DIRCOM'!$G$6:$FJ$12,14,FALSE) -> -0.71 | N14: =VLOOKUP($A14,'RECAP DIRCOM'!$G$6:$FJ$12,15,FALSE) -> 21% | O14: =VLOOKUP($A14,'RECAP DIRCOM'!$G$6:$FJ$12,16,FALSE) -> 2 | P14: =VLOOKUP($A14,'RECAP DIRCOM'!$G$6:$FJ$12,17,FALSE) -> 0.15 | Q14: =VLOOKUP($A14,'RECAP DIRCOM'!$G$6:$FJ$12,18,FALSE) -> 0.37 | R14: =VLOOKUP($A14,'RECAP DIRCOM'!$G$6:$FJ$12,19,FALSE) -> 28% | S14: =VLOOKUP($A14,'RECAP DIRCOM'!$G$6:$FJ$12,20,FALSE) -> 2 | T14: =VLOOKUP($A14,'RECAP DIRCOM'!$G$6:$FJ$12,21,FALSE) -> 18% | U14: =VLOOKUP($A14,'RECAP DIRCOM'!$G$6:$FJ$12,22,FALSE) -> 1% | V14: =VLOOKUP($A14,'RECAP DIRCOM'!$G$6:$FJ$12,23,FALSE) -> 2
A15: 160 | B15: Moselle | C15: =VLOOKUP($A15,'RECAP DIRCOM'!$G$6:$FJ$12,3,FALSE) -> 266 | D15: =VLOOKUP($A15,'RECAP DIRCOM'!$G$6:$FJ$12,5,FALSE) -> -5.39 | E15: =VLOOKUP($A15,'RECAP DIRCOM'!$G$6:$FJ$12,6,FALSE) -> -2.70 | F15: =VLOOKUP($A15,'RECAP DIRCOM'!$G$6:$FJ$12,7,FALSE) -> 62% | G15: =VLOOKUP($A15,'RECAP DIRCOM'!$G$6:$FJ$12,8,FALSE) -> 5 | H15: =VLOOKUP($A15,'RECAP DIRCOM'!$G$6:$FJ$12,9,FALSE) -> 0.58 | I15: =VLOOKUP($A15,'RECAP DIRCOM'!$G$6:$FJ$12,10,FALSE) -> 0.41 | J15: =VLOOKUP($A15,'RECAP DIRCOM'!$G$6:$FJ$12,11,FALSE) -> 22% | K15: =VLOOKUP($A15,'RECAP DIRCOM'!$G$6:$FJ$12,12,FALSE) -> 3 | L15: =VLOOKUP($A15,'RECAP DIRCOM'!$G$6:$FJ$12,13,FALSE) -> -5.75 | M15: =VLOOKUP($A15,'RECAP DIRCOM'!$G$6:$FJ$12,14,FALSE) -> -0.86 | N15: =VLOOKUP($A15,'RECAP DIRCOM'!$G$6:$FJ$12,15,FALSE) -> 47% | O15: =VLOOKUP($A15,'RECAP DIRCOM'!$G$6:$FJ$12,16,FALSE) -> 4 | P15: =VLOOKUP($A15,'RECAP DIRCOM'!$G$6:$FJ$12,17,FALSE) -> 0.12 | Q15: =VLOOKUP($A15,'RECAP DIRCOM'!$G$6:$FJ$12,18,FALSE) -> 0.29 | R15: =VLOOKUP($A15,'RECAP DIRCOM'!$G$6:$FJ$12,19,FALSE) -> 44% | S15: =VLOOKUP($A15,'RECAP DIRCOM'!$G$6:$FJ$12,20,FALSE) -> 4 | T15: =VLOOKUP($A15,'RECAP DIRCOM'!$G$6:$FJ$12,21,FALSE) -> 42% | U15: =VLOOKUP($A15,'RECAP DIRCOM'!$G$6:$FJ$12,22,FALSE) -> 26% | V15: =VLOOKUP($A15,'RECAP DIRCOM'!$G$6:$FJ$12,23,FALSE) -> 4
A16: 80 | B16: Vosges | C16: =VLOOKUP($A16,'RECAP DIRCOM'!$G$6:$FJ$12,3,FALSE) -> 131 | D16: =VLOOKUP($A16,'RECAP DIRCOM'!$G$6:$FJ$12,5,FALSE) -> -5.17 | E16: =VLOOKUP($A16,'RECAP DIRCOM'!$G$6:$FJ$12,6,FALSE) -> -2.58 | F16: =VLOOKUP($A16,'RECAP DIRCOM'!$G$6:$FJ$12,7,FALSE) -> 56% | G16: =VLOOKUP($A16,'RECAP DIRCOM'!$G$6:$FJ$12,8,FALSE) -> 4 | H16: =VLOOKUP($A16,'RECAP DIRCOM'!$G$6:$FJ$12,9,FALSE) -> 0.54 | I16: =VLOOKUP($A16,'RECAP DIRCOM'!$G$6:$FJ$12,10,FALSE) -> 0.38 | J16: =VLOOKUP($A16,'RECAP DIRCOM'!$G$6:$FJ$12,11,FALSE) -> 28% | K16: =VLOOKUP($A16,'RECAP DIRCOM'!$G$6:$FJ$12,12,FALSE) -> 5 | L16: =VLOOKUP($A16,'RECAP DIRCOM'!$G$6:$FJ$12,13,FALSE) -> -6.18 | M16: =VLOOKUP($A16,'RECAP DIRCOM'!$G$6:$FJ$12,14,FALSE) -> -0.93 | N16: =VLOOKUP($A16,'RECAP DIRCOM'!$G$6:$FJ$12,15,FALSE) -> 58% | O16: =VLOOKUP($A16,'RECAP DIRCOM'!$G$6:$FJ$12,16,FALSE) -> 6 | P16: =VLOOKUP($A16,'RECAP DIRCOM'!$G$6:$FJ$12,17,FALSE) -> 0.10 | Q16: =VLOOKUP($A16,'RECAP DIRCOM'!$G$6:$FJ$12,18,FALSE) -> 0.25 | R16: =VLOOKUP($A16,'RECAP DIRCOM'!$G$6:$FJ$12,19,FALSE) -> 52% | S16: =VLOOKUP($A16,'RECAP DIRCOM'!$G$6:$FJ$12,20,FALSE) -> 6 | T16: =VLOOKUP($A16,'RECAP DIRCOM'!$G$6:$FJ$12,21,FALSE) -> 46% | U16: =VLOOKUP($A16,'RECAP DIRCOM'!$G$6:$FJ$12,22,FALSE) -> 30% | V16: =VLOOKUP($A16,'RECAP DIRCOM'!$G$6:$FJ$12,23,FALSE) -> 5
B17: Total CEGEE Directions Régionales | C17: =SUM(C10:C16) -> 1390

Sheet DC_ACCELER
B1: Accueil | D1: BAROMETRE BDD - DIRECTIONS REGIONALES
D2: ACCELERATEURS DE PNB
D3: =ACCUEIL!F7 -> 2020-07-19
D7: Ventes brutes SED finalisées | H7: Clients Equipés E documents | L7: Economie Opt'in | P7: Remises Commerciales | T7: Total Accélérateurs PNB
D8: =DATEMAJ!C31 -> au 19/07 | F8: coef | G8: ='RECAP DIRCOM'!EE4 -> 6% | H8: =DATEMAJ!C32 -> au 31/05 | J8: coef | K8: ='RECAP DIRCOM'!EI4 -> 3% | L8: =DATEMAJ!C33 -> au 31/05 | N8: coef | O8: ='RECAP DIRCOM'!EM4 -> 3% | P8: =DATEMAJ!C34 -> au 30/06 | R8: coef | S8: ='RECAP DIRCOM'!EQ4 -> 3% | U8: coef | V8: ='RECAP DIRCOM'!ET4 -> 15%
B9: Direction | C9: ="ETP perf "&DATEMAJ!$C$39 -> ETP perf au 31/05 | D9: Nb / ETP | E9: PNB / ETP | F9: % Ecart au 1er | G9: Rang | H9: Nb / ETP | I9: PNB / ETP | J9: % Ecart au 1er | K9: Rang | L9: Nb / ETP | M9: PNB / ETP | N9: % Ecart au 1er | O9: Rang | P9: Rem / ETP | Q9: PNB / ETP | R9: % Ecart au 1er | S9: Rang | T9: Moyenne ecart au 1er | U9: % Ecart au 1er | V9: Rang CEGEE
A10: 50 | B10: Aube Haute Marne | C10: =VLOOKUP($A10,'RECAP DIRCOM'!$G$6:$FJ$12,3,FALSE) -> 125 | D10: =VLOOKUP($A10,'RECAP DIRCOM'!$G$6:$FJ$12,126,FALSE) -> 29.23 | E10: =VLOOKUP($A10,'RECAP DIRCOM'!$G$6:$FJ$12,127,FALSE) -> 0.29 | F10: =VLOOKUP($A10,'RECAP DIRCOM'!$G$6:$FJ$12,128,FALSE) -> 22% | G10: =VLOOKUP($A10,'RECAP DIRCOM'!$G$6:$FJ$12,129,FALSE) -> 5 | H10: =VLOOKUP($A10,'RECAP DIRCOM'!$G$6:$FJ$12,130,FALSE) -> 13.60 | I10: =VLOOKUP($A10,'RECAP DIRCOM'!$G$6:$FJ$12,131,FALSE) -> 0.68 | J10: =VLOOKUP($A10,'RECAP DIRCOM'!$G$6:$FJ$12,132,FALSE) -> 30% | K10: =VLOOKUP($A10,'RECAP DIRCOM'!$G$6:$FJ$12,133,FALSE) -> 5 | L10: =VLOOKUP($A10,'RECAP DIRCOM'!$G$6:$FJ$12,134,FALSE) -> 14.92 | M10: =VLOOKUP($A10,'RECAP DIRCOM'!$G$6:$FJ$12,135,FALSE) -> 0.22 | N10: =VLOOKUP($A10,'RECAP DIRCOM'!$G$6:$FJ$12,136,FALSE) -> 49% | O10: =VLOOKUP($A10,'RECAP DIRCOM'!$G$6:$FJ$12,137,FALSE) -> 3 | P10: =VLOOKUP($A10,'RECAP DIRCOM'!$G$6:$FJ$12,138,FALSE) -> -179.14 | Q10: =VLOOKUP($A10,'RECAP DIRCOM'!$G$6:$FJ$12,139,FALSE) -> -1.43 | R10: =VLOOKUP($A10,'RECAP DIRCOM'!$G$6:$FJ$12,140,FALSE) -> 0% | S10: =VLOOKUP($A10,'RECAP DIRCOM'!$G$6:$FJ$12,141,FALSE) -> 1 | T10: =VLOOKUP($A10,'RECAP DIRCOM'!$G$6:$FJ$12,142,FALSE) -> 25% | U10: =VLOOKUP($A10,'RECAP DIRCOM'!$G$6:$FJ$12,143,FALSE) -> 12% | V10: =VLOOKUP($A10,'RECAP DIRCOM'!$G$6:$FJ$12,144,FALSE) -> 4
A11: 262 | B11: Bas-Rhin | C11: =VLOOKUP($A11,'RECAP DIRCOM'!$G$6:$FJ$12,3,FALSE) -> 258 | D11: =VLOOKUP($A11,'RECAP DIRCOM'!$G$6:$FJ$12,126,FALSE) -> 30.86 | E11: =VLOOKUP($A11,'RECAP DIRCOM'!$G$6:$FJ$12,127,FALSE) -> 0.31 | F11: =VLOOKUP($A11,'RECAP DIRCOM'!$G$6:$FJ$12,128,FALSE) -> 18% | G11: =VLOOKUP($A11,'RECAP DIRCOM'!$G$6:$FJ$12,129,FALSE) -> 4 | H11: =VLOOKUP($A11,'RECAP DIRCOM'!$G$6:$FJ$12,130,FALSE) -> 15.85 | I11: =VLOOKUP($A11,'RECAP DIRCOM'!$G$6:$FJ$12,131,FALSE) -> 0.79 | J11: =VLOOKUP($A11,'RECAP DIRCOM'!$G$6:$FJ$12,132,FALSE) -> 18% | K11: =VLOOKUP($A11,'RECAP DIRCOM'!$G$6:$FJ$12,133,FALSE) -> 3 | L11: =VLOOKUP($A11,'RECAP DIRCOM'!$G$6:$FJ$12,134,FALSE) -> 29.44 | M11: =VLOOKUP($A11,'RECAP DIRCOM'!$G$6:$FJ$12,135,FALSE) -> 0.44 | N11: =VLOOKUP($A11,'RECAP DIRCOM'!$G$6:$FJ$12,136,FALSE) -> 0% | O11: =VLOOKUP($A11,'RECAP DIRCOM'!$G$6:$FJ$12,137,FALSE) -> 1 | P11: =VLOOKUP($A11,'RECAP DIRCOM'!$G$6:$FJ$12,138,FALSE) -> -442.16 | Q11: =VLOOKUP($A11,'RECAP DIRCOM'!$G$6:$FJ$12,139,FALSE) -> -1.71 | R11: =VLOOKUP($A11,'RECAP DIRCOM'!$G$6:$FJ$12,140,FALSE) -> 20% | S11: =VLOOKUP($A11,'RECAP DIRCOM'!$G$6:$FJ$12,141,FALSE) -> 5 | T11: =VLOOKUP($A11,'RECAP DIRCOM'!$G$6:$FJ$12,142,FALSE) -> 15% | U11: =VLOOKUP($A11,'RECAP DIRCOM'!$G$6:$FJ$12,143,FALSE) -> 2% | V11: =VLOOKUP($A11,'RECAP DIRCOM'!$G$6:$FJ$12,144,FALSE) -> 2
A12: 264 | B12: Haut-Rhin | C12: =VLOOKUP($A12,'RECAP DIRCOM'!$G$6:$FJ$12,3,FALSE) -> 157 | D12: =VLOOKUP($A12,'RECAP DIRCOM'!$G$6:$FJ$12,126,FALSE) -> 24.03 | E12: =VLOOKUP($A12,'RECAP DIRCOM'!$G$6:$FJ$12,127,FALSE) -> 0.24 | F12: =VLOOKUP($A12,'RECAP DIRCOM'!$G$6:$FJ$12,128,FALSE) -> 36% | G12: =VLOOKUP($A12,'RECAP DIRCOM'!$G$6:$FJ$12,129,FALSE) -> 7 | H12: =VLOOKUP($A12,'RECAP DIRCOM'!$G$6:$FJ$12,130,FALSE) -> 12.55 | I12: =VLOOKUP($A12,'RECAP DIRCOM'!$G$6:$FJ$12,131,FALSE) -> 0.63 | J12: =VLOOKUP($A12,'RECAP DIRCOM'!$G$6:$FJ$12,132,FALSE) -> 35% | K12: =VLOOKUP($A12,'RECAP DIRCOM'!$G$6:$FJ$12,133,FALSE) -> 7 | L12: =VLOOKUP($A12,'RECAP DIRCOM'!$G$6:$FJ$12,134,FALSE) -> 10.25 | M12: =VLOOKUP($A12,'RECAP DIRCOM'!$G$6:$FJ$12,135,FALSE) -> 0.15 | N12: =VLOOKUP($A12,'RECAP DIRCOM'!$G$6:$FJ$12,136,FALSE) -> 65% | O12: =VLOOKUP($A12,'RECAP DIRCOM'!$G$6:$FJ$12,137,FALSE) -> 6 | P12: =VLOOKUP($A12,'RECAP DIRCOM'!$G$6:$FJ$12,138,FALSE) -> -306.67 | Q12: =VLOOKUP($A12,'RECAP DIRCOM'!$G$6:$FJ$12,139,FALSE) -> -1.96 | R12: =VLOOKUP($A12,'RECAP DIRCOM'!$G$6:$FJ$12,140,FALSE) -> 37% | S12: =VLOOKUP($A12,'RECAP DIRCOM'!$G$6:$FJ$12,141,FALSE) -> 7 | T12: =VLOOKUP($A12,'RECAP DIRCOM'!$G$6:$FJ$12,142,FALSE) -> 42% | U12: =VLOOKUP($A12,'RECAP DIRCOM'!$G$6:$FJ$12,143,FALSE) -> 29% | V12: =VLOOKUP($A12,'RECAP DIRCOM'!$G$6:$FJ$12,144,FALSE) -> 7
A13: 30 | B13: Marne-Ardennes | C13: =VLOOKUP($A13,'RECAP DIRCOM'!$G$6:$FJ$12,3,FALSE) -> 223 | D13: =VLOOKUP($A13,'RECAP DIRCOM'!$G$6:$FJ$12,126,FALSE) -> 37.67 | E13: =VLOOKUP($A13,'RECAP DIRCOM'!$G$6:$FJ$12,127,FALSE) -> 0.38 | F13: =VLOOKUP($A13,'RECAP DIRCOM'!$G$6:$FJ$12,128,FALSE) -> 0% | G13: =VLOOKUP($A13,'RECAP DIRCOM'!$G$6:$FJ$12,129,FALSE) -> 1 | H13: =VLOOKUP($A13,'RECAP DIRCOM'!$G$6:$FJ$12,130,FALSE) -> 19.38 | I13: =VLOOKUP($A13,'RECAP DIRCOM'!$G$6:$FJ$12,131,FALSE) -> 0.97 | J13: =VLOOKUP($A13,'RECAP DIRCOM'!$G$6:$FJ$12,132,FALSE) -> 0% | K13: =VLOOKUP($A13,'RECAP DIRCOM'!$G$6:$FJ$12,133,FALSE) -> 1 | L13: =VLOOKUP($A13,'RECAP DIRCOM'!$G$6:$FJ$12,134,FALSE) -> 14.39 | M13: =VLOOKUP($A13,'RECAP DIRCOM'!$G$6:$FJ$12,135,FALSE) -> 0.22 | N13: =VLOOKUP($A13,'RECAP DIRCOM'!$G$6:$FJ$12,136,FALSE) -> 51% | O13: =VLOOKUP($A13,'RECAP DIRCOM'!$G$6:$FJ$12,137,FALSE) -> 4 | P13: =VLOOKUP($A13,'RECAP DIRCOM'!$G$6:$FJ$12,138,FALSE) -> -354.22 | Q13: =VLOOKUP($A13,'RECAP DIRCOM'!$G$6:$FJ$12,139,FALSE) -> -1.59 | R13: =VLOOKUP($A13,'RECAP DIRCOM'!$G$6:$FJ$12,140,FALSE) -> 11% | S13: =VLOOKUP($A13,'RECAP DIRCOM'!$G$6:$FJ$12,141,FALSE) -> 2 | T13: =VLOOKUP($A13,'RECAP DIRCOM'!$G$6:$FJ$12,142,FALSE) -> 13% | U13: =VLOOKUP($A13,'RECAP DIRCOM'!$G$6:$FJ$12,143,FALSE) -> 0% | V13: =VLOOKUP($A13,'RECAP DIRCOM'!$G$6:$FJ$12,144,FALSE) -> 1
A14: 110 | B14: Meurthe et Moselle Meuse | C14: =VLOOKUP($A14,'RECAP DIRCOM'!$G$6:$FJ$12,3,FALSE) -> 229 | D14: =VLOOKUP($A14,'RECAP DIRCOM'!$G$6:$FJ$12,126,FALSE) -> 37.43 | E14: =VLOOKUP($A14,'RECAP DIRCOM'!$G$6:$FJ$12,127,FALSE) -> 0.37 | F14: =VLOOKUP($A14,'RECAP DIRCOM'!$G$6:$FJ$12,128,FALSE) -> 1% | G14: =VLOOKUP($A14,'RECAP DIRCOM'!$G$6:$FJ$12,129,FALSE) -> 2 | H14: =VLOOKUP($A14,'RECAP DIRCOM'!$G$6:$FJ$12,130,FALSE) -> 17.72 | I14: =VLOOKUP($A14,'RECAP DIRCOM'!$G$6:$FJ$12,131,FALSE) -> 0.89 | J14: =VLOOKUP($A14,'RECAP DIRCOM'!$G$6:$FJ$12,132,FALSE) -> 9% | K14: =VLOOKUP($A14,'RECAP DIRCOM'!$G$6:$FJ$12,133,FALSE) -> 2 | L14: =VLOOKUP($A14,'RECAP DIRCOM'!$G$6:$FJ$12,134,FALSE) -> 14.97 | M14: =VLOOKUP($A14,'RECAP DIRCOM'!$G$6:$FJ$12,135,FALSE) -> 0.22 | N14: =VLOOKUP($A14,'RECAP DIRCOM'!$G$6:$FJ$12,136,FALSE) -> 49% | O14: =VLOOKUP($A14,'RECAP DIRCOM'!$G$6:$FJ$12,137,FALSE) -> 2 | P14: =VLOOKUP($A14,'RECAP DIRCOM'!$G$6:$FJ$12,138,FALSE) -> -408.99 | Q14: =VLOOKUP($A14,'RECAP DIRCOM'!$G$6:$FJ$12,139,FALSE) -> -1.78 | R14: =VLOOKUP($A14,'RECAP DIRCOM'!$G$6:$FJ$12,140,FALSE) -> 25% | S14: =VLOOKUP($A14,'RECAP DIRCOM'!$G$6:$FJ$12,141,FALSE) -> 6 | T14: =VLOOKUP($A14,'RECAP DIRCOM'!$G$6:$FJ$12,142,FALSE) -> 17% | U14: =VLOOKUP($A14,'RECAP DIRCOM'!$G$6:$FJ$12,143,FALSE) -> 4% | V14: =VLOOKUP($A14,'RECAP DIRCOM'!$G$6:$FJ$12,144,FALSE) -> 3
A15: 160 | B15: Moselle | C15: =VLOOKUP($A15,'RECAP DIRCOM'!$G$6:$FJ$12,3,FALSE) -> 266 | D15: =VLOOKUP($A15,'RECAP DIRCOM'!$G$6:$FJ$12,126,FALSE) -> 34.67 | E15: =VLOOKUP($A15,'RECAP DIRCOM'!$G$6:$FJ$12,127,FALSE) -> 0.35 | F15: =VLOOKUP($A15,'RECAP DIRCOM'!$G$6:$FJ$12,128,FALSE) -> 8% | G15: =VLOOKUP($A15,'RECAP DIRCOM'!$G$6:$FJ$12,129,FALSE) -> 3 | H15: =VLOOKUP($A15,'RECAP DIRCOM'!$G$6:$FJ$12,130,FALSE) -> 13.72 | I15: =VLOOKUP($A15,'RECAP DIRCOM'!$G$6:$FJ$12,131,FALSE) -> 0.69 | J15: =VLOOKUP($A15,'RECAP DIRCOM'!$G$6:$FJ$12,132,FALSE) -> 29% | K15: =VLOOKUP($A15,'RECAP DIRCOM'!$G$6:$FJ$12,133,FALSE) -> 4 | L15: =VLOOKUP($A15,'RECAP DIRCOM'!$G$6:$FJ$12,134,FALSE) -> 6.52 | M15: =VLOOKUP($A15,'RECAP DIRCOM'!$G$6:$FJ$12,135,FALSE) -> 0.10 | N15: =VLOOKUP($A15,'RECAP DIRCOM'!$G$6:$FJ$12,136,FALSE) -> 78% | O15: =VLOOKUP($A15,'RECAP DIRCOM'!$G$6:$FJ$12,137,FALSE) -> 7 | P15: =VLOOKUP($A15,'RECAP DIRCOM'!$G$6:$FJ$12,138,FALSE) -> -427.06 | Q15: =VLOOKUP($A15,'RECAP DIRCOM'!$G$6:$FJ$12,139,FALSE) -> -1.60 | R15: =VLOOKUP($A15,'RECAP DIRCOM'!$G$6:$FJ$12,140,FALSE) -> 12% | S15: =VLOOKUP($A15,'RECAP DIRCOM'!$G$6:$FJ$12,141,FALSE) -> 3 | T15: =VLOOKUP($A15,'RECAP DIRCOM'!$G$6:$FJ$12,142,FALSE) -> 27% | U15: =VLOOKUP($A15,'RECAP DIRCOM'!$G$6:$FJ$12,143,FALSE) -> 15% | V15: =VLOOKUP($A15,'RECAP DIRCOM'!$G$6:$FJ$12,144,FALSE) -> 5
A16: 80 | B16: Vosges | C16: =VLOOKUP($A16,'RECAP DIRCOM'!$G$6:$FJ$12,3,FALSE) -> 131 | D16: =VLOOKUP($A16,'RECAP DIRCOM'!$G$6:$FJ$12,126,FALSE) -> 27.62 | E16: =VLOOKUP($A16,'RECAP DIRCOM'!$G$6:$FJ$12,127,FALSE) -> 0.28 | F16: =VLOOKUP($A16,'RECAP DIRCOM'!$G$6:$FJ$12,128,FALSE) -> 27% | G16: =VLOOKUP($A16,'RECAP DIRCOM'!$G$6:$FJ$12,129,FALSE) -> 6 | H16: =VLOOKUP($A16,'RECAP DIRCOM'!$G$6:$FJ$12,130,FALSE) -> 12.64 | I16: =VLOOKUP($A16,'RECAP DIRCOM'!$G$6:$FJ$12,131,FALSE) -> 0.63 | J16: =VLOOKUP($A16,'RECAP DIRCOM'!$G$6:$FJ$12,132,FALSE) -> 35% | K16: =VLOOKUP($A16,'RECAP DIRCOM'!$G$6:$FJ$12,133,FALSE) -> 6 | L16: =VLOOKUP($A16,'RECAP DIRCOM'!$G$6:$FJ$12,134,FALSE) -> 10.35 | M16: =VLOOKUP($A16,'RECAP DIRCOM'!$G$6:$FJ$12,135,FALSE) -> 0.16 | N16: =VLOOKUP($A16,'RECAP DIRCOM'!$G$6:$FJ$12,136,FALSE) -> 65% | O16: =VLOOKUP($A16,'RECAP DIRCOM'!$G$6:$FJ$12,137,FALSE) -> 5 | P16: =VLOOKUP($A16,'RECAP DIRCOM'!$G$6:$FJ$12,138,FALSE) -> -215.50 | Q16: =VLOOKUP($A16,'RECAP DIRCOM'!$G$6:$FJ$12,139,FALSE) -> -1.64 | R16: =VLOOKUP($A16,'RECAP DIRCOM'!$G$6:$FJ$12,140,FALSE) -> 15% | S16: =VLOOKUP($A16,'RECAP DIRCOM'!$G$6:$FJ$12,141,FALSE) -> 4 | T16: =VLOOKUP($A16,'RECAP DIRCOM'!$G$6:$FJ$12,142,FALSE) -> 34% | U16: =VLOOKUP($A16,'RECAP DIRCOM'!$G$6:$FJ$12,143,FALSE) -> 21% | V16: =VLOOKUP($A16,'RECAP DIRCOM'!$G$6:$FJ$12,144,FALSE) -> 6
B17: Total CEGEE Directions Régionales | C17: =SUM(C10:C16) -> 1390

Sheet DC_SATISFACTION
B1: Accueil | D1: BAROMETRE BDD - DIRECTIONS REGIONALES
D2: QUALITE / SATISFACTION
D3: =ACCUEIL!F7 -> 2020-07-19
D7: N P S | G7: Enquête Qualité Haute Définition | J7: Total Satisfaction Clients
D8: =DATEMAJ!C36 -> au 31/05 | E8: coef | F8: ='RECAP DIRCOM'!FC4 -> 8% | G8: =DATEMAJ!C37 -> au 31/05 | H8: coef | I8: ='RECAP DIRCOM'!FF4 -> 7% | K8: coef | L8: ='RECAP DIRCOM'!FI4 -> 15%
B9: Direction | C9: ="ETP perf "&DATEMAJ!$C$39 -> ETP perf au 31/05 | E9: % Ecart au 1er | F9: Rang | H9: % Ecart au 1er | I9: Rang | J9: Moyenne ecart au 1er | K9: % Ecart au 1er | L9: Rang CEGEE
A10: 50 | B10: Aube Haute Marne | C10: =VLOOKUP($A10,'RECAP DIRCOM'!$G$6:$FJ$12,3,FALSE) -> 125 | D10: =VLOOKUP($A10,'RECAP DIRCOM'!$G$6:$FJ$12,151,FALSE) -> -10 | E10: =VLOOKUP($A10,'RECAP DIRCOM'!$G$6:$FJ$12,152,FALSE) -> 11% | F10: =VLOOKUP($A10,'RECAP DIRCOM'!$G$6:$FJ$12,153,FALSE) -> 2 | G10: =VLOOKUP($A10,'RECAP DIRCOM'!$G$6:$FJ$12,154,FALSE) -> 44% | H10: =VLOOKUP($A10,'RECAP DIRCOM'!$G$6:$FJ$12,155,FALSE) -> 23% | I10: =VLOOKUP($A10,'RECAP DIRCOM'!$G$6:$FJ$12,156,FALSE) -> 5 | J10: =VLOOKUP($A10,'RECAP DIRCOM'!$G$6:$FJ$12,157,FALSE) -> 17% | K10: =VLOOKUP($A10,'RECAP DIRCOM'!$G$6:$FJ$12,158,FALSE) -> 17% | L10: =VLOOKUP($A10,'RECAP DIRCOM'!$G$6:$FJ$12,159,FALSE) -> 4
A11: 262 | B11: Bas-Rhin | C11: =VLOOKUP($A11,'RECAP DIRCOM'!$G$6:$FJ$12,3,FALSE) -> 258 | D11: =VLOOKUP($A11,'RECAP DIRCOM'!$G$6:$FJ$12,151,FALSE) -> -21 | E11: =VLOOKUP($A11,'RECAP DIRCOM'!$G$6:$FJ$12,152,FALSE) -> 133% | F11: =VLOOKUP($A11,'RECAP DIRCOM'!$G$6:$FJ$12,153,FALSE) -> 6 | G11: =VLOOKUP($A11,'RECAP DIRCOM'!$G$6:$FJ$12,154,FALSE) -> 40% | H11: =VLOOKUP($A11,'RECAP DIRCOM'!$G$6:$FJ$12,155,FALSE) -> 31% | I11: =VLOOKUP($A11,'RECAP DIRCOM'!$G$6:$FJ$12,156,FALSE) -> 6 | J11: =VLOOKUP($A11,'RECAP DIRCOM'!$G$6:$FJ$12,157,FALSE) -> 86% | K11: =VLOOKUP($A11,'RECAP DIRCOM'!$G$6:$FJ$12,158,FALSE) -> 86% | L11: =VLOOKUP($A11,'RECAP DIRCOM'!$G$6:$FJ$12,159,FALSE) -> 6
A12: 264 | B12: Haut-Rhin | C12: =VLOOKUP($A12,'RECAP DIRCOM'!$G$6:$FJ$12,3,FALSE) -> 157 | D12: =VLOOKUP($A12,'RECAP DIRCOM'!$G$6:$FJ$12,151,FALSE) -> -22 | E12: =VLOOKUP($A12,'RECAP DIRCOM'!$G$6:$FJ$12,152,FALSE) -> 144% | F12: =VLOOKUP($A12,'RECAP DIRCOM'!$G$6:$FJ$12,153,FALSE) -> 7 | G12: =VLOOKUP($A12,'RECAP DIRCOM'!$G$6:$FJ$12,154,FALSE) -> 39% | H12: =VLOOKUP($A12,'RECAP DIRCOM'!$G$6:$FJ$12,155,FALSE) -> 33% | I12: =VLOOKUP($A12,'RECAP DIRCOM'!$G$6:$FJ$12,156,FALSE) -> 7 | J12: =VLOOKUP($A12,'RECAP DIRCOM'!$G$6:$FJ$12,157,FALSE) -> 92% | K12: =VLOOKUP($A12,'RECAP DIRCOM'!$G$6:$FJ$12,158,FALSE) -> 92% | L12: =VLOOKUP($A12,'RECAP DIRCOM'!$G$6:$FJ$12,159,FALSE) -> 7
A13: 30 | B13: Marne-Ardennes | C13: =VLOOKUP($A13,'RECAP DIRCOM'!$G$6:$FJ$12,3,FALSE) -> 223 | D13: =VLOOKUP($A13,'RECAP DIRCOM'!$G$6:$FJ$12,151,FALSE) -> -9 | E13: =VLOOKUP($A13,'RECAP DIRCOM'!$G$6:$FJ$12,152,FALSE) -> 0% | F13: =VLOOKUP($A13,'RECAP DIRCOM'!$G$6:$FJ$12,153,FALSE) -> 1 | G13: =VLOOKUP($A13,'RECAP DIRCOM'!$G$6:$FJ$12,154,FALSE) -> 58% | H13: =VLOOKUP($A13,'RECAP DIRCOM'!$G$6:$FJ$12,155,FALSE) -> 0% | I13: =VLOOKUP($A13,'RECAP DIRCOM'!$G$6:$FJ$12,156,FALSE) -> 1 | J13: =VLOOKUP($A13,'RECAP DIRCOM'!$G$6:$FJ$12,157,FALSE) -> 0% | K13: =VLOOKUP($A13,'RECAP DIRCOM'!$G$6:$FJ$12,158,FALSE) -> 0% | L13: =VLOOKUP($A13,'RECAP DIRCOM'!$G$6:$FJ$12,159,FALSE) -> 1
A14: 110 | B14: Meurthe et Moselle Meuse | C14: =VLOOKUP($A14,'RECAP DIRCOM'!$G$6:$FJ$12,3,FALSE) -> 229 | D14: =VLOOKUP($A14,'RECAP DIRCOM'!$G$6:$FJ$12,151,FALSE) -> -10 | E14: =VLOOKUP($A14,'RECAP DIRCOM'!$G$6:$FJ$12,152,FALSE) -> 11% | F14: =VLOOKUP($A14,'RECAP DIRCOM'!$G$6:$FJ$12,153,FALSE) -> 2 | G14: =VLOOKUP($A14,'RECAP DIRCOM'!$G$6:$FJ$12,154,FALSE) -> 50% | H14: =VLOOKUP($A14,'RECAP DIRCOM'!$G$6:$FJ$12,155,FALSE) -> 14% | I14: =VLOOKUP($A14,'RECAP DIRCOM'!$G$6:$FJ$12,156,FALSE) -> 3 | J14: =VLOOKUP($A14,'RECAP DIRCOM'!$G$6:$FJ$12,157,FALSE) -> 12% | K14: =VLOOKUP($A14,'RECAP DIRCOM'!$G$6:$FJ$12,158,FALSE) -> 12% | L14: =VLOOKUP($A14,'RECAP DIRCOM'!$G$6:$FJ$12,159,FALSE) -> 2
A15: 160 | B15: Moselle | C15: =VLOOKUP($A15,'RECAP DIRCOM'!$G$6:$FJ$12,3,FALSE) -> 266 | D15: =VLOOKUP($A15,'RECAP DIRCOM'!$G$6:$FJ$12,151,FALSE) -> -14 | E15: =VLOOKUP($A15,'RECAP DIRCOM'!$G$6:$FJ$12,152,FALSE) -> 56% | F15: =VLOOKUP($A15,'RECAP DIRCOM'!$G$6:$FJ$12,153,FALSE) -> 5 | G15: =VLOOKUP($A15,'RECAP DIRCOM'!$G$6:$FJ$12,154,FALSE) -> 48% | H15: =VLOOKUP($A15,'RECAP DIRCOM'!$G$6:$FJ$12,155,FALSE) -> 17% | I15: =VLOOKUP($A15,'RECAP DIRCOM'!$G$6:$FJ$12,156,FALSE) -> 4 | J15: =VLOOKUP($A15,'RECAP DIRCOM'!$G$6:$FJ$12,157,FALSE) -> 38% | K15: =VLOOKUP($A15,'RECAP DIRCOM'!$G$6:$FJ$12,158,FALSE) -> 38% | L15: =VLOOKUP($A15,'RECAP DIRCOM'!$G$6:$FJ$12,159,FALSE) -> 5
A16: 80 | B16: Vosges | C16: =VLOOKUP($A16,'RECAP DIRCOM'!$G$6:$FJ$12,3,FALSE) -> 131 | D16: =VLOOKUP($A16,'RECAP DIRCOM'!$G$6:$FJ$12,151,FALSE) -> -11 | E16: =VLOOKUP($A16,'RECAP DIRCOM'!$G$6:$FJ$12,152,FALSE) -> 22% | F16: =VLOOKUP($A16,'RECAP DIRCOM'!$G$6:$FJ$12,153,FALSE) -> 4 | G16: =VLOOKUP($A16,'RECAP DIRCOM'!$G$6:$FJ$12,154,FALSE) -> 53% | H16: =VLOOKUP($A16,'RECAP DIRCOM'!$G$6:$FJ$12,155,FALSE) -> 8% | I16: =VLOOKUP($A16,'RECAP DIRCOM'!$G$6:$FJ$12,156,FALSE) -> 2 | J16: =VLOOKUP($A16,'RECAP DIRCOM'!$G$6:$FJ$12,157,FALSE) -> 16% | K16: =VLOOKUP($A16,'RECAP DIRCOM'!$G$6:$FJ$12,158,FALSE) -> 16% | L16: =VLOOKUP($A16,'RECAP DIRCOM'!$G$6:$FJ$12,159,FALSE) -> 3
B17: Total CEGEE Directions Régionales | C17: =SUM(C10:C16) -> 1390

Sheet SE_FICHE
A1: Accueil
A2: BAROMETRE BDD
A4: UNITE: | B4: TERRITOIRE | E4: ETP perf : | F4: =VLOOKUP(A5,'RECAP SECT'!$G$6:$I$23,3,FALSE) -> 64.91
A5: =VLOOKUP(B5,LISTES!$H$6:$I$23,2,FALSE) -> 5130 | B5: COLMAR
C6: Coefficient du critére | E6: Résultats | I6: Ecart au 1ier | M6: Evolution | O6: Rang
E7: du 1ier | G7: du territoire | I7: Du mois | K7: Au 31/12/2019
A9: RANG au CLASSEMENT GENERAL | K9: =VLOOKUP($A$5,'RECAP SECT AN'!$G$6:$FS$312,168,FALSE) -> 17 | M9: =+K9-O9 -> 1 | O9: =VLOOKUP($A$5,'RECAP SECT'!$G$6:$FS$312,168,FALSE) -> 16 | S9: =VLOOKUP($A$5,'RECAP SECT AN'!$G$6:$FE$312,154,FALSE) -> 1 | U9: =+S9-O9 -> -15
A11: CRITERE CONQUETE | C11: 15% | O11: =VLOOKUP($A$5,'RECAP SECT'!$G$6:$FS$312,23,FALSE) -> 15
B12: PNB Evolution nette Clients BP | C12: 4% | E12: ='RECAP SECT'!K4 -> -1.4 | G12: =VLOOKUP($A$5,'RECAP SECT'!$G$6:$FS$312,6,FALSE) -> -4.7 | I12: =VLOOKUP($A$5,'RECAP SECT'!$G$6:$FS$312,7,FALSE) -> 103% | K12: =VLOOKUP($A$5,'RECAP SECT AN'!$G$6:$FS$312,7,FALSE) -> 134% | M12: =+K12-I12 -> 31% | O12: =VLOOKUP($A$5,'RECAP SECT'!$G$6:$FS$312,8,FALSE) -> 16 | S12: =VLOOKUP($A$5,'RECAP SECT AN'!$G$6:$FE$312,6,FALSE) -> -181% | U12: =+S12-I12 -> -284%
B13: PNB Evolution nette Clients PREMIUM | C13: 5% | E13: ='RECAP SECT'!O4 -> 1.0 | G13: =VLOOKUP($A$5,'RECAP SECT'!$G$6:$FS$312,10,FALSE) -> 0.5 | I13: =VLOOKUP($A$5,'RECAP SECT'!$G$6:$FS$312,11,FALSE) -> 52% | K13: =VLOOKUP($A$5,'RECAP SECT AN'!$G$6:$FS$312,11,FALSE) -> 20% | M13: =+K13-I13 -> -31% | O13: =VLOOKUP($A$5,'RECAP SECT'!$G$6:$FS$312,12,FALSE) -> 8 | S13: =VLOOKUP($A$5,'RECAP SECT AN'!$G$6:$FE$312,9,FALSE) -> 287% | U13: =+S13-I13 -> 235%
B14: PNB Evolution nette Clients Jeunes Equipés | C14: 3% | E14: ='RECAP SECT'!S4 -> -0.4 | G14: =VLOOKUP($A$5,'RECAP SECT'!$G$6:$FS$312,14,FALSE) -> -1.2 | I14: =VLOOKUP($A$5,'RECAP SECT'!$G$6:$FS$312,15,FALSE) -> 118% | K14: =VLOOKUP($A$5,'RECAP SECT AN'!$G$6:$FS$312,15,FALSE) -> -99% | M14: =+K14-I14 -> -217% | O14: =VLOOKUP($A$5,'RECAP SECT'!$G$6:$FS$312,16,FALSE) -> 15 | S14: =VLOOKUP($A$5,'RECAP SECT AN'!$G$6:$FE$312,12,FALSE) -> 1300% | U14: =+S14-I14 -> 1182%
B15: PNB Evolution nette Clients Pro Actifs Equipés | C15: 3% | E15: ='RECAP SECT'!W4 -> 1.0 | G15: =VLOOKUP($A$5,'RECAP SECT'!$G$6:$FS$312,18,FALSE) -> 0.1 | I15: =VLOOKUP($A$5,'RECAP SECT'!$G$6:$FS$312,19,FALSE) -> 88% | K15: =VLOOKUP($A$5,'RECAP SECT AN'!$G$6:$FS$312,19,FALSE) -> 54% | M15: =+K15-I15 -> -34% | O15: =VLOOKUP($A$5,'RECAP SECT'!$G$6:$FS$312,20,FALSE) -> 14 | S15: =VLOOKUP($A$5,'RECAP SECT AN'!$G$6:$FE$312,15,FALSE) -> -99% | U15: =+S15-I15 -> -187%
A17: CRITERE BANCARISATION | C17: 15% | O17: =VLOOKUP($A$5,'RECAP SECT'!$G$6:$FS$312,48,FALSE) -> 12
B18: PNB Ventes nettes forfaits | C18: 4% | E18: ='RECAP SECT'!AJ4 -> 7.8 | G18: =VLOOKUP($A$5,'RECAP SECT'!$G$6:$FS$312,31,FALSE) -> 3.6 | I18: =VLOOKUP($A$5,'RECAP SECT'!$G$6:$FS$312,32,FALSE) -> 54% | K18: =VLOOKUP($A$5,'RECAP SECT AN'!$G$6:$FS$312,32,FALSE) -> 117% | M18: =+K18-I18 -> 62% | O18: =VLOOKUP($A$5,'RECAP SECT'!$G$6:$FS$312,33,FALSE) -> 9 | S18: =VLOOKUP($A$5,'RECAP SECT AN'!$G$6:$FE$312,27,FALSE) -> 0% | U18: =+S18-I18 -> -54%
B19: PNB Ventes nettes IZICARTES Débit Différé | C19: 4% | E19: ='RECAP SECT'!AN4 -> 8.7 | G19: =VLOOKUP($A$5,'RECAP SECT'!$G$6:$FS$312,35,FALSE) -> 4.1 | I19: =VLOOKUP($A$5,'RECAP SECT'!$G$6:$FS$312,36,FALSE) -> 52% | K19: =VLOOKUP($A$5,'RECAP SECT AN'!$G$6:$FS$312,36,FALSE) -> 27% | M19: =+K19-I19 -> -25% | O19: =VLOOKUP($A$5,'RECAP SECT'!$G$6:$FS$312,37,FALSE) -> 10 | S19: =VLOOKUP($A$5,'RECAP SECT AN'!$G$6:$FE$312,30,FALSE) -> 430% | U19: =+S19-I19 -> 377%
B20: PNB Ventes nettes cartes HDG Débit Différé | C20: 4% | E20: ='RECAP SECT'!AR4 -> 14.2 | G20: =VLOOKUP($A$5,'RECAP SECT'!$G$6:$FS$312,39,FALSE) -> 6.9 | I20: =VLOOKUP($A$5,'RECAP SECT'!$G$6:$FS$312,40,FALSE) -> 51% | K20: =VLOOKUP($A$5,'RECAP SECT AN'!$G$6:$FS$312,40,FALSE) -> 35% | M20: =+K20-I20 -> -16% | O20: =VLOOKUP($A$5,'RECAP SECT'!$G$6:$FS$312,41,FALSE) -> 7 | S20: =VLOOKUP($A$5,'RECAP SECT AN'!$G$6:$FE$312,33,FALSE) -> 1600% | U20: =+S20-I20 -> 1549%
B21: PNB Ventes nettes Forfaits Pro, Carte pro | C21: 3% | E21: ='RECAP SECT'!AV4 -> 1.4 | G21: =VLOOKUP($A$5,'RECAP SECT'!$G$6:$FS$312,43,FALSE) -> 0.2 | I21: =VLOOKUP($A$5,'RECAP SECT'!$G$6:$FS$312,44,FALSE) -> 86% | K21: =VLOOKUP($A$5,'RECAP SECT AN'!$G$6:$FS$312,44,FALSE) -> 87% | M21: =+K21-I21 -> 1% | O21: =VLOOKUP($A$5,'RECAP SECT'!$G$6:$FS$312,45,FALSE) -> 13 | S21: =VLOOKUP($A$5,'RECAP SECT AN'!$G$6:$FE$312,39,FALSE) -> 467% | U21: =+S21-I21 -> 381%
A23: CRITERE EPARGNE | C23: 10% | O23: =VLOOKUP($A$5,'RECAP SECT'!$G$6:$FS$312,69,FALSE) -> 9
B24: PNB Epargne Liquide | C24: 3% | E24: ='RECAP SECT'!BI4 -> 11.2 | G24: =VLOOKUP($A$5,'RECAP SECT'!$G$6:$FS$312,56,FALSE) -> 9.0 | I24: =VLOOKUP($A$5,'RECAP SECT'!$G$6:$FS$312,57,FALSE) -> 20% | K24: =VLOOKUP($A$5,'RECAP SECT AN'!$G$6:$FS$312,57,FALSE) -> 25% | M24: =+K24-I24 -> 5% | O24: =VLOOKUP($A$5,'RECAP SECT'!$G$6:$FS$312,58,FALSE) -> 5 | S24: =VLOOKUP($A$5,'RECAP SECT AN'!$G$6:$FE$312,51,FALSE) -> 0% | U24: =+S24-I24 -> -20%
B25: PNB CA UC + arbitrage | C25: 4% | E25: ='RECAP SECT'!BM4 -> 1.4 | G25: =VLOOKUP($A$5,'RECAP SECT'!$G$6:$FS$312,60,FALSE) -> 1.4 | I25: =VLOOKUP($A$5,'RECAP SECT'!$G$6:$FS$312,61,FALSE) -> 0% | K25: =VLOOKUP($A$5,'RECAP SECT AN'!$G$6:$FS$312,61,FALSE) -> 23% | M25: =+K25-I25 -> 23% | O25: =VLOOKUP($A$5,'RECAP SECT'!$G$6:$FS$312,62,FALSE) -> 1 | S25: =VLOOKUP($A$5,'RECAP SECT AN'!$G$6:$FE$312,57,FALSE) -> 25% | U25: =+S25-I25 -> 25%
B26: PNB Excédent assurance vie | C26: 3% | E26: ='RECAP SECT'!BQ4 -> 3.6 | G26: =VLOOKUP($A$5,'RECAP SECT'!$G$6:$FS$312,64,FALSE) -> -2.6 | I26: =VLOOKUP($A$5,'RECAP SECT'!$G$6:$FS$312,65,FALSE) -> 125% | K26: =VLOOKUP($A$5,'RECAP SECT AN'!$G$6:$FS$312,65,FALSE) -> 114% | M26: =+K26-I26 -> -12% | O26: =VLOOKUP($A$5,'RECAP SECT'!$G$6:$FS$312,66,FALSE) -> 17 | S26: =VLOOKUP($A$5,'RECAP SECT AN'!$G$6:$FE$312,60,FALSE) -> 107% | U26: =+S26-I26 -> -19%
A28: CRITERE CREDITS | C28: 15% | O28: =VLOOKUP($A$5,'RECAP SECT'!$G$6:$FS$312,102,FALSE) -> 17
B29: PNB crédit conso | C29: 4% | E29: ='RECAP SECT'!CD4 -> 37.6 | G29: =VLOOKUP($A$5,'RECAP SECT'!$G$6:$FS$312,77,FALSE) -> 21.8 | I29: =VLOOKUP($A$5,'RECAP SECT'!$G$6:$FS$312,78,FALSE) -> 42% | K29: =VLOOKUP($A$5,'RECAP SECT AN'!$G$6:$FS$312,78,FALSE) -> 37% | M29: =+K29-I29 -> -5% | O29: =VLOOKUP($A$5,'RECAP SECT'!$G$6:$FS$312,79,FALSE) -> 18 | S29: =VLOOKUP($A$5,'RECAP SECT AN'!$G$6:$FE$312,75,FALSE) -> 0% | U29: =+S29-I29 -> -42%
B30: PNB ADE crédit conso | C30: 1% | E30: ='RECAP SECT'!CH4 -> 9.4 | G30: =VLOOKUP($A$5,'RECAP SECT'!$G$6:$FS$312,81,FALSE) -> 5.1 | I30: =VLOOKUP($A$5,'RECAP SECT'!$G$6:$FS$312,82,FALSE) -> 45% | K30: =VLOOKUP($A$5,'RECAP SECT AN'!$G$6:$FS$312,82,FALSE) -> 44% | M30: -1% | O30: =VLOOKUP($A$5,'RECAP SECT'!$G$6:$FS$312,83,FALSE) -> 18 | S30: =VLOOKUP($A$5,'RECAP SECT AN'!$G$6:$FE$312,78,FALSE) -> 37% | U30: -8%
B31: PNB crédit immo | C31: 4% | E31: ='RECAP SECT'!CL4 -> 56.5 | G31: =VLOOKUP($A$5,'RECAP SECT'!$G$6:$FS$312,85,FALSE) -> 25.3 | I31: =VLOOKUP($A$5,'RECAP SECT'!$G$6:$FS$312,86,FALSE) -> 55% | K31: =VLOOKUP($A$5,'RECAP SECT AN'!$G$6:$FS$312,86,FALSE) -> 38% | M31: -18% | O31: =VLOOKUP($A$5,'RECAP SECT'!$G$6:$FS$312,87,FALSE) -> 17 | S31: =VLOOKUP($A$5,'RECAP SECT AN'!$G$6:$FE$312,81,FALSE) -> 782% | U31: 727%
B32: PNB ADE crédit immo | C32: 2% | E32: ='RECAP SECT'!CP4 -> 38.5 | G32: =VLOOKUP($A$5,'RECAP SECT'!$G$6:$FS$312,89,FALSE) -> 13.2 | I32: =VLOOKUP($A$5,'RECAP SECT'!$G$6:$FS$312,90,FALSE) -> 66% | K32: =VLOOKUP($A$5,'RECAP SECT AN'!$G$6:$FS$312,90,FALSE) -> 49% | M32: -17% | O32: =VLOOKUP($A$5,'RECAP SECT'!$G$6:$FS$312,91,FALSE) -> 17 | S32: =VLOOKUP($A$5,'RECAP SECT AN'!$G$6:$FE$312,84,FALSE) -> 139312% | U32: 139246%
B33: PNB SACCEF | C33: 2% | E33: ='RECAP SECT'!CT4 -> 3.5 | G33: =VLOOKUP($A$5,'RECAP SECT'!$G$6:$FS$312,93,FALSE) -> 1.4 | I33: =VLOOKUP($A$5,'RECAP SECT'!$G$6:$FS$312,94,FALSE) -> 60% | K33: =VLOOKUP($A$5,'RECAP SECT AN'!$G$6:$FS$312,94,FALSE) -> 51% | M33: -9% | O33: =VLOOKUP($A$5,'RECAP SECT'!$G$6:$FS$312,95,FALSE) -> 16 | S33: =VLOOKUP($A$5,'RECAP SECT AN'!$G$6:$FE$312,87,FALSE) -> 1100% | U33: 1040%
B34: PNB Crédit MLT + Crédit Bail | C34: 2% | E34: ='RECAP SECT'!CX4 -> 10.3 | G34: =VLOOKUP($A$5,'RECAP SECT'!$G$6:$FS$312,97,FALSE) -> 4.0 | I34: =VLOOKUP($A$5,'RECAP SECT'!$G$6:$FS$312,98,FALSE) -> 61% | K34: =VLOOKUP($A$5,'RECAP SECT AN'!$G$6:$FS$312,98,FALSE) -> 74% | M34: 14% | O34: =VLOOKUP($A$5,'RECAP SECT'!$G$6:$FS$312,99,FALSE) -> 6 | S34: =VLOOKUP($A$5,'RECAP SECT AN'!$G$6:$FE$312,90,FALSE) -> 49% | U34: -12%
A36: CRITERE IARD PREVOYANCE | C36: 15% | O36: =VLOOKUP($A$5,'RECAP SECT'!$G$6:$FS$312,119,FALSE) -> 14
B37: PNB Ventes nettes IARD | C37: 9% | E37: ='RECAP SECT'!DK4 -> 2.1 | G37: =VLOOKUP($A$5,'RECAP SECT'!$G$6:$FS$312,110,FALSE) -> 0.7 | I37: =VLOOKUP($A$5,'RECAP SECT'!$G$6:$FS$312,111,FALSE) -> 64% | K37: =VLOOKUP($A$5,'RECAP SECT AN'!$G$6:$FS$312,111,FALSE) -> 75% | M37: =+K37-I37 -> 11% | O37: =VLOOKUP($A$5,'RECAP SECT'!$G$6:$FS$312,112,FALSE) -> 13 | S37: =VLOOKUP($A$5,'RECAP SECT AN'!$G$6:$FE$312,102,FALSE) -> 1800% | U37: =+S37-I37 -> 1736%
B38: PNB Ventes nettes Prévoyance | C38: 6% | E38: ='RECAP SECT'!DO4 -> 1.9 | G38: =VLOOKUP($A$5,'RECAP SECT'!$G$6:$FS$312,114,FALSE) -> 1.1 | I38: =VLOOKUP($A$5,'RECAP SECT'!$G$6:$FS$312,115,FALSE) -> 39% | K38: =VLOOKUP($A$5,'RECAP SECT AN'!$G$6:$FS$312,115,FALSE) -> 62% | M38: =+K38-I38 -> 23% | O38: =VLOOKUP($A$5,'RECAP SECT'!$G$6:$FS$312,116,FALSE) -> 10 | S38: =VLOOKUP($A$5,'RECAP SECT AN'!$G$6:$FE$312,105,FALSE) -> 0% | U38: =+S38-I38 -> -39%
A40: CRITERE ACCELERATEURS PNB | C40: 15% | O40: =VLOOKUP($A$5,'RECAP SECT'!$G$6:$FS$312,144,FALSE) -> 17
B41: PNB Ventes brutes SED Finalisées | C41: 6% | E41: ='RECAP SECT'!EB4 -> 0.5 | G41: =VLOOKUP($A$5,'RECAP SECT'!$G$6:$FS$312,127,FALSE) -> 0.3 | I41: =VLOOKUP($A$5,'RECAP SECT'!$G$6:$FS$312,128,FALSE) -> 41% | K41: =VLOOKUP($A$5,'RECAP SECT AN'!$G$6:$FS$312,128,FALSE) -> 45% | M41: =+K41-I41 -> 3% | O41: =VLOOKUP($A$5,'RECAP SECT'!$G$6:$FS$312,129,FALSE) -> 15 | S41: =VLOOKUP($A$5,'RECAP SECT AN'!$G$6:$FE$312,120,FALSE) -> 0% | U41: =+S41-I41 -> -41%
B42: PNB clients équipés E documents | C42: 3% | E42: ='RECAP SECT'!EF4 -> 1.3 | G42: =VLOOKUP($A$5,'RECAP SECT'!$G$6:$FS$312,131,FALSE) -> 0.7 | I42: =VLOOKUP($A$5,'RECAP SECT'!$G$6:$FS$312,132,FALSE) -> 42% | K42: =VLOOKUP($A$5,'RECAP SECT AN'!$G$6:$FS$312,132,FALSE) -> 43% | M42: =+K42-I42 -> 1% | O42: =VLOOKUP($A$5,'RECAP SECT'!$G$6:$FS$312,133,FALSE) -> 16 | S42: =VLOOKUP($A$5,'RECAP SECT AN'!$G$6:$FE$312,123,FALSE) -> 0% | U42: =+S42-I42 -> -42%
B43: Economie opt'in | C43: 3% | E43: ='RECAP SECT'!EJ4 -> 0.8 | G43: =VLOOKUP($A$5,'RECAP SECT'!$G$6:$FS$312,135,FALSE) -> 0.2 | I43: =VLOOKUP($A$5,'RECAP SECT'!$G$6:$FS$312,136,FALSE) -> 70% | K43: =VLOOKUP($A$5,'RECAP SECT AN'!$G$6:$FS$312,136,FALSE) -> 55% | M43: =+K43-I43 -> -15% | O43: =VLOOKUP($A$5,'RECAP SECT'!$G$6:$FS$312,137,FALSE) -> 11
B44: Remises commerciales | C44: 3% | E44: ='RECAP SECT'!EN4 -> -1.4 | G44: =VLOOKUP($A$5,'RECAP SECT'!$G$6:$FS$312,139,FALSE) -> -2.3 | I44: =VLOOKUP($A$5,'RECAP SECT'!$G$6:$FS$312,140,FALSE) -> 61% | K44: =VLOOKUP($A$5,'RECAP SECT AN'!$G$6:$FS$312,140,FALSE) -> 45% | M44: =+K44-I44 -> -16% | O44: =VLOOKUP($A$5,'RECAP SECT'!$G$6:$FS$312,141,FALSE) -> 14 | S44: =VLOOKUP($A$5,'RECAP SECT AN'!$G$6:$FE$312,126,FALSE) -> 2124% | U44: =+S44-I44 -> 2064%
A46: CRITERE Satisfaction Clients | C46: 15% | O46: =VLOOKUP($A$5,'RECAP SECT'!$G$6:$FS$312,159,FALSE) -> 14
B47: Objectifs NPS* | C47: 8% | E47: ='RECAP SECT'!FA4 -> -2 | G47: =VLOOKUP($A$5,'RECAP SECT'!$G$6:$FS$312,151,FALSE) -> -18 | I47: =VLOOKUP($A$5,'RECAP SECT'!$G$6:$FS$312,152,FALSE) -> 86% | K47: =VLOOKUP($A$5,'RECAP SECT AN'!$G$6:$FS$312,152,FALSE) -> 110% | M47: =+K47-I47 -> 24% | O47: =VLOOKUP($A$5,'RECAP SECT'!$G$6:$FS$312,153,FALSE) -> 13 | S47: =VLOOKUP($A$5,'RECAP SECT AN'!$G$6:$FE$312,138,FALSE) -> -33048% | U47: =+S47-I47 -> -33134%
B48: Enquête Qualité Haute Définition | C48: 7% | E48: ='RECAP SECT'!FD4 -> 64% | G48: =VLOOKUP($A$5,'RECAP SECT'!$G$6:$FS$312,154,FALSE) -> 43% | I48: =VLOOKUP($A$5,'RECAP SECT'!$G$6:$FS$312,155,FALSE) -> 33% | K48: =VLOOKUP($A$5,'RECAP SECT AN'!$G$6:$FS$312,155,FALSE) -> 7% | M48: =+K48-I48 -> -27% | O48: =VLOOKUP($A$5,'RECAP SECT'!$G$6:$FS$312,156,FALSE) -> 13 | S48: =VLOOKUP($A$5,'RECAP SECT AN'!$G$6:$FE$312,141,FALSE) -> 1000% | U48: =+S48-I48 -> 967%

Sheet SE_TOTAL
B1: Accueil | F1: BAROMETRE BDD - TERRITOIRES
F2: TOTAL GENERAL
F3: =ACCUEIL!F7 -> 2020-07-19
F7: TOTAL GENERAL | I7: Total Clients | L7: Total Bancarisation | O7: Total Epargne | R7: Total Crédits | U7: Total IARD Prévoyance | X7: Total Accélérateurs PNB | AA7: Total Qualité-Satisfaction Clients
G8: coef | H8: 100% | J8: coef | K8: ='RECAP DIRCOM'!$AC$4 -> 15% | M8: coef | N8: ='RECAP DIRCOM'!$BB$4 -> 15% | P8: coef | Q8: ='RECAP DIRCOM'!$BW$4 -> 10% | S8: coef | T8: ='RECAP DIRCOM'!$DD$4 -> 15% | V8: coef | W8: ='RECAP DIRCOM'!$DU$4 -> 15% | Y8: coef | Z8: ='RECAP DIRCOM'!$ET$4 -> 15% | AB8: coef | AC8: ='RECAP DIRCOM'!$FI$4 -> 15%
B9: Direction | C9: eds | D9: Territoire | E9: ="ETP perf "&DATEMAJ!$C$39 -> ETP perf au 31/05 | F9: Moyenne ecart au 1er | G9: % Ecart au 1er | H9: Rang CEGEE | I9: Moyenne ecart au 1er | J9: % Ecart au 1er | K9: Rang CEGEE | L9: Moyenne ecart au 1er | M9: % Ecart au 1er | N9: Rang CEGEE | O9: Moyenne ecart au 1er | P9: % Ecart au 1er | Q9: Rang CEGEE | R9: Moyenne ecart au 1er | S9: % Ecart au 1er | T9: Rang CEGEE | U9: Moyenne ecart au 1er | V9: % Ecart au 1er | W9: Rang CEGEE | X9: Moyenne ecart au 1er | Y9: % Ecart au 1er | Z9: Rang CEGEE | AA9: Moyenne ecart au 1er | AB9: % Ecart au 1er | AC9: Rang CEGEE
A10: 110 | B10: MEURTHE ET MOSELLE MEUSE | C10: 27 | D10: PONT A MOUSSON | E10: 71.9 | F10: 11% | G10: 0% | H10: 1 | I10: 24% | J10: 0% | K10: 1 | L10: 23% | M10: 5% | N10: 2 | O10: 32% | P10: 10% | Q10: 3 | R10: 10% | S10: 0% | T10: 1 | U10: 10% | V10: 0% | W10: 1 | X10: 29% | Y10: 10% | Z10: 5 | AA10: 60% | AB10: 55% | AC10: 13
A11: 30 | B11: MARNE-ARDENNES | C11: 2 | D11: CHARLEVILLE MEZIERES | E11: 54.5 | F11: 13% | G11: 1% | H11: 2 | I11: 37% | J11: 13% | K11: 2 | L11: 26% | M11: 8% | N11: 3 | O11: 36% | P11: 14% | Q11: 5 | R11: 26% | S11: 16% | T11: 3 | U11: 24% | V11: 14% | W11: 3 | X11: 18% | Y11: 0% | Z11: 1 | AA11: 32% | AB11: 27% | AC11: 8
A12: 30 | B12: MARNE-ARDENNES | C12: 11 | D12: REIMS | E12: 78.1 | F12: 14% | G12: 2% | H12: 3 | I12: 39% | J12: 15% | K12: 3 | L12: 33% | M12: 15% | N12: 4 | O12: 48% | P12: 26% | Q12: 11 | R12: 13% | S12: 3% | T12: 2 | U12: 22% | V12: 12% | W12: 2 | X12: 37% | Y12: 19% | Z12: 9 | AA12: 18% | AB12: 13% | AC12: 3
A13: 110 | B13: MEURTHE ET MOSELLE MEUSE | C13: 26 | D13: NANCY | E13: 63.6 | F13: 19% | G13: 7% | H13: 4 | I13: 41% | J13: 17% | K13: 4 | L13: 38% | M13: 20% | N13: 5 | O13: 40% | P13: 17% | Q13: 7 | R13: 28% | S13: 18% | T13: 4 | U13: 44% | V13: 35% | W13: 9 | X13: 27% | Y13: 9% | Z13: 4 | AA13: 20% | AB13: 15% | AC13: 5
A14: 30 | B14: MARNE-ARDENNES | C14: 6 | D14: CHALONS EN CHAMPAGNE | E14: 45.0 | F14: 20% | G14: 8% | H14: 5 | I14: 57% | J14: 33% | K14: 9 | L14: 47% | M14: 29% | N14: 7 | O14: 41% | P14: 19% | Q14: 8 | R14: 31% | S14: 21% | T14: 5 | U14: 26% | V14: 17% | W14: 4 | X14: 19% | Y14: 0% | Z14: 2 | AA14: 26% | AB14: 20% | AC14: 6
A15: 50 | B15: AUBE HAUTE MARNE | C15: 21 | D15: CHAUMONT | E15: 34.2 | F15: 24% | G15: 12% | H15: 6 | I15: 54% | J15: 30% | K15: 8 | L15: 48% | M15: 30% | N15: 8 | O15: 50% | P15: 28% | Q15: 12 | R15: 37% | S15: 26% | T15: 9 | U15: 39% | V15: 30% | W15: 6 | X15: 30% | Y15: 11% | Z15: 6 | AA15: 17% | AB15: 12% | AC15: 2
A16: 160 | B16: MOSELLE | C16: 45 | D16: METZ | E16: 85.7 | F16: 30% | G16: 18% | H16: 7 | I16: 43% | J16: 18% | K16: 5 | L16: 69% | M16: 51% | N16: 16 | O16: 34% | P16: 11% | Q16: 4 | R16: 35% | S16: 25% | T16: 8 | U16: 54% | V16: 45% | W16: 15 | X16: 41% | Y16: 23% | Z16: 12 | AA16: 35% | AB16: 30% | AC16: 10
A17: 110 | B17: MEURTHE ET MOSELLE MEUSE | C17: 31 | D17: VERDUN | E17: 51.9 | F17: 30% | G17: 18% | H17: 8 | I17: 81% | J17: 57% | K17: 13 | L17: 56% | M17: 38% | N17: 10 | O17: 46% | P17: 24% | Q17: 10 | R17: 33% | S17: 23% | T17: 7 | U17: 50% | V17: 40% | W17: 11 | X17: 44% | Y17: 25% | Z17: 14 | AA17: 6% | AB17: 0% | AC17: 1
A18: 262 | B18: BAS-RHIN | C18: 5006 | D18: STRASBOURG | E18: 73.4 | F18: 30% | G18: 19% | H18: 9 | I18: 61% | J18: 37% | K18: 10 | L18: 18% | M18: 0% | N18: 1 | O18: 30% | P18: 7% | Q18: 2 | R18: 42% | S18: 32% | T18: 11 | U18: 36% | V18: 27% | W18: 5 | X18: 21% | Y18: 3% | Z18: 3 | AA18: 104% | AB18: 98% | AC18: 18
A19: 80 | B19: VOSGES | C19: 55 | D19: SAINT DIE | E19: 47.9 | F19: 30% | G19: 19% | H19: 10 | I19: 93% | J19: 69% | K19: 16 | L19: 46% | M19: 28% | N19: 6 | O19: 22% | P19: 0% | Q19: 1 | R19: 45% | S19: 34% | T19: 14 | U19: 42% | V19: 33% | W19: 8 | X19: 42% | Y19: 24% | Z19: 13 | AA19: 20% | AB19: 14% | AC19: 4
A20: 50 | B20: AUBE HAUTE MARNE | C20: 14 | D20: TROYES | E20: 65.3 | F20: 33% | G20: 22% | H20: 11 | I20: 50% | J20: 26% | K20: 7 | L20: 55% | M20: 37% | N20: 9 | O20: 55% | P20: 33% | Q20: 16 | R20: 40% | S20: 30% | T20: 10 | U20: 48% | V20: 39% | W20: 10 | X20: 41% | Y20: 22% | Z20: 11 | AA20: 50% | AB20: 45% | AC20: 12
A21: 80 | B21: VOSGES | C21: 57 | D21: EPINAL | E21: 59.2 | F21: 36% | G21: 24% | H21: 12 | I21: 50% | J21: 25% | K21: 6 | L21: 61% | M21: 43% | N21: 13 | O21: 51% | P21: 28% | Q21: 13 | R21: 50% | S21: 40% | T21: 16 | U21: 53% | V21: 44% | W21: 12 | X21: 49% | Y21: 30% | Z21: 16 | AA21: 42% | AB21: 36% | AC21: 11
A22: 160 | B22: MOSELLE | C22: 44 | D22: MOSELLE NORD | E22: 68.2 | F22: 37% | G22: 25% | H22: 13 | I22: 70% | J22: 46% | K22: 11 | L22: 58% | M22: 40% | N22: 11 | O22: 51% | P22: 29% | Q22: 14 | R22: 31% | S22: 21% | T22: 6 | U22: 42% | V22: 32% | W22: 7 | X22: 34% | Y22: 15% | Z22: 7 | AA22: 76% | AB22: 71% | AC22: 15
A23: 262 | B23: BAS-RHIN | C23: 5060 | D23: HAGUENAU | E23: 74.3 | F23: 39% | G23: 27% | H23: 14 | I23: 77% | J23: 53% | K23: 12 | L23: 70% | M23: 52% | N23: 17 | O23: 55% | P23: 32% | Q23: 15 | R23: 55% | S23: 44% | T23: 18 | U23: 57% | V23: 48% | W23: 16 | X23: 37% | Y23: 19% | Z23: 8 | AA23: 28% | AB23: 22% | AC23: 7
A24: 160 | B24: MOSELLE | C24: 42 | D24: MOSELLE EST | E24: 70.1 | F24: 39% | G24: 28% | H24: 15 | I24: 84% | J24: 60% | K24: 14 | L24: 62% | M24: 44% | N24: 14 | O24: 61% | P24: 38% | Q24: 17 | R24: 42% | S24: 32% | T24: 12 | U24: 54% | V24: 44% | W24: 13 | X24: 46% | Y24: 27% | Z24: 15 | AA24: 35% | AB24: 29% | AC24: 9
A25: 264 | B25: HAUT-RHIN | C25: 5130 | D25: COLMAR | E25: 64.9 | F25: 44% | G25: 33% | H25: 16 | I25: 86% | J25: 62% | K25: 15 | L25: 59% | M25: 41% | N25: 12 | O25: 44% | P25: 21% | Q25: 9 | R25: 54% | S25: 43% | T25: 17 | U25: 54% | V25: 45% | W25: 14 | X25: 51% | Y25: 32% | Z25: 17 | AA25: 61% | AB25: 56% | AC25: 14
A26: 262 | B26: BAS-RHIN | C26: 5101 | D26: SELESTAT | E26: 62.1 | F26: 50% | G26: 38% | H26: 17 | I26: 106% | J26: 81% | K26: 17 | L26: 66% | M26: 48% | N26: 15 | O26: 38% | P26: 16% | Q26: 6 | R26: 50% | S26: 39% | T26: 15 | U26: 65% | V26: 55% | W26: 17 | X26: 37% | Y26: 19% | Z26: 10 | AA26: 84% | AB26: 79% | AC26: 16
A27: 264 | B27: HAUT-RHIN | C27: 5169 | D27: MULHOUSE | E27: 61.1 | F27: 63% | G27: 51% | H27: 18 | I27: 117% | J27: 93% | K27: 18 | L27: 86% | M27: 68% | N27: 18 | O27: 80% | P27: 58% | Q27: 18 | R27: 45% | S27: 34% | T27: 13 | U27: 69% | V27: 60% | W27: 18 | X27: 58% | Y27: 40% | Z27: 18 | AA27: 90% | AB27: 84% | AC27: 17
A28: Total CEGEE Directions Régionales | E28: =SUM(E10:E27) -> 1131

Sheet SE_BANCA
B1: Accueil | F1: BAROMETRE BDD - TERRITOIRES
F2: BANCARISATION
F3: =ACCUEIL!F7 -> 2020-07-19
F7: Ventes nettes FORFAITS | J7: Ventes nettes IZICARTES débit différé | N7: Ventes nettes Cartes HDG débit différé | R7: Ventes nettes Forfaits Pro Cartes Pro | V7: Total Bancarisation
F8: =DATEMAJ!C12 -> au 19/07 | H8: coef | I8: ='RECAP DIRCOM'!AM4 -> 4% | J8: =DATEMAJ!C13 -> au 19/07 | L8: coef | M8: ='RECAP DIRCOM'!AQ4 -> 4% | N8: =DATEMAJ!C14 -> au 19/07 | P8: coef | Q8: ='RECAP DIRCOM'!AU4 -> 4% | R8: =DATEMAJ!C15 -> au 19/07 | T8: coef | U8: ='RECAP DIRCOM'!AY4 -> 3% | W8: coef | X8: ='RECAP DIRCOM'!BB4 -> 15%
B9: Direction | C9: eds | D9: Territoire | E9: ="ETP perf "&DATEMAJ!$C$39 -> ETP perf au 31/05 | F9: Nb / ETP | G9: PNB / ETP | H9: % Ecart au 1er | I9: Rang | J9: Nb / ETP | K9: PNB / ETP | L9: % Ecart au 1er | M9: Rang | N9: Nb / ETP | O9: PNB / ETP | P9: % Ecart au 1er | Q9: Rang | R9: Nb / ETP | S9: PNB / ETP | T9: % Ecart au 1er | U9: Rang | V9: Moyenne ecart au 1er | W9: % Ecart au 1er | X9: Rang CEGEE
A10: 50 | B10: AUBE HAUTE MARNE | C10: 21 | D10: CHAUMONT | E10: =VLOOKUP($C10,'RECAP SECT'!$G$6:$FJ$253,3,FALSE) -> 34.2 | F10: =VLOOKUP($C10,'RECAP SECT'!$G$6:$FJ$253,30,FALSE) -> 6.05 | G10: =VLOOKUP($C10,'RECAP SECT'!$G$6:$FJ$253,31,FALSE) -> 2.84 | H10: =VLOOKUP($C10,'RECAP SECT'!$G$6:$FJ$253,32,FALSE) -> 64% | I10: =VLOOKUP($C10,'RECAP SECT'!$G$6:$FJ$253,33,FALSE) -> 13 | J10: =VLOOKUP($C10,'RECAP SECT'!$G$6:$FJ$253,34,FALSE) -> 6.49 | K10: =VLOOKUP($C10,'RECAP SECT'!$G$6:$FJ$253,35,FALSE) -> 3.99 | L10: =VLOOKUP($C10,'RECAP SECT'!$G$6:$FJ$253,36,FALSE) -> 54% | M10: =VLOOKUP($C10,'RECAP SECT'!$G$6:$FJ$253,37,FALSE) -> 11 | N10: =VLOOKUP($C10,'RECAP SECT'!$G$6:$FJ$253,38,FALSE) -> 8.24 | O10: =VLOOKUP($C10,'RECAP SECT'!$G$6:$FJ$253,39,FALSE) -> 5.60 | P10: =VLOOKUP($C10,'RECAP SECT'!$G$6:$FJ$253,40,FALSE) -> 60% | Q10: =VLOOKUP($C10,'RECAP SECT'!$G$6:$FJ$253,41,FALSE) -> 12 | R10: =VLOOKUP($C10,'RECAP SECT'!$G$6:$FJ$253,42,FALSE) -> 2.75 | S10: =VLOOKUP($C10,'RECAP SECT'!$G$6:$FJ$253,43,FALSE) -> 1.45 | T10: =VLOOKUP($C10,'RECAP SECT'!$G$6:$FJ$253,44,FALSE) -> 0% | U10: =VLOOKUP($C10,'RECAP SECT'!$G$6:$FJ$253,45,FALSE) -> 1 | V10: =VLOOKUP($C10,'RECAP SECT'!$G$6:$FJ$253,46,FALSE) -> 48% | W10: =VLOOKUP($C10,'RECAP SECT'!$G$6:$FJ$253,47,FALSE) -> 30% | X10: =VLOOKUP($C10,'RECAP SECT'!$G$6:$FJ$253,48,FALSE) -> 8
A11: 50 | B11: AUBE HAUTE MARNE | C11: 14 | D11: TROYES | E11: =VLOOKUP($C11,'RECAP SECT'!$G$6:$FJ$253,3,FALSE) -> 65.3 | F11: =VLOOKUP($C11,'RECAP SECT'!$G$6:$FJ$253,30,FALSE) -> 4.35 | G11: =VLOOKUP($C11,'RECAP SECT'!$G$6:$FJ$253,31,FALSE) -> 2.39 | H11: =VLOOKUP($C11,'RECAP SECT'!$G$6:$FJ$253,32,FALSE) -> 69% | I11: =VLOOKUP($C11,'RECAP SECT'!$G$6:$FJ$253,33,FALSE) -> 15 | J11: =VLOOKUP($C11,'RECAP SECT'!$G$6:$FJ$253,34,FALSE) -> 5.29 | K11: =VLOOKUP($C11,'RECAP SECT'!$G$6:$FJ$253,35,FALSE) -> 3.21 | L11: =VLOOKUP($C11,'RECAP SECT'!$G$6:$FJ$253,36,FALSE) -> 63% | M11: =VLOOKUP($C11,'RECAP SECT'!$G$6:$FJ$253,37,FALSE) -> 16 | N11: =VLOOKUP($C11,'RECAP SECT'!$G$6:$FJ$253,38,FALSE) -> 7.31 | O11: =VLOOKUP($C11,'RECAP SECT'!$G$6:$FJ$253,39,FALSE) -> 4.93 | P11: =VLOOKUP($C11,'RECAP SECT'!$G$6:$FJ$253,40,FALSE) -> 65% | Q11: =VLOOKUP($C11,'RECAP SECT'!$G$6:$FJ$253,41,FALSE) -> 17 | R11: =VLOOKUP($C11,'RECAP SECT'!$G$6:$FJ$253,42,FALSE) -> 2.18 | S11: =VLOOKUP($C11,'RECAP SECT'!$G$6:$FJ$253,43,FALSE) -> 1.30 | T11: =VLOOKUP($C11,'RECAP SECT'!$G$6:$FJ$253,44,FALSE) -> 10% | U11: =VLOOKUP($C11,'RECAP SECT'!$G$6:$FJ$253,45,FALSE) -> 3 | V11: =VLOOKUP($C11,'RECAP SECT'!$G$6:$FJ$253,46,FALSE) -> 55% | W11: =VLOOKUP($C11,'RECAP SECT'!$G$6:$FJ$253,47,FALSE) -> 37% | X11: =VLOOKUP($C11,'RECAP SECT'!$G$6:$FJ$253,48,FALSE) -> 9
A12: 262 | B12: BAS-RHIN | C12: 5060 | D12: HAGUENAU | E12: =VLOOKUP($C12,'RECAP SECT'!$G$6:$FJ$253,3,FALSE) -> 74.3 | F12: =VLOOKUP($C12,'RECAP SECT'!$G$6:$FJ$253,30,FALSE) -> 6.46 | G12: =VLOOKUP($C12,'RECAP SECT'!$G$6:$FJ$253,31,FALSE) -> 2.16 | H12: =VLOOKUP($C12,'RECAP SECT'!$G$6:$FJ$253,32,FALSE) -> 72% | I12: =VLOOKUP($C12,'RECAP SECT'!$G$6:$FJ$253,33,FALSE) -> 16 | J12: =VLOOKUP($C12,'RECAP SECT'!$G$6:$FJ$253,34,FALSE) -> 4.65 | K12: =VLOOKUP($C12,'RECAP SECT'!$G$6:$FJ$253,35,FALSE) -> 3.13 | L12: =VLOOKUP($C12,'RECAP SECT'!$G$6:$FJ$253,36,FALSE) -> 64% | M12: =VLOOKUP($C12,'RECAP SECT'!$G$6:$FJ$253,37,FALSE) -> 17 | N12: =VLOOKUP($C12,'RECAP SECT'!$G$6:$FJ$253,38,FALSE) -> 8.20 | O12: =VLOOKUP($C12,'RECAP SECT'!$G$6:$FJ$253,39,FALSE) -> 5.49 | P12: =VLOOKUP($C12,'RECAP SECT'!$G$6:$FJ$253,40,FALSE) -> 61% | Q12: =VLOOKUP($C12,'RECAP SECT'!$G$6:$FJ$253,41,FALSE) -> 14 | R12: =VLOOKUP($C12,'RECAP SECT'!$G$6:$FJ$253,42,FALSE) -> 0.94 | S12: =VLOOKUP($C12,'RECAP SECT'!$G$6:$FJ$253,43,FALSE) -> 0.23 | T12: =VLOOKUP($C12,'RECAP SECT'!$G$6:$FJ$253,44,FALSE) -> 84% | U12: =VLOOKUP($C12,'RECAP SECT'!$G$6:$FJ$253,45,FALSE) -> 12 | V12: =VLOOKUP($C12,'RECAP SECT'!$G$6:$FJ$253,46,FALSE) -> 70% | W12: =VLOOKUP($C12,'RECAP SECT'!$G$6:$FJ$253,47,FALSE) -> 52% | X12: =VLOOKUP($C12,'RECAP SECT'!$G$6:$FJ$253,48,FALSE) -> 17
A13: 262 | B13: BAS-RHIN | C13: 5101 | D13: SELESTAT | E13: =VLOOKUP($C13,'RECAP SECT'!$G$6:$FJ$253,3,FALSE) -> 62.1 | F13: =VLOOKUP($C13,'RECAP SECT'!$G$6:$FJ$253,30,FALSE) -> 6.54 | G13: =VLOOKUP($C13,'RECAP SECT'!$G$6:$FJ$253,31,FALSE) -> 3.02 | H13: =VLOOKUP($C13,'RECAP SECT'!$G$6:$FJ$253,32,FALSE) -> 61% | I13: =VLOOKUP($C13,'RECAP SECT'!$G$6:$FJ$253,33,FALSE) -> 12 | J13: =VLOOKUP($C13,'RECAP SECT'!$G$6:$FJ$253,34,FALSE) -> 5.28 | K13: =VLOOKUP($C13,'RECAP SECT'!$G$6:$FJ$253,35,FALSE) -> 3.81 | L13: =VLOOKUP($C13,'RECAP SECT'!$G$6:$FJ$253,36,FALSE) -> 56% | M13: =VLOOKUP($C13,'RECAP SECT'!$G$6:$FJ$253,37,FALSE) -> 12 | N13: =VLOOKUP($C13,'RECAP SECT'!$G$6:$FJ$253,38,FALSE) -> 10.00 | O13: =VLOOKUP($C13,'RECAP SECT'!$G$6:$FJ$253,39,FALSE) -> 6.79 | P13: =VLOOKUP($C13,'RECAP SECT'!$G$6:$FJ$253,40,FALSE) -> 52% | Q13: =VLOOKUP($C13,'RECAP SECT'!$G$6:$FJ$253,41,FALSE) -> 8 | R13: =VLOOKUP($C13,'RECAP SECT'!$G$6:$FJ$253,42,FALSE) -> 0.21 | S13: =VLOOKUP($C13,'RECAP SECT'!$G$6:$FJ$253,43,FALSE) -> -0.07 | T13: =VLOOKUP($C13,'RECAP SECT'!$G$6:$FJ$253,44,FALSE) -> 105% | U13: =VLOOKUP($C13,'RECAP SECT'!$G$6:$FJ$253,45,FALSE) -> 16 | V13: =VLOOKUP($C13,'RECAP SECT'!$G$6:$FJ$253,46,FALSE) -> 66% | W13: =VLOOKUP($C13,'RECAP SECT'!$G$6:$FJ$253,47,FALSE) -> 48% | X13: =VLOOKUP($C13,'RECAP SECT'!$G$6:$FJ$253,48,FALSE) -> 15
A14: 262 | B14: BAS-RHIN | C14: 5006 | D14: STRASBOURG | E14: =VLOOKUP($C14,'RECAP SECT'!$G$6:$FJ$253,3,FALSE) -> 73.4 | F14: =VLOOKUP($C14,'RECAP SECT'!$G$6:$FJ$253,30,FALSE) -> 9.56 | G14: =VLOOKUP($C14,'RECAP SECT'!$G$6:$FJ$253,31,FALSE) -> 3.45 | H14: =VLOOKUP($C14,'RECAP SECT'!$G$6:$FJ$253,32,FALSE) -> 56% | I14: =VLOOKUP($C14,'RECAP SECT'!$G$6:$FJ$253,33,FALSE) -> 10 | J14: =VLOOKUP($C14,'RECAP SECT'!$G$6:$FJ$253,34,FALSE) -> 13.16 | K14: =VLOOKUP($C14,'RECAP SECT'!$G$6:$FJ$253,35,FALSE) -> 8.69 | L14: =VLOOKUP($C14,'RECAP SECT'!$G$6:$FJ$253,36,FALSE) -> 0% | M14: =VLOOKUP($C14,'RECAP SECT'!$G$6:$FJ$253,37,FALSE) -> 1 | N14: =VLOOKUP($C14,'RECAP SECT'!$G$6:$FJ$253,38,FALSE) -> 21.28 | O14: =VLOOKUP($C14,'RECAP SECT'!$G$6:$FJ$253,39,FALSE) -> 14.15 | P14: =VLOOKUP($C14,'RECAP SECT'!$G$6:$FJ$253,40,FALSE) -> 0% | Q14: =VLOOKUP($C14,'RECAP SECT'!$G$6:$FJ$253,41,FALSE) -> 1 | R14: =VLOOKUP($C14,'RECAP SECT'!$G$6:$FJ$253,42,FALSE) -> 1.81 | S14: =VLOOKUP($C14,'RECAP SECT'!$G$6:$FJ$253,43,FALSE) -> 1.23 | T14: =VLOOKUP($C14,'RECAP SECT'!$G$6:$FJ$253,44,FALSE) -> 15% | U14: =VLOOKUP($C14,'RECAP SECT'!$G$6:$FJ$253,45,FALSE) -> 4 | V14: =VLOOKUP($C14,'RECAP SECT'!$G$6:$FJ$253,46,FALSE) -> 18% | W14: =VLOOKUP($C14,'RECAP SECT'!$G$6:$FJ$253,47,FALSE) -> 0% | X14: =VLOOKUP($C14,'RECAP SECT'!$G$6:$FJ$253,48,FALSE) -> 1
A15: 264 | B15: HAUT-RHIN | C15: 5130 | D15: COLMAR | E15: =VLOOKUP($C15,'RECAP SECT'!$G$6:$FJ$253,3,FALSE) -> 64.9 | F15: =VLOOKUP($C15,'RECAP SECT'!$G$6:$FJ$253,30,FALSE) -> 5.10 | G15: =VLOOKUP($C15,'RECAP SECT'!$G$6:$FJ$253,31,FALSE) -> 3.56 | H15: =VLOOKUP($C15,'RECAP SECT'!$G$6:$FJ$253,32,FALSE) -> 54% | I15: =VLOOKUP($C15,'RECAP SECT'!$G$6:$FJ$253,33,FALSE) -> 9 | J15: =VLOOKUP($C15,'RECAP SECT'!$G$6:$FJ$253,34,FALSE) -> 5.62 | K15: =VLOOKUP($C15,'RECAP SECT'!$G$6:$FJ$253,35,FALSE) -> 4.13 | L15: =VLOOKUP($C15,'RECAP SECT'!$G$6:$FJ$253,36,FALSE) -> 52% | M15: =VLOOKUP($C15,'RECAP SECT'!$G$6:$FJ$253,37,FALSE) -> 10 | N15: =VLOOKUP($C15,'RECAP SECT'!$G$6:$FJ$253,38,FALSE) -> 9.91 | O15: =VLOOKUP($C15,'RECAP SECT'!$G$6:$FJ$253,39,FALSE) -> 6.92 | P15: =VLOOKUP($C15,'RECAP SECT'!$G$6:$FJ$253,40,FALSE) -> 51% | Q15: =VLOOKUP($C15,'RECAP SECT'!$G$6:$FJ$253,41,FALSE) -> 7 | R15: =VLOOKUP($C15,'RECAP SECT'!$G$6:$FJ$253,42,FALSE) -> 0.88 | S15: =VLOOKUP($C15,'RECAP SECT'!$G$6:$FJ$253,43,FALSE) -> 0.20 | T15: =VLOOKUP($C15,'RECAP SECT'!$G$6:$FJ$253,44,FALSE) -> 86% | U15: =VLOOKUP($C15,'RECAP SECT'!$G$6:$FJ$253,45,FALSE) -> 13 | V15: =VLOOKUP($C15,'RECAP SECT'!$G$6:$FJ$253,46,FALSE) -> 59% | W15: =VLOOKUP($C15,'RECAP SECT'!$G$6:$FJ$253,47,FALSE) -> 41% | X15: =VLOOKUP($C15,'RECAP SECT'!$G$6:$FJ$253,48,FALSE) -> 12
A16: 264 | B16: HAUT-RHIN | C16: 5169 | D16: MULHOUSE | E16: =VLOOKUP($C16,'RECAP SECT'!$G$6:$FJ$253,3,FALSE) -> 61.1 | F16: =VLOOKUP($C16,'RECAP SECT'!$G$6:$FJ$253,30,FALSE) -> 0.02 | G16: =VLOOKUP($C16,'RECAP SECT'!$G$6:$FJ$253,31,FALSE) -> -1.50 | H16: =VLOOKUP($C16,'RECAP SECT'!$G$6:$FJ$253,32,FALSE) -> 119% | I16: =VLOOKUP($C16,'RECAP SECT'!$G$6:$FJ$253,33,FALSE) -> 18 | J16: =VLOOKUP($C16,'RECAP SECT'!$G$6:$FJ$253,34,FALSE) -> 3.62 | K16: =VLOOKUP($C16,'RECAP SECT'!$G$6:$FJ$253,35,FALSE) -> 2.49 | L16: =VLOOKUP($C16,'RECAP SECT'!$G$6:$FJ$253,36,FALSE) -> 71% | M16: =VLOOKUP($C16,'RECAP SECT'!$G$6:$FJ$253,37,FALSE) -> 18 | N16: =VLOOKUP($C16,'RECAP SECT'!$G$6:$FJ$253,38,FALSE) -> 6.62 | O16: =VLOOKUP($C16,'RECAP SECT'!$G$6:$FJ$253,39,FALSE) -> 4.68 | P16: =VLOOKUP($C16,'RECAP SECT'!$G$6:$FJ$253,40,FALSE) -> 67% | Q16: =VLOOKUP($C16,'RECAP SECT'!$G$6:$FJ$253,41,FALSE) -> 18 | R16: =VLOOKUP($C16,'RECAP SECT'!$G$6:$FJ$253,42,FALSE) -> 0.85 | S16: =VLOOKUP($C16,'RECAP SECT'!$G$6:$FJ$253,43,FALSE) -> 0.20 | T16: =VLOOKUP($C16,'RECAP SECT'!$G$6:$FJ$253,44,FALSE) -> 86% | U16: =VLOOKUP($C16,'RECAP SECT'!$G$6:$FJ$253,45,FALSE) -> 14 | V16: =VLOOKUP($C16,'RECAP SECT'!$G$6:$FJ$253,46,FALSE) -> 86% | W16: =VLOOKUP($C16,'RECAP SECT'!$G$6:$FJ$253,47,FALSE) -> 68% | X16: =VLOOKUP($C16,'RECAP SECT'!$G$6:$FJ$253,48,FALSE) -> 18
A17: 30 | B17: MARNE-ARDENNES | C17: 6 | D17: CHALONS EN CHAMPAGNE | E17: =VLOOKUP($C17,'RECAP SECT'!$G$6:$FJ$253,3,FALSE) -> 45.0 | F17: =VLOOKUP($C17,'RECAP SECT'!$G$6:$FJ$253,30,FALSE) -> 11.93 | G17: =VLOOKUP($C17,'RECAP SECT'!$G$6:$FJ$253,31,FALSE) -> 5.68 | H17: =VLOOKUP($C17,'RECAP SECT'!$G$6:$FJ$253,32,FALSE) -> 27% | I17: =VLOOKUP($C17,'RECAP SECT'!$G$6:$FJ$253,33,FALSE) -> 5 | J17: =VLOOKUP($C17,'RECAP SECT'!$G$6:$FJ$253,34,FALSE) -> 6.20 | K17: =VLOOKUP($C17,'RECAP SECT'!$G$6:$FJ$253,35,FALSE) -> 4.23 | L17: =VLOOKUP($C17,'RECAP SECT'!$G$6:$FJ$253,36,FALSE) -> 51% | M17: =VLOOKUP($C17,'RECAP SECT'!$G$6:$FJ$253,37,FALSE) -> 9 | N17: =VLOOKUP($C17,'RECAP SECT'!$G$6:$FJ$253,38,FALSE) -> 10.02 | O17: =VLOOKUP($C17,'RECAP SECT'!$G$6:$FJ$253,39,FALSE) -> 6.66 | P17: =VLOOKUP($C17,'RECAP SECT'!$G$6:$FJ$253,40,FALSE) -> 53% | Q17: =VLOOKUP($C17,'RECAP SECT'!$G$6:$FJ$253,41,FALSE) -> 10 | R17: =VLOOKUP($C17,'RECAP SECT'!$G$6:$FJ$253,42,FALSE) -> 1.16 | S17: =VLOOKUP($C17,'RECAP SECT'!$G$6:$FJ$253,43,FALSE) -> 0.55 | T17: =VLOOKUP($C17,'RECAP SECT'!$G$6:$FJ$253,44,FALSE) -> 62% | U17: =VLOOKUP($C17,'RECAP SECT'!$G$6:$FJ$253,45,FALSE) -> 11 | V17: =VLOOKUP($C17,'RECAP SECT'!$G$6:$FJ$253,46,FALSE) -> 47% | W17: =VLOOKUP($C17,'RECAP SECT'!$G$6:$FJ$253,47,FALSE) -> 29% | X17: =VLOOKUP($C17,'RECAP SECT'!$G$6:$FJ$253,48,FALSE) -> 7
A18: 30 | B18: MARNE-ARDENNES | C18: 2 | D18: CHARLEVILLE MEZIERES | E18: =VLOOKUP($C18,'RECAP SECT'!$G$6:$FJ$253,3,FALSE) -> 54.5 | F18: =VLOOKUP($C18,'RECAP SECT'!$G$6:$FJ$253,30,FALSE) -> 9.99 | G18: =VLOOKUP($C18,'RECAP SECT'!$G$6:$FJ$253,31,FALSE) -> 6.46 | H18: =VLOOKUP($C18,'RECAP SECT'!$G$6:$FJ$253,32,FALSE) -> 17% | I18: =VLOOKUP($C18,'RECAP SECT'!$G$6:$FJ$253,33,FALSE) -> 2 | J18: =VLOOKUP($C18,'RECAP SECT'!$G$6:$FJ$253,34,FALSE) -> 9.65 | K18: =VLOOKUP($C18,'RECAP SECT'!$G$6:$FJ$253,35,FALSE) -> 6.48 | L18: =VLOOKUP($C18,'RECAP SECT'!$G$6:$FJ$253,36,FALSE) -> 25% | M18: =VLOOKUP($C18,'RECAP SECT'!$G$6:$FJ$253,37,FALSE) -> 3 | N18: =VLOOKUP($C18,'RECAP SECT'!$G$6:$FJ$253,38,FALSE) -> 12.57 | O18: =VLOOKUP($C18,'RECAP SECT'!$G$6:$FJ$253,39,FALSE) -> 8.67 | P18: =VLOOKUP($C18,'RECAP SECT'!$G$6:$FJ$253,40,FALSE) -> 39% | Q18: =VLOOKUP($C18,'RECAP SECT'!$G$6:$FJ$253,41,FALSE) -> 4 | R18: =VLOOKUP($C18,'RECAP SECT'!$G$6:$FJ$253,42,FALSE) -> 2.00 | S18: =VLOOKUP($C18,'RECAP SECT'!$G$6:$FJ$253,43,FALSE) -> 1.16 | T18: =VLOOKUP($C18,'RECAP SECT'!$G$6:$FJ$253,44,FALSE) -> 20% | U18: =VLOOKUP($C18,'RECAP SECT'!$G$6:$FJ$253,45,FALSE) -> 5 | V18: =VLOOKUP($C18,'RECAP SECT'!$G$6:$FJ$253,46,FALSE) -> 26% | W18: =VLOOKUP($C18,'RECAP SECT'!$G$6:$FJ$253,47,FALSE) -> 8% | X18: =VLOOKUP($C18,'RECAP SECT'!$G$6:$FJ$253,48,FALSE) -> 3
A19: 30 | B19: MARNE-ARDENNES | C19: 11 | D19: REIMS | E19: =VLOOKUP($C19,'RECAP SECT'!$G$6:$FJ$253,3,FALSE) -> 78.1 | F19: =VLOOKUP($C19,'RECAP SECT'!$G$6:$FJ$253,30,FALSE) -> 9.50 | G19: =VLOOKUP($C19,'RECAP SECT'!$G$6:$FJ$253,31,FALSE) -> 5.69 | H19: =VLOOKUP($C19,'RECAP SECT'!$G$6:$FJ$253,32,FALSE) -> 27% | I19: =VLOOKUP($C19,'RECAP SECT'!$G$6:$FJ$253,33,FALSE) -> 4 | J19: =VLOOKUP($C19,'RECAP SECT'!$G$6:$FJ$253,34,FALSE) -> 7.72 | K19: =VLOOKUP($C19,'RECAP SECT'!$G$6:$FJ$253,35,FALSE) -> 5.12 | L19: =VLOOKUP($C19,'RECAP SECT'!$G$6:$FJ$253,36,FALSE) -> 41% | M19: =VLOOKUP($C19,'RECAP SECT'!$G$6:$FJ$253,37,FALSE) -> 5 | N19: =VLOOKUP($C19,'RECAP SECT'!$G$6:$FJ$253,38,FALSE) -> 9.79 | O19: =VLOOKUP($C19,'RECAP SECT'!$G$6:$FJ$253,39,FALSE) -> 6.74 | P19: =VLOOKUP($C19,'RECAP SECT'!$G$6:$FJ$253,40,FALSE) -> 52% | Q19: =VLOOKUP($C19,'RECAP SECT'!$G$6:$FJ$253,41,FALSE) -> 9 | R19: =VLOOKUP($C19,'RECAP SECT'!$G$6:$FJ$253,42,FALSE) -> 1.93 | S19: =VLOOKUP($C19,'RECAP SECT'!$G$6:$FJ$253,43,FALSE) -> 1.42 | T19: =VLOOKUP($C19,'RECAP SECT'!$G$6:$FJ$253,44,FALSE) -> 2% | U19: =VLOOKUP($C19,'RECAP SECT'!$G$6:$FJ$253,45,FALSE) -> 2 | V19: =VLOOKUP($C19,'RECAP SECT'!$G$6:$FJ$253,46,FALSE) -> 33% | W19: =VLOOKUP($C19,'RECAP SECT'!$G$6:$FJ$253,47,FALSE) -> 15% | X19: =VLOOKUP($C19,'RECAP SECT'!$G$6:$FJ$253,48,FALSE) -> 4
A20: 110 | B20: MEURTHE ET MOSELLE MEUSE | C20: 26 | D20: NANCY | E20: =VLOOKUP($C20,'RECAP SECT'!$G$6:$FJ$253,3,FALSE) -> 63.6 | F20: =VLOOKUP($C20,'RECAP SECT'!$G$6:$FJ$253,30,FALSE) -> 9.00 | G20: =VLOOKUP($C20,'RECAP SECT'!$G$6:$FJ$253,31,FALSE) -> 4.63 | H20: =VLOOKUP($C20,'RECAP SECT'!$G$6:$FJ$253,32,FALSE) -> 41% | I20: =VLOOKUP($C20,'RECAP SECT'!$G$6:$FJ$253,33,FALSE) -> 7 | J20: =VLOOKUP($C20,'RECAP SECT'!$G$6:$FJ$253,34,FALSE) -> 8.23 | K20: =VLOOKUP($C20,'RECAP SECT'!$G$6:$FJ$253,35,FALSE) -> 5.44 | L20: =VLOOKUP($C20,'RECAP SECT'!$G$6:$FJ$253,36,FALSE) -> 37% | M20: =VLOOKUP($C20,'RECAP SECT'!$G$6:$FJ$253,37,FALSE) -> 4 | N20: =VLOOKUP($C20,'RECAP SECT'!$G$6:$FJ$253,38,FALSE) -> 11.03 | O20: =VLOOKUP($C20,'RECAP SECT'!$G$6:$FJ$253,39,FALSE) -> 7.49 | P20: =VLOOKUP($C20,'RECAP SECT'!$G$6:$FJ$253,40,FALSE) -> 47% | Q20: =VLOOKUP($C20,'RECAP SECT'!$G$6:$FJ$253,41,FALSE) -> 5 | R20: =VLOOKUP($C20,'RECAP SECT'!$G$6:$FJ$253,42,FALSE) -> 2.31 | S20: =VLOOKUP($C20,'RECAP SECT'!$G$6:$FJ$253,43,FALSE) -> 1.12 | T20: =VLOOKUP($C20,'RECAP SECT'!$G$6:$FJ$253,44,FALSE) -> 23% | U20: =VLOOKUP($C20,'RECAP SECT'!$G$6:$FJ$253,45,FALSE) -> 6 | V20: =VLOOKUP($C20,'RECAP SECT'!$G$6:$FJ$253,46,FALSE) -> 38% | W20: =VLOOKUP($C20,'RECAP SECT'!$G$6:$FJ$253,47,FALSE) -> 20% | X20: =VLOOKUP($C20,'RECAP SECT'!$G$6:$FJ$253,48,FALSE) -> 5
A21: 110 | B21: MEURTHE ET MOSELLE MEUSE | C21: 27 | D21: PONT A MOUSSON | E21: =VLOOKUP($C21,'RECAP SECT'!$G$6:$FJ$253,3,FALSE) -> 71.9 | F21: =VLOOKUP($C21,'RECAP SECT'!$G$6:$FJ$253,30,FALSE) -> 14.38 | G21: =VLOOKUP($C21,'RECAP SECT'!$G$6:$FJ$253,31,FALSE) -> 7.79 | H21: =VLOOKUP($C21,'RECAP SECT'!$G$6:$FJ$253,32,FALSE) -> 0% | I21: =VLOOKUP($C21,'RECAP SECT'!$G$6:$FJ$253,33,FALSE) -> 1 | J21: =VLOOKUP($C21,'RECAP SECT'!$G$6:$FJ$253,34,FALSE) -> 10.91 | K21: =VLOOKUP($C21,'RECAP SECT'!$G$6:$FJ$253,35,FALSE) -> 7.07 | L21: =VLOOKUP($C21,'RECAP SECT'!$G$6:$FJ$253,36,FALSE) -> 19% | M21: =VLOOKUP($C21,'RECAP SECT'!$G$6:$FJ$253,37,FALSE) -> 2 | N21: =VLOOKUP($C21,'RECAP SECT'!$G$6:$FJ$253,38,FALSE) -> 14.32 | O21: =VLOOKUP($C21,'RECAP SECT'!$G$6:$FJ$253,39,FALSE) -> 9.60 | P21: =VLOOKUP($C21,'RECAP SECT'!$G$6:$FJ$253,40,FALSE) -> 32% | Q21: =VLOOKUP($C21,'RECAP SECT'!$G$6:$FJ$253,41,FALSE) -> 2 | R21: =VLOOKUP($C21,'RECAP SECT'!$G$6:$FJ$253,42,FALSE) -> 1.06 | S21: =VLOOKUP($C21,'RECAP SECT'!$G$6:$FJ$253,43,FALSE) -> 0.80 | T21: =VLOOKUP($C21,'RECAP SECT'!$G$6:$FJ$253,44,FALSE) -> 45% | U21: =VLOOKUP($C21,'RECAP SECT'!$G$6:$FJ$253,45,FALSE) -> 8 | V21: =VLOOKUP($C21,'RECAP SECT'!$G$6:$FJ$253,46,FALSE) -> 23% | W21: =VLOOKUP($C21,'RECAP SECT'!$G$6:$FJ$253,47,FALSE) -> 5% | X21: =VLOOKUP($C21,'RECAP SECT'!$G$6:$FJ$253,48,FALSE) -> 2
A22: 110 | B22: MEURTHE ET MOSELLE MEUSE | C22: 31 | D22: VERDUN | E22: =VLOOKUP($C22,'RECAP SECT'!$G$6:$FJ$253,3,FALSE) -> 51.9 | F22: =VLOOKUP($C22,'RECAP SECT'!$G$6:$FJ$253,30,FALSE) -> 4.30 | G22: =VLOOKUP($C22,'RECAP SECT'!$G$6:$FJ$253,31,FALSE) -> 2.11 | H22: =VLOOKUP($C22,'RECAP SECT'!$G$6:$FJ$253,32,FALSE) -> 73% | I22: =VLOOKUP($C22,'RECAP SECT'!$G$6:$FJ$253,33,FALSE) -> 17 | J22: =VLOOKUP($C22,'RECAP SECT'!$G$6:$FJ$253,34,FALSE) -> 6.98 | K22: =VLOOKUP($C22,'RECAP SECT'!$G$6:$FJ$253,35,FALSE) -> 4.47 | L22: =VLOOKUP($C22,'RECAP SECT'!$G$6:$FJ$253,36,FALSE) -> 49% | M22: =VLOOKUP($C22,'RECAP SECT'!$G$6:$FJ$253,37,FALSE) -> 7 | N22: =VLOOKUP($C22,'RECAP SECT'!$G$6:$FJ$253,38,FALSE) -> 10.33 | O22: =VLOOKUP($C22,'RECAP SECT'!$G$6:$FJ$253,39,FALSE) -> 6.92 | P22: =VLOOKUP($C22,'RECAP SECT'!$G$6:$FJ$253,40,FALSE) -> 51% | Q22: =VLOOKUP($C22,'RECAP SECT'!$G$6:$FJ$253,41,FALSE) -> 6 | R22: =VLOOKUP($C22,'RECAP SECT'!$G$6:$FJ$253,42,FALSE) -> 1.00 | S22: =VLOOKUP($C22,'RECAP SECT'!$G$6:$FJ$253,43,FALSE) -> 0.72 | T22: =VLOOKUP($C22,'RECAP SECT'!$G$6:$FJ$253,44,FALSE) -> 50% | U22: =VLOOKUP($C22,'RECAP SECT'!$G$6:$FJ$253,45,FALSE) -> 9 | V22: =VLOOKUP($C22,'RECAP SECT'!$G$6:$FJ$253,46,FALSE) -> 56% | W22: =VLOOKUP($C22,'RECAP SECT'!$G$6:$FJ$253,47,FALSE) -> 38% | X22: =VLOOKUP($C22,'RECAP SECT'!$G$6:$FJ$253,48,FALSE) -> 10
A23: 160 | B23: MOSELLE | C23: 45 | D23: METZ | E23: =VLOOKUP($C23,'RECAP SECT'!$G$6:$FJ$253,3,FALSE) -> 85.7 | F23: =VLOOKUP($C23,'RECAP SECT'!$G$6:$FJ$253,30,FALSE) -> 7.05 | G23: =VLOOKUP($C23,'RECAP SECT'!$G$6:$FJ$253,31,FALSE) -> 3.90 | H23: =VLOOKUP($C23,'RECAP SECT'!$G$6:$FJ$253,32,FALSE) -> 50% | I23: =VLOOKUP($C23,'RECAP SECT'!$G$6:$FJ$253,33,FALSE) -> 8 | J23: =VLOOKUP($C23,'RECAP SECT'!$G$6:$FJ$253,34,FALSE) -> 4.85 | K23: =VLOOKUP($C23,'RECAP SECT'!$G$6:$FJ$253,35,FALSE) -> 3.33 | L23: =VLOOKUP($C23,'RECAP SECT'!$G$6:$FJ$253,36,FALSE) -> 62% | M23: =VLOOKUP($C23,'RECAP SECT'!$G$6:$FJ$253,37,FALSE) -> 15 | N23: =VLOOKUP($C23,'RECAP SECT'!$G$6:$FJ$253,38,FALSE) -> 7.36 | O23: =VLOOKUP($C23,'RECAP SECT'!$G$6:$FJ$253,39,FALSE) -> 5.25 | P23: =VLOOKUP($C23,'RECAP SECT'!$G$6:$FJ$253,40,FALSE) -> 63% | Q23: =VLOOKUP($C23,'RECAP SECT'!$G$6:$FJ$253,41,FALSE) -> 15 | R23: =VLOOKUP($C23,'RECAP SECT'!$G$6:$FJ$253,42,FALSE) -> 0.42 | S23: =VLOOKUP($C23,'RECAP SECT'!$G$6:$FJ$253,43,FALSE) -> -0.19 | T23: =VLOOKUP($C23,'RECAP SECT'!$G$6:$FJ$253,44,FALSE) -> 113% | U23: =VLOOKUP($C23,'RECAP SECT'!$G$6:$FJ$253,45,FALSE) -> 18 | V23: =VLOOKUP($C23,'RECAP SECT'!$G$6:$FJ$253,46,FALSE) -> 69% | W23: =VLOOKUP($C23,'RECAP SECT'!$G$6:$FJ$253,47,FALSE) -> 51% | X23: =VLOOKUP($C23,'RECAP SECT'!$G$6:$FJ$253,48,FALSE) -> 16
A24: 160 | B24: MOSELLE | C24: 42 | D24: MOSELLE EST | E24: =VLOOKUP($C24,'RECAP SECT'!$G$6:$FJ$253,3,FALSE) -> 70.1 | F24: =VLOOKUP($C24,'RECAP SECT'!$G$6:$FJ$253,30,FALSE) -> 8.25 | G24: =VLOOKUP($C24,'RECAP SECT'!$G$6:$FJ$253,31,FALSE) -> 4.80 | H24: =VLOOKUP($C24,'RECAP SECT'!$G$6:$FJ$253,32,FALSE) -> 38% | I24: =VLOOKUP($C24,'RECAP SECT'!$G$6:$FJ$253,33,FALSE) -> 6 | J24: =VLOOKUP($C24,'RECAP SECT'!$G$6:$FJ$253,34,FALSE) -> 5.05 | K24: =VLOOKUP($C24,'RECAP SECT'!$G$6:$FJ$253,35,FALSE) -> 3.51 | L24: =VLOOKUP($C24,'RECAP SECT'!$G$6:$FJ$253,36,FALSE) -> 60% | M24: =VLOOKUP($C24,'RECAP SECT'!$G$6:$FJ$253,37,FALSE) -> 13 | N24: =VLOOKUP($C24,'RECAP SECT'!$G$6:$FJ$253,38,FALSE) -> 7.05 | O24: =VLOOKUP($C24,'RECAP SECT'!$G$6:$FJ$253,39,FALSE) -> 5.00 | P24: =VLOOKUP($C24,'RECAP SECT'!$G$6:$FJ$253,40,FALSE) -> 65% | Q24: =VLOOKUP($C24,'RECAP SECT'!$G$6:$FJ$253,41,FALSE) -> 16 | R24: =VLOOKUP($C24,'RECAP SECT'!$G$6:$FJ$253,42,FALSE) -> 0.44 | S24: =VLOOKUP($C24,'RECAP SECT'!$G$6:$FJ$253,43,FALSE) -> 0.12 | T24: =VLOOKUP($C24,'RECAP SECT'!$G$6:$FJ$253,44,FALSE) -> 92% | U24: =VLOOKUP($C24,'RECAP SECT'!$G$6:$FJ$253,45,FALSE) -> 15 | V24: =VLOOKUP($C24,'RECAP SECT'!$G$6:$FJ$253,46,FALSE) -> 62% | W24: =VLOOKUP($C24,'RECAP SECT'!$G$6:$FJ$253,47,FALSE) -> 44% | X24: =VLOOKUP($C24,'RECAP SECT'!$G$6:$FJ$253,48,FALSE) -> 14
A25: 160 | B25: MOSELLE | C25: 44 | D25: MOSELLE NORD | E25: =VLOOKUP($C25,'RECAP SECT'!$G$6:$FJ$253,3,FALSE) -> 68.2 | F25: =VLOOKUP($C25,'RECAP SECT'!$G$6:$FJ$253,30,FALSE) -> 8.36 | G25: =VLOOKUP($C25,'RECAP SECT'!$G$6:$FJ$253,31,FALSE) -> 5.71 | H25: =VLOOKUP($C25,'RECAP SECT'!$G$6:$FJ$253,32,FALSE) -> 27% | I25: =VLOOKUP($C25,'RECAP SECT'!$G$6:$FJ$253,33,FALSE) -> 3 | J25: =VLOOKUP($C25,'RECAP SECT'!$G$6:$FJ$253,34,FALSE) -> 6.33 | K25: =VLOOKUP($C25,'RECAP SECT'!$G$6:$FJ$253,35,FALSE) -> 4.24 | L25: =VLOOKUP($C25,'RECAP SECT'!$G$6:$FJ$253,36,FALSE) -> 51% | M25: =VLOOKUP($C25,'RECAP SECT'!$G$6:$FJ$253,37,FALSE) -> 8 | N25: =VLOOKUP($C25,'RECAP SECT'!$G$6:$FJ$253,38,FALSE) -> 8.84 | O25: =VLOOKUP($C25,'RECAP SECT'!$G$6:$FJ$253,39,FALSE) -> 6.22 | P25: =VLOOKUP($C25,'RECAP SECT'!$G$6:$FJ$253,40,FALSE) -> 56% | Q25: =VLOOKUP($C25,'RECAP SECT'!$G$6:$FJ$253,41,FALSE) -> 11 | R25: =VLOOKUP($C25,'RECAP SECT'!$G$6:$FJ$253,42,FALSE) -> 0.09 | S25: =VLOOKUP($C25,'RECAP SECT'!$G$6:$FJ$253,43,FALSE) -> -0.18 | T25: =VLOOKUP($C25,'RECAP SECT'!$G$6:$FJ$253,44,FALSE) -> 112% | U25: =VLOOKUP($C25,'RECAP SECT'!$G$6:$FJ$253,45,FALSE) -> 17 | V25: =VLOOKUP($C25,'RECAP SECT'!$G$6:$FJ$253,46,FALSE) -> 58% | W25: =VLOOKUP($C25,'RECAP SECT'!$G$6:$FJ$253,47,FALSE) -> 40% | X25: =VLOOKUP($C25,'RECAP SECT'!$G$6:$FJ$253,48,FALSE) -> 11
A26: 80 | B26: VOSGES | C26: 57 | D26: EPINAL | E26: =VLOOKUP($C26,'RECAP SECT'!$G$6:$FJ$253,3,FALSE) -> 59.2 | F26: =VLOOKUP($C26,'RECAP SECT'!$G$6:$FJ$253,30,FALSE) -> 7.23 | G26: =VLOOKUP($C26,'RECAP SECT'!$G$6:$FJ$253,31,FALSE) -> 2.55 | H26: =VLOOKUP($C26,'RECAP SECT'!$G$6:$FJ$253,32,FALSE) -> 67% | I26: =VLOOKUP($C26,'RECAP SECT'!$G$6:$FJ$253,33,FALSE) -> 14 | J26: =VLOOKUP($C26,'RECAP SECT'!$G$6:$FJ$253,34,FALSE) -> 4.97 | K26: =VLOOKUP($C26,'RECAP SECT'!$G$6:$FJ$253,35,FALSE) -> 3.36 | L26: =VLOOKUP($C26,'RECAP SECT'!$G$6:$FJ$253,36,FALSE) -> 61% | M26: =VLOOKUP($C26,'RECAP SECT'!$G$6:$FJ$253,37,FALSE) -> 14 | N26: =VLOOKUP($C26,'RECAP SECT'!$G$6:$FJ$253,38,FALSE) -> 8.33 | O26: =VLOOKUP($C26,'RECAP SECT'!$G$6:$FJ$253,39,FALSE) -> 5.52 | P26: =VLOOKUP($C26,'RECAP SECT'!$G$6:$FJ$253,40,FALSE) -> 61% | Q26: =VLOOKUP($C26,'RECAP SECT'!$G$6:$FJ$253,41,FALSE) -> 13 | R26: =VLOOKUP($C26,'RECAP SECT'!$G$6:$FJ$253,42,FALSE) -> 1.23 | S26: =VLOOKUP($C26,'RECAP SECT'!$G$6:$FJ$253,43,FALSE) -> 0.69 | T26: =VLOOKUP($C26,'RECAP SECT'!$G$6:$FJ$253,44,FALSE) -> 53% | U26: =VLOOKUP($C26,'RECAP SECT'!$G$6:$FJ$253,45,FALSE) -> 10 | V26: =VLOOKUP($C26,'RECAP SECT'!$G$6:$FJ$253,46,FALSE) -> 61% | W26: =VLOOKUP($C26,'RECAP SECT'!$G$6:$FJ$253,47,FALSE) -> 43% | X26: =VLOOKUP($C26,'RECAP SECT'!$G$6:$FJ$253,48,FALSE) -> 13
A27: 80 | B27: VOSGES | C27: 55 | D27: SAINT DIE | E27: =VLOOKUP($C27,'RECAP SECT'!$G$6:$FJ$253,3,FALSE) -> 47.9 | F27: =VLOOKUP($C27,'RECAP SECT'!$G$6:$FJ$253,30,FALSE) -> 7.22 | G27: =VLOOKUP($C27,'RECAP SECT'!$G$6:$FJ$253,31,FALSE) -> 3.32 | H27: =VLOOKUP($C27,'RECAP SECT'!$G$6:$FJ$253,32,FALSE) -> 57% | I27: =VLOOKUP($C27,'RECAP SECT'!$G$6:$FJ$253,33,FALSE) -> 11 | J27: =VLOOKUP($C27,'RECAP SECT'!$G$6:$FJ$253,34,FALSE) -> 7.37 | K27: =VLOOKUP($C27,'RECAP SECT'!$G$6:$FJ$253,35,FALSE) -> 4.93 | L27: =VLOOKUP($C27,'RECAP SECT'!$G$6:$FJ$253,36,FALSE) -> 43% | M27: =VLOOKUP($C27,'RECAP SECT'!$G$6:$FJ$253,37,FALSE) -> 6 | N27: =VLOOKUP($C27,'RECAP SECT'!$G$6:$FJ$253,38,FALSE) -> 12.96 | O27: =VLOOKUP($C27,'RECAP SECT'!$G$6:$FJ$253,39,FALSE) -> 8.76 | P27: =VLOOKUP($C27,'RECAP SECT'!$G$6:$FJ$253,40,FALSE) -> 38% | Q27: =VLOOKUP($C27,'RECAP SECT'!$G$6:$FJ$253,41,FALSE) -> 3 | R27: =VLOOKUP($C27,'RECAP SECT'!$G$6:$FJ$253,42,FALSE) -> 1.57 | S27: =VLOOKUP($C27,'RECAP SECT'!$G$6:$FJ$253,43,FALSE) -> 0.83 | T27: =VLOOKUP($C27,'RECAP SECT'!$G$6:$FJ$253,44,FALSE) -> 43% | U27: =VLOOKUP($C27,'RECAP SECT'!$G$6:$FJ$253,45,FALSE) -> 7 | V27: =VLOOKUP($C27,'RECAP SECT'!$G$6:$FJ$253,46,FALSE) -> 46% | W27: =VLOOKUP($C27,'RECAP SECT'!$G$6:$FJ$253,47,FALSE) -> 28% | X27: =VLOOKUP($C27,'RECAP SECT'!$G$6:$FJ$253,48,FALSE) -> 6
A28: Total CEGEE Directions Régionales | E28: =SUM(E10:E27) -> 1131

Sheet SE_EPARGNE
B1: Accueil | F1: BAROMETRE BDD - TERRITOIRES
F2: EPARGNE
F3: =ACCUEIL!F7 -> 2020-07-19
F7: Excédent Epargne Liquide | J7: CA UC + arbitrage | N7: Excédent Assurance Vie | R7: Total Epargne
F8: =DATEMAJ!C17 -> au 19/07 | H8: coef | I8: ='RECAP DIRCOM'!BL4 -> 3% | J8: =DATEMAJ!C18 -> au 12/07 | L8: coef | M8: ='RECAP DIRCOM'!BP4 -> 4% | N8: =DATEMAJ!C19 -> au 19/07 | P8: coef | Q8: ='RECAP DIRCOM'!BT4 -> 3% | S8: coef | T8: ='RECAP DIRCOM'!BW4 -> 10%
A9: eds | B9: Direction | C9: eds | D9: Territoire | E9: ="ETP perf "&DATEMAJ!$C$39 -> ETP perf au 31/05 | F9: Réal / ETP | G9: PNB / ETP | H9: % Ecart au 1er | I9: Rang | J9: Réal / ETP | K9: PNB / ETP | L9: % Ecart au 1er | M9: Rang | N9: Réal / ETP | O9: PNB / ETP | P9: % Ecart au 1er | Q9: Rang | R9: Moyenne ecart au 1er | S9: % Ecart au 1er | T9: Rang CEGEE
A10: 50 | B10: AUBE HAUTE MARNE | C10: 21 | D10: CHAUMONT | E10: =VLOOKUP($C10,'RECAP SECT'!$G$6:$FJ$253,3,FALSE) -> 34.2 | F10: =VLOOKUP($C10,'RECAP SECT'!$G$6:$FJ$253,55,FALSE) -> 361.13 | G10: =VLOOKUP($C10,'RECAP SECT'!$G$6:$FJ$253,56,FALSE) -> 8.55 | H10: =VLOOKUP($C10,'RECAP SECT'!$G$6:$FJ$253,57,FALSE) -> 24% | I10: =VLOOKUP($C10,'RECAP SECT'!$G$6:$FJ$253,58,FALSE) -> 8 | J10: =VLOOKUP($C10,'RECAP SECT'!$G$6:$FJ$253,59,FALSE) -> 102.97 | K10: =VLOOKUP($C10,'RECAP SECT'!$G$6:$FJ$253,60,FALSE) -> 0.65 | L10: =VLOOKUP($C10,'RECAP SECT'!$G$6:$FJ$253,61,FALSE) -> 54% | M10: =VLOOKUP($C10,'RECAP SECT'!$G$6:$FJ$253,62,FALSE) -> 17 | N10: =VLOOKUP($C10,'RECAP SECT'!$G$6:$FJ$253,63,FALSE) -> 1.78 | O10: =VLOOKUP($C10,'RECAP SECT'!$G$6:$FJ$253,64,FALSE) -> 0.06 | P10: =VLOOKUP($C10,'RECAP SECT'!$G$6:$FJ$253,65,FALSE) -> 72% | Q10: =VLOOKUP($C10,'RECAP SECT'!$G$6:$FJ$253,66,FALSE) -> 8 | R10: =VLOOKUP($C10,'RECAP SECT'!$G$6:$FJ$253,67,FALSE) -> 50% | S10: =VLOOKUP($C10,'RECAP SECT'!$G$6:$FJ$253,68,FALSE) -> 28% | T10: =VLOOKUP($C10,'RECAP SECT'!$G$6:$FJ$253,69,FALSE) -> 12
A11: 50 | B11: AUBE HAUTE MARNE | C11: 14 | D11: TROYES | E11: =VLOOKUP($C11,'RECAP SECT'!$G$6:$FJ$253,3,FALSE) -> 65.3 | F11: =VLOOKUP($C11,'RECAP SECT'!$G$6:$FJ$253,55,FALSE) -> 277.85 | G11: =VLOOKUP($C11,'RECAP SECT'!$G$6:$FJ$253,56,FALSE) -> 6.14 | H11: =VLOOKUP($C11,'RECAP SECT'!$G$6:$FJ$253,57,FALSE) -> 45% | I11: =VLOOKUP($C11,'RECAP SECT'!$G$6:$FJ$253,58,FALSE) -> 16 | J11: =VLOOKUP($C11,'RECAP SECT'!$G$6:$FJ$253,59,FALSE) -> 171.35 | K11: =VLOOKUP($C11,'RECAP SECT'!$G$6:$FJ$253,60,FALSE) -> 1.20 | L11: =VLOOKUP($C11,'RECAP SECT'!$G$6:$FJ$253,61,FALSE) -> 14% | M11: =VLOOKUP($C11,'RECAP SECT'!$G$6:$FJ$253,62,FALSE) -> 4 | N11: =VLOOKUP($C11,'RECAP SECT'!$G$6:$FJ$253,63,FALSE) -> -63.72 | O11: =VLOOKUP($C11,'RECAP SECT'!$G$6:$FJ$253,64,FALSE) -> -2.29 | P11: =VLOOKUP($C11,'RECAP SECT'!$G$6:$FJ$253,65,FALSE) -> 120% | Q11: =VLOOKUP($C11,'RECAP SECT'!$G$6:$FJ$253,66,FALSE) -> 15 | R11: =VLOOKUP($C11,'RECAP SECT'!$G$6:$FJ$253,67,FALSE) -> 55% | S11: =VLOOKUP($C11,'RECAP SECT'!$G$6:$FJ$253,68,FALSE) -> 33% | T11: =VLOOKUP($C11,'RECAP SECT'!$G$6:$FJ$253,69,FALSE) -> 16
A12: 262 | B12: BAS-RHIN | C12: 5060 | D12: HAGUENAU | E12: =VLOOKUP($C12,'RECAP SECT'!$G$6:$FJ$253,3,FALSE) -> 74.3 | F12: =VLOOKUP($C12,'RECAP SECT'!$G$6:$FJ$253,55,FALSE) -> 300.90 | G12: =VLOOKUP($C12,'RECAP SECT'!$G$6:$FJ$253,56,FALSE) -> 7.24 | H12: =VLOOKUP($C12,'RECAP SECT'!$G$6:$FJ$253,57,FALSE) -> 36% | I12: =VLOOKUP($C12,'RECAP SECT'!$G$6:$FJ$253,58,FALSE) -> 11 | J12: =VLOOKUP($C12,'RECAP SECT'!$G$6:$FJ$253,59,FALSE) -> 119.94 | K12: =VLOOKUP($C12,'RECAP SECT'!$G$6:$FJ$253,60,FALSE) -> 0.73 | L12: =VLOOKUP($C12,'RECAP SECT'!$G$6:$FJ$253,61,FALSE) -> 48% | M12: =VLOOKUP($C12,'RECAP SECT'!$G$6:$FJ$253,62,FALSE) -> 15 | N12: =VLOOKUP($C12,'RECAP SECT'!$G$6:$FJ$253,63,FALSE) -> -14.69 | O12: =VLOOKUP($C12,'RECAP SECT'!$G$6:$FJ$253,64,FALSE) -> -0.53 | P12: =VLOOKUP($C12,'RECAP SECT'!$G$6:$FJ$253,65,FALSE) -> 84% | Q12: =VLOOKUP($C12,'RECAP SECT'!$G$6:$FJ$253,66,FALSE) -> 10 | R12: =VLOOKUP($C12,'RECAP SECT'!$G$6:$FJ$253,67,FALSE) -> 55% | S12: =VLOOKUP($C12,'RECAP SECT'!$G$6:$FJ$253,68,FALSE) -> 32% | T12: =VLOOKUP($C12,'RECAP SECT'!$G$6:$FJ$253,69,FALSE) -> 15
A13: 262 | B13: BAS-RHIN | C13: 5101 | D13: SELESTAT | E13: =VLOOKUP($C13,'RECAP SECT'!$G$6:$FJ$253,3,FALSE) -> 62.1 | F13: =VLOOKUP($C13,'RECAP SECT'!$G$6:$FJ$253,55,FALSE) -> 447.14 | G13: =VLOOKUP($C13,'RECAP SECT'!$G$6:$FJ$253,56,FALSE) -> 10.32 | H13: =VLOOKUP($C13,'RECAP SECT'!$G$6:$FJ$253,57,FALSE) -> 8% | I13: =VLOOKUP($C13,'RECAP SECT'!$G$6:$FJ$253,58,FALSE) -> 3 | J13: =VLOOKUP($C13,'RECAP SECT'!$G$6:$FJ$253,59,FALSE) -> 135.84 | K13: =VLOOKUP($C13,'RECAP SECT'!$G$6:$FJ$253,60,FALSE) -> 0.95 | L13: =VLOOKUP($C13,'RECAP SECT'!$G$6:$FJ$253,61,FALSE) -> 32% | M13: =VLOOKUP($C13,'RECAP SECT'!$G$6:$FJ$253,62,FALSE) -> 8 | N13: =VLOOKUP($C13,'RECAP SECT'!$G$6:$FJ$253,63,FALSE) -> -5.10 | O13: =VLOOKUP($C13,'RECAP SECT'!$G$6:$FJ$253,64,FALSE) -> -0.18 | P13: =VLOOKUP($C13,'RECAP SECT'!$G$6:$FJ$253,65,FALSE) -> 77% | Q13: =VLOOKUP($C13,'RECAP SECT'!$G$6:$FJ$253,66,FALSE) -> 9 | R13: =VLOOKUP($C13,'RECAP SECT'!$G$6:$FJ$253,67,FALSE) -> 38% | S13: =VLOOKUP($C13,'RECAP SECT'!$G$6:$FJ$253,68,FALSE) -> 16% | T13: =VLOOKUP($C13,'RECAP SECT'!$G$6:$FJ$253,69,FALSE) -> 6
A14: 262 | B14: BAS-RHIN | C14: 5006 | D14: STRASBOURG | E14: =VLOOKUP($C14,'RECAP SECT'!$G$6:$FJ$253,3,FALSE) -> 73.4 | F14: =VLOOKUP($C14,'RECAP SECT'!$G$6:$FJ$253,55,FALSE) -> 499.79 | G14: =VLOOKUP($C14,'RECAP SECT'!$G$6:$FJ$253,56,FALSE) -> 11.25 | H14: =VLOOKUP($C14,'RECAP SECT'!$G$6:$FJ$253,57,FALSE) -> 0% | I14: =VLOOKUP($C14,'RECAP SECT'!$G$6:$FJ$253,58,FALSE) -> 1 | J14: =VLOOKUP($C14,'RECAP SECT'!$G$6:$FJ$253,59,FALSE) -> 165.81 | K14: =VLOOKUP($C14,'RECAP SECT'!$G$6:$FJ$253,60,FALSE) -> 1.34 | L14: =VLOOKUP($C14,'RECAP SECT'!$G$6:$FJ$253,61,FALSE) -> 4% | M14: =VLOOKUP($C14,'RECAP SECT'!$G$6:$FJ$253,62,FALSE) -> 3 | N14: =VLOOKUP($C14,'RECAP SECT'!$G$6:$FJ$253,63,FALSE) -> -27.73 | O14: =VLOOKUP($C14,'RECAP SECT'!$G$6:$FJ$253,64,FALSE) -> -1.00 | P14: =VLOOKUP($C14,'RECAP SECT'!$G$6:$FJ$253,65,FALSE) -> 93% | Q14: =VLOOKUP($C14,'RECAP SECT'!$G$6:$FJ$253,66,FALSE) -> 11 | R14: =VLOOKUP($C14,'RECAP SECT'!$G$6:$FJ$253,67,FALSE) -> 30% | S14: =VLOOKUP($C14,'RECAP SECT'!$G$6:$FJ$253,68,FALSE) -> 7% | T14: =VLOOKUP($C14,'RECAP SECT'!$G$6:$FJ$253,69,FALSE) -> 2
A15: 264 | B15: HAUT-RHIN | C15: 5130 | D15: COLMAR | E15: =VLOOKUP($C15,'RECAP SECT'!$G$6:$FJ$253,3,FALSE) -> 64.9 | F15: =VLOOKUP($C15,'RECAP SECT'!$G$6:$FJ$253,55,FALSE) -> 388.51 | G15: =VLOOKUP($C15,'RECAP SECT'!$G$6:$FJ$253,56,FALSE) -> 9.01 | H15: =VLOOKUP($C15,'RECAP SECT'!$G$6:$FJ$253,57,FALSE) -> 20% | I15: =VLOOKUP($C15,'RECAP SECT'!$G$6:$FJ$253,58,FALSE) -> 5 | J15: =VLOOKUP($C15,'RECAP SECT'!$G$6:$FJ$253,59,FALSE) -> 153.71 | K15: =VLOOKUP($C15,'RECAP SECT'!$G$6:$FJ$253,60,FALSE) -> 1.40 | L15: =VLOOKUP($C15,'RECAP SECT'!$G$6:$FJ$253,61,FALSE) -> 0% | M15: =VLOOKUP($C15,'RECAP SECT'!$G$6:$FJ$253,62,FALSE) -> 1 | N15: =VLOOKUP($C15,'RECAP SECT'!$G$6:$FJ$253,63,FALSE) -> -71.42 | O15: =VLOOKUP($C15,'RECAP SECT'!$G$6:$FJ$253,64,FALSE) -> -2.57 | P15: =VLOOKUP($C15,'RECAP SECT'!$G$6:$FJ$253,65,FALSE) -> 125% | Q15: =VLOOKUP($C15,'RECAP SECT'!$G$6:$FJ$253,66,FALSE) -> 17 | R15: =VLOOKUP($C15,'RECAP SECT'!$G$6:$FJ$253,67,FALSE) -> 44% | S15: =VLOOKUP($C15,'RECAP SECT'!$G$6:$FJ$253,68,FALSE) -> 21% | T15: =VLOOKUP($C15,'RECAP SECT'!$G$6:$FJ$253,69,FALSE) -> 9
A16: 264 | B16: HAUT-RHIN | C16: 5169 | D16: MULHOUSE | E16: =VLOOKUP($C16,'RECAP SECT'!$G$6:$FJ$253,3,FALSE) -> 61.1 | F16: =VLOOKUP($C16,'RECAP SECT'!$G$6:$FJ$253,55,FALSE) -> 322.79 | G16: =VLOOKUP($C16,'RECAP SECT'!$G$6:$FJ$253,56,FALSE) -> 7.54 | H16: =VLOOKUP($C16,'RECAP SECT'!$G$6:$FJ$253,57,FALSE) -> 33% | I16: =VLOOKUP($C16,'RECAP SECT'!$G$6:$FJ$253,58,FALSE) -> 10 | J16: =VLOOKUP($C16,'RECAP SECT'!$G$6:$FJ$253,59,FALSE) -> 85.18 | K16: =VLOOKUP($C16,'RECAP SECT'!$G$6:$FJ$253,60,FALSE) -> 0.51 | L16: =VLOOKUP($C16,'RECAP SECT'!$G$6:$FJ$253,61,FALSE) -> 63% | M16: =VLOOKUP($C16,'RECAP SECT'!$G$6:$FJ$253,62,FALSE) -> 18 | N16: =VLOOKUP($C16,'RECAP SECT'!$G$6:$FJ$253,63,FALSE) -> -104.79 | O16: =VLOOKUP($C16,'RECAP SECT'!$G$6:$FJ$253,64,FALSE) -> -3.77 | P16: =VLOOKUP($C16,'RECAP SECT'!$G$6:$FJ$253,65,FALSE) -> 150% | Q16: =VLOOKUP($C16,'RECAP SECT'!$G$6:$FJ$253,66,FALSE) -> 18 | R16: =VLOOKUP($C16,'RECAP SECT'!$G$6:$FJ$253,67,FALSE) -> 80% | S16: =VLOOKUP($C16,'RECAP SECT'!$G$6:$FJ$253,68,FALSE) -> 58% | T16: =VLOOKUP($C16,'RECAP SECT'!$G$6:$FJ$253,69,FALSE) -> 18
A17: 30 | B17: MARNE-ARDENNES | C17: 6 | D17: CHALONS EN CHAMPAGNE | E17: =VLOOKUP($C17,'RECAP SECT'!$G$6:$FJ$253,3,FALSE) -> 45.0 | F17: =VLOOKUP($C17,'RECAP SECT'!$G$6:$FJ$253,55,FALSE) -> 435.75 | G17: =VLOOKUP($C17,'RECAP SECT'!$G$6:$FJ$253,56,FALSE) -> 9.86 | H17: =VLOOKUP($C17,'RECAP SECT'!$G$6:$FJ$253,57,FALSE) -> 12% | I17: =VLOOKUP($C17,'RECAP SECT'!$G$6:$FJ$253,58,FALSE) -> 4 | J17: =VLOOKUP($C17,'RECAP SECT'!$G$6:$FJ$253,59,FALSE) -> 165.35 | K17: =VLOOKUP($C17,'RECAP SECT'!$G$6:$FJ$253,60,FALSE) -> 1.13 | L17: =VLOOKUP($C17,'RECAP SECT'!$G$6:$FJ$253,61,FALSE) -> 19% | M17: =VLOOKUP($C17,'RECAP SECT'!$G$6:$FJ$253,62,FALSE) -> 5 | N17: =VLOOKUP($C17,'RECAP SECT'!$G$6:$FJ$253,63,FALSE) -> -36.11 | O17: =VLOOKUP($C17,'RECAP SECT'!$G$6:$FJ$253,64,FALSE) -> -1.30 | P17: =VLOOKUP($C17,'RECAP SECT'!$G$6:$FJ$253,65,FALSE) -> 99% | Q17: =VLOOKUP($C17,'RECAP SECT'!$G$6:$FJ$253,66,FALSE) -> 12 | R17: =VLOOKUP($C17,'RECAP SECT'!$G$6:$FJ$253,67,FALSE) -> 41% | S17: =VLOOKUP($C17,'RECAP SECT'!$G$6:$FJ$253,68,FALSE) -> 19% | T17: =VLOOKUP($C17,'RECAP SECT'!$G$6:$FJ$253,69,FALSE) -> 8
A18: 30 | B18: MARNE-ARDENNES | C18: 2 | D18: CHARLEVILLE MEZIERES | E18: =VLOOKUP($C18,'RECAP SECT'!$G$6:$FJ$253,3,FALSE) -> 54.5 | F18: =VLOOKUP($C18,'RECAP SECT'!$G$6:$FJ$253,55,FALSE) -> 262.89 | G18: =VLOOKUP($C18,'RECAP SECT'!$G$6:$FJ$253,56,FALSE) -> 6.55 | H18: =VLOOKUP($C18,'RECAP SECT'!$G$6:$FJ$253,57,FALSE) -> 42% | I18: =VLOOKUP($C18,'RECAP SECT'!$G$6:$FJ$253,58,FALSE) -> 15 | J18: =VLOOKUP($C18,'RECAP SECT'!$G$6:$FJ$253,59,FALSE) -> 132.61 | K18: =VLOOKUP($C18,'RECAP SECT'!$G$6:$FJ$253,60,FALSE) -> 0.87 | L18: =VLOOKUP($C18,'RECAP SECT'!$G$6:$FJ$253,61,FALSE) -> 38% | M18: =VLOOKUP($C18,'RECAP SECT'!$G$6:$FJ$253,62,FALSE) -> 11 | N18: =VLOOKUP($C18,'RECAP SECT'!$G$6:$FJ$253,63,FALSE) -> 60.88 | O18: =VLOOKUP($C18,'RECAP SECT'!$G$6:$FJ$253,64,FALSE) -> 2.19 | P18: =VLOOKUP($C18,'RECAP SECT'!$G$6:$FJ$253,65,FALSE) -> 28% | Q18: =VLOOKUP($C18,'RECAP SECT'!$G$6:$FJ$253,66,FALSE) -> 3 | R18: =VLOOKUP($C18,'RECAP SECT'!$G$6:$FJ$253,67,FALSE) -> 36% | S18: =VLOOKUP($C18,'RECAP SECT'!$G$6:$FJ$253,68,FALSE) -> 14% | T18: =VLOOKUP($C18,'RECAP SECT'!$G$6:$FJ$253,69,FALSE) -> 5
A19: 30 | B19: MARNE-ARDENNES | C19: 11 | D19: REIMS | E19: =VLOOKUP($C19,'RECAP SECT'!$G$6:$FJ$253,3,FALSE) -> 78.1 | F19: =VLOOKUP($C19,'RECAP SECT'!$G$6:$FJ$253,55,FALSE) -> 480.80 | G19: =VLOOKUP($C19,'RECAP SECT'!$G$6:$FJ$253,56,FALSE) -> 10.99 | H19: =VLOOKUP($C19,'RECAP SECT'!$G$6:$FJ$253,57,FALSE) -> 2% | I19: =VLOOKUP($C19,'RECAP SECT'!$G$6:$FJ$253,58,FALSE) -> 2 | J19: =VLOOKUP($C19,'RECAP SECT'!$G$6:$FJ$253,59,FALSE) -> 139.23 | K19: =VLOOKUP($C19,'RECAP SECT'!$G$6:$FJ$253,60,FALSE) -> 0.81 | L19: =VLOOKUP($C19,'RECAP SECT'!$G$6:$FJ$253,61,FALSE) -> 42% | M19: =VLOOKUP($C19,'RECAP SECT'!$G$6:$FJ$253,62,FALSE) -> 13 | N19: =VLOOKUP($C19,'RECAP SECT'!$G$6:$FJ$253,63,FALSE) -> -40.68 | O19: =VLOOKUP($C19,'RECAP SECT'!$G$6:$FJ$253,64,FALSE) -> -1.46 | P19: =VLOOKUP($C19,'RECAP SECT'!$G$6:$FJ$253,65,FALSE) -> 103% | Q19: =VLOOKUP($C19,'RECAP SECT'!$G$6:$FJ$253,66,FALSE) -> 13 | R19: =VLOOKUP($C19,'RECAP SECT'!$G$6:$FJ$253,67,FALSE) -> 48% | S19: =VLOOKUP($C19,'RECAP SECT'!$G$6:$FJ$253,68,FALSE) -> 26% | T19: =VLOOKUP($C19,'RECAP SECT'!$G$6:$FJ$253,69,FALSE) -> 11
A20: 110 | B20: MEURTHE ET MOSELLE MEUSE | C20: 26 | D20: NANCY | E20: =VLOOKUP($C20,'RECAP SECT'!$G$6:$FJ$253,3,FALSE) -> 63.6 | F20: =VLOOKUP($C20,'RECAP SECT'!$G$6:$FJ$253,55,FALSE) -> 372.51 | G20: =VLOOKUP($C20,'RECAP SECT'!$G$6:$FJ$253,56,FALSE) -> 8.64 | H20: =VLOOKUP($C20,'RECAP SECT'!$G$6:$FJ$253,57,FALSE) -> 23% | I20: =VLOOKUP($C20,'RECAP SECT'!$G$6:$FJ$253,58,FALSE) -> 7 | J20: =VLOOKUP($C20,'RECAP SECT'!$G$6:$FJ$253,59,FALSE) -> 177.93 | K20: =VLOOKUP($C20,'RECAP SECT'!$G$6:$FJ$253,60,FALSE) -> 1.39 | L20: =VLOOKUP($C20,'RECAP SECT'!$G$6:$FJ$253,61,FALSE) -> 1% | M20: =VLOOKUP($C20,'RECAP SECT'!$G$6:$FJ$253,62,FALSE) -> 2 | N20: =VLOOKUP($C20,'RECAP SECT'!$G$6:$FJ$253,63,FALSE) -> -48.04 | O20: =VLOOKUP($C20,'RECAP SECT'!$G$6:$FJ$253,64,FALSE) -> -1.73 | P20: =VLOOKUP($C20,'RECAP SECT'!$G$6:$FJ$253,65,FALSE) -> 108% | Q20: =VLOOKUP($C20,'RECAP SECT'!$G$6:$FJ$253,66,FALSE) -> 14 | R20: =VLOOKUP($C20,'RECAP SECT'!$G$6:$FJ$253,67,FALSE) -> 40% | S20: =VLOOKUP($C20,'RECAP SECT'!$G$6:$FJ$253,68,FALSE) -> 17% | T20: =VLOOKUP($C20,'RECAP SECT'!$G$6:$FJ$253,69,FALSE) -> 7
A21: 110 | B21: MEURTHE ET MOSELLE MEUSE | C21: 27 | D21: PONT A MOUSSON | E21: =VLOOKUP($C21,'RECAP SECT'!$G$6:$FJ$253,3,FALSE) -> 71.9 | F21: =VLOOKUP($C21,'RECAP SECT'!$G$6:$FJ$253,55,FALSE) -> 378.38 | G21: =VLOOKUP($C21,'RECAP SECT'!$G$6:$FJ$253,56,FALSE) -> 8.69 | H21: =VLOOKUP($C21,'RECAP SECT'!$G$6:$FJ$253,57,FALSE) -> 23% | I21: =VLOOKUP($C21,'RECAP SECT'!$G$6:$FJ$253,58,FALSE) -> 6 | J21: =VLOOKUP($C21,'RECAP SECT'!$G$6:$FJ$253,59,FALSE) -> 129.45 | K21: =VLOOKUP($C21,'RECAP SECT'!$G$6:$FJ$253,60,FALSE) -> 0.76 | L21: =VLOOKUP($C21,'RECAP SECT'!$G$6:$FJ$253,61,FALSE) -> 46% | M21: =VLOOKUP($C21,'RECAP SECT'!$G$6:$FJ$253,62,FALSE) -> 14 | N21: =VLOOKUP($C21,'RECAP SECT'!$G$6:$FJ$253,63,FALSE) -> 67.07 | O21: =VLOOKUP($C21,'RECAP SECT'!$G$6:$FJ$253,64,FALSE) -> 2.41 | P21: =VLOOKUP($C21,'RECAP SECT'!$G$6:$FJ$253,65,FALSE) -> 23% | Q21: =VLOOKUP($C21,'RECAP SECT'!$G$6:$FJ$253,66,FALSE) -> 2 | R21: =VLOOKUP($C21,'RECAP SECT'!$G$6:$FJ$253,67,FALSE) -> 32% | S21: =VLOOKUP($C21,'RECAP SECT'!$G$6:$FJ$253,68,FALSE) -> 10% | T21: =VLOOKUP($C21,'RECAP SECT'!$G$6:$FJ$253,69,FALSE) -> 3
A22: 110 | B22: MEURTHE ET MOSELLE MEUSE | C22: 31 | D22: VERDUN | E22: =VLOOKUP($C22,'RECAP SECT'!$G$6:$FJ$253,3,FALSE) -> 51.9 | F22: =VLOOKUP($C22,'RECAP SECT'!$G$6:$FJ$253,55,FALSE) -> 299.21 | G22: =VLOOKUP($C22,'RECAP SECT'!$G$6:$FJ$253,56,FALSE) -> 7.02 | H22: =VLOOKUP($C22,'RECAP SECT'!$G$6:$FJ$253,57,FALSE) -> 38% | I22: =VLOOKUP($C22,'RECAP SECT'!$G$6:$FJ$253,58,FALSE) -> 12 | J22: =VLOOKUP($C22,'RECAP SECT'!$G$6:$FJ$253,59,FALSE) -> 144.86 | K22: =VLOOKUP($C22,'RECAP SECT'!$G$6:$FJ$253,60,FALSE) -> 0.89 | L22: =VLOOKUP($C22,'RECAP SECT'!$G$6:$FJ$253,61,FALSE) -> 36% | M22: =VLOOKUP($C22,'RECAP SECT'!$G$6:$FJ$253,62,FALSE) -> 10 | N22: =VLOOKUP($C22,'RECAP SECT'!$G$6:$FJ$253,63,FALSE) -> 5.56 | O22: =VLOOKUP($C22,'RECAP SECT'!$G$6:$FJ$253,64,FALSE) -> 0.20 | P22: =VLOOKUP($C22,'RECAP SECT'!$G$6:$FJ$253,65,FALSE) -> 69% | Q22: =VLOOKUP($C22,'RECAP SECT'!$G$6:$FJ$253,66,FALSE) -> 6 | R22: =VLOOKUP($C22,'RECAP SECT'!$G$6:$FJ$253,67,FALSE) -> 46% | S22: =VLOOKUP($C22,'RECAP SECT'!$G$6:$FJ$253,68,FALSE) -> 24% | T22: =VLOOKUP($C22,'RECAP SECT'!$G$6:$FJ$253,69,FALSE) -> 10
A23: 160 | B23: MOSELLE | C23: 45 | D23: METZ | E23: =VLOOKUP($C23,'RECAP SECT'!$G$6:$FJ$253,3,FALSE) -> 85.7 | F23: =VLOOKUP($C23,'RECAP SECT'!$G$6:$FJ$253,55,FALSE) -> 349.26 | G23: =VLOOKUP($C23,'RECAP SECT'!$G$6:$FJ$253,56,FALSE) -> 7.77 | H23: =VLOOKUP($C23,'RECAP SECT'!$G$6:$FJ$253,57,FALSE) -> 31% | I23: =VLOOKUP($C23,'RECAP SECT'!$G$6:$FJ$253,58,FALSE) -> 9 | J23: =VLOOKUP($C23,'RECAP SECT'!$G$6:$FJ$253,59,FALSE) -> 156.27 | K23: =VLOOKUP($C23,'RECAP SECT'!$G$6:$FJ$253,60,FALSE) -> 1.00 | L23: =VLOOKUP($C23,'RECAP SECT'!$G$6:$FJ$253,61,FALSE) -> 28% | M23: =VLOOKUP($C23,'RECAP SECT'!$G$6:$FJ$253,62,FALSE) -> 7 | N23: =VLOOKUP($C23,'RECAP SECT'!$G$6:$FJ$253,63,FALSE) -> 39.45 | O23: =VLOOKUP($C23,'RECAP SECT'!$G$6:$FJ$253,64,FALSE) -> 1.42 | P23: =VLOOKUP($C23,'RECAP SECT'!$G$6:$FJ$253,65,FALSE) -> 44% | Q23: =VLOOKUP($C23,'RECAP SECT'!$G$6:$FJ$253,66,FALSE) -> 4 | R23: =VLOOKUP($C23,'RECAP SECT'!$G$6:$FJ$253,67,FALSE) -> 34% | S23: =VLOOKUP($C23,'RECAP SECT'!$G$6:$FJ$253,68,FALSE) -> 11% | T23: =VLOOKUP($C23,'RECAP SECT'!$G$6:$FJ$253,69,FALSE) -> 4
A24: 160 | B24: MOSELLE | C24: 42 | D24: MOSELLE EST | E24: =VLOOKUP($C24,'RECAP SECT'!$G$6:$FJ$253,3,FALSE) -> 70.1 | F24: =VLOOKUP($C24,'RECAP SECT'!$G$6:$FJ$253,55,FALSE) -> 280.57 | G24: =VLOOKUP($C24,'RECAP SECT'!$G$6:$FJ$253,56,FALSE) -> 6.84 | H24: =VLOOKUP($C24,'RECAP SECT'!$G$6:$FJ$253,57,FALSE) -> 39% | I24: =VLOOKUP($C24,'RECAP SECT'!$G$6:$FJ$253,58,FALSE) -> 13 | J24: =VLOOKUP($C24,'RECAP SECT'!$G$6:$FJ$253,59,FALSE) -> 124.75 | K24: =VLOOKUP($C24,'RECAP SECT'!$G$6:$FJ$253,60,FALSE) -> 0.95 | L24: =VLOOKUP($C24,'RECAP SECT'!$G$6:$FJ$253,61,FALSE) -> 32% | M24: =VLOOKUP($C24,'RECAP SECT'!$G$6:$FJ$253,62,FALSE) -> 9 | N24: =VLOOKUP($C24,'RECAP SECT'!$G$6:$FJ$253,63,FALSE) -> -64.61 | O24: =VLOOKUP($C24,'RECAP SECT'!$G$6:$FJ$253,64,FALSE) -> -2.32 | P24: =VLOOKUP($C24,'RECAP SECT'!$G$6:$FJ$253,65,FALSE) -> 120% | Q24: =VLOOKUP($C24,'RECAP SECT'!$G$6:$FJ$253,66,FALSE) -> 16 | R24: =VLOOKUP($C24,'RECAP SECT'!$G$6:$FJ$253,67,FALSE) -> 61% | S24: =VLOOKUP($C24,'RECAP SECT'!$G$6:$FJ$253,68,FALSE) -> 38% | T24: =VLOOKUP($C24,'RECAP SECT'!$G$6:$FJ$253,69,FALSE) -> 17
A25: 160 | B25: MOSELLE | C25: 44 | D25: MOSELLE NORD | E25: =VLOOKUP($C25,'RECAP SECT'!$G$6:$FJ$253,3,FALSE) -> 68.2 | F25: =VLOOKUP($C25,'RECAP SECT'!$G$6:$FJ$253,55,FALSE) -> 269.82 | G25: =VLOOKUP($C25,'RECAP SECT'!$G$6:$FJ$253,56,FALSE) -> 6.04 | H25: =VLOOKUP($C25,'RECAP SECT'!$G$6:$FJ$253,57,FALSE) -> 46% | I25: =VLOOKUP($C25,'RECAP SECT'!$G$6:$FJ$253,58,FALSE) -> 18 | J25: =VLOOKUP($C25,'RECAP SECT'!$G$6:$FJ$253,59,FALSE) -> 135.20 | K25: =VLOOKUP($C25,'RECAP SECT'!$G$6:$FJ$253,60,FALSE) -> 0.85 | L25: =VLOOKUP($C25,'RECAP SECT'!$G$6:$FJ$253,61,FALSE) -> 39% | M25: =VLOOKUP($C25,'RECAP SECT'!$G$6:$FJ$253,62,FALSE) -> 12 | N25: =VLOOKUP($C25,'RECAP SECT'!$G$6:$FJ$253,63,FALSE) -> 1.91 | O25: =VLOOKUP($C25,'RECAP SECT'!$G$6:$FJ$253,64,FALSE) -> 0.07 | P25: =VLOOKUP($C25,'RECAP SECT'!$G$6:$FJ$253,65,FALSE) -> 71% | Q25: =VLOOKUP($C25,'RECAP SECT'!$G$6:$FJ$253,66,FALSE) -> 7 | R25: =VLOOKUP($C25,'RECAP SECT'!$G$6:$FJ$253,67,FALSE) -> 51% | S25: =VLOOKUP($C25,'RECAP SECT'!$G$6:$FJ$253,68,FALSE) -> 29% | T25: =VLOOKUP($C25,'RECAP SECT'!$G$6:$FJ$253,69,FALSE) -> 14
A26: 80 | B26: VOSGES | C26: 57 | D26: EPINAL | E26: =VLOOKUP($C26,'RECAP SECT'!$G$6:$FJ$253,3,FALSE) -> 59.2 | F26: =VLOOKUP($C26,'RECAP SECT'!$G$6:$FJ$253,55,FALSE) -> 268.55 | G26: =VLOOKUP($C26,'RECAP SECT'!$G$6:$FJ$253,56,FALSE) -> 6.81 | H26: =VLOOKUP($C26,'RECAP SECT'!$G$6:$FJ$253,57,FALSE) -> 39% | I26: =VLOOKUP($C26,'RECAP SECT'!$G$6:$FJ$253,58,FALSE) -> 14 | J26: =VLOOKUP($C26,'RECAP SECT'!$G$6:$FJ$253,59,FALSE) -> 124.92 | K26: =VLOOKUP($C26,'RECAP SECT'!$G$6:$FJ$253,60,FALSE) -> 0.68 | L26: =VLOOKUP($C26,'RECAP SECT'!$G$6:$FJ$253,61,FALSE) -> 51% | M26: =VLOOKUP($C26,'RECAP SECT'!$G$6:$FJ$253,62,FALSE) -> 16 | N26: =VLOOKUP($C26,'RECAP SECT'!$G$6:$FJ$253,63,FALSE) -> 14.67 | O26: =VLOOKUP($C26,'RECAP SECT'!$G$6:$FJ$253,64,FALSE) -> 0.53 | P26: =VLOOKUP($C26,'RECAP SECT'!$G$6:$FJ$253,65,FALSE) -> 62% | Q26: =VLOOKUP($C26,'RECAP SECT'!$G$6:$FJ$253,66,FALSE) -> 5 | R26: =VLOOKUP($C26,'RECAP SECT'!$G$6:$FJ$253,67,FALSE) -> 51% | S26: =VLOOKUP($C26,'RECAP SECT'!$G$6:$FJ$253,68,FALSE) -> 28% | T26: =VLOOKUP($C26,'RECAP SECT'!$G$6:$FJ$253,69,FALSE) -> 13
A27: 80 | B27: VOSGES | C27: 55 | D27: SAINT DIE | E27: =VLOOKUP($C27,'RECAP SECT'!$G$6:$FJ$253,3,FALSE) -> 47.9 | F27: =VLOOKUP($C27,'RECAP SECT'!$G$6:$FJ$253,55,FALSE) -> 215.45 | G27: =VLOOKUP($C27,'RECAP SECT'!$G$6:$FJ$253,56,FALSE) -> 6.09 | H27: =VLOOKUP($C27,'RECAP SECT'!$G$6:$FJ$253,57,FALSE) -> 46% | I27: =VLOOKUP($C27,'RECAP SECT'!$G$6:$FJ$253,58,FALSE) -> 17 | J27: =VLOOKUP($C27,'RECAP SECT'!$G$6:$FJ$253,59,FALSE) -> 196.72 | K27: =VLOOKUP($C27,'RECAP SECT'!$G$6:$FJ$253,60,FALSE) -> 1.10 | L27: =VLOOKUP($C27,'RECAP SECT'!$G$6:$FJ$253,61,FALSE) -> 22% | M27: =VLOOKUP($C27,'RECAP SECT'!$G$6:$FJ$253,62,FALSE) -> 6 | N27: =VLOOKUP($C27,'RECAP SECT'!$G$6:$FJ$253,63,FALSE) -> 98.85 | O27: =VLOOKUP($C27,'RECAP SECT'!$G$6:$FJ$253,64,FALSE) -> 3.55 | P27: =VLOOKUP($C27,'RECAP SECT'!$G$6:$FJ$253,65,FALSE) -> 0% | Q27: =VLOOKUP($C27,'RECAP SECT'!$G$6:$FJ$253,66,FALSE) -> 1 | R27: =VLOOKUP($C27,'RECAP SECT'!$G$6:$FJ$253,67,FALSE) -> 22% | S27: =VLOOKUP($C27,'RECAP SECT'!$G$6:$FJ$253,68,FALSE) -> 0% | T27: =VLOOKUP($C27,'RECAP SECT'!$G$6:$FJ$253,69,FALSE) -> 1
A28: Total CEGEE Directions Régionales | E28: =SUM(E10:E27) -> 1131

Sheet SE_CREDIT
B1: Accueil | F1: BAROMETRE BDD - TERRITOIRES
F2: CREDITS
F3: =ACCUEIL!F7 -> 2020-07-19
F7: Engagements crédits conso | J7: ADE crédits conso | N7: Engagements crédits immo | R7: ADE crédits immo | V7: SACCEF | Z7: Engagement Crédits MLT + Crédits Bail | AD7: Total Crédits
F8: =DATEMAJ!C21 -> au 19/07 | H8: coef | I8: ='RECAP DIRCOM'!CG4 -> 4% | K8: =DATEMAJ!C22 -> au 19/07 | L8: coef | M8: ='RECAP DIRCOM'!CK4 -> 1% | N8: =DATEMAJ!C23 -> au 19/07 | P8: coef | Q8: ='RECAP DIRCOM'!CO4 -> 4% | S8: =DATEMAJ!C24 -> au 19/07 | T8: coef | U8: ='RECAP DIRCOM'!CS4 -> 2% | W8: =DATEMAJ!C25 -> au 19/07 | X8: coef | Y8: ='RECAP DIRCOM'!CW4 -> 2% | Z8: =DATEMAJ!C26 -> au 19/07 | AB8: coef | AC8: ='RECAP DIRCOM'!DA4 -> 2% | AE8: coef | AF8: ='RECAP DIRCOM'!DD4 -> 15%
B9: Direction | C9: eds | D9: Territoire | E9: ="ETP perf "&DATEMAJ!$C$39 -> ETP perf au 31/05 | F9: Réal / ETP | G9: PNB / ETP | H9: % Ecart au 1er | I9: Rang | K9: PNB / ETP | L9: % Ecart au 1er | M9: Rang | N9: Réal / ETP | O9: PNB / ETP | P9: % Ecart au 1er | Q9: Rang | S9: PNB / ETP | T9: % Ecart au 1er | U9: Rang | W9: PNB / ETP | X9: % Ecart au 1er | Y9: Rang | Z9: Réal / ETP | AA9: PNB / ETP | AB9: % Ecart au 1er | AC9: Rang | AD9: Moyenne ecart au 1er | AE9: % Ecart au 1er | AF9: Rang CEGEE
A10: 50 | B10: AUBE HAUTE MARNE | C10: 21 | D10: CHAUMONT | E10: =VLOOKUP($C10,'RECAP SECT'!$G$6:$FJ$253,3,FALSE) -> 34.2 | F10: =VLOOKUP($C10,'RECAP SECT'!$G$6:$FJ$253,76,FALSE) -> 396.91 | G10: =VLOOKUP($C10,'RECAP SECT'!$G$6:$FJ$253,77,FALSE) -> 37.56 | H10: =VLOOKUP($C10,'RECAP SECT'!$G$6:$FJ$253,78,FALSE) -> 0% | I10: =VLOOKUP($C10,'RECAP SECT'!$G$6:$FJ$253,79,FALSE) -> 1 | K10: =VLOOKUP($C10,'RECAP SECT'!$G$6:$FJ$253,81,FALSE) -> 9.04 | L10: =VLOOKUP($C10,'RECAP SECT'!$G$6:$FJ$253,82,FALSE) -> 3% | M10: =VLOOKUP($C10,'RECAP SECT'!$G$6:$FJ$253,83,FALSE) -> 2 | N10: =VLOOKUP($C10,'RECAP SECT'!$G$6:$FJ$253,84,FALSE) -> 718.39 | O10: =VLOOKUP($C10,'RECAP SECT'!$G$6:$FJ$253,85,FALSE) -> 26.03 | P10: =VLOOKUP($C10,'RECAP SECT'!$G$6:$FJ$253,86,FALSE) -> 54% | Q10: =VLOOKUP($C10,'RECAP SECT'!$G$6:$FJ$253,87,FALSE) -> 16 | S10: =VLOOKUP($C10,'RECAP SECT'!$G$6:$FJ$253,89,FALSE) -> 15.23 | T10: =VLOOKUP($C10,'RECAP SECT'!$G$6:$FJ$253,90,FALSE) -> 60% | U10: =VLOOKUP($C10,'RECAP SECT'!$G$6:$FJ$253,91,FALSE) -> 15 | W10: =VLOOKUP($C10,'RECAP SECT'!$G$6:$FJ$253,93,FALSE) -> 1.76 | X10: =VLOOKUP($C10,'RECAP SECT'!$G$6:$FJ$253,94,FALSE) -> 50% | Y10: =VLOOKUP($C10,'RECAP SECT'!$G$6:$FJ$253,95,FALSE) -> 11 | Z10: =VLOOKUP($C10,'RECAP SECT'!$G$6:$FJ$253,96,FALSE) -> 103.08 | AA10: =VLOOKUP($C10,'RECAP SECT'!$G$6:$FJ$253,97,FALSE) -> 4.65 | AB10: =VLOOKUP($C10,'RECAP SECT'!$G$6:$FJ$253,98,FALSE) -> 55% | AC10: =VLOOKUP($C10,'RECAP SECT'!$G$6:$FJ$253,99,FALSE) -> 4 | AD10: =VLOOKUP($C10,'RECAP SECT'!$G$6:$FJ$253,100,FALSE) -> 37% | AE10: =VLOOKUP($C10,'RECAP SECT'!$G$6:$FJ$253,101,FALSE) -> 26% | AF10: =VLOOKUP($C10,'RECAP SECT'!$G$6:$FJ$253,102,FALSE) -> 9
A11: 50 | B11: AUBE HAUTE MARNE | C11: 14 | D11: TROYES | E11: =VLOOKUP($C11,'RECAP SECT'!$G$6:$FJ$253,3,FALSE) -> 65.3 | F11: =VLOOKUP($C11,'RECAP SECT'!$G$6:$FJ$253,76,FALSE) -> 314.43 | G11: =VLOOKUP($C11,'RECAP SECT'!$G$6:$FJ$253,77,FALSE) -> 30.83 | H11: =VLOOKUP($C11,'RECAP SECT'!$G$6:$FJ$253,78,FALSE) -> 18% | I11: =VLOOKUP($C11,'RECAP SECT'!$G$6:$FJ$253,79,FALSE) -> 7 | K11: =VLOOKUP($C11,'RECAP SECT'!$G$6:$FJ$253,81,FALSE) -> 6.26 | L11: =VLOOKUP($C11,'RECAP SECT'!$G$6:$FJ$253,82,FALSE) -> 33% | M11: =VLOOKUP($C11,'RECAP SECT'!$G$6:$FJ$253,83,FALSE) -> 12 | N11: =VLOOKUP($C11,'RECAP SECT'!$G$6:$FJ$253,84,FALSE) -> 679.97 | O11: =VLOOKUP($C11,'RECAP SECT'!$G$6:$FJ$253,85,FALSE) -> 28.53 | P11: =VLOOKUP($C11,'RECAP SECT'!$G$6:$FJ$253,86,FALSE) -> 49% | Q11: =VLOOKUP($C11,'RECAP SECT'!$G$6:$FJ$253,87,FALSE) -> 11 | S11: =VLOOKUP($C11,'RECAP SECT'!$G$6:$FJ$253,89,FALSE) -> 12.71 | T11: =VLOOKUP($C11,'RECAP SECT'!$G$6:$FJ$253,90,FALSE) -> 67% | U11: =VLOOKUP($C11,'RECAP SECT'!$G$6:$FJ$253,91,FALSE) -> 18 | W11: =VLOOKUP($C11,'RECAP SECT'!$G$6:$FJ$253,93,FALSE) -> 1.61 | X11: =VLOOKUP($C11,'RECAP SECT'!$G$6:$FJ$253,94,FALSE) -> 54% | Y11: =VLOOKUP($C11,'RECAP SECT'!$G$6:$FJ$253,95,FALSE) -> 14 | Z11: =VLOOKUP($C11,'RECAP SECT'!$G$6:$FJ$253,96,FALSE) -> 198.96 | AA11: =VLOOKUP($C11,'RECAP SECT'!$G$6:$FJ$253,97,FALSE) -> 7.23 | AB11: =VLOOKUP($C11,'RECAP SECT'!$G$6:$FJ$253,98,FALSE) -> 30% | AC11: =VLOOKUP($C11,'RECAP SECT'!$G$6:$FJ$253,99,FALSE) -> 2 | AD11: =VLOOKUP($C11,'RECAP SECT'!$G$6:$FJ$253,100,FALSE) -> 40% | AE11: =VLOOKUP($C11,'RECAP SECT'!$G$6:$FJ$253,101,FALSE) -> 30% | AF11: =VLOOKUP($C11,'RECAP SECT'!$G$6:$FJ$253,102,FALSE) -> 10
A12: 262 | B12: BAS-RHIN | C12: 5060 | D12: HAGUENAU | E12: =VLOOKUP($C12,'RECAP SECT'!$G$6:$FJ$253,3,FALSE) -> 74.3 | F12: =VLOOKUP($C12,'RECAP SECT'!$G$6:$FJ$253,76,FALSE) -> 288.39 | G12: =VLOOKUP($C12,'RECAP SECT'!$G$6:$FJ$253,77,FALSE) -> 24.73 | H12: =VLOOKUP($C12,'RECAP SECT'!$G$6:$FJ$253,78,FALSE) -> 34% | I12: =VLOOKUP($C12,'RECAP SECT'!$G$6:$FJ$253,79,FALSE) -> 16 | K12: =VLOOKUP($C12,'RECAP SECT'!$G$6:$FJ$253,81,FALSE) -> 6.21 | L12: =VLOOKUP($C12,'RECAP SECT'!$G$6:$FJ$253,82,FALSE) -> 34% | M12: =VLOOKUP($C12,'RECAP SECT'!$G$6:$FJ$253,83,FALSE) -> 13 | N12: =VLOOKUP($C12,'RECAP SECT'!$G$6:$FJ$253,84,FALSE) -> 634.89 | O12: =VLOOKUP($C12,'RECAP SECT'!$G$6:$FJ$253,85,FALSE) -> 22.44 | P12: =VLOOKUP($C12,'RECAP SECT'!$G$6:$FJ$253,86,FALSE) -> 60% | Q12: =VLOOKUP($C12,'RECAP SECT'!$G$6:$FJ$253,87,FALSE) -> 18 | S12: =VLOOKUP($C12,'RECAP SECT'!$G$6:$FJ$253,89,FALSE) -> 13.85 | T12: =VLOOKUP($C12,'RECAP SECT'!$G$6:$FJ$253,90,FALSE) -> 64% | U12: =VLOOKUP($C12,'RECAP SECT'!$G$6:$FJ$253,91,FALSE) -> 16 | W12: =VLOOKUP($C12,'RECAP SECT'!$G$6:$FJ$253,93,FALSE) -> 1.32 | X12: =VLOOKUP($C12,'RECAP SECT'!$G$6:$FJ$253,94,FALSE) -> 62% | Y12: =VLOOKUP($C12,'RECAP SECT'!$G$6:$FJ$253,95,FALSE) -> 18 | Z12: =VLOOKUP($C12,'RECAP SECT'!$G$6:$FJ$253,96,FALSE) -> 75.57 | AA12: =VLOOKUP($C12,'RECAP SECT'!$G$6:$FJ$253,97,FALSE) -> 2.14 | AB12: =VLOOKUP($C12,'RECAP SECT'!$G$6:$FJ$253,98,FALSE) -> 79% | AC12: =VLOOKUP($C12,'RECAP SECT'!$G$6:$FJ$253,99,FALSE) -> 13 | AD12: =VLOOKUP($C12,'RECAP SECT'!$G$6:$FJ$253,100,FALSE) -> 55% | AE12: =VLOOKUP($C12,'RECAP SECT'!$G$6:$FJ$253,101,FALSE) -> 44% | AF12: =VLOOKUP($C12,'RECAP SECT'!$G$6:$FJ$253,102,FALSE) -> 18
A13: 262 | B13: BAS-RHIN | C13: 5101 | D13: SELESTAT | E13: =VLOOKUP($C13,'RECAP SECT'!$G$6:$FJ$253,3,FALSE) -> 62.1 | F13: =VLOOKUP($C13,'RECAP SECT'!$G$6:$FJ$253,76,FALSE) -> 294.38 | G13: =VLOOKUP($C13,'RECAP SECT'!$G$6:$FJ$253,77,FALSE) -> 25.07 | H13: =VLOOKUP($C13,'RECAP SECT'!$G$6:$FJ$253,78,FALSE) -> 33% | I13: =VLOOKUP($C13,'RECAP SECT'!$G$6:$FJ$253,79,FALSE) -> 14 | K13: =VLOOKUP($C13,'RECAP SECT'!$G$6:$FJ$253,81,FALSE) -> 6.02 | L13: =VLOOKUP($C13,'RECAP SECT'!$G$6:$FJ$253,82,FALSE) -> 36% | M13: =VLOOKUP($C13,'RECAP SECT'!$G$6:$FJ$253,83,FALSE) -> 16 | N13: =VLOOKUP($C13,'RECAP SECT'!$G$6:$FJ$253,84,FALSE) -> 862.21 | O13: =VLOOKUP($C13,'RECAP SECT'!$G$6:$FJ$253,85,FALSE) -> 27.31 | P13: =VLOOKUP($C13,'RECAP SECT'!$G$6:$FJ$253,86,FALSE) -> 52% | Q13: =VLOOKUP($C13,'RECAP SECT'!$G$6:$FJ$253,87,FALSE) -> 13 | S13: =VLOOKUP($C13,'RECAP SECT'!$G$6:$FJ$253,89,FALSE) -> 19.31 | T13: =VLOOKUP($C13,'RECAP SECT'!$G$6:$FJ$253,90,FALSE) -> 50% | U13: =VLOOKUP($C13,'RECAP SECT'!$G$6:$FJ$253,91,FALSE) -> 10 | W13: =VLOOKUP($C13,'RECAP SECT'!$G$6:$FJ$253,93,FALSE) -> 1.65 | X13: =VLOOKUP($C13,'RECAP SECT'!$G$6:$FJ$253,94,FALSE) -> 53% | Y13: =VLOOKUP($C13,'RECAP SECT'!$G$6:$FJ$253,95,FALSE) -> 13 | Z13: =VLOOKUP($C13,'RECAP SECT'!$G$6:$FJ$253,96,FALSE) -> 90.31 | AA13: =VLOOKUP($C13,'RECAP SECT'!$G$6:$FJ$253,97,FALSE) -> 1.92 | AB13: =VLOOKUP($C13,'RECAP SECT'!$G$6:$FJ$253,98,FALSE) -> 81% | AC13: =VLOOKUP($C13,'RECAP SECT'!$G$6:$FJ$253,99,FALSE) -> 14 | AD13: =VLOOKUP($C13,'RECAP SECT'!$G$6:$FJ$253,100,FALSE) -> 50% | AE13: =VLOOKUP($C13,'RECAP SECT'!$G$6:$FJ$253,101,FALSE) -> 39% | AF13: =VLOOKUP($C13,'RECAP SECT'!$G$6:$FJ$253,102,FALSE) -> 15
A14: 262 | B14: BAS-RHIN | C14: 5006 | D14: STRASBOURG | E14: =VLOOKUP($C14,'RECAP SECT'!$G$6:$FJ$253,3,FALSE) -> 73.4 | F14: =VLOOKUP($C14,'RECAP SECT'!$G$6:$FJ$253,76,FALSE) -> 269.35 | G14: =VLOOKUP($C14,'RECAP SECT'!$G$6:$FJ$253,77,FALSE) -> 23.21 | H14: =VLOOKUP($C14,'RECAP SECT'!$G$6:$FJ$253,78,FALSE) -> 38% | I14: =VLOOKUP($C14,'RECAP SECT'!$G$6:$FJ$253,79,FALSE) -> 17 | K14: =VLOOKUP($C14,'RECAP SECT'!$G$6:$FJ$253,81,FALSE) -> 6.14 | L14: =VLOOKUP($C14,'RECAP SECT'!$G$6:$FJ$253,82,FALSE) -> 34% | M14: =VLOOKUP($C14,'RECAP SECT'!$G$6:$FJ$253,83,FALSE) -> 14 | N14: =VLOOKUP($C14,'RECAP SECT'!$G$6:$FJ$253,84,FALSE) -> 1267.84 | O14: =VLOOKUP($C14,'RECAP SECT'!$G$6:$FJ$253,85,FALSE) -> 28.95 | P14: =VLOOKUP($C14,'RECAP SECT'!$G$6:$FJ$253,86,FALSE) -> 49% | Q14: =VLOOKUP($C14,'RECAP SECT'!$G$6:$FJ$253,87,FALSE) -> 10 | S14: =VLOOKUP($C14,'RECAP SECT'!$G$6:$FJ$253,89,FALSE) -> 18.57 | T14: =VLOOKUP($C14,'RECAP SECT'!$G$6:$FJ$253,90,FALSE) -> 52% | U14: =VLOOKUP($C14,'RECAP SECT'!$G$6:$FJ$253,91,FALSE) -> 11 | W14: =VLOOKUP($C14,'RECAP SECT'!$G$6:$FJ$253,93,FALSE) -> 2.28 | X14: =VLOOKUP($C14,'RECAP SECT'!$G$6:$FJ$253,94,FALSE) -> 35% | Y14: =VLOOKUP($C14,'RECAP SECT'!$G$6:$FJ$253,95,FALSE) -> 9 | Z14: =VLOOKUP($C14,'RECAP SECT'!$G$6:$FJ$253,96,FALSE) -> 178.71 | AA14: =VLOOKUP($C14,'RECAP SECT'!$G$6:$FJ$253,97,FALSE) -> 6.50 | AB14: =VLOOKUP($C14,'RECAP SECT'!$G$6:$FJ$253,98,FALSE) -> 37% | AC14: =VLOOKUP($C14,'RECAP SECT'!$G$6:$FJ$253,99,FALSE) -> 3 | AD14: =VLOOKUP($C14,'RECAP SECT'!$G$6:$FJ$253,100,FALSE) -> 42% | AE14: =VLOOKUP($C14,'RECAP SECT'!$G$6:$FJ$253,101,FALSE) -> 32% | AF14: =VLOOKUP($C14,'RECAP SECT'!$G$6:$FJ$253,102,FALSE) -> 11
A15: 264 | B15: HAUT-RHIN | C15: 5130 | D15: COLMAR | E15: =VLOOKUP($C15,'RECAP SECT'!$G$6:$FJ$253,3,FALSE) -> 64.9 | F15: =VLOOKUP($C15,'RECAP SECT'!$G$6:$FJ$253,76,FALSE) -> 248.15 | G15: =VLOOKUP($C15,'RECAP SECT'!$G$6:$FJ$253,77,FALSE) -> 21.77 | H15: =VLOOKUP($C15,'RECAP SECT'!$G$6:$FJ$253,78,FALSE) -> 42% | I15: =VLOOKUP($C15,'RECAP SECT'!$G$6:$FJ$253,79,FALSE) -> 18 | K15: =VLOOKUP($C15,'RECAP SECT'!$G$6:$FJ$253,81,FALSE) -> 5.12 | L15: =VLOOKUP($C15,'RECAP SECT'!$G$6:$FJ$253,82,FALSE) -> 45% | M15: =VLOOKUP($C15,'RECAP SECT'!$G$6:$FJ$253,83,FALSE) -> 18 | N15: =VLOOKUP($C15,'RECAP SECT'!$G$6:$FJ$253,84,FALSE) -> 752.39 | O15: =VLOOKUP($C15,'RECAP SECT'!$G$6:$FJ$253,85,FALSE) -> 25.28 | P15: =VLOOKUP($C15,'RECAP SECT'!$G$6:$FJ$253,86,FALSE) -> 55% | Q15: =VLOOKUP($C15,'RECAP SECT'!$G$6:$FJ$253,87,FALSE) -> 17 | S15: =VLOOKUP($C15,'RECAP SECT'!$G$6:$FJ$253,89,FALSE) -> 13.25 | T15: =VLOOKUP($C15,'RECAP SECT'!$G$6:$FJ$253,90,FALSE) -> 66% | U15: =VLOOKUP($C15,'RECAP SECT'!$G$6:$FJ$253,91,FALSE) -> 17 | W15: =VLOOKUP($C15,'RECAP SECT'!$G$6:$FJ$253,93,FALSE) -> 1.39 | X15: =VLOOKUP($C15,'RECAP SECT'!$G$6:$FJ$253,94,FALSE) -> 60% | Y15: =VLOOKUP($C15,'RECAP SECT'!$G$6:$FJ$253,95,FALSE) -> 16 | Z15: =VLOOKUP($C15,'RECAP SECT'!$G$6:$FJ$253,96,FALSE) -> 110.38 | AA15: =VLOOKUP($C15,'RECAP SECT'!$G$6:$FJ$253,97,FALSE) -> 4.03 | AB15: =VLOOKUP($C15,'RECAP SECT'!$G$6:$FJ$253,98,FALSE) -> 61% | AC15: =VLOOKUP($C15,'RECAP SECT'!$G$6:$FJ$253,99,FALSE) -> 6 | AD15: =VLOOKUP($C15,'RECAP SECT'!$G$6:$FJ$253,100,FALSE) -> 54% | AE15: =VLOOKUP($C15,'RECAP SECT'!$G$6:$FJ$253,101,FALSE) -> 43% | AF15: =VLOOKUP($C15,'RECAP SECT'!$G$6:$FJ$253,102,FALSE) -> 17
A16: 264 | B16: HAUT-RHIN | C16: 5169 | D16: MULHOUSE | E16: =VLOOKUP($C16,'RECAP SECT'!$G$6:$FJ$253,3,FALSE) -> 61.1 | F16: =VLOOKUP($C16,'RECAP SECT'!$G$6:$FJ$253,76,FALSE) -> 290.35 | G16: =VLOOKUP($C16,'RECAP SECT'!$G$6:$FJ$253,77,FALSE) -> 25.56 | H16: =VLOOKUP($C16,'RECAP SECT'!$G$6:$FJ$253,78,FALSE) -> 32% | I16: =VLOOKUP($C16,'RECAP SECT'!$G$6:$FJ$253,79,FALSE) -> 13 | K16: =VLOOKUP($C16,'RECAP SECT'!$G$6:$FJ$253,81,FALSE) -> 6.60 | L16: =VLOOKUP($C16,'RECAP SECT'!$G$6:$FJ$253,82,FALSE) -> 29% | M16: =VLOOKUP($C16,'RECAP SECT'!$G$6:$FJ$253,83,FALSE) -> 9 | N16: =VLOOKUP($C16,'RECAP SECT'!$G$6:$FJ$253,84,FALSE) -> 902.58 | O16: =VLOOKUP($C16,'RECAP SECT'!$G$6:$FJ$253,85,FALSE) -> 28.40 | P16: =VLOOKUP($C16,'RECAP SECT'!$G$6:$FJ$253,86,FALSE) -> 50% | Q16: =VLOOKUP($C16,'RECAP SECT'!$G$6:$FJ$253,87,FALSE) -> 12 | S16: =VLOOKUP($C16,'RECAP SECT'!$G$6:$FJ$253,89,FALSE) -> 24.10 | T16: =VLOOKUP($C16,'RECAP SECT'!$G$6:$FJ$253,90,FALSE) -> 37% | U16: =VLOOKUP($C16,'RECAP SECT'!$G$6:$FJ$253,91,FALSE) -> 6 | W16: =VLOOKUP($C16,'RECAP SECT'!$G$6:$FJ$253,93,FALSE) -> 1.47 | X16: =VLOOKUP($C16,'RECAP SECT'!$G$6:$FJ$253,94,FALSE) -> 58% | Y16: =VLOOKUP($C16,'RECAP SECT'!$G$6:$FJ$253,95,FALSE) -> 15 | Z16: =VLOOKUP($C16,'RECAP SECT'!$G$6:$FJ$253,96,FALSE) -> 120.82 | AA16: =VLOOKUP($C16,'RECAP SECT'!$G$6:$FJ$253,97,FALSE) -> 4.09 | AB16: =VLOOKUP($C16,'RECAP SECT'!$G$6:$FJ$253,98,FALSE) -> 60% | AC16: =VLOOKUP($C16,'RECAP SECT'!$G$6:$FJ$253,99,FALSE) -> 5 | AD16: =VLOOKUP($C16,'RECAP SECT'!$G$6:$FJ$253,100,FALSE) -> 45% | AE16: =VLOOKUP($C16,'RECAP SECT'!$G$6:$FJ$253,101,FALSE) -> 34% | AF16: =VLOOKUP($C16,'RECAP SECT'!$G$6:$FJ$253,102,FALSE) -> 13
A17: 30 | B17: MARNE-ARDENNES | C17: 6 | D17: CHALONS EN CHAMPAGNE | E17: =VLOOKUP($C17,'RECAP SECT'!$G$6:$FJ$253,3,FALSE) -> 45.0 | F17: =VLOOKUP($C17,'RECAP SECT'!$G$6:$FJ$253,76,FALSE) -> 318.80 | G17: =VLOOKUP($C17,'RECAP SECT'!$G$6:$FJ$253,77,FALSE) -> 28.81 | H17: =VLOOKUP($C17,'RECAP SECT'!$G$6:$FJ$253,78,FALSE) -> 23% | I17: =VLOOKUP($C17,'RECAP SECT'!$G$6:$FJ$253,79,FALSE) -> 10 | K17: =VLOOKUP($C17,'RECAP SECT'!$G$6:$FJ$253,81,FALSE) -> 6.91 | L17: =VLOOKUP($C17,'RECAP SECT'!$G$6:$FJ$253,82,FALSE) -> 26% | M17: =VLOOKUP($C17,'RECAP SECT'!$G$6:$FJ$253,83,FALSE) -> 7 | N17: =VLOOKUP($C17,'RECAP SECT'!$G$6:$FJ$253,84,FALSE) -> 1097.56 | O17: =VLOOKUP($C17,'RECAP SECT'!$G$6:$FJ$253,85,FALSE) -> 45.35 | P17: =VLOOKUP($C17,'RECAP SECT'!$G$6:$FJ$253,86,FALSE) -> 20% | Q17: =VLOOKUP($C17,'RECAP SECT'!$G$6:$FJ$253,87,FALSE) -> 5 | S17: =VLOOKUP($C17,'RECAP SECT'!$G$6:$FJ$253,89,FALSE) -> 29.35 | T17: =VLOOKUP($C17,'RECAP SECT'!$G$6:$FJ$253,90,FALSE) -> 24% | U17: =VLOOKUP($C17,'RECAP SECT'!$G$6:$FJ$253,91,FALSE) -> 5 | W17: =VLOOKUP($C17,'RECAP SECT'!$G$6:$FJ$253,93,FALSE) -> 2.60 | X17: =VLOOKUP($C17,'RECAP SECT'!$G$6:$FJ$253,94,FALSE) -> 26% | Y17: =VLOOKUP($C17,'RECAP SECT'!$G$6:$FJ$253,95,FALSE) -> 6 | Z17: =VLOOKUP($C17,'RECAP SECT'!$G$6:$FJ$253,96,FALSE) -> 160.26 | AA17: =VLOOKUP($C17,'RECAP SECT'!$G$6:$FJ$253,97,FALSE) -> 1.47 | AB17: =VLOOKUP($C17,'RECAP SECT'!$G$6:$FJ$253,98,FALSE) -> 86% | AC17: =VLOOKUP($C17,'RECAP SECT'!$G$6:$FJ$253,99,FALSE) -> 18 | AD17: =VLOOKUP($C17,'RECAP SECT'!$G$6:$FJ$253,100,FALSE) -> 31% | AE17: =VLOOKUP($C17,'RECAP SECT'!$G$6:$FJ$253,101,FALSE) -> 21% | AF17: =VLOOKUP($C17,'RECAP SECT'!$G$6:$FJ$253,102,FALSE) -> 5
A18: 30 | B18: MARNE-ARDENNES | C18: 2 | D18: CHARLEVILLE MEZIERES | E18: =VLOOKUP($C18,'RECAP SECT'!$G$6:$FJ$253,3,FALSE) -> 54.5 | F18: =VLOOKUP($C18,'RECAP SECT'!$G$6:$FJ$253,76,FALSE) -> 341.72 | G18: =VLOOKUP($C18,'RECAP SECT'!$G$6:$FJ$253,77,FALSE) -> 32.52 | H18: =VLOOKUP($C18,'RECAP SECT'!$G$6:$FJ$253,78,FALSE) -> 13% | I18: =VLOOKUP($C18,'RECAP SECT'!$G$6:$FJ$253,79,FALSE) -> 4 | K18: =VLOOKUP($C18,'RECAP SECT'!$G$6:$FJ$253,81,FALSE) -> 7.40 | L18: =VLOOKUP($C18,'RECAP SECT'!$G$6:$FJ$253,82,FALSE) -> 21% | M18: =VLOOKUP($C18,'RECAP SECT'!$G$6:$FJ$253,83,FALSE) -> 4 | N18: =VLOOKUP($C18,'RECAP SECT'!$G$6:$FJ$253,84,FALSE) -> 1087.88 | O18: =VLOOKUP($C18,'RECAP SECT'!$G$6:$FJ$253,85,FALSE) -> 47.76 | P18: =VLOOKUP($C18,'RECAP SECT'!$G$6:$FJ$253,86,FALSE) -> 15% | Q18: =VLOOKUP($C18,'RECAP SECT'!$G$6:$FJ$253,87,FALSE) -> 3 | S18: =VLOOKUP($C18,'RECAP SECT'!$G$6:$FJ$253,89,FALSE) -> 29.96 | T18: =VLOOKUP($C18,'RECAP SECT'!$G$6:$FJ$253,90,FALSE) -> 22% | U18: =VLOOKUP($C18,'RECAP SECT'!$G$6:$FJ$253,91,FALSE) -> 4 | W18: =VLOOKUP($C18,'RECAP SECT'!$G$6:$FJ$253,93,FALSE) -> 2.73 | X18: =VLOOKUP($C18,'RECAP SECT'!$G$6:$FJ$253,94,FALSE) -> 22% | Y18: =VLOOKUP($C18,'RECAP SECT'!$G$6:$FJ$253,95,FALSE) -> 5 | Z18: =VLOOKUP($C18,'RECAP SECT'!$G$6:$FJ$253,96,FALSE) -> 72.71 | AA18: =VLOOKUP($C18,'RECAP SECT'!$G$6:$FJ$253,97,FALSE) -> 1.79 | AB18: =VLOOKUP($C18,'RECAP SECT'!$G$6:$FJ$253,98,FALSE) -> 83% | AC18: =VLOOKUP($C18,'RECAP SECT'!$G$6:$FJ$253,99,FALSE) -> 16 | AD18: =VLOOKUP($C18,'RECAP SECT'!$G$6:$FJ$253,100,FALSE) -> 26% | AE18: =VLOOKUP($C18,'RECAP SECT'!$G$6:$FJ$253,101,FALSE) -> 16% | AF18: =VLOOKUP($C18,'RECAP SECT'!$G$6:$FJ$253,102,FALSE) -> 3
A19: 30 | B19: MARNE-ARDENNES | C19: 11 | D19: REIMS | E19: =VLOOKUP($C19,'RECAP SECT'!$G$6:$FJ$253,3,FALSE) -> 78.1 | F19: =VLOOKUP($C19,'RECAP SECT'!$G$6:$FJ$253,76,FALSE) -> 331.55 | G19: =VLOOKUP($C19,'RECAP SECT'!$G$6:$FJ$253,77,FALSE) -> 28.06 | H19: =VLOOKUP($C19,'RECAP SECT'!$G$6:$FJ$253,78,FALSE) -> 25% | I19: =VLOOKUP($C19,'RECAP SECT'!$G$6:$FJ$253,79,FALSE) -> 12 | K19: =VLOOKUP($C19,'RECAP SECT'!$G$6:$FJ$253,81,FALSE) -> 6.59 | L19: =VLOOKUP($C19,'RECAP SECT'!$G$6:$FJ$253,82,FALSE) -> 30% | M19: =VLOOKUP($C19,'RECAP SECT'!$G$6:$FJ$253,83,FALSE) -> 10 | N19: =VLOOKUP($C19,'RECAP SECT'!$G$6:$FJ$253,84,FALSE) -> 1521.32 | O19: =VLOOKUP($C19,'RECAP SECT'!$G$6:$FJ$253,85,FALSE) -> 48.78 | P19: =VLOOKUP($C19,'RECAP SECT'!$G$6:$FJ$253,86,FALSE) -> 14% | Q19: =VLOOKUP($C19,'RECAP SECT'!$G$6:$FJ$253,87,FALSE) -> 2 | S19: =VLOOKUP($C19,'RECAP SECT'!$G$6:$FJ$253,89,FALSE) -> 38.51 | T19: =VLOOKUP($C19,'RECAP SECT'!$G$6:$FJ$253,90,FALSE) -> 0% | U19: =VLOOKUP($C19,'RECAP SECT'!$G$6:$FJ$253,91,FALSE) -> 1 | W19: =VLOOKUP($C19,'RECAP SECT'!$G$6:$FJ$253,93,FALSE) -> 3.32 | X19: =VLOOKUP($C19,'RECAP SECT'!$G$6:$FJ$253,94,FALSE) -> 6% | Y19: =VLOOKUP($C19,'RECAP SECT'!$G$6:$FJ$253,95,FALSE) -> 2 | Z19: =VLOOKUP($C19,'RECAP SECT'!$G$6:$FJ$253,96,FALSE) -> 332.44 | AA19: =VLOOKUP($C19,'RECAP SECT'!$G$6:$FJ$253,97,FALSE) -> 10.27 | AB19: =VLOOKUP($C19,'RECAP SECT'!$G$6:$FJ$253,98,FALSE) -> 0% | AC19: =VLOOKUP($C19,'RECAP SECT'!$G$6:$FJ$253,99,FALSE) -> 1 | AD19: =VLOOKUP($C19,'RECAP SECT'!$G$6:$FJ$253,100,FALSE) -> 13% | AE19: =VLOOKUP($C19,'RECAP SECT'!$G$6:$FJ$253,101,FALSE) -> 3% | AF19: =VLOOKUP($C19,'RECAP SECT'!$G$6:$FJ$253,102,FALSE) -> 2
A20: 110 | B20: MEURTHE ET MOSELLE MEUSE | C20: 26 | D20: NANCY | E20: =VLOOKUP($C20,'RECAP SECT'!$G$6:$FJ$253,3,FALSE) -> 63.6 | F20: =VLOOKUP($C20,'RECAP SECT'!$G$6:$FJ$253,76,FALSE) -> 296.26 | G20: =VLOOKUP($C20,'RECAP SECT'!$G$6:$FJ$253,77,FALSE) -> 28.60 | H20: =VLOOKUP($C20,'RECAP SECT'!$G$6:$FJ$253,78,FALSE) -> 24% | I20: =VLOOKUP($C20,'RECAP SECT'!$G$6:$FJ$253,79,FALSE) -> 11 | K20: =VLOOKUP($C20,'RECAP SECT'!$G$6:$FJ$253,81,FALSE) -> 6.10 | L20: =VLOOKUP($C20,'RECAP SECT'!$G$6:$FJ$253,82,FALSE) -> 35% | M20: =VLOOKUP($C20,'RECAP SECT'!$G$6:$FJ$253,83,FALSE) -> 15 | N20: =VLOOKUP($C20,'RECAP SECT'!$G$6:$FJ$253,84,FALSE) -> 1437.43 | O20: =VLOOKUP($C20,'RECAP SECT'!$G$6:$FJ$253,85,FALSE) -> 44.05 | P20: =VLOOKUP($C20,'RECAP SECT'!$G$6:$FJ$253,86,FALSE) -> 22% | Q20: =VLOOKUP($C20,'RECAP SECT'!$G$6:$FJ$253,87,FALSE) -> 6 | S20: =VLOOKUP($C20,'RECAP SECT'!$G$6:$FJ$253,89,FALSE) -> 30.24 | T20: =VLOOKUP($C20,'RECAP SECT'!$G$6:$FJ$253,90,FALSE) -> 21% | U20: =VLOOKUP($C20,'RECAP SECT'!$G$6:$FJ$253,91,FALSE) -> 3 | W20: =VLOOKUP($C20,'RECAP SECT'!$G$6:$FJ$253,93,FALSE) -> 3.25 | X20: =VLOOKUP($C20,'RECAP SECT'!$G$6:$FJ$253,94,FALSE) -> 7% | Y20: =VLOOKUP($C20,'RECAP SECT'!$G$6:$FJ$253,95,FALSE) -> 3 | Z20: =VLOOKUP($C20,'RECAP SECT'!$G$6:$FJ$253,96,FALSE) -> 61.56 | AA20: =VLOOKUP($C20,'RECAP SECT'!$G$6:$FJ$253,97,FALSE) -> 2.64 | AB20: =VLOOKUP($C20,'RECAP SECT'!$G$6:$FJ$253,98,FALSE) -> 74% | AC20: =VLOOKUP($C20,'RECAP SECT'!$G$6:$FJ$253,99,FALSE) -> 9 | AD20: =VLOOKUP($C20,'RECAP SECT'!$G$6:$FJ$253,100,FALSE) -> 28% | AE20: =VLOOKUP($C20,'RECAP SECT'!$G$6:$FJ$253,101,FALSE) -> 18% | AF20: =VLOOKUP($C20,'RECAP SECT'!$G$6:$FJ$253,102,FALSE) -> 4
A21: 110 | B21: MEURTHE ET MOSELLE MEUSE | C21: 27 | D21: PONT A MOUSSON | E21: =VLOOKUP($C21,'RECAP SECT'!$G$6:$FJ$253,3,FALSE) -> 71.9 | F21: =VLOOKUP($C21,'RECAP SECT'!$G$6:$FJ$253,76,FALSE) -> 390.93 | G21: =VLOOKUP($C21,'RECAP SECT'!$G$6:$FJ$253,77,FALSE) -> 36.15 | H21: =VLOOKUP($C21,'RECAP SECT'!$G$6:$FJ$253,78,FALSE) -> 4% | I21: =VLOOKUP($C21,'RECAP SECT'!$G$6:$FJ$253,79,FALSE) -> 2 | K21: =VLOOKUP($C21,'RECAP SECT'!$G$6:$FJ$253,81,FALSE) -> 9.36 | L21: =VLOOKUP($C21,'RECAP SECT'!$G$6:$FJ$253,82,FALSE) -> 0% | M21: =VLOOKUP($C21,'RECAP SECT'!$G$6:$FJ$253,83,FALSE) -> 1 | N21: =VLOOKUP($C21,'RECAP SECT'!$G$6:$FJ$253,84,FALSE) -> 1568.71 | O21: =VLOOKUP($C21,'RECAP SECT'!$G$6:$FJ$253,85,FALSE) -> 56.47 | P21: =VLOOKUP($C21,'RECAP SECT'!$G$6:$FJ$253,86,FALSE) -> 0% | Q21: =VLOOKUP($C21,'RECAP SECT'!$G$6:$FJ$253,87,FALSE) -> 1 | S21: =VLOOKUP($C21,'RECAP SECT'!$G$6:$FJ$253,89,FALSE) -> 37.92 | T21: =VLOOKUP($C21,'RECAP SECT'!$G$6:$FJ$253,90,FALSE) -> 2% | U21: =VLOOKUP($C21,'RECAP SECT'!$G$6:$FJ$253,91,FALSE) -> 2 | W21: =VLOOKUP($C21,'RECAP SECT'!$G$6:$FJ$253,93,FALSE) -> 3.51 | X21: =VLOOKUP($C21,'RECAP SECT'!$G$6:$FJ$253,94,FALSE) -> 0% | Y21: =VLOOKUP($C21,'RECAP SECT'!$G$6:$FJ$253,95,FALSE) -> 1 | Z21: =VLOOKUP($C21,'RECAP SECT'!$G$6:$FJ$253,96,FALSE) -> 81.41 | AA21: =VLOOKUP($C21,'RECAP SECT'!$G$6:$FJ$253,97,FALSE) -> 3.21 | AB21: =VLOOKUP($C21,'RECAP SECT'!$G$6:$FJ$253,98,FALSE) -> 69% | AC21: =VLOOKUP($C21,'RECAP SECT'!$G$6:$FJ$253,99,FALSE) -> 7 | AD21: =VLOOKUP($C21,'RECAP SECT'!$G$6:$FJ$253,100,FALSE) -> 10% | AE21: =VLOOKUP($C21,'RECAP SECT'!$G$6:$FJ$253,101,FALSE) -> 0% | AF21: =VLOOKUP($C21,'RECAP SECT'!$G$6:$FJ$253,102,FALSE) -> 1
A22: 110 | B22: MEURTHE ET MOSELLE MEUSE | C22: 31 | D22: VERDUN | E22: =VLOOKUP($C22,'RECAP SECT'!$G$6:$FJ$253,3,FALSE) -> 51.9 | F22: =VLOOKUP($C22,'RECAP SECT'!$G$6:$FJ$253,76,FALSE) -> 339.41 | G22: =VLOOKUP($C22,'RECAP SECT'!$G$6:$FJ$253,77,FALSE) -> 32.56 | H22: =VLOOKUP($C22,'RECAP SECT'!$G$6:$FJ$253,78,FALSE) -> 13% | I22: =VLOOKUP($C22,'RECAP SECT'!$G$6:$FJ$253,79,FALSE) -> 3 | K22: =VLOOKUP($C22,'RECAP SECT'!$G$6:$FJ$253,81,FALSE) -> 6.91 | L22: =VLOOKUP($C22,'RECAP SECT'!$G$6:$FJ$253,82,FALSE) -> 26% | M22: =VLOOKUP($C22,'RECAP SECT'!$G$6:$FJ$253,83,FALSE) -> 6 | N22: =VLOOKUP($C22,'RECAP SECT'!$G$6:$FJ$253,84,FALSE) -> 918.52 | O22: =VLOOKUP($C22,'RECAP SECT'!$G$6:$FJ$253,85,FALSE) -> 41.24 | P22: =VLOOKUP($C22,'RECAP SECT'!$G$6:$FJ$253,86,FALSE) -> 27% | Q22: =VLOOKUP($C22,'RECAP SECT'!$G$6:$FJ$253,87,FALSE) -> 7 | S22: =VLOOKUP($C22,'RECAP SECT'!$G$6:$FJ$253,89,FALSE) -> 21.75 | T22: =VLOOKUP($C22,'RECAP SECT'!$G$6:$FJ$253,90,FALSE) -> 44% | U22: =VLOOKUP($C22,'RECAP SECT'!$G$6:$FJ$253,91,FALSE) -> 7 | W22: =VLOOKUP($C22,'RECAP SECT'!$G$6:$FJ$253,93,FALSE) -> 2.33 | X22: =VLOOKUP($C22,'RECAP SECT'!$G$6:$FJ$253,94,FALSE) -> 34% | Y22: =VLOOKUP($C22,'RECAP SECT'!$G$6:$FJ$253,95,FALSE) -> 8 | Z22: =VLOOKUP($C22,'RECAP SECT'!$G$6:$FJ$253,96,FALSE) -> 34.01 | AA22: =VLOOKUP($C22,'RECAP SECT'!$G$6:$FJ$253,97,FALSE) -> 2.14 | AB22: =VLOOKUP($C22,'RECAP SECT'!$G$6:$FJ$253,98,FALSE) -> 79% | AC22: =VLOOKUP($C22,'RECAP SECT'!$G$6:$FJ$253,99,FALSE) -> 12 | AD22: =VLOOKUP($C22,'RECAP SECT'!$G$6:$FJ$253,100,FALSE) -> 33% | AE22: =VLOOKUP($C22,'RECAP SECT'!$G$6:$FJ$253,101,FALSE) -> 23% | AF22: =VLOOKUP($C22,'RECAP SECT'!$G$6:$FJ$253,102,FALSE) -> 7
A23: 160 | B23: MOSELLE | C23: 45 | D23: METZ | E23: =VLOOKUP($C23,'RECAP SECT'!$G$6:$FJ$253,3,FALSE) -> 85.7 | F23: =VLOOKUP($C23,'RECAP SECT'!$G$6:$FJ$253,76,FALSE) -> 342.30 | G23: =VLOOKUP($C23,'RECAP SECT'!$G$6:$FJ$253,77,FALSE) -> 30.82 | H23: =VLOOKUP($C23,'RECAP SECT'!$G$6:$FJ$253,78,FALSE) -> 18% | I23: =VLOOKUP($C23,'RECAP SECT'!$G$6:$FJ$253,79,FALSE) -> 8 | K23: =VLOOKUP($C23,'RECAP SECT'!$G$6:$FJ$253,81,FALSE) -> 6.52 | L23: =VLOOKUP($C23,'RECAP SECT'!$G$6:$FJ$253,82,FALSE) -> 30% | M23: =VLOOKUP($C23,'RECAP SECT'!$G$6:$FJ$253,83,FALSE) -> 11 | N23: =VLOOKUP($C23,'RECAP SECT'!$G$6:$FJ$253,84,FALSE) -> 1272.83 | O23: =VLOOKUP($C23,'RECAP SECT'!$G$6:$FJ$253,85,FALSE) -> 40.82 | P23: =VLOOKUP($C23,'RECAP SECT'!$G$6:$FJ$253,86,FALSE) -> 28% | Q23: =VLOOKUP($C23,'RECAP SECT'!$G$6:$FJ$253,87,FALSE) -> 8 | S23: =VLOOKUP($C23,'RECAP SECT'!$G$6:$FJ$253,89,FALSE) -> 20.19 | T23: =VLOOKUP($C23,'RECAP SECT'!$G$6:$FJ$253,90,FALSE) -> 48% | U23: =VLOOKUP($C23,'RECAP SECT'!$G$6:$FJ$253,91,FALSE) -> 8 | W23: =VLOOKUP($C23,'RECAP SECT'!$G$6:$FJ$253,93,FALSE) -> 2.59 | X23: =VLOOKUP($C23,'RECAP SECT'!$G$6:$FJ$253,94,FALSE) -> 26% | Y23: =VLOOKUP($C23,'RECAP SECT'!$G$6:$FJ$253,95,FALSE) -> 7 | Z23: =VLOOKUP($C23,'RECAP SECT'!$G$6:$FJ$253,96,FALSE) -> 45.15 | AA23: =VLOOKUP($C23,'RECAP SECT'!$G$6:$FJ$253,97,FALSE) -> 1.85 | AB23: =VLOOKUP($C23,'RECAP SECT'!$G$6:$FJ$253,98,FALSE) -> 82% | AC23: =VLOOKUP($C23,'RECAP SECT'!$G$6:$FJ$253,99,FALSE) -> 15 | AD23: =VLOOKUP($C23,'RECAP SECT'!$G$6:$FJ$253,100,FALSE) -> 35% | AE23: =VLOOKUP($C23,'RECAP SECT'!$G$6:$FJ$253,101,FALSE) -> 25% | AF23: =VLOOKUP($C23,'RECAP SECT'!$G$6:$FJ$253,102,FALSE) -> 8
A24: 160 | B24: MOSELLE | C24: 42 | D24: MOSELLE EST | E24: =VLOOKUP($C24,'RECAP SECT'!$G$6:$FJ$253,3,FALSE) -> 70.1 | F24: =VLOOKUP($C24,'RECAP SECT'!$G$6:$FJ$253,76,FALSE) -> 331.83 | G24: =VLOOKUP($C24,'RECAP SECT'!$G$6:$FJ$253,77,FALSE) -> 31.80 | H24: =VLOOKUP($C24,'RECAP SECT'!$G$6:$FJ$253,78,FALSE) -> 15% | I24: =VLOOKUP($C24,'RECAP SECT'!$G$6:$FJ$253,79,FALSE) -> 6 | K24: =VLOOKUP($C24,'RECAP SECT'!$G$6:$FJ$253,81,FALSE) -> 6.93 | L24: =VLOOKUP($C24,'RECAP SECT'!$G$6:$FJ$253,82,FALSE) -> 26% | M24: =VLOOKUP($C24,'RECAP SECT'!$G$6:$FJ$253,83,FALSE) -> 5 | N24: =VLOOKUP($C24,'RECAP SECT'!$G$6:$FJ$253,84,FALSE) -> 780.64 | O24: =VLOOKUP($C24,'RECAP SECT'!$G$6:$FJ$253,85,FALSE) -> 32.37 | P24: =VLOOKUP($C24,'RECAP SECT'!$G$6:$FJ$253,86,FALSE) -> 43% | Q24: =VLOOKUP($C24,'RECAP SECT'!$G$6:$FJ$253,87,FALSE) -> 9 | S24: =VLOOKUP($C24,'RECAP SECT'!$G$6:$FJ$253,89,FALSE) -> 17.38 | T24: =VLOOKUP($C24,'RECAP SECT'!$G$6:$FJ$253,90,FALSE) -> 55% | U24: =VLOOKUP($C24,'RECAP SECT'!$G$6:$FJ$253,91,FALSE) -> 12 | W24: =VLOOKUP($C24,'RECAP SECT'!$G$6:$FJ$253,93,FALSE) -> 1.70 | X24: =VLOOKUP($C24,'RECAP SECT'!$G$6:$FJ$253,94,FALSE) -> 52% | Y24: =VLOOKUP($C24,'RECAP SECT'!$G$6:$FJ$253,95,FALSE) -> 12 | Z24: =VLOOKUP($C24,'RECAP SECT'!$G$6:$FJ$253,96,FALSE) -> 43.80 | AA24: =VLOOKUP($C24,'RECAP SECT'!$G$6:$FJ$253,97,FALSE) -> 2.15 | AB24: =VLOOKUP($C24,'RECAP SECT'!$G$6:$FJ$253,98,FALSE) -> 79% | AC24: =VLOOKUP($C24,'RECAP SECT'!$G$6:$FJ$253,99,FALSE) -> 11 | AD24: =VLOOKUP($C24,'RECAP SECT'!$G$6:$FJ$253,100,FALSE) -> 42% | AE24: =VLOOKUP($C24,'RECAP SECT'!$G$6:$FJ$253,101,FALSE) -> 32% | AF24: =VLOOKUP($C24,'RECAP SECT'!$G$6:$FJ$253,102,FALSE) -> 12
A25: 160 | B25: MOSELLE | C25: 44 | D25: MOSELLE NORD | E25: =VLOOKUP($C25,'RECAP SECT'!$G$6:$FJ$253,3,FALSE) -> 68.2 | F25: =VLOOKUP($C25,'RECAP SECT'!$G$6:$FJ$253,76,FALSE) -> 332.43 | G25: =VLOOKUP($C25,'RECAP SECT'!$G$6:$FJ$253,77,FALSE) -> 29.84 | H25: =VLOOKUP($C25,'RECAP SECT'!$G$6:$FJ$253,78,FALSE) -> 21% | I25: =VLOOKUP($C25,'RECAP SECT'!$G$6:$FJ$253,79,FALSE) -> 9 | K25: =VLOOKUP($C25,'RECAP SECT'!$G$6:$FJ$253,81,FALSE) -> 6.75 | L25: =VLOOKUP($C25,'RECAP SECT'!$G$6:$FJ$253,82,FALSE) -> 28% | M25: =VLOOKUP($C25,'RECAP SECT'!$G$6:$FJ$253,83,FALSE) -> 8 | N25: =VLOOKUP($C25,'RECAP SECT'!$G$6:$FJ$253,84,FALSE) -> 1345.34 | O25: =VLOOKUP($C25,'RECAP SECT'!$G$6:$FJ$253,85,FALSE) -> 46.86 | P25: =VLOOKUP($C25,'RECAP SECT'!$G$6:$FJ$253,86,FALSE) -> 17% | Q25: =VLOOKUP($C25,'RECAP SECT'!$G$6:$FJ$253,87,FALSE) -> 4 | S25: =VLOOKUP($C25,'RECAP SECT'!$G$6:$FJ$253,89,FALSE) -> 20.03 | T25: =VLOOKUP($C25,'RECAP SECT'!$G$6:$FJ$253,90,FALSE) -> 48% | U25: =VLOOKUP($C25,'RECAP SECT'!$G$6:$FJ$253,91,FALSE) -> 9 | W25: =VLOOKUP($C25,'RECAP SECT'!$G$6:$FJ$253,93,FALSE) -> 3.04 | X25: =VLOOKUP($C25,'RECAP SECT'!$G$6:$FJ$253,94,FALSE) -> 14% | Y25: =VLOOKUP($C25,'RECAP SECT'!$G$6:$FJ$253,95,FALSE) -> 4 | Z25: =VLOOKUP($C25,'RECAP SECT'!$G$6:$FJ$253,96,FALSE) -> 46.72 | AA25: =VLOOKUP($C25,'RECAP SECT'!$G$6:$FJ$253,97,FALSE) -> 1.50 | AB25: =VLOOKUP($C25,'RECAP SECT'!$G$6:$FJ$253,98,FALSE) -> 85% | AC25: =VLOOKUP($C25,'RECAP SECT'!$G$6:$FJ$253,99,FALSE) -> 17 | AD25: =VLOOKUP($C25,'RECAP SECT'!$G$6:$FJ$253,100,FALSE) -> 31% | AE25: =VLOOKUP($C25,'RECAP SECT'!$G$6:$FJ$253,101,FALSE) -> 21% | AF25: =VLOOKUP($C25,'RECAP SECT'!$G$6:$FJ$253,102,FALSE) -> 6
A26: 80 | B26: VOSGES | C26: 57 | D26: EPINAL | E26: =VLOOKUP($C26,'RECAP SECT'!$G$6:$FJ$253,3,FALSE) -> 59.2 | F26: =VLOOKUP($C26,'RECAP SECT'!$G$6:$FJ$253,76,FALSE) -> 288.34 | G26: =VLOOKUP($C26,'RECAP SECT'!$G$6:$FJ$253,77,FALSE) -> 24.95 | H26: =VLOOKUP($C26,'RECAP SECT'!$G$6:$FJ$253,78,FALSE) -> 34% | I26: =VLOOKUP($C26,'RECAP SECT'!$G$6:$FJ$253,79,FALSE) -> 15 | K26: =VLOOKUP($C26,'RECAP SECT'!$G$6:$FJ$253,81,FALSE) -> 5.95 | L26: =VLOOKUP($C26,'RECAP SECT'!$G$6:$FJ$253,82,FALSE) -> 36% | M26: =VLOOKUP($C26,'RECAP SECT'!$G$6:$FJ$253,83,FALSE) -> 17 | N26: =VLOOKUP($C26,'RECAP SECT'!$G$6:$FJ$253,84,FALSE) -> 703.74 | O26: =VLOOKUP($C26,'RECAP SECT'!$G$6:$FJ$253,85,FALSE) -> 26.79 | P26: =VLOOKUP($C26,'RECAP SECT'!$G$6:$FJ$253,86,FALSE) -> 53% | Q26: =VLOOKUP($C26,'RECAP SECT'!$G$6:$FJ$253,87,FALSE) -> 15 | S26: =VLOOKUP($C26,'RECAP SECT'!$G$6:$FJ$253,89,FALSE) -> 16.20 | T26: =VLOOKUP($C26,'RECAP SECT'!$G$6:$FJ$253,90,FALSE) -> 58% | U26: =VLOOKUP($C26,'RECAP SECT'!$G$6:$FJ$253,91,FALSE) -> 13 | W26: =VLOOKUP($C26,'RECAP SECT'!$G$6:$FJ$253,93,FALSE) -> 1.78 | X26: =VLOOKUP($C26,'RECAP SECT'!$G$6:$FJ$253,94,FALSE) -> 49% | Y26: =VLOOKUP($C26,'RECAP SECT'!$G$6:$FJ$253,95,FALSE) -> 10 | Z26: =VLOOKUP($C26,'RECAP SECT'!$G$6:$FJ$253,96,FALSE) -> 77.28 | AA26: =VLOOKUP($C26,'RECAP SECT'!$G$6:$FJ$253,97,FALSE) -> 2.31 | AB26: =VLOOKUP($C26,'RECAP SECT'!$G$6:$FJ$253,98,FALSE) -> 78% | AC26: =VLOOKUP($C26,'RECAP SECT'!$G$6:$FJ$253,99,FALSE) -> 10 | AD26: =VLOOKUP($C26,'RECAP SECT'!$G$6:$FJ$253,100,FALSE) -> 50% | AE26: =VLOOKUP($C26,'RECAP SECT'!$G$6:$FJ$253,101,FALSE) -> 40% | AF26: =VLOOKUP($C26,'RECAP SECT'!$G$6:$FJ$253,102,FALSE) -> 16
A27: 80 | B27: VOSGES | C27: 55 | D27: SAINT DIE | E27: =VLOOKUP($C27,'RECAP SECT'!$G$6:$FJ$253,3,FALSE) -> 47.9 | F27: =VLOOKUP($C27,'RECAP SECT'!$G$6:$FJ$253,76,FALSE) -> 351.47 | G27: =VLOOKUP($C27,'RECAP SECT'!$G$6:$FJ$253,77,FALSE) -> 32.10 | H27: =VLOOKUP($C27,'RECAP SECT'!$G$6:$FJ$253,78,FALSE) -> 15% | I27: =VLOOKUP($C27,'RECAP SECT'!$G$6:$FJ$253,79,FALSE) -> 5 | K27: =VLOOKUP($C27,'RECAP SECT'!$G$6:$FJ$253,81,FALSE) -> 7.43 | L27: =VLOOKUP($C27,'RECAP SECT'!$G$6:$FJ$253,82,FALSE) -> 21% | M27: =VLOOKUP($C27,'RECAP SECT'!$G$6:$FJ$253,83,FALSE) -> 3 | N27: =VLOOKUP($C27,'RECAP SECT'!$G$6:$FJ$253,84,FALSE) -> 672.19 | O27: =VLOOKUP($C27,'RECAP SECT'!$G$6:$FJ$253,85,FALSE) -> 26.81 | P27: =VLOOKUP($C27,'RECAP SECT'!$G$6:$FJ$253,86,FALSE) -> 53% | Q27: =VLOOKUP($C27,'RECAP SECT'!$G$6:$FJ$253,87,FALSE) -> 14 | S27: =VLOOKUP($C27,'RECAP SECT'!$G$6:$FJ$253,89,FALSE) -> 15.96 | T27: =VLOOKUP($C27,'RECAP SECT'!$G$6:$FJ$253,90,FALSE) -> 59% | U27: =VLOOKUP($C27,'RECAP SECT'!$G$6:$FJ$253,91,FALSE) -> 14 | W27: =VLOOKUP($C27,'RECAP SECT'!$G$6:$FJ$253,93,FALSE) -> 1.33 | X27: =VLOOKUP($C27,'RECAP SECT'!$G$6:$FJ$253,94,FALSE) -> 62% | Y27: =VLOOKUP($C27,'RECAP SECT'!$G$6:$FJ$253,95,FALSE) -> 17 | Z27: =VLOOKUP($C27,'RECAP SECT'!$G$6:$FJ$253,96,FALSE) -> 70.60 | AA27: =VLOOKUP($C27,'RECAP SECT'!$G$6:$FJ$253,97,FALSE) -> 3.01 | AB27: =VLOOKUP($C27,'RECAP SECT'!$G$6:$FJ$253,98,FALSE) -> 71% | AC27: =VLOOKUP($C27,'RECAP SECT'!$G$6:$FJ$253,99,FALSE) -> 8 | AD27: =VLOOKUP($C27,'RECAP SECT'!$G$6:$FJ$253,100,FALSE) -> 45% | AE27: =VLOOKUP($C27,'RECAP SECT'!$G$6:$FJ$253,101,FALSE) -> 34% | AF27: =VLOOKUP($C27,'RECAP SECT'!$G$6:$FJ$253,102,FALSE) -> 14
A28: Total CEGEE Directions Régionales | E28: =SUM(E10:E27) -> 1131

Sheet SE_IARD
B1: Accueil | F1: BAROMETRE BDD - TERRITOIRES
F2: IARD ET PREVOYANCE
F3: =ACCUEIL!F7 -> 2020-07-19
F7: Ventes nettes IARD | J7: Ventes nettes Prévoyance | N7: Total IARD Prévoyance
F8: =DATEMAJ!C28 -> au 19/07 | H8: coef | I8: ='RECAP DIRCOM'!DN4 -> 9% | J8: =DATEMAJ!C29 -> au 19/07 | L8: coef | M8: ='RECAP DIRCOM'!DR4 -> 6% | O8: coef | P8: ='RECAP DIRCOM'!DU4 -> 15%
B9: Direction | C9: eds | D9: Territoire | E9: ="ETP perf "&DATEMAJ!$C$39 -> ETP perf au 31/05 | F9: Nb / ETP | H9: % Ecart au 1er | I9: Rang | J9: Nb / ETP | L9: % Ecart au 1er | M9: Rang | N9: Moyenne ecart au 1er | O9: % Ecart au 1er | P9: Rang CEGEE
A10: 50 | B10: AUBE HAUTE MARNE | C10: 21 | D10: CHAUMONT | E10: =VLOOKUP($C10,'RECAP SECT'!$G$6:$FJ$253,3,FALSE) -> 34.2 | F10: =VLOOKUP($C10,'RECAP SECT'!$G$6:$FJ$253,109,FALSE) -> 10.49 | G10: =VLOOKUP($C10,'RECAP SECT'!$G$6:$FJ$253,110,FALSE) -> 1.05 | H10: =VLOOKUP($C10,'RECAP SECT'!$G$6:$FJ$253,111,FALSE) -> 49% | I10: =VLOOKUP($C10,'RECAP SECT'!$G$6:$FJ$253,112,FALSE) -> 8 | J10: =VLOOKUP($C10,'RECAP SECT'!$G$6:$FJ$253,113,FALSE) -> 9.41 | K10: =VLOOKUP($C10,'RECAP SECT'!$G$6:$FJ$253,114,FALSE) -> 1.42 | L10: =VLOOKUP($C10,'RECAP SECT'!$G$6:$FJ$253,115,FALSE) -> 25% | M10: =VLOOKUP($C10,'RECAP SECT'!$G$6:$FJ$253,116,FALSE) -> 7 | N10: =VLOOKUP($C10,'RECAP SECT'!$G$6:$FJ$253,117,FALSE) -> 39% | O10: =VLOOKUP($C10,'RECAP SECT'!$G$6:$FJ$253,118,FALSE) -> 30% | P10: =VLOOKUP($C10,'RECAP SECT'!$G$6:$FJ$253,119,FALSE) -> 6
A11: 50 | B11: AUBE HAUTE MARNE | C11: 14 | D11: TROYES | E11: =VLOOKUP($C11,'RECAP SECT'!$G$6:$FJ$253,3,FALSE) -> 65.3 | F11: =VLOOKUP($C11,'RECAP SECT'!$G$6:$FJ$253,109,FALSE) -> 5.81 | G11: =VLOOKUP($C11,'RECAP SECT'!$G$6:$FJ$253,110,FALSE) -> 0.63 | H11: =VLOOKUP($C11,'RECAP SECT'!$G$6:$FJ$253,111,FALSE) -> 69% | I11: =VLOOKUP($C11,'RECAP SECT'!$G$6:$FJ$253,112,FALSE) -> 16 | J11: =VLOOKUP($C11,'RECAP SECT'!$G$6:$FJ$253,113,FALSE) -> 10.51 | K11: =VLOOKUP($C11,'RECAP SECT'!$G$6:$FJ$253,114,FALSE) -> 1.58 | L11: =VLOOKUP($C11,'RECAP SECT'!$G$6:$FJ$253,115,FALSE) -> 16% | M11: =VLOOKUP($C11,'RECAP SECT'!$G$6:$FJ$253,116,FALSE) -> 4 | N11: =VLOOKUP($C11,'RECAP SECT'!$G$6:$FJ$253,117,FALSE) -> 48% | O11: =VLOOKUP($C11,'RECAP SECT'!$G$6:$FJ$253,118,FALSE) -> 39% | P11: =VLOOKUP($C11,'RECAP SECT'!$G$6:$FJ$253,119,FALSE) -> 10
A12: 262 | B12: BAS-RHIN | C12: 5060 | D12: HAGUENAU | E12: =VLOOKUP($C12,'RECAP SECT'!$G$6:$FJ$253,3,FALSE) -> 74.3 | F12: =VLOOKUP($C12,'RECAP SECT'!$G$6:$FJ$253,109,FALSE) -> 6.79 | G12: =VLOOKUP($C12,'RECAP SECT'!$G$6:$FJ$253,110,FALSE) -> 0.70 | H12: =VLOOKUP($C12,'RECAP SECT'!$G$6:$FJ$253,111,FALSE) -> 66% | I12: =VLOOKUP($C12,'RECAP SECT'!$G$6:$FJ$253,112,FALSE) -> 14 | J12: =VLOOKUP($C12,'RECAP SECT'!$G$6:$FJ$253,113,FALSE) -> 6.32 | K12: =VLOOKUP($C12,'RECAP SECT'!$G$6:$FJ$253,114,FALSE) -> 1.07 | L12: =VLOOKUP($C12,'RECAP SECT'!$G$6:$FJ$253,115,FALSE) -> 43% | M12: =VLOOKUP($C12,'RECAP SECT'!$G$6:$FJ$253,116,FALSE) -> 11 | N12: =VLOOKUP($C12,'RECAP SECT'!$G$6:$FJ$253,117,FALSE) -> 57% | O12: =VLOOKUP($C12,'RECAP SECT'!$G$6:$FJ$253,118,FALSE) -> 48% | P12: =VLOOKUP($C12,'RECAP SECT'!$G$6:$FJ$253,119,FALSE) -> 16
A13: 262 | B13: BAS-RHIN | C13: 5101 | D13: SELESTAT | E13: =VLOOKUP($C13,'RECAP SECT'!$G$6:$FJ$253,3,FALSE) -> 62.1 | F13: =VLOOKUP($C13,'RECAP SECT'!$G$6:$FJ$253,109,FALSE) -> 5.43 | G13: =VLOOKUP($C13,'RECAP SECT'!$G$6:$FJ$253,110,FALSE) -> 0.48 | H13: =VLOOKUP($C13,'RECAP SECT'!$G$6:$FJ$253,111,FALSE) -> 77% | I13: =VLOOKUP($C13,'RECAP SECT'!$G$6:$FJ$253,112,FALSE) -> 17 | J13: =VLOOKUP($C13,'RECAP SECT'!$G$6:$FJ$253,113,FALSE) -> 5.61 | K13: =VLOOKUP($C13,'RECAP SECT'!$G$6:$FJ$253,114,FALSE) -> 1.00 | L13: =VLOOKUP($C13,'RECAP SECT'!$G$6:$FJ$253,115,FALSE) -> 47% | M13: =VLOOKUP($C13,'RECAP SECT'!$G$6:$FJ$253,116,FALSE) -> 13 | N13: =VLOOKUP($C13,'RECAP SECT'!$G$6:$FJ$253,117,FALSE) -> 65% | O13: =VLOOKUP($C13,'RECAP SECT'!$G$6:$FJ$253,118,FALSE) -> 55% | P13: =VLOOKUP($C13,'RECAP SECT'!$G$6:$FJ$253,119,FALSE) -> 17
A14: 262 | B14: BAS-RHIN | C14: 5006 | D14: STRASBOURG | E14: =VLOOKUP($C14,'RECAP SECT'!$G$6:$FJ$253,3,FALSE) -> 73.4 | F14: =VLOOKUP($C14,'RECAP SECT'!$G$6:$FJ$253,109,FALSE) -> 8.61 | G14: =VLOOKUP($C14,'RECAP SECT'!$G$6:$FJ$253,110,FALSE) -> 0.87 | H14: =VLOOKUP($C14,'RECAP SECT'!$G$6:$FJ$253,111,FALSE) -> 58% | I14: =VLOOKUP($C14,'RECAP SECT'!$G$6:$FJ$253,112,FALSE) -> 11 | J14: =VLOOKUP($C14,'RECAP SECT'!$G$6:$FJ$253,113,FALSE) -> 12.63 | K14: =VLOOKUP($C14,'RECAP SECT'!$G$6:$FJ$253,114,FALSE) -> 1.80 | L14: =VLOOKUP($C14,'RECAP SECT'!$G$6:$FJ$253,115,FALSE) -> 5% | M14: =VLOOKUP($C14,'RECAP SECT'!$G$6:$FJ$253,116,FALSE) -> 2 | N14: =VLOOKUP($C14,'RECAP SECT'!$G$6:$FJ$253,117,FALSE) -> 36% | O14: =VLOOKUP($C14,'RECAP SECT'!$G$6:$FJ$253,118,FALSE) -> 27% | P14: =VLOOKUP($C14,'RECAP SECT'!$G$6:$FJ$253,119,FALSE) -> 5
A15: 264 | B15: HAUT-RHIN | C15: 5130 | D15: COLMAR | E15: =VLOOKUP($C15,'RECAP SECT'!$G$6:$FJ$253,3,FALSE) -> 64.9 | F15: =VLOOKUP($C15,'RECAP SECT'!$G$6:$FJ$253,109,FALSE) -> 7.01 | G15: =VLOOKUP($C15,'RECAP SECT'!$G$6:$FJ$253,110,FALSE) -> 0.74 | H15: =VLOOKUP($C15,'RECAP SECT'!$G$6:$FJ$253,111,FALSE) -> 64% | I15: =VLOOKUP($C15,'RECAP SECT'!$G$6:$FJ$253,112,FALSE) -> 13 | J15: =VLOOKUP($C15,'RECAP SECT'!$G$6:$FJ$253,113,FALSE) -> 5.85 | K15: =VLOOKUP($C15,'RECAP SECT'!$G$6:$FJ$253,114,FALSE) -> 1.15 | L15: =VLOOKUP($C15,'RECAP SECT'!$G$6:$FJ$253,115,FALSE) -> 39% | M15: =VLOOKUP($C15,'RECAP SECT'!$G$6:$FJ$253,116,FALSE) -> 10 | N15: =VLOOKUP($C15,'RECAP SECT'!$G$6:$FJ$253,117,FALSE) -> 54% | O15: =VLOOKUP($C15,'RECAP SECT'!$G$6:$FJ$253,118,FALSE) -> 45% | P15: =VLOOKUP($C15,'RECAP SECT'!$G$6:$FJ$253,119,FALSE) -> 14
A16: 264 | B16: HAUT-RHIN | C16: 5169 | D16: MULHOUSE | E16: =VLOOKUP($C16,'RECAP SECT'!$G$6:$FJ$253,3,FALSE) -> 61.1 | F16: =VLOOKUP($C16,'RECAP SECT'!$G$6:$FJ$253,109,FALSE) -> 4.70 | G16: =VLOOKUP($C16,'RECAP SECT'!$G$6:$FJ$253,110,FALSE) -> 0.46 | H16: =VLOOKUP($C16,'RECAP SECT'!$G$6:$FJ$253,111,FALSE) -> 78% | I16: =VLOOKUP($C16,'RECAP SECT'!$G$6:$FJ$253,112,FALSE) -> 18 | J16: =VLOOKUP($C16,'RECAP SECT'!$G$6:$FJ$253,113,FALSE) -> 4.29 | K16: =VLOOKUP($C16,'RECAP SECT'!$G$6:$FJ$253,114,FALSE) -> 0.81 | L16: =VLOOKUP($C16,'RECAP SECT'!$G$6:$FJ$253,115,FALSE) -> 57% | M16: =VLOOKUP($C16,'RECAP SECT'!$G$6:$FJ$253,116,FALSE) -> 18 | N16: =VLOOKUP($C16,'RECAP SECT'!$G$6:$FJ$253,117,FALSE) -> 69% | O16: =VLOOKUP($C16,'RECAP SECT'!$G$6:$FJ$253,118,FALSE) -> 60% | P16: =VLOOKUP($C16,'RECAP SECT'!$G$6:$FJ$253,119,FALSE) -> 18
A17: 30 | B17: MARNE-ARDENNES | C17: 6 | D17: CHALONS EN CHAMPAGNE | E17: =VLOOKUP($C17,'RECAP SECT'!$G$6:$FJ$253,3,FALSE) -> 45.0 | F17: =VLOOKUP($C17,'RECAP SECT'!$G$6:$FJ$253,109,FALSE) -> 13.20 | G17: =VLOOKUP($C17,'RECAP SECT'!$G$6:$FJ$253,110,FALSE) -> 1.42 | H17: =VLOOKUP($C17,'RECAP SECT'!$G$6:$FJ$253,111,FALSE) -> 31% | I17: =VLOOKUP($C17,'RECAP SECT'!$G$6:$FJ$253,112,FALSE) -> 3 | J17: =VLOOKUP($C17,'RECAP SECT'!$G$6:$FJ$253,113,FALSE) -> 10.26 | K17: =VLOOKUP($C17,'RECAP SECT'!$G$6:$FJ$253,114,FALSE) -> 1.54 | L17: =VLOOKUP($C17,'RECAP SECT'!$G$6:$FJ$253,115,FALSE) -> 18% | M17: =VLOOKUP($C17,'RECAP SECT'!$G$6:$FJ$253,116,FALSE) -> 5 | N17: =VLOOKUP($C17,'RECAP SECT'!$G$6:$FJ$253,117,FALSE) -> 26% | O17: =VLOOKUP($C17,'RECAP SECT'!$G$6:$FJ$253,118,FALSE) -> 17% | P17: =VLOOKUP($C17,'RECAP SECT'!$G$6:$FJ$253,119,FALSE) -> 4
A18: 30 | B18: MARNE-ARDENNES | C18: 2 | D18: CHARLEVILLE MEZIERES | E18: =VLOOKUP($C18,'RECAP SECT'!$G$6:$FJ$253,3,FALSE) -> 54.5 | F18: =VLOOKUP($C18,'RECAP SECT'!$G$6:$FJ$253,109,FALSE) -> 14.06 | G18: =VLOOKUP($C18,'RECAP SECT'!$G$6:$FJ$253,110,FALSE) -> 1.44 | H18: =VLOOKUP($C18,'RECAP SECT'!$G$6:$FJ$253,111,FALSE) -> 30% | I18: =VLOOKUP($C18,'RECAP SECT'!$G$6:$FJ$253,112,FALSE) -> 2 | J18: =VLOOKUP($C18,'RECAP SECT'!$G$6:$FJ$253,113,FALSE) -> 9.65 | K18: =VLOOKUP($C18,'RECAP SECT'!$G$6:$FJ$253,114,FALSE) -> 1.62 | L18: =VLOOKUP($C18,'RECAP SECT'!$G$6:$FJ$253,115,FALSE) -> 14% | M18: =VLOOKUP($C18,'RECAP SECT'!$G$6:$FJ$253,116,FALSE) -> 3 | N18: =VLOOKUP($C18,'RECAP SECT'!$G$6:$FJ$253,117,FALSE) -> 24% | O18: =VLOOKUP($C18,'RECAP SECT'!$G$6:$FJ$253,118,FALSE) -> 14% | P18: =VLOOKUP($C18,'RECAP SECT'!$G$6:$FJ$253,119,FALSE) -> 3
A19: 30 | B19: MARNE-ARDENNES | C19: 11 | D19: REIMS | E19: =VLOOKUP($C19,'RECAP SECT'!$G$6:$FJ$253,3,FALSE) -> 78.1 | F19: =VLOOKUP($C19,'RECAP SECT'!$G$6:$FJ$253,109,FALSE) -> 12.45 | G19: =VLOOKUP($C19,'RECAP SECT'!$G$6:$FJ$253,110,FALSE) -> 1.32 | H19: =VLOOKUP($C19,'RECAP SECT'!$G$6:$FJ$253,111,FALSE) -> 36% | I19: =VLOOKUP($C19,'RECAP SECT'!$G$6:$FJ$253,112,FALSE) -> 5 | J19: =VLOOKUP($C19,'RECAP SECT'!$G$6:$FJ$253,113,FALSE) -> 10.15 | K19: =VLOOKUP($C19,'RECAP SECT'!$G$6:$FJ$253,114,FALSE) -> 1.89 | L19: =VLOOKUP($C19,'RECAP SECT'!$G$6:$FJ$253,115,FALSE) -> 0% | M19: =VLOOKUP($C19,'RECAP SECT'!$G$6:$FJ$253,116,FALSE) -> 1 | N19: =VLOOKUP($C19,'RECAP SECT'!$G$6:$FJ$253,117,FALSE) -> 22% | O19: =VLOOKUP($C19,'RECAP SECT'!$G$6:$FJ$253,118,FALSE) -> 12% | P19: =VLOOKUP($C19,'RECAP SECT'!$G$6:$FJ$253,119,FALSE) -> 2
A20: 110 | B20: MEURTHE ET MOSELLE MEUSE | C20: 26 | D20: NANCY | E20: =VLOOKUP($C20,'RECAP SECT'!$G$6:$FJ$253,3,FALSE) -> 63.6 | F20: =VLOOKUP($C20,'RECAP SECT'!$G$6:$FJ$253,109,FALSE) -> 12.15 | G20: =VLOOKUP($C20,'RECAP SECT'!$G$6:$FJ$253,110,FALSE) -> 1.24 | H20: =VLOOKUP($C20,'RECAP SECT'!$G$6:$FJ$253,111,FALSE) -> 40% | I20: =VLOOKUP($C20,'RECAP SECT'!$G$6:$FJ$253,112,FALSE) -> 6 | J20: =VLOOKUP($C20,'RECAP SECT'!$G$6:$FJ$253,113,FALSE) -> 5.93 | K20: =VLOOKUP($C20,'RECAP SECT'!$G$6:$FJ$253,114,FALSE) -> 0.94 | L20: =VLOOKUP($C20,'RECAP SECT'!$G$6:$FJ$253,115,FALSE) -> 50% | M20: =VLOOKUP($C20,'RECAP SECT'!$G$6:$FJ$253,116,FALSE) -> 15 | N20: =VLOOKUP($C20,'RECAP SECT'!$G$6:$FJ$253,117,FALSE) -> 44% | O20: =VLOOKUP($C20,'RECAP SECT'!$G$6:$FJ$253,118,FALSE) -> 35% | P20: =VLOOKUP($C20,'RECAP SECT'!$G$6:$FJ$253,119,FALSE) -> 9
A21: 110 | B21: MEURTHE ET MOSELLE MEUSE | C21: 27 | D21: PONT A MOUSSON | E21: =VLOOKUP($C21,'RECAP SECT'!$G$6:$FJ$253,3,FALSE) -> 71.9 | F21: =VLOOKUP($C21,'RECAP SECT'!$G$6:$FJ$253,109,FALSE) -> 21.17 | G21: =VLOOKUP($C21,'RECAP SECT'!$G$6:$FJ$253,110,FALSE) -> 2.07 | H21: =VLOOKUP($C21,'RECAP SECT'!$G$6:$FJ$253,111,FALSE) -> 0% | I21: =VLOOKUP($C21,'RECAP SECT'!$G$6:$FJ$253,112,FALSE) -> 1 | J21: =VLOOKUP($C21,'RECAP SECT'!$G$6:$FJ$253,113,FALSE) -> 13.18 | K21: =VLOOKUP($C21,'RECAP SECT'!$G$6:$FJ$253,114,FALSE) -> 1.44 | L21: =VLOOKUP($C21,'RECAP SECT'!$G$6:$FJ$253,115,FALSE) -> 24% | M21: =VLOOKUP($C21,'RECAP SECT'!$G$6:$FJ$253,116,FALSE) -> 6 | N21: =VLOOKUP($C21,'RECAP SECT'!$G$6:$FJ$253,117,FALSE) -> 10% | O21: =VLOOKUP($C21,'RECAP SECT'!$G$6:$FJ$253,118,FALSE) -> 0% | P21: =VLOOKUP($C21,'RECAP SECT'!$G$6:$FJ$253,119,FALSE) -> 1
A22: 110 | B22: MEURTHE ET MOSELLE MEUSE | C22: 31 | D22: VERDUN | E22: =VLOOKUP($C22,'RECAP SECT'!$G$6:$FJ$253,3,FALSE) -> 51.9 | F22: =VLOOKUP($C22,'RECAP SECT'!$G$6:$FJ$253,109,FALSE) -> 9.23 | G22: =VLOOKUP($C22,'RECAP SECT'!$G$6:$FJ$253,110,FALSE) -> 0.98 | H22: =VLOOKUP($C22,'RECAP SECT'!$G$6:$FJ$253,111,FALSE) -> 53% | I22: =VLOOKUP($C22,'RECAP SECT'!$G$6:$FJ$253,112,FALSE) -> 9 | J22: =VLOOKUP($C22,'RECAP SECT'!$G$6:$FJ$253,113,FALSE) -> 6.53 | K22: =VLOOKUP($C22,'RECAP SECT'!$G$6:$FJ$253,114,FALSE) -> 1.04 | L22: =VLOOKUP($C22,'RECAP SECT'!$G$6:$FJ$253,115,FALSE) -> 45% | M22: =VLOOKUP($C22,'RECAP SECT'!$G$6:$FJ$253,116,FALSE) -> 12 | N22: =VLOOKUP($C22,'RECAP SECT'!$G$6:$FJ$253,117,FALSE) -> 50% | O22: =VLOOKUP($C22,'RECAP SECT'!$G$6:$FJ$253,118,FALSE) -> 40% | P22: =VLOOKUP($C22,'RECAP SECT'!$G$6:$FJ$253,119,FALSE) -> 11
A23: 160 | B23: MOSELLE | C23: 45 | D23: METZ | E23: =VLOOKUP($C23,'RECAP SECT'!$G$6:$FJ$253,3,FALSE) -> 85.7 | F23: =VLOOKUP($C23,'RECAP SECT'!$G$6:$FJ$253,109,FALSE) -> 8.74 | G23: =VLOOKUP($C23,'RECAP SECT'!$G$6:$FJ$253,110,FALSE) -> 0.92 | H23: =VLOOKUP($C23,'RECAP SECT'!$G$6:$FJ$253,111,FALSE) -> 56% | I23: =VLOOKUP($C23,'RECAP SECT'!$G$6:$FJ$253,112,FALSE) -> 10 | J23: =VLOOKUP($C23,'RECAP SECT'!$G$6:$FJ$253,113,FALSE) -> 5.81 | K23: =VLOOKUP($C23,'RECAP SECT'!$G$6:$FJ$253,114,FALSE) -> 0.90 | L23: =VLOOKUP($C23,'RECAP SECT'!$G$6:$FJ$253,115,FALSE) -> 52% | M23: =VLOOKUP($C23,'RECAP SECT'!$G$6:$FJ$253,116,FALSE) -> 16 | N23: =VLOOKUP($C23,'RECAP SECT'!$G$6:$FJ$253,117,FALSE) -> 54% | O23: =VLOOKUP($C23,'RECAP SECT'!$G$6:$FJ$253,118,FALSE) -> 45% | P23: =VLOOKUP($C23,'RECAP SECT'!$G$6:$FJ$253,119,FALSE) -> 15
A24: 160 | B24: MOSELLE | C24: 42 | D24: MOSELLE EST | E24: =VLOOKUP($C24,'RECAP SECT'!$G$6:$FJ$253,3,FALSE) -> 70.1 | F24: =VLOOKUP($C24,'RECAP SECT'!$G$6:$FJ$253,109,FALSE) -> 8.33 | G24: =VLOOKUP($C24,'RECAP SECT'!$G$6:$FJ$253,110,FALSE) -> 0.87 | H24: =VLOOKUP($C24,'RECAP SECT'!$G$6:$FJ$253,111,FALSE) -> 58% | I24: =VLOOKUP($C24,'RECAP SECT'!$G$6:$FJ$253,112,FALSE) -> 12 | J24: =VLOOKUP($C24,'RECAP SECT'!$G$6:$FJ$253,113,FALSE) -> 6.36 | K24: =VLOOKUP($C24,'RECAP SECT'!$G$6:$FJ$253,114,FALSE) -> 1.00 | L24: =VLOOKUP($C24,'RECAP SECT'!$G$6:$FJ$253,115,FALSE) -> 47% | M24: =VLOOKUP($C24,'RECAP SECT'!$G$6:$FJ$253,116,FALSE) -> 14 | N24: =VLOOKUP($C24,'RECAP SECT'!$G$6:$FJ$253,117,FALSE) -> 54% | O24: =VLOOKUP($C24,'RECAP SECT'!$G$6:$FJ$253,118,FALSE) -> 44% | P24: =VLOOKUP($C24,'RECAP SECT'!$G$6:$FJ$253,119,FALSE) -> 13
A25: 160 | B25: MOSELLE | C25: 44 | D25: MOSELLE NORD | E25: =VLOOKUP($C25,'RECAP SECT'!$G$6:$FJ$253,3,FALSE) -> 68.2 | F25: =VLOOKUP($C25,'RECAP SECT'!$G$6:$FJ$253,109,FALSE) -> 13.17 | G25: =VLOOKUP($C25,'RECAP SECT'!$G$6:$FJ$253,110,FALSE) -> 1.36 | H25: =VLOOKUP($C25,'RECAP SECT'!$G$6:$FJ$253,111,FALSE) -> 34% | I25: =VLOOKUP($C25,'RECAP SECT'!$G$6:$FJ$253,112,FALSE) -> 4 | J25: =VLOOKUP($C25,'RECAP SECT'!$G$6:$FJ$253,113,FALSE) -> 6.00 | K25: =VLOOKUP($C25,'RECAP SECT'!$G$6:$FJ$253,114,FALSE) -> 0.90 | L25: =VLOOKUP($C25,'RECAP SECT'!$G$6:$FJ$253,115,FALSE) -> 52% | M25: =VLOOKUP($C25,'RECAP SECT'!$G$6:$FJ$253,116,FALSE) -> 17 | N25: =VLOOKUP($C25,'RECAP SECT'!$G$6:$FJ$253,117,FALSE) -> 42% | O25: =VLOOKUP($C25,'RECAP SECT'!$G$6:$FJ$253,118,FALSE) -> 32% | P25: =VLOOKUP($C25,'RECAP SECT'!$G$6:$FJ$253,119,FALSE) -> 7
A26: 80 | B26: VOSGES | C26: 57 | D26: EPINAL | E26: =VLOOKUP($C26,'RECAP SECT'!$G$6:$FJ$253,3,FALSE) -> 59.2 | F26: =VLOOKUP($C26,'RECAP SECT'!$G$6:$FJ$253,109,FALSE) -> 6.06 | G26: =VLOOKUP($C26,'RECAP SECT'!$G$6:$FJ$253,110,FALSE) -> 0.68 | H26: =VLOOKUP($C26,'RECAP SECT'!$G$6:$FJ$253,111,FALSE) -> 67% | I26: =VLOOKUP($C26,'RECAP SECT'!$G$6:$FJ$253,112,FALSE) -> 15 | J26: =VLOOKUP($C26,'RECAP SECT'!$G$6:$FJ$253,113,FALSE) -> 7.48 | K26: =VLOOKUP($C26,'RECAP SECT'!$G$6:$FJ$253,114,FALSE) -> 1.27 | L26: =VLOOKUP($C26,'RECAP SECT'!$G$6:$FJ$253,115,FALSE) -> 33% | M26: =VLOOKUP($C26,'RECAP SECT'!$G$6:$FJ$253,116,FALSE) -> 9 | N26: =VLOOKUP($C26,'RECAP SECT'!$G$6:$FJ$253,117,FALSE) -> 53% | O26: =VLOOKUP($C26,'RECAP SECT'!$G$6:$FJ$253,118,FALSE) -> 44% | P26: =VLOOKUP($C26,'RECAP SECT'!$G$6:$FJ$253,119,FALSE) -> 12
A27: 80 | B27: VOSGES | C27: 55 | D27: SAINT DIE | E27: =VLOOKUP($C27,'RECAP SECT'!$G$6:$FJ$253,3,FALSE) -> 47.9 | F27: =VLOOKUP($C27,'RECAP SECT'!$G$6:$FJ$253,109,FALSE) -> 10.00 | G27: =VLOOKUP($C27,'RECAP SECT'!$G$6:$FJ$253,110,FALSE) -> 1.06 | H27: =VLOOKUP($C27,'RECAP SECT'!$G$6:$FJ$253,111,FALSE) -> 49% | I27: =VLOOKUP($C27,'RECAP SECT'!$G$6:$FJ$253,112,FALSE) -> 7 | J27: =VLOOKUP($C27,'RECAP SECT'!$G$6:$FJ$253,113,FALSE) -> 8.10 | K27: =VLOOKUP($C27,'RECAP SECT'!$G$6:$FJ$253,114,FALSE) -> 1.28 | L27: =VLOOKUP($C27,'RECAP SECT'!$G$6:$FJ$253,115,FALSE) -> 32% | M27: =VLOOKUP($C27,'RECAP SECT'!$G$6:$FJ$253,116,FALSE) -> 8 | N27: =VLOOKUP($C27,'RECAP SECT'!$G$6:$FJ$253,117,FALSE) -> 42% | O27: =VLOOKUP($C27,'RECAP SECT'!$G$6:$FJ$253,118,FALSE) -> 33% | P27: =VLOOKUP($C27,'RECAP SECT'!$G$6:$FJ$253,119,FALSE) -> 8
A28: Total CEGEE Directions Régionales | E28: =SUM(E10:E27) -> 1131

Sheet SE_CONQUETE
B1: Accueil | F1: BAROMETRE BDD - TERRITOIRES
F2: CLIENTS
F3: =ACCUEIL!F7 -> 2020-07-19
F7: Evolution nette clients Bancarisés Principaux | J7: Evolution nette relations PREMIUM | N7: Evolution nette clients Jeunes équipés | R7: Evolution nette clients Pro actif équipés | V7: Total Clients
F8: =DATEMAJ!C7 -> au 31/05 | H8: coef | I8: ='RECAP DIRCOM'!N4 -> 4% | J8: =DATEMAJ!C8 -> au 31/05 | L8: coef | M8: ='RECAP DIRCOM'!R4 -> 5% | N8: =DATEMAJ!C9 -> au 31/05 | P8: coef | Q8: ='RECAP DIRCOM'!V4 -> 3% | R8: =DATEMAJ!C10 -> au 31/05 | T8: coef | U8: ='RECAP DIRCOM'!Z4 -> 3% | W8: coef | X8: ='RECAP DIRCOM'!AC4 -> 15%
B9: Direction | C9: eds | D9: Territoire | E9: ="ETP perf "&DATEMAJ!$C$39 -> ETP perf au 31/05 | F9: Nb / ETP | G9: PNB / ETP | H9: % Ecart au 1er | I9: Rang | J9: Nb / ETP | K9: PNB / ETP | L9: % Ecart au 1er | M9: Rang | N9: Nb / ETP | O9: PNB / ETP | P9: % Ecart au 1er | Q9: Rang | R9: Nb / ETP | S9: PNB / ETP | T9: % Ecart au 1er | U9: Rang | V9: Moyenne ecart au 1er | W9: % Ecart au 1er | X9: Rang CEGEE
A10: 50 | B10: AUBE HAUTE MARNE | C10: 21 | D10: CHAUMONT | E10: =VLOOKUP($C10,'RECAP SECT'!$G$6:$FJ$253,3,FALSE) -> 34.2 | F10: =VLOOKUP($C10,'RECAP SECT'!$G$6:$FJ$253,5,FALSE) -> -5.23 | G10: =VLOOKUP($C10,'RECAP SECT'!$G$6:$FJ$253,6,FALSE) -> -2.62 | H10: =VLOOKUP($C10,'RECAP SECT'!$G$6:$FJ$253,7,FALSE) -> 39% | I10: =VLOOKUP($C10,'RECAP SECT'!$G$6:$FJ$253,8,FALSE) -> 6 | J10: =VLOOKUP($C10,'RECAP SECT'!$G$6:$FJ$253,9,FALSE) -> 0.41 | K10: =VLOOKUP($C10,'RECAP SECT'!$G$6:$FJ$253,10,FALSE) -> 0.29 | L10: =VLOOKUP($C10,'RECAP SECT'!$G$6:$FJ$253,11,FALSE) -> 71% | M10: =VLOOKUP($C10,'RECAP SECT'!$G$6:$FJ$253,12,FALSE) -> 13 | N10: =VLOOKUP($C10,'RECAP SECT'!$G$6:$FJ$253,13,FALSE) -> -5.79 | O10: =VLOOKUP($C10,'RECAP SECT'!$G$6:$FJ$253,14,FALSE) -> -0.87 | P10: =VLOOKUP($C10,'RECAP SECT'!$G$6:$FJ$253,15,FALSE) -> 70% | Q10: =VLOOKUP($C10,'RECAP SECT'!$G$6:$FJ$253,16,FALSE) -> 5 | R10: =VLOOKUP($C10,'RECAP SECT'!$G$6:$FJ$253,17,FALSE) -> 26% | S10: =VLOOKUP($C10,'RECAP SECT'!$G$6:$FJ$253,18,FALSE) -> 66% | T10: =VLOOKUP($C10,'RECAP SECT'!$G$6:$FJ$253,19,FALSE) -> 32% | U10: =VLOOKUP($C10,'RECAP SECT'!$G$6:$FJ$253,20,FALSE) -> 2 | V10: =VLOOKUP($C10,'RECAP SECT'!$G$6:$FJ$253,21,FALSE) -> 54% | W10: =VLOOKUP($C10,'RECAP SECT'!$G$6:$FJ$253,22,FALSE) -> 30% | X10: =VLOOKUP($C10,'RECAP SECT'!$G$6:$FJ$253,23,FALSE) -> 8
A11: 50 | B11: AUBE HAUTE MARNE | C11: 14 | D11: TROYES | E11: =VLOOKUP($C11,'RECAP SECT'!$G$6:$FJ$253,3,FALSE) -> 65.3 | F11: =VLOOKUP($C11,'RECAP SECT'!$G$6:$FJ$253,5,FALSE) -> -6.91 | G11: =VLOOKUP($C11,'RECAP SECT'!$G$6:$FJ$253,6,FALSE) -> -3.45 | H11: =VLOOKUP($C11,'RECAP SECT'!$G$6:$FJ$253,7,FALSE) -> 65% | I11: =VLOOKUP($C11,'RECAP SECT'!$G$6:$FJ$253,8,FALSE) -> 12 | J11: =VLOOKUP($C11,'RECAP SECT'!$G$6:$FJ$253,9,FALSE) -> 1.23 | K11: =VLOOKUP($C11,'RECAP SECT'!$G$6:$FJ$253,10,FALSE) -> 0.86 | L11: =VLOOKUP($C11,'RECAP SECT'!$G$6:$FJ$253,11,FALSE) -> 13% | M11: =VLOOKUP($C11,'RECAP SECT'!$G$6:$FJ$253,12,FALSE) -> 5 | N11: =VLOOKUP($C11,'RECAP SECT'!$G$6:$FJ$253,13,FALSE) -> -7.49 | O11: =VLOOKUP($C11,'RECAP SECT'!$G$6:$FJ$253,14,FALSE) -> -1.12 | P11: =VLOOKUP($C11,'RECAP SECT'!$G$6:$FJ$253,15,FALSE) -> 112% | Q11: =VLOOKUP($C11,'RECAP SECT'!$G$6:$FJ$253,16,FALSE) -> 14 | R11: =VLOOKUP($C11,'RECAP SECT'!$G$6:$FJ$253,17,FALSE) -> 26% | S11: =VLOOKUP($C11,'RECAP SECT'!$G$6:$FJ$253,18,FALSE) -> 65% | T11: =VLOOKUP($C11,'RECAP SECT'!$G$6:$FJ$253,19,FALSE) -> 32% | U11: =VLOOKUP($C11,'RECAP SECT'!$G$6:$FJ$253,20,FALSE) -> 3 | V11: =VLOOKUP($C11,'RECAP SECT'!$G$6:$FJ$253,21,FALSE) -> 50% | W11: =VLOOKUP($C11,'RECAP SECT'!$G$6:$FJ$253,22,FALSE) -> 26% | X11: =VLOOKUP($C11,'RECAP SECT'!$G$6:$FJ$253,23,FALSE) -> 7
A12: 262 | B12: BAS-RHIN | C12: 5060 | D12: HAGUENAU | E12: =VLOOKUP($C12,'RECAP SECT'!$G$6:$FJ$253,3,FALSE) -> 74.3 | F12: =VLOOKUP($C12,'RECAP SECT'!$G$6:$FJ$253,5,FALSE) -> -6.76 | G12: =VLOOKUP($C12,'RECAP SECT'!$G$6:$FJ$253,6,FALSE) -> -3.38 | H12: =VLOOKUP($C12,'RECAP SECT'!$G$6:$FJ$253,7,FALSE) -> 63% | I12: =VLOOKUP($C12,'RECAP SECT'!$G$6:$FJ$253,8,FALSE) -> 11 | J12: =VLOOKUP($C12,'RECAP SECT'!$G$6:$FJ$253,9,FALSE) -> 0.46 | K12: =VLOOKUP($C12,'RECAP SECT'!$G$6:$FJ$253,10,FALSE) -> 0.32 | L12: =VLOOKUP($C12,'RECAP SECT'!$G$6:$FJ$253,11,FALSE) -> 67% | M12: =VLOOKUP($C12,'RECAP SECT'!$G$6:$FJ$253,12,FALSE) -> 12 | N12: =VLOOKUP($C12,'RECAP SECT'!$G$6:$FJ$253,13,FALSE) -> -6.89 | O12: =VLOOKUP($C12,'RECAP SECT'!$G$6:$FJ$253,14,FALSE) -> -1.03 | P12: =VLOOKUP($C12,'RECAP SECT'!$G$6:$FJ$253,15,FALSE) -> 97% | Q12: =VLOOKUP($C12,'RECAP SECT'!$G$6:$FJ$253,16,FALSE) -> 9 | R12: =VLOOKUP($C12,'RECAP SECT'!$G$6:$FJ$253,17,FALSE) -> 3% | S12: =VLOOKUP($C12,'RECAP SECT'!$G$6:$FJ$253,18,FALSE) -> 7% | T12: =VLOOKUP($C12,'RECAP SECT'!$G$6:$FJ$253,19,FALSE) -> 93% | U12: =VLOOKUP($C12,'RECAP SECT'!$G$6:$FJ$253,20,FALSE) -> 16 | V12: =VLOOKUP($C12,'RECAP SECT'!$G$6:$FJ$253,21,FALSE) -> 77% | W12: =VLOOKUP($C12,'RECAP SECT'!$G$6:$FJ$253,22,FALSE) -> 53% | X12: =VLOOKUP($C12,'RECAP SECT'!$G$6:$FJ$253,23,FALSE) -> 12
A13: 262 | B13: BAS-RHIN | C13: 5101 | D13: SELESTAT | E13: =VLOOKUP($C13,'RECAP SECT'!$G$6:$FJ$253,3,FALSE) -> 62.1 | F13: =VLOOKUP($C13,'RECAP SECT'!$G$6:$FJ$253,5,FALSE) -> -10.10 | G13: =VLOOKUP($C13,'RECAP SECT'!$G$6:$FJ$253,6,FALSE) -> -5.05 | H13: =VLOOKUP($C13,'RECAP SECT'!$G$6:$FJ$253,7,FALSE) -> 115% | I13: =VLOOKUP($C13,'RECAP SECT'!$G$6:$FJ$253,8,FALSE) -> 17 | J13: =VLOOKUP($C13,'RECAP SECT'!$G$6:$FJ$253,9,FALSE) -> 0.60 | K13: =VLOOKUP($C13,'RECAP SECT'!$G$6:$FJ$253,10,FALSE) -> 0.42 | L13: =VLOOKUP($C13,'RECAP SECT'!$G$6:$FJ$253,11,FALSE) -> 58% | M13: =VLOOKUP($C13,'RECAP SECT'!$G$6:$FJ$253,12,FALSE) -> 10 | N13: =VLOOKUP($C13,'RECAP SECT'!$G$6:$FJ$253,13,FALSE) -> -9.02 | O13: =VLOOKUP($C13,'RECAP SECT'!$G$6:$FJ$253,14,FALSE) -> -1.35 | P13: =VLOOKUP($C13,'RECAP SECT'!$G$6:$FJ$253,15,FALSE) -> 150% | Q13: =VLOOKUP($C13,'RECAP SECT'!$G$6:$FJ$253,16,FALSE) -> 18 | R13: =VLOOKUP($C13,'RECAP SECT'!$G$6:$FJ$253,17,FALSE) -> -11% | S13: =VLOOKUP($C13,'RECAP SECT'!$G$6:$FJ$253,18,FALSE) -> -28% | T13: =VLOOKUP($C13,'RECAP SECT'!$G$6:$FJ$253,19,FALSE) -> 129% | U13: =VLOOKUP($C13,'RECAP SECT'!$G$6:$FJ$253,20,FALSE) -> 18 | V13: =VLOOKUP($C13,'RECAP SECT'!$G$6:$FJ$253,21,FALSE) -> 106% | W13: =VLOOKUP($C13,'RECAP SECT'!$G$6:$FJ$253,22,FALSE) -> 81% | X13: =VLOOKUP($C13,'RECAP SECT'!$G$6:$FJ$253,23,FALSE) -> 17
A14: 262 | B14: BAS-RHIN | C14: 5006 | D14: STRASBOURG | E14: =VLOOKUP($C14,'RECAP SECT'!$G$6:$FJ$253,3,FALSE) -> 73.4 | F14: =VLOOKUP($C14,'RECAP SECT'!$G$6:$FJ$253,5,FALSE) -> -7.04 | G14: =VLOOKUP($C14,'RECAP SECT'!$G$6:$FJ$253,6,FALSE) -> -3.52 | H14: =VLOOKUP($C14,'RECAP SECT'!$G$6:$FJ$253,7,FALSE) -> 67% | I14: =VLOOKUP($C14,'RECAP SECT'!$G$6:$FJ$253,8,FALSE) -> 13 | J14: =VLOOKUP($C14,'RECAP SECT'!$G$6:$FJ$253,9,FALSE) -> 0.83 | K14: =VLOOKUP($C14,'RECAP SECT'!$G$6:$FJ$253,10,FALSE) -> 0.58 | L14: =VLOOKUP($C14,'RECAP SECT'!$G$6:$FJ$253,11,FALSE) -> 41% | M14: =VLOOKUP($C14,'RECAP SECT'!$G$6:$FJ$253,12,FALSE) -> 7 | N14: =VLOOKUP($C14,'RECAP SECT'!$G$6:$FJ$253,13,FALSE) -> -6.42 | O14: =VLOOKUP($C14,'RECAP SECT'!$G$6:$FJ$253,14,FALSE) -> -0.96 | P14: =VLOOKUP($C14,'RECAP SECT'!$G$6:$FJ$253,15,FALSE) -> 86% | Q14: =VLOOKUP($C14,'RECAP SECT'!$G$6:$FJ$253,16,FALSE) -> 8 | R14: =VLOOKUP($C14,'RECAP SECT'!$G$6:$FJ$253,17,FALSE) -> 15% | S14: =VLOOKUP($C14,'RECAP SECT'!$G$6:$FJ$253,18,FALSE) -> 37% | T14: =VLOOKUP($C14,'RECAP SECT'!$G$6:$FJ$253,19,FALSE) -> 61% | U14: =VLOOKUP($C14,'RECAP SECT'!$G$6:$FJ$253,20,FALSE) -> 9 | V14: =VLOOKUP($C14,'RECAP SECT'!$G$6:$FJ$253,21,FALSE) -> 61% | W14: =VLOOKUP($C14,'RECAP SECT'!$G$6:$FJ$253,22,FALSE) -> 37% | X14: =VLOOKUP($C14,'RECAP SECT'!$G$6:$FJ$253,23,FALSE) -> 10
A15: 264 | B15: HAUT-RHIN | C15: 5130 | D15: COLMAR | E15: =VLOOKUP($C15,'RECAP SECT'!$G$6:$FJ$253,3,FALSE) -> 64.9 | F15: =VLOOKUP($C15,'RECAP SECT'!$G$6:$FJ$253,5,FALSE) -> -9.35 | G15: =VLOOKUP($C15,'RECAP SECT'!$G$6:$FJ$253,6,FALSE) -> -4.68 | H15: =VLOOKUP($C15,'RECAP SECT'!$G$6:$FJ$253,7,FALSE) -> 103% | I15: =VLOOKUP($C15,'RECAP SECT'!$G$6:$FJ$253,8,FALSE) -> 16 | J15: =VLOOKUP($C15,'RECAP SECT'!$G$6:$FJ$253,9,FALSE) -> 0.68 | K15: =VLOOKUP($C15,'RECAP SECT'!$G$6:$FJ$253,10,FALSE) -> 0.47 | L15: =VLOOKUP($C15,'RECAP SECT'!$G$6:$FJ$253,11,FALSE) -> 52% | M15: =VLOOKUP($C15,'RECAP SECT'!$G$6:$FJ$253,12,FALSE) -> 8 | N15: =VLOOKUP($C15,'RECAP SECT'!$G$6:$FJ$253,13,FALSE) -> -7.73 | O15: =VLOOKUP($C15,'RECAP SECT'!$G$6:$FJ$253,14,FALSE) -> -1.16 | P15: =VLOOKUP($C15,'RECAP SECT'!$G$6:$FJ$253,15,FALSE) -> 118% | Q15: =VLOOKUP($C15,'RECAP SECT'!$G$6:$FJ$253,16,FALSE) -> 15 | R15: =VLOOKUP($C15,'RECAP SECT'!$G$6:$FJ$253,17,FALSE) -> 5% | S15: =VLOOKUP($C15,'RECAP SECT'!$G$6:$FJ$253,18,FALSE) -> 12% | T15: =VLOOKUP($C15,'RECAP SECT'!$G$6:$FJ$253,19,FALSE) -> 88% | U15: =VLOOKUP($C15,'RECAP SECT'!$G$6:$FJ$253,20,FALSE) -> 14 | V15: =VLOOKUP($C15,'RECAP SECT'!$G$6:$FJ$253,21,FALSE) -> 86% | W15: =VLOOKUP($C15,'RECAP SECT'!$G$6:$FJ$253,22,FALSE) -> 62% | X15: =VLOOKUP($C15,'RECAP SECT'!$G$6:$FJ$253,23,FALSE) -> 15
A16: 264 | B16: HAUT-RHIN | C16: 5169 | D16: MULHOUSE | E16: =VLOOKUP($C16,'RECAP SECT'!$G$6:$FJ$253,3,FALSE) -> 61.1 | F16: =VLOOKUP($C16,'RECAP SECT'!$G$6:$FJ$253,5,FALSE) -> -12.38 | G16: =VLOOKUP($C16,'RECAP SECT'!$G$6:$FJ$253,6,FALSE) -> -6.19 | H16: =VLOOKUP($C16,'RECAP SECT'!$G$6:$FJ$253,7,FALSE) -> 150% | I16: =VLOOKUP($C16,'RECAP SECT'!$G$6:$FJ$253,8,FALSE) -> 18 | J16: =VLOOKUP($C16,'RECAP SECT'!$G$6:$FJ$253,9,FALSE) -> -0.31 | K16: =VLOOKUP($C16,'RECAP SECT'!$G$6:$FJ$253,10,FALSE) -> -0.22 | L16: =VLOOKUP($C16,'RECAP SECT'!$G$6:$FJ$253,11,FALSE) -> 122% | M16: =VLOOKUP($C16,'RECAP SECT'!$G$6:$FJ$253,12,FALSE) -> 18 | N16: =VLOOKUP($C16,'RECAP SECT'!$G$6:$FJ$253,13,FALSE) -> -8.91 | O16: =VLOOKUP($C16,'RECAP SECT'!$G$6:$FJ$253,14,FALSE) -> -1.34 | P16: =VLOOKUP($C16,'RECAP SECT'!$G$6:$FJ$253,15,FALSE) -> 147% | Q16: =VLOOKUP($C16,'RECAP SECT'!$G$6:$FJ$253,16,FALSE) -> 17 | R16: =VLOOKUP($C16,'RECAP SECT'!$G$6:$FJ$253,17,FALSE) -> 25% | S16: =VLOOKUP($C16,'RECAP SECT'!$G$6:$FJ$253,18,FALSE) -> 61% | T16: =VLOOKUP($C16,'RECAP SECT'!$G$6:$FJ$253,19,FALSE) -> 36% | U16: =VLOOKUP($C16,'RECAP SECT'!$G$6:$FJ$253,20,FALSE) -> 4 | V16: =VLOOKUP($C16,'RECAP SECT'!$G$6:$FJ$253,21,FALSE) -> 117% | W16: =VLOOKUP($C16,'RECAP SECT'!$G$6:$FJ$253,22,FALSE) -> 93% | X16: =VLOOKUP($C16,'RECAP SECT'!$G$6:$FJ$253,23,FALSE) -> 18
A17: 30 | B17: MARNE-ARDENNES | C17: 6 | D17: CHALONS EN CHAMPAGNE | E17: =VLOOKUP($C17,'RECAP SECT'!$G$6:$FJ$253,3,FALSE) -> 45.0 | F17: =VLOOKUP($C17,'RECAP SECT'!$G$6:$FJ$253,5,FALSE) -> -4.18 | G17: =VLOOKUP($C17,'RECAP SECT'!$G$6:$FJ$253,6,FALSE) -> -2.09 | H17: =VLOOKUP($C17,'RECAP SECT'!$G$6:$FJ$253,7,FALSE) -> 22% | I17: =VLOOKUP($C17,'RECAP SECT'!$G$6:$FJ$253,8,FALSE) -> 3 | J17: =VLOOKUP($C17,'RECAP SECT'!$G$6:$FJ$253,9,FALSE) -> -0.04 | K17: =VLOOKUP($C17,'RECAP SECT'!$G$6:$FJ$253,10,FALSE) -> -0.03 | L17: =VLOOKUP($C17,'RECAP SECT'!$G$6:$FJ$253,11,FALSE) -> 103% | M17: =VLOOKUP($C17,'RECAP SECT'!$G$6:$FJ$253,12,FALSE) -> 16 | N17: =VLOOKUP($C17,'RECAP SECT'!$G$6:$FJ$253,13,FALSE) -> -2.95 | O17: =VLOOKUP($C17,'RECAP SECT'!$G$6:$FJ$253,14,FALSE) -> -0.44 | P17: =VLOOKUP($C17,'RECAP SECT'!$G$6:$FJ$253,15,FALSE) -> 0% | Q17: =VLOOKUP($C17,'RECAP SECT'!$G$6:$FJ$253,16,FALSE) -> 1 | R17: =VLOOKUP($C17,'RECAP SECT'!$G$6:$FJ$253,17,FALSE) -> 7% | S17: =VLOOKUP($C17,'RECAP SECT'!$G$6:$FJ$253,18,FALSE) -> 17% | T17: =VLOOKUP($C17,'RECAP SECT'!$G$6:$FJ$253,19,FALSE) -> 83% | U17: =VLOOKUP($C17,'RECAP SECT'!$G$6:$FJ$253,20,FALSE) -> 13 | V17: =VLOOKUP($C17,'RECAP SECT'!$G$6:$FJ$253,21,FALSE) -> 57% | W17: =VLOOKUP($C17,'RECAP SECT'!$G$6:$FJ$253,22,FALSE) -> 33% | X17: =VLOOKUP($C17,'RECAP SECT'!$G$6:$FJ$253,23,FALSE) -> 9
A18: 30 | B18: MARNE-ARDENNES | C18: 2 | D18: CHARLEVILLE MEZIERES | E18: =VLOOKUP($C18,'RECAP SECT'!$G$6:$FJ$253,3,FALSE) -> 54.5 | F18: =VLOOKUP($C18,'RECAP SECT'!$G$6:$FJ$253,5,FALSE) -> -4.77 | G18: =VLOOKUP($C18,'RECAP SECT'!$G$6:$FJ$253,6,FALSE) -> -2.39 | H18: =VLOOKUP($C18,'RECAP SECT'!$G$6:$FJ$253,7,FALSE) -> 32% | I18: =VLOOKUP($C18,'RECAP SECT'!$G$6:$FJ$253,8,FALSE) -> 4 | J18: =VLOOKUP($C18,'RECAP SECT'!$G$6:$FJ$253,9,FALSE) -> 0.53 | K18: =VLOOKUP($C18,'RECAP SECT'!$G$6:$FJ$253,10,FALSE) -> 0.37 | L18: =VLOOKUP($C18,'RECAP SECT'!$G$6:$FJ$253,11,FALSE) -> 62% | M18: =VLOOKUP($C18,'RECAP SECT'!$G$6:$FJ$253,12,FALSE) -> 11 | N18: =VLOOKUP($C18,'RECAP SECT'!$G$6:$FJ$253,13,FALSE) -> -4.55 | O18: =VLOOKUP($C18,'RECAP SECT'!$G$6:$FJ$253,14,FALSE) -> -0.68 | P18: =VLOOKUP($C18,'RECAP SECT'!$G$6:$FJ$253,15,FALSE) -> 39% | Q18: =VLOOKUP($C18,'RECAP SECT'!$G$6:$FJ$253,16,FALSE) -> 2 | R18: =VLOOKUP($C18,'RECAP SECT'!$G$6:$FJ$253,17,FALSE) -> 39% | S18: =VLOOKUP($C18,'RECAP SECT'!$G$6:$FJ$253,18,FALSE) -> 96% | T18: =VLOOKUP($C18,'RECAP SECT'!$G$6:$FJ$253,19,FALSE) -> 0% | U18: =VLOOKUP($C18,'RECAP SECT'!$G$6:$FJ$253,20,FALSE) -> 1 | V18: =VLOOKUP($C18,'RECAP SECT'!$G$6:$FJ$253,21,FALSE) -> 37% | W18: =VLOOKUP($C18,'RECAP SECT'!$G$6:$FJ$253,22,FALSE) -> 13% | X18: =VLOOKUP($C18,'RECAP SECT'!$G$6:$FJ$253,23,FALSE) -> 2
A19: 30 | B19: MARNE-ARDENNES | C19: 11 | D19: REIMS | E19: =VLOOKUP($C19,'RECAP SECT'!$G$6:$FJ$253,3,FALSE) -> 78.1 | F19: =VLOOKUP($C19,'RECAP SECT'!$G$6:$FJ$253,5,FALSE) -> -2.96 | G19: =VLOOKUP($C19,'RECAP SECT'!$G$6:$FJ$253,6,FALSE) -> -1.48 | H19: =VLOOKUP($C19,'RECAP SECT'!$G$6:$FJ$253,7,FALSE) -> 3% | I19: =VLOOKUP($C19,'RECAP SECT'!$G$6:$FJ$253,8,FALSE) -> 2 | J19: =VLOOKUP($C19,'RECAP SECT'!$G$6:$FJ$253,9,FALSE) -> 1.25 | K19: =VLOOKUP($C19,'RECAP SECT'!$G$6:$FJ$253,10,FALSE) -> 0.88 | L19: =VLOOKUP($C19,'RECAP SECT'!$G$6:$FJ$253,11,FALSE) -> 11% | M19: =VLOOKUP($C19,'RECAP SECT'!$G$6:$FJ$253,12,FALSE) -> 3 | N19: =VLOOKUP($C19,'RECAP SECT'!$G$6:$FJ$253,13,FALSE) -> -6.27 | O19: =VLOOKUP($C19,'RECAP SECT'!$G$6:$FJ$253,14,FALSE) -> -0.94 | P19: =VLOOKUP($C19,'RECAP SECT'!$G$6:$FJ$253,15,FALSE) -> 82% | Q19: =VLOOKUP($C19,'RECAP SECT'!$G$6:$FJ$253,16,FALSE) -> 6 | R19: =VLOOKUP($C19,'RECAP SECT'!$G$6:$FJ$253,17,FALSE) -> 4% | S19: =VLOOKUP($C19,'RECAP SECT'!$G$6:$FJ$253,18,FALSE) -> 10% | T19: =VLOOKUP($C19,'RECAP SECT'!$G$6:$FJ$253,19,FALSE) -> 90% | U19: =VLOOKUP($C19,'RECAP SECT'!$G$6:$FJ$253,20,FALSE) -> 15 | V19: =VLOOKUP($C19,'RECAP SECT'!$G$6:$FJ$253,21,FALSE) -> 39% | W19: =VLOOKUP($C19,'RECAP SECT'!$G$6:$FJ$253,22,FALSE) -> 15% | X19: =VLOOKUP($C19,'RECAP SECT'!$G$6:$FJ$253,23,FALSE) -> 3
A20: 110 | B20: MEURTHE ET MOSELLE MEUSE | C20: 26 | D20: NANCY | E20: =VLOOKUP($C20,'RECAP SECT'!$G$6:$FJ$253,3,FALSE) -> 63.6 | F20: =VLOOKUP($C20,'RECAP SECT'!$G$6:$FJ$253,5,FALSE) -> -4.80 | G20: =VLOOKUP($C20,'RECAP SECT'!$G$6:$FJ$253,6,FALSE) -> -2.40 | H20: =VLOOKUP($C20,'RECAP SECT'!$G$6:$FJ$253,7,FALSE) -> 32% | I20: =VLOOKUP($C20,'RECAP SECT'!$G$6:$FJ$253,8,FALSE) -> 5 | J20: =VLOOKUP($C20,'RECAP SECT'!$G$6:$FJ$253,9,FALSE) -> 0.88 | K20: =VLOOKUP($C20,'RECAP SECT'!$G$6:$FJ$253,10,FALSE) -> 0.62 | L20: =VLOOKUP($C20,'RECAP SECT'!$G$6:$FJ$253,11,FALSE) -> 37% | M20: =VLOOKUP($C20,'RECAP SECT'!$G$6:$FJ$253,12,FALSE) -> 6 | N20: =VLOOKUP($C20,'RECAP SECT'!$G$6:$FJ$253,13,FALSE) -> -5.35 | O20: =VLOOKUP($C20,'RECAP SECT'!$G$6:$FJ$253,14,FALSE) -> -0.80 | P20: =VLOOKUP($C20,'RECAP SECT'!$G$6:$FJ$253,15,FALSE) -> 59% | Q20: =VLOOKUP($C20,'RECAP SECT'!$G$6:$FJ$253,16,FALSE) -> 4 | R20: =VLOOKUP($C20,'RECAP SECT'!$G$6:$FJ$253,17,FALSE) -> 22% | S20: =VLOOKUP($C20,'RECAP SECT'!$G$6:$FJ$253,18,FALSE) -> 55% | T20: =VLOOKUP($C20,'RECAP SECT'!$G$6:$FJ$253,19,FALSE) -> 43% | U20: =VLOOKUP($C20,'RECAP SECT'!$G$6:$FJ$253,20,FALSE) -> 5 | V20: =VLOOKUP($C20,'RECAP SECT'!$G$6:$FJ$253,21,FALSE) -> 41% | W20: =VLOOKUP($C20,'RECAP SECT'!$G$6:$FJ$253,22,FALSE) -> 17% | X20: =VLOOKUP($C20,'RECAP SECT'!$G$6:$FJ$253,23,FALSE) -> 4
A21: 110 | B21: MEURTHE ET MOSELLE MEUSE | C21: 27 | D21: PONT A MOUSSON | E21: =VLOOKUP($C21,'RECAP SECT'!$G$6:$FJ$253,3,FALSE) -> 71.9 | F21: =VLOOKUP($C21,'RECAP SECT'!$G$6:$FJ$253,5,FALSE) -> -2.74 | G21: =VLOOKUP($C21,'RECAP SECT'!$G$6:$FJ$253,6,FALSE) -> -1.37 | H21: =VLOOKUP($C21,'RECAP SECT'!$G$6:$FJ$253,7,FALSE) -> 0% | I21: =VLOOKUP($C21,'RECAP SECT'!$G$6:$FJ$253,8,FALSE) -> 1 | J21: =VLOOKUP($C21,'RECAP SECT'!$G$6:$FJ$253,9,FALSE) -> 1.40 | K21: =VLOOKUP($C21,'RECAP SECT'!$G$6:$FJ$253,10,FALSE) -> 0.98 | L21: =VLOOKUP($C21,'RECAP SECT'!$G$6:$FJ$253,11,FALSE) -> 0% | M21: =VLOOKUP($C21,'RECAP SECT'!$G$6:$FJ$253,12,FALSE) -> 1 | N21: =VLOOKUP($C21,'RECAP SECT'!$G$6:$FJ$253,13,FALSE) -> -5.13 | O21: =VLOOKUP($C21,'RECAP SECT'!$G$6:$FJ$253,14,FALSE) -> -0.77 | P21: =VLOOKUP($C21,'RECAP SECT'!$G$6:$FJ$253,15,FALSE) -> 54% | Q21: =VLOOKUP($C21,'RECAP SECT'!$G$6:$FJ$253,16,FALSE) -> 3 | R21: =VLOOKUP($C21,'RECAP SECT'!$G$6:$FJ$253,17,FALSE) -> 13% | S21: =VLOOKUP($C21,'RECAP SECT'!$G$6:$FJ$253,18,FALSE) -> 31% | T21: =VLOOKUP($C21,'RECAP SECT'!$G$6:$FJ$253,19,FALSE) -> 68% | U21: =VLOOKUP($C21,'RECAP SECT'!$G$6:$FJ$253,20,FALSE) -> 11 | V21: =VLOOKUP($C21,'RECAP SECT'!$G$6:$FJ$253,21,FALSE) -> 24% | W21: =VLOOKUP($C21,'RECAP SECT'!$G$6:$FJ$253,22,FALSE) -> 0% | X21: =VLOOKUP($C21,'RECAP SECT'!$G$6:$FJ$253,23,FALSE) -> 1
A22: 110 | B22: MEURTHE ET MOSELLE MEUSE | C22: 31 | D22: VERDUN | E22: =VLOOKUP($C22,'RECAP SECT'!$G$6:$FJ$253,3,FALSE) -> 51.9 | F22: =VLOOKUP($C22,'RECAP SECT'!$G$6:$FJ$253,5,FALSE) -> -7.84 | G22: =VLOOKUP($C22,'RECAP SECT'!$G$6:$FJ$253,6,FALSE) -> -3.92 | H22: =VLOOKUP($C22,'RECAP SECT'!$G$6:$FJ$253,7,FALSE) -> 79% | I22: =VLOOKUP($C22,'RECAP SECT'!$G$6:$FJ$253,8,FALSE) -> 15 | J22: =VLOOKUP($C22,'RECAP SECT'!$G$6:$FJ$253,9,FALSE) -> 0.15 | K22: =VLOOKUP($C22,'RECAP SECT'!$G$6:$FJ$253,10,FALSE) -> 0.11 | L22: =VLOOKUP($C22,'RECAP SECT'!$G$6:$FJ$253,11,FALSE) -> 89% | M22: =VLOOKUP($C22,'RECAP SECT'!$G$6:$FJ$253,12,FALSE) -> 14 | N22: =VLOOKUP($C22,'RECAP SECT'!$G$6:$FJ$253,13,FALSE) -> -7.23 | O22: =VLOOKUP($C22,'RECAP SECT'!$G$6:$FJ$253,14,FALSE) -> -1.08 | P22: =VLOOKUP($C22,'RECAP SECT'!$G$6:$FJ$253,15,FALSE) -> 106% | Q22: =VLOOKUP($C22,'RECAP SECT'!$G$6:$FJ$253,16,FALSE) -> 11 | R22: =VLOOKUP($C22,'RECAP SECT'!$G$6:$FJ$253,17,FALSE) -> 21% | S22: =VLOOKUP($C22,'RECAP SECT'!$G$6:$FJ$253,18,FALSE) -> 53% | T22: =VLOOKUP($C22,'RECAP SECT'!$G$6:$FJ$253,19,FALSE) -> 45% | U22: =VLOOKUP($C22,'RECAP SECT'!$G$6:$FJ$253,20,FALSE) -> 7 | V22: =VLOOKUP($C22,'RECAP SECT'!$G$6:$FJ$253,21,FALSE) -> 81% | W22: =VLOOKUP($C22,'RECAP SECT'!$G$6:$FJ$253,22,FALSE) -> 57% | X22: =VLOOKUP($C22,'RECAP SECT'!$G$6:$FJ$253,23,FALSE) -> 13
A23: 160 | B23: MOSELLE | C23: 45 | D23: METZ | E23: =VLOOKUP($C23,'RECAP SECT'!$G$6:$FJ$253,3,FALSE) -> 85.7 | F23: =VLOOKUP($C23,'RECAP SECT'!$G$6:$FJ$253,5,FALSE) -> -5.85 | G23: =VLOOKUP($C23,'RECAP SECT'!$G$6:$FJ$253,6,FALSE) -> -2.92 | H23: =VLOOKUP($C23,'RECAP SECT'!$G$6:$FJ$253,7,FALSE) -> 48% | I23: =VLOOKUP($C23,'RECAP SECT'!$G$6:$FJ$253,8,FALSE) -> 7 | J23: =VLOOKUP($C23,'RECAP SECT'!$G$6:$FJ$253,9,FALSE) -> 1.28 | K23: =VLOOKUP($C23,'RECAP SECT'!$G$6:$FJ$253,10,FALSE) -> 0.90 | L23: =VLOOKUP($C23,'RECAP SECT'!$G$6:$FJ$253,11,FALSE) -> 9% | M23: =VLOOKUP($C23,'RECAP SECT'!$G$6:$FJ$253,12,FALSE) -> 2 | N23: =VLOOKUP($C23,'RECAP SECT'!$G$6:$FJ$253,13,FALSE) -> -6.32 | O23: =VLOOKUP($C23,'RECAP SECT'!$G$6:$FJ$253,14,FALSE) -> -0.95 | P23: =VLOOKUP($C23,'RECAP SECT'!$G$6:$FJ$253,15,FALSE) -> 83% | Q23: =VLOOKUP($C23,'RECAP SECT'!$G$6:$FJ$253,16,FALSE) -> 7 | R23: =VLOOKUP($C23,'RECAP SECT'!$G$6:$FJ$253,17,FALSE) -> 19% | S23: =VLOOKUP($C23,'RECAP SECT'!$G$6:$FJ$253,18,FALSE) -> 47% | T23: =VLOOKUP($C23,'RECAP SECT'!$G$6:$FJ$253,19,FALSE) -> 52% | U23: =VLOOKUP($C23,'RECAP SECT'!$G$6:$FJ$253,20,FALSE) -> 8 | V23: =VLOOKUP($C23,'RECAP SECT'!$G$6:$FJ$253,21,FALSE) -> 43% | W23: =VLOOKUP($C23,'RECAP SECT'!$G$6:$FJ$253,22,FALSE) -> 18% | X23: =VLOOKUP($C23,'RECAP SECT'!$G$6:$FJ$253,23,FALSE) -> 5
A24: 160 | B24: MOSELLE | C24: 42 | D24: MOSELLE EST | E24: =VLOOKUP($C24,'RECAP SECT'!$G$6:$FJ$253,3,FALSE) -> 70.1 | F24: =VLOOKUP($C24,'RECAP SECT'!$G$6:$FJ$253,5,FALSE) -> -6.39 | G24: =VLOOKUP($C24,'RECAP SECT'!$G$6:$FJ$253,6,FALSE) -> -3.20 | H24: =VLOOKUP($C24,'RECAP SECT'!$G$6:$FJ$253,7,FALSE) -> 57% | I24: =VLOOKUP($C24,'RECAP SECT'!$G$6:$FJ$253,8,FALSE) -> 9 | J24: =VLOOKUP($C24,'RECAP SECT'!$G$6:$FJ$253,9,FALSE) -> 0.00 | K24: =VLOOKUP($C24,'RECAP SECT'!$G$6:$FJ$253,10,FALSE) -> 0.00 | L24: =VLOOKUP($C24,'RECAP SECT'!$G$6:$FJ$253,11,FALSE) -> 100% | M24: =VLOOKUP($C24,'RECAP SECT'!$G$6:$FJ$253,12,FALSE) -> 15 | N24: =VLOOKUP($C24,'RECAP SECT'!$G$6:$FJ$253,13,FALSE) -> -7.08 | O24: =VLOOKUP($C24,'RECAP SECT'!$G$6:$FJ$253,14,FALSE) -> -1.06 | P24: =VLOOKUP($C24,'RECAP SECT'!$G$6:$FJ$253,15,FALSE) -> 102% | Q24: =VLOOKUP($C24,'RECAP SECT'!$G$6:$FJ$253,16,FALSE) -> 10 | R24: =VLOOKUP($C24,'RECAP SECT'!$G$6:$FJ$253,17,FALSE) -> 9% | S24: =VLOOKUP($C24,'RECAP SECT'!$G$6:$FJ$253,18,FALSE) -> 21% | T24: =VLOOKUP($C24,'RECAP SECT'!$G$6:$FJ$253,19,FALSE) -> 78% | U24: =VLOOKUP($C24,'RECAP SECT'!$G$6:$FJ$253,20,FALSE) -> 12 | V24: =VLOOKUP($C24,'RECAP SECT'!$G$6:$FJ$253,21,FALSE) -> 84% | W24: =VLOOKUP($C24,'RECAP SECT'!$G$6:$FJ$253,22,FALSE) -> 60% | X24: =VLOOKUP($C24,'RECAP SECT'!$G$6:$FJ$253,23,FALSE) -> 14
A25: 160 | B25: MOSELLE | C25: 44 | D25: MOSELLE NORD | E25: =VLOOKUP($C25,'RECAP SECT'!$G$6:$FJ$253,3,FALSE) -> 68.2 | F25: =VLOOKUP($C25,'RECAP SECT'!$G$6:$FJ$253,5,FALSE) -> -7.14 | G25: =VLOOKUP($C25,'RECAP SECT'!$G$6:$FJ$253,6,FALSE) -> -3.57 | H25: =VLOOKUP($C25,'RECAP SECT'!$G$6:$FJ$253,7,FALSE) -> 68% | I25: =VLOOKUP($C25,'RECAP SECT'!$G$6:$FJ$253,8,FALSE) -> 14 | J25: =VLOOKUP($C25,'RECAP SECT'!$G$6:$FJ$253,9,FALSE) -> 0.66 | K25: =VLOOKUP($C25,'RECAP SECT'!$G$6:$FJ$253,10,FALSE) -> 0.46 | L25: =VLOOKUP($C25,'RECAP SECT'!$G$6:$FJ$253,11,FALSE) -> 53% | M25: =VLOOKUP($C25,'RECAP SECT'!$G$6:$FJ$253,12,FALSE) -> 9 | N25: =VLOOKUP($C25,'RECAP SECT'!$G$6:$FJ$253,13,FALSE) -> -7.23 | O25: =VLOOKUP($C25,'RECAP SECT'!$G$6:$FJ$253,14,FALSE) -> -1.08 | P25: =VLOOKUP($C25,'RECAP SECT'!$G$6:$FJ$253,15,FALSE) -> 106% | Q25: =VLOOKUP($C25,'RECAP SECT'!$G$6:$FJ$253,16,FALSE) -> 12 | R25: =VLOOKUP($C25,'RECAP SECT'!$G$6:$FJ$253,17,FALSE) -> 13% | S25: =VLOOKUP($C25,'RECAP SECT'!$G$6:$FJ$253,18,FALSE) -> 33% | T25: =VLOOKUP($C25,'RECAP SECT'!$G$6:$FJ$253,19,FALSE) -> 66% | U25: =VLOOKUP($C25,'RECAP SECT'!$G$6:$FJ$253,20,FALSE) -> 10 | V25: =VLOOKUP($C25,'RECAP SECT'!$G$6:$FJ$253,21,FALSE) -> 70% | W25: =VLOOKUP($C25,'RECAP SECT'!$G$6:$FJ$253,22,FALSE) -> 46% | X25: =VLOOKUP($C25,'RECAP SECT'!$G$6:$FJ$253,23,FALSE) -> 11
A26: 80 | B26: VOSGES | C26: 57 | D26: EPINAL | E26: =VLOOKUP($C26,'RECAP SECT'!$G$6:$FJ$253,3,FALSE) -> 59.2 | F26: =VLOOKUP($C26,'RECAP SECT'!$G$6:$FJ$253,5,FALSE) -> -6.44 | G26: =VLOOKUP($C26,'RECAP SECT'!$G$6:$FJ$253,6,FALSE) -> -3.22 | H26: =VLOOKUP($C26,'RECAP SECT'!$G$6:$FJ$253,7,FALSE) -> 58% | I26: =VLOOKUP($C26,'RECAP SECT'!$G$6:$FJ$253,8,FALSE) -> 10 | J26: =VLOOKUP($C26,'RECAP SECT'!$G$6:$FJ$253,9,FALSE) -> 1.25 | K26: =VLOOKUP($C26,'RECAP SECT'!$G$6:$FJ$253,10,FALSE) -> 0.87 | L26: =VLOOKUP($C26,'RECAP SECT'!$G$6:$FJ$253,11,FALSE) -> 11% | M26: =VLOOKUP($C26,'RECAP SECT'!$G$6:$FJ$253,12,FALSE) -> 4 | N26: =VLOOKUP($C26,'RECAP SECT'!$G$6:$FJ$253,13,FALSE) -> -7.40 | O26: =VLOOKUP($C26,'RECAP SECT'!$G$6:$FJ$253,14,FALSE) -> -1.11 | P26: =VLOOKUP($C26,'RECAP SECT'!$G$6:$FJ$253,15,FALSE) -> 110% | Q26: =VLOOKUP($C26,'RECAP SECT'!$G$6:$FJ$253,16,FALSE) -> 13 | R26: =VLOOKUP($C26,'RECAP SECT'!$G$6:$FJ$253,17,FALSE) -> 22% | S26: =VLOOKUP($C26,'RECAP SECT'!$G$6:$FJ$253,18,FALSE) -> 55% | T26: =VLOOKUP($C26,'RECAP SECT'!$G$6:$FJ$253,19,FALSE) -> 43% | U26: =VLOOKUP($C26,'RECAP SECT'!$G$6:$FJ$253,20,FALSE) -> 6 | V26: =VLOOKUP($C26,'RECAP SECT'!$G$6:$FJ$253,21,FALSE) -> 50% | W26: =VLOOKUP($C26,'RECAP SECT'!$G$6:$FJ$253,22,FALSE) -> 25% | X26: =VLOOKUP($C26,'RECAP SECT'!$G$6:$FJ$253,23,FALSE) -> 6
A27: 80 | B27: VOSGES | C27: 55 | D27: SAINT DIE | E27: =VLOOKUP($C27,'RECAP SECT'!$G$6:$FJ$253,3,FALSE) -> 47.9 | F27: =VLOOKUP($C27,'RECAP SECT'!$G$6:$FJ$253,5,FALSE) -> -6.20 | G27: =VLOOKUP($C27,'RECAP SECT'!$G$6:$FJ$253,6,FALSE) -> -3.10 | H27: =VLOOKUP($C27,'RECAP SECT'!$G$6:$FJ$253,7,FALSE) -> 54% | I27: =VLOOKUP($C27,'RECAP SECT'!$G$6:$FJ$253,8,FALSE) -> 8 | J27: =VLOOKUP($C27,'RECAP SECT'!$G$6:$FJ$253,9,FALSE) -> -0.06 | K27: =VLOOKUP($C27,'RECAP SECT'!$G$6:$FJ$253,10,FALSE) -> -0.04 | L27: =VLOOKUP($C27,'RECAP SECT'!$G$6:$FJ$253,11,FALSE) -> 104% | M27: =VLOOKUP($C27,'RECAP SECT'!$G$6:$FJ$253,12,FALSE) -> 17 | N27: =VLOOKUP($C27,'RECAP SECT'!$G$6:$FJ$253,13,FALSE) -> -7.78 | O27: =VLOOKUP($C27,'RECAP SECT'!$G$6:$FJ$253,14,FALSE) -> -1.17 | P27: =VLOOKUP($C27,'RECAP SECT'!$G$6:$FJ$253,15,FALSE) -> 119% | Q27: =VLOOKUP($C27,'RECAP SECT'!$G$6:$FJ$253,16,FALSE) -> 16 | R27: =VLOOKUP($C27,'RECAP SECT'!$G$6:$FJ$253,17,FALSE) -> 0% | S27: =VLOOKUP($C27,'RECAP SECT'!$G$6:$FJ$253,18,FALSE) -> 0% | T27: =VLOOKUP($C27,'RECAP SECT'!$G$6:$FJ$253,19,FALSE) -> 100% | U27: =VLOOKUP($C27,'RECAP SECT'!$G$6:$FJ$253,20,FALSE) -> 17 | V27: =VLOOKUP($C27,'RECAP SECT'!$G$6:$FJ$253,21,FALSE) -> 93% | W27: =VLOOKUP($C27,'RECAP SECT'!$G$6:$FJ$253,22,FALSE) -> 69% | X27: =VLOOKUP($C27,'RECAP SECT'!$G$6:$FJ$253,23,FALSE) -> 16
A28: Total CEGEE Directions Régionales | E28: =SUM(E10:E27) -> 1131

Sheet SE_ACCELER
B1: Accueil | F1: BAROMETRE BDD - TERRITOIRES
F2: ACCELERATEURS DE PNB
F3: =ACCUEIL!F7 -> 2020-07-19
F7: Ventes brutes SED finalisées | J7: Clients Equipés E documents | N7: Economie Opt'in | R7: Remises Commerciales | V7: Total Accélérateurs PNB
F8: =DATEMAJ!C31 -> au 19/07 | H8: coef | I8: ='RECAP DIRCOM'!EE4 -> 6% | J8: =DATEMAJ!C32 -> au 31/05 | L8: coef | M8: ='RECAP DIRCOM'!EI4 -> 3% | N8: =DATEMAJ!C33 -> au 31/05 | P8: coef | Q8: ='RECAP DIRCOM'!EM4 -> 3% | R8: =DATEMAJ!C34 -> au 30/06 | T8: coef | U8: ='RECAP DIRCOM'!EQ4 -> 3% | W8: coef | X8: ='RECAP DIRCOM'!ET4 -> 15%
B9: Direction | C9: eds | D9: Territoire | E9: ="ETP perf "&DATEMAJ!$C$39 -> ETP perf au 31/05 | F9: Nb / ETP | G9: PNB / ETP | H9: % Ecart au 1er | I9: Rang | J9: Nb / ETP | K9: PNB / ETP | L9: % Ecart au 1er | M9: Rang | N9: Nb / ETP | O9: PNB / ETP | P9: % Ecart au 1er | Q9: Rang | R9: Rem / ETP | S9: PNB / ETP | T9: % Ecart au 1er | U9: Rang | V9: Moyenne ecart au 1er | W9: % Ecart au 1er | X9: Rang CEGEE
A10: 50 | B10: AUBE HAUTE MARNE | C10: 21 | D10: CHAUMONT | E10: =VLOOKUP($C10,'RECAP SECT'!$G$6:$FJ$253,3,FALSE) -> 34.2 | F10: =VLOOKUP($C10,'RECAP SECT'!$G$6:$FJ$253,126,FALSE) -> 42.66 | G10: =VLOOKUP($C10,'RECAP SECT'!$G$6:$FJ$253,127,FALSE) -> 0.43 | H10: =VLOOKUP($C10,'RECAP SECT'!$G$6:$FJ$253,128,FALSE) -> 21% | I10: =VLOOKUP($C10,'RECAP SECT'!$G$6:$FJ$253,129,FALSE) -> 8 | J10: =VLOOKUP($C10,'RECAP SECT'!$G$6:$FJ$253,130,FALSE) -> 15.95 | K10: =VLOOKUP($C10,'RECAP SECT'!$G$6:$FJ$253,131,FALSE) -> 0.80 | L10: =VLOOKUP($C10,'RECAP SECT'!$G$6:$FJ$253,132,FALSE) -> 37% | M10: =VLOOKUP($C10,'RECAP SECT'!$G$6:$FJ$253,133,FALSE) -> 14 | N10: =VLOOKUP($C10,'RECAP SECT'!$G$6:$FJ$253,134,FALSE) -> 18.29 | O10: =VLOOKUP($C10,'RECAP SECT'!$G$6:$FJ$253,135,FALSE) -> 0.27 | P10: =VLOOKUP($C10,'RECAP SECT'!$G$6:$FJ$253,136,FALSE) -> 64% | Q10: =VLOOKUP($C10,'RECAP SECT'!$G$6:$FJ$253,137,FALSE) -> 8 | R10: =VLOOKUP($C10,'RECAP SECT'!$G$6:$FJ$253,138,FALSE) -> -51.33 | S10: =VLOOKUP($C10,'RECAP SECT'!$G$6:$FJ$253,139,FALSE) -> -1.50 | T10: =VLOOKUP($C10,'RECAP SECT'!$G$6:$FJ$253,140,FALSE) -> 4% | U10: =VLOOKUP($C10,'RECAP SECT'!$G$6:$FJ$253,141,FALSE) -> 2 | V10: =VLOOKUP($C10,'RECAP SECT'!$G$6:$FJ$253,142,FALSE) -> 30% | W10: =VLOOKUP($C10,'RECAP SECT'!$G$6:$FJ$253,143,FALSE) -> 11% | X10: =VLOOKUP($C10,'RECAP SECT'!$G$6:$FJ$253,144,FALSE) -> 6
A11: 50 | B11: AUBE HAUTE MARNE | C11: 14 | D11: TROYES | E11: =VLOOKUP($C11,'RECAP SECT'!$G$6:$FJ$253,3,FALSE) -> 65.3 | F11: =VLOOKUP($C11,'RECAP SECT'!$G$6:$FJ$253,126,FALSE) -> 33.80 | G11: =VLOOKUP($C11,'RECAP SECT'!$G$6:$FJ$253,127,FALSE) -> 0.34 | H11: =VLOOKUP($C11,'RECAP SECT'!$G$6:$FJ$253,128,FALSE) -> 38% | I11: =VLOOKUP($C11,'RECAP SECT'!$G$6:$FJ$253,129,FALSE) -> 14 | J11: =VLOOKUP($C11,'RECAP SECT'!$G$6:$FJ$253,130,FALSE) -> 17.77 | K11: =VLOOKUP($C11,'RECAP SECT'!$G$6:$FJ$253,131,FALSE) -> 0.89 | L11: =VLOOKUP($C11,'RECAP SECT'!$G$6:$FJ$253,132,FALSE) -> 30% | M11: =VLOOKUP($C11,'RECAP SECT'!$G$6:$FJ$253,133,FALSE) -> 7 | N11: =VLOOKUP($C11,'RECAP SECT'!$G$6:$FJ$253,134,FALSE) -> 19.07 | O11: =VLOOKUP($C11,'RECAP SECT'!$G$6:$FJ$253,135,FALSE) -> 0.29 | P11: =VLOOKUP($C11,'RECAP SECT'!$G$6:$FJ$253,136,FALSE) -> 62% | Q11: =VLOOKUP($C11,'RECAP SECT'!$G$6:$FJ$253,137,FALSE) -> 6 | R11: =VLOOKUP($C11,'RECAP SECT'!$G$6:$FJ$253,138,FALSE) -> -127.81 | S11: =VLOOKUP($C11,'RECAP SECT'!$G$6:$FJ$253,139,FALSE) -> -1.96 | T11: =VLOOKUP($C11,'RECAP SECT'!$G$6:$FJ$253,140,FALSE) -> 36% | U11: =VLOOKUP($C11,'RECAP SECT'!$G$6:$FJ$253,141,FALSE) -> 8 | V11: =VLOOKUP($C11,'RECAP SECT'!$G$6:$FJ$253,142,FALSE) -> 41% | W11: =VLOOKUP($C11,'RECAP SECT'!$G$6:$FJ$253,143,FALSE) -> 22% | X11: =VLOOKUP($C11,'RECAP SECT'!$G$6:$FJ$253,144,FALSE) -> 11
A12: 262 | B12: BAS-RHIN | C12: 5060 | D12: HAGUENAU | E12: =VLOOKUP($C12,'RECAP SECT'!$G$6:$FJ$253,3,FALSE) -> 74.3 | F12: =VLOOKUP($C12,'RECAP SECT'!$G$6:$FJ$253,126,FALSE) -> 36.66 | G12: =VLOOKUP($C12,'RECAP SECT'!$G$6:$FJ$253,127,FALSE) -> 0.37 | H12: =VLOOKUP($C12,'RECAP SECT'!$G$6:$FJ$253,128,FALSE) -> 33% | I12: =VLOOKUP($C12,'RECAP SECT'!$G$6:$FJ$253,129,FALSE) -> 12 | J12: =VLOOKUP($C12,'RECAP SECT'!$G$6:$FJ$253,130,FALSE) -> 15.16 | K12: =VLOOKUP($C12,'RECAP SECT'!$G$6:$FJ$253,131,FALSE) -> 0.76 | L12: =VLOOKUP($C12,'RECAP SECT'!$G$6:$FJ$253,132,FALSE) -> 40% | M12: =VLOOKUP($C12,'RECAP SECT'!$G$6:$FJ$253,133,FALSE) -> 15 | N12: =VLOOKUP($C12,'RECAP SECT'!$G$6:$FJ$253,134,FALSE) -> 26.73 | O12: =VLOOKUP($C12,'RECAP SECT'!$G$6:$FJ$253,135,FALSE) -> 0.40 | P12: =VLOOKUP($C12,'RECAP SECT'!$G$6:$FJ$253,136,FALSE) -> 47% | Q12: =VLOOKUP($C12,'RECAP SECT'!$G$6:$FJ$253,137,FALSE) -> 3 | R12: =VLOOKUP($C12,'RECAP SECT'!$G$6:$FJ$253,138,FALSE) -> -141.94 | S12: =VLOOKUP($C12,'RECAP SECT'!$G$6:$FJ$253,139,FALSE) -> -1.91 | T12: =VLOOKUP($C12,'RECAP SECT'!$G$6:$FJ$253,140,FALSE) -> 33% | U12: =VLOOKUP($C12,'RECAP SECT'!$G$6:$FJ$253,141,FALSE) -> 7 | V12: =VLOOKUP($C12,'RECAP SECT'!$G$6:$FJ$253,142,FALSE) -> 37% | W12: =VLOOKUP($C12,'RECAP SECT'!$G$6:$FJ$253,143,FALSE) -> 19% | X12: =VLOOKUP($C12,'RECAP SECT'!$G$6:$FJ$253,144,FALSE) -> 8
A13: 262 | B13: BAS-RHIN | C13: 5101 | D13: SELESTAT | E13: =VLOOKUP($C13,'RECAP SECT'!$G$6:$FJ$253,3,FALSE) -> 62.1 | F13: =VLOOKUP($C13,'RECAP SECT'!$G$6:$FJ$253,126,FALSE) -> 33.83 | G13: =VLOOKUP($C13,'RECAP SECT'!$G$6:$FJ$253,127,FALSE) -> 0.34 | H13: =VLOOKUP($C13,'RECAP SECT'!$G$6:$FJ$253,128,FALSE) -> 38% | I13: =VLOOKUP($C13,'RECAP SECT'!$G$6:$FJ$253,129,FALSE) -> 13 | J13: =VLOOKUP($C13,'RECAP SECT'!$G$6:$FJ$253,130,FALSE) -> 17.77 | K13: =VLOOKUP($C13,'RECAP SECT'!$G$6:$FJ$253,131,FALSE) -> 0.89 | L13: =VLOOKUP($C13,'RECAP SECT'!$G$6:$FJ$253,132,FALSE) -> 30% | M13: =VLOOKUP($C13,'RECAP SECT'!$G$6:$FJ$253,133,FALSE) -> 8 | N13: =VLOOKUP($C13,'RECAP SECT'!$G$6:$FJ$253,134,FALSE) -> 31.03 | O13: =VLOOKUP($C13,'RECAP SECT'!$G$6:$FJ$253,135,FALSE) -> 0.47 | P13: =VLOOKUP($C13,'RECAP SECT'!$G$6:$FJ$253,136,FALSE) -> 38% | Q13: =VLOOKUP($C13,'RECAP SECT'!$G$6:$FJ$253,137,FALSE) -> 2 | R13: =VLOOKUP($C13,'RECAP SECT'!$G$6:$FJ$253,138,FALSE) -> -126.89 | S13: =VLOOKUP($C13,'RECAP SECT'!$G$6:$FJ$253,139,FALSE) -> -2.04 | T13: =VLOOKUP($C13,'RECAP SECT'!$G$6:$FJ$253,140,FALSE) -> 42% | U13: =VLOOKUP($C13,'RECAP SECT'!$G$6:$FJ$253,141,FALSE) -> 11 | V13: =VLOOKUP($C13,'RECAP SECT'!$G$6:$FJ$253,142,FALSE) -> 37% | W13: =VLOOKUP($C13,'RECAP SECT'!$G$6:$FJ$253,143,FALSE) -> 19% | X13: =VLOOKUP($C13,'RECAP SECT'!$G$6:$FJ$253,144,FALSE) -> 10
A14: 262 | B14: BAS-RHIN | C14: 5006 | D14: STRASBOURG | E14: =VLOOKUP($C14,'RECAP SECT'!$G$6:$FJ$253,3,FALSE) -> 73.4 | F14: =VLOOKUP($C14,'RECAP SECT'!$G$6:$FJ$253,126,FALSE) -> 42.85 | G14: =VLOOKUP($C14,'RECAP SECT'!$G$6:$FJ$253,127,FALSE) -> 0.43 | H14: =VLOOKUP($C14,'RECAP SECT'!$G$6:$FJ$253,128,FALSE) -> 21% | I14: =VLOOKUP($C14,'RECAP SECT'!$G$6:$FJ$253,129,FALSE) -> 6 | J14: =VLOOKUP($C14,'RECAP SECT'!$G$6:$FJ$253,130,FALSE) -> 25.38 | K14: =VLOOKUP($C14,'RECAP SECT'!$G$6:$FJ$253,131,FALSE) -> 1.27 | L14: =VLOOKUP($C14,'RECAP SECT'!$G$6:$FJ$253,132,FALSE) -> 0% | M14: =VLOOKUP($C14,'RECAP SECT'!$G$6:$FJ$253,133,FALSE) -> 1 | N14: =VLOOKUP($C14,'RECAP SECT'!$G$6:$FJ$253,134,FALSE) -> 50.28 | O14: =VLOOKUP($C14,'RECAP SECT'!$G$6:$FJ$253,135,FALSE) -> 0.75 | P14: =VLOOKUP($C14,'RECAP SECT'!$G$6:$FJ$253,136,FALSE) -> 0% | Q14: =VLOOKUP($C14,'RECAP SECT'!$G$6:$FJ$253,137,FALSE) -> 1 | R14: =VLOOKUP($C14,'RECAP SECT'!$G$6:$FJ$253,138,FALSE) -> -173.33 | S14: =VLOOKUP($C14,'RECAP SECT'!$G$6:$FJ$253,139,FALSE) -> -2.36 | T14: =VLOOKUP($C14,'RECAP SECT'!$G$6:$FJ$253,140,FALSE) -> 65% | U14: =VLOOKUP($C14,'RECAP SECT'!$G$6:$FJ$253,141,FALSE) -> 15 | V14: =VLOOKUP($C14,'RECAP SECT'!$G$6:$FJ$253,142,FALSE) -> 21% | W14: =VLOOKUP($C14,'RECAP SECT'!$G$6:$FJ$253,143,FALSE) -> 3% | X14: =VLOOKUP($C14,'RECAP SECT'!$G$6:$FJ$253,144,FALSE) -> 3
A15: 264 | B15: HAUT-RHIN | C15: 5130 | D15: COLMAR | E15: =VLOOKUP($C15,'RECAP SECT'!$G$6:$FJ$253,3,FALSE) -> 64.9 | F15: =VLOOKUP($C15,'RECAP SECT'!$G$6:$FJ$253,126,FALSE) -> 31.96 | G15: =VLOOKUP($C15,'RECAP SECT'!$G$6:$FJ$253,127,FALSE) -> 0.32 | H15: =VLOOKUP($C15,'RECAP SECT'!$G$6:$FJ$253,128,FALSE) -> 41% | I15: =VLOOKUP($C15,'RECAP SECT'!$G$6:$FJ$253,129,FALSE) -> 15 | J15: =VLOOKUP($C15,'RECAP SECT'!$G$6:$FJ$253,130,FALSE) -> 14.82 | K15: =VLOOKUP($C15,'RECAP SECT'!$G$6:$FJ$253,131,FALSE) -> 0.74 | L15: =VLOOKUP($C15,'RECAP SECT'!$G$6:$FJ$253,132,FALSE) -> 42% | M15: =VLOOKUP($C15,'RECAP SECT'!$G$6:$FJ$253,133,FALSE) -> 16 | N15: =VLOOKUP($C15,'RECAP SECT'!$G$6:$FJ$253,134,FALSE) -> 15.04 | O15: =VLOOKUP($C15,'RECAP SECT'!$G$6:$FJ$253,135,FALSE) -> 0.23 | P15: =VLOOKUP($C15,'RECAP SECT'!$G$6:$FJ$253,136,FALSE) -> 70% | Q15: =VLOOKUP($C15,'RECAP SECT'!$G$6:$FJ$253,137,FALSE) -> 11 | R15: =VLOOKUP($C15,'RECAP SECT'!$G$6:$FJ$253,138,FALSE) -> -149.54 | S15: =VLOOKUP($C15,'RECAP SECT'!$G$6:$FJ$253,139,FALSE) -> -2.30 | T15: =VLOOKUP($C15,'RECAP SECT'!$G$6:$FJ$253,140,FALSE) -> 61% | U15: =VLOOKUP($C15,'RECAP SECT'!$G$6:$FJ$253,141,FALSE) -> 14 | V15: =VLOOKUP($C15,'RECAP SECT'!$G$6:$FJ$253,142,FALSE) -> 51% | W15: =VLOOKUP($C15,'RECAP SECT'!$G$6:$FJ$253,143,FALSE) -> 32% | X15: =VLOOKUP($C15,'RECAP SECT'!$G$6:$FJ$253,144,FALSE) -> 17
A16: 264 | B16: HAUT-RHIN | C16: 5169 | D16: MULHOUSE | E16: =VLOOKUP($C16,'RECAP SECT'!$G$6:$FJ$253,3,FALSE) -> 61.1 | F16: =VLOOKUP($C16,'RECAP SECT'!$G$6:$FJ$253,126,FALSE) -> 27.68 | G16: =VLOOKUP($C16,'RECAP SECT'!$G$6:$FJ$253,127,FALSE) -> 0.28 | H16: =VLOOKUP($C16,'RECAP SECT'!$G$6:$FJ$253,128,FALSE) -> 49% | I16: =VLOOKUP($C16,'RECAP SECT'!$G$6:$FJ$253,129,FALSE) -> 18 | J16: =VLOOKUP($C16,'RECAP SECT'!$G$6:$FJ$253,130,FALSE) -> 16.44 | K16: =VLOOKUP($C16,'RECAP SECT'!$G$6:$FJ$253,131,FALSE) -> 0.82 | L16: =VLOOKUP($C16,'RECAP SECT'!$G$6:$FJ$253,132,FALSE) -> 35% | M16: =VLOOKUP($C16,'RECAP SECT'!$G$6:$FJ$253,133,FALSE) -> 13 | N16: =VLOOKUP($C16,'RECAP SECT'!$G$6:$FJ$253,134,FALSE) -> 10.32 | O16: =VLOOKUP($C16,'RECAP SECT'!$G$6:$FJ$253,135,FALSE) -> 0.15 | P16: =VLOOKUP($C16,'RECAP SECT'!$G$6:$FJ$253,136,FALSE) -> 79% | Q16: =VLOOKUP($C16,'RECAP SECT'!$G$6:$FJ$253,137,FALSE) -> 16 | R16: =VLOOKUP($C16,'RECAP SECT'!$G$6:$FJ$253,138,FALSE) -> -157.12 | S16: =VLOOKUP($C16,'RECAP SECT'!$G$6:$FJ$253,139,FALSE) -> -2.57 | T16: =VLOOKUP($C16,'RECAP SECT'!$G$6:$FJ$253,140,FALSE) -> 79% | U16: =VLOOKUP($C16,'RECAP SECT'!$G$6:$FJ$253,141,FALSE) -> 17 | V16: =VLOOKUP($C16,'RECAP SECT'!$G$6:$FJ$253,142,FALSE) -> 58% | W16: =VLOOKUP($C16,'RECAP SECT'!$G$6:$FJ$253,143,FALSE) -> 40% | X16: =VLOOKUP($C16,'RECAP SECT'!$G$6:$FJ$253,144,FALSE) -> 18
A17: 30 | B17: MARNE-ARDENNES | C17: 6 | D17: CHALONS EN CHAMPAGNE | E17: =VLOOKUP($C17,'RECAP SECT'!$G$6:$FJ$253,3,FALSE) -> 45.0 | F17: =VLOOKUP($C17,'RECAP SECT'!$G$6:$FJ$253,126,FALSE) -> 42.83 | G17: =VLOOKUP($C17,'RECAP SECT'!$G$6:$FJ$253,127,FALSE) -> 0.43 | H17: =VLOOKUP($C17,'RECAP SECT'!$G$6:$FJ$253,128,FALSE) -> 21% | I17: =VLOOKUP($C17,'RECAP SECT'!$G$6:$FJ$253,129,FALSE) -> 7 | J17: =VLOOKUP($C17,'RECAP SECT'!$G$6:$FJ$253,130,FALSE) -> 24.79 | K17: =VLOOKUP($C17,'RECAP SECT'!$G$6:$FJ$253,131,FALSE) -> 1.24 | L17: =VLOOKUP($C17,'RECAP SECT'!$G$6:$FJ$253,132,FALSE) -> 2% | M17: =VLOOKUP($C17,'RECAP SECT'!$G$6:$FJ$253,133,FALSE) -> 3 | N17: =VLOOKUP($C17,'RECAP SECT'!$G$6:$FJ$253,134,FALSE) -> 25.97 | O17: =VLOOKUP($C17,'RECAP SECT'!$G$6:$FJ$253,135,FALSE) -> 0.39 | P17: =VLOOKUP($C17,'RECAP SECT'!$G$6:$FJ$253,136,FALSE) -> 48% | Q17: =VLOOKUP($C17,'RECAP SECT'!$G$6:$FJ$253,137,FALSE) -> 4 | R17: =VLOOKUP($C17,'RECAP SECT'!$G$6:$FJ$253,138,FALSE) -> -64.61 | S17: =VLOOKUP($C17,'RECAP SECT'!$G$6:$FJ$253,139,FALSE) -> -1.44 | T17: =VLOOKUP($C17,'RECAP SECT'!$G$6:$FJ$253,140,FALSE) -> 0% | U17: =VLOOKUP($C17,'RECAP SECT'!$G$6:$FJ$253,141,FALSE) -> 1 | V17: =VLOOKUP($C17,'RECAP SECT'!$G$6:$FJ$253,142,FALSE) -> 19% | W17: =VLOOKUP($C17,'RECAP SECT'!$G$6:$FJ$253,143,FALSE) -> 0% | X17: =VLOOKUP($C17,'RECAP SECT'!$G$6:$FJ$253,144,FALSE) -> 2
A18: 30 | B18: MARNE-ARDENNES | C18: 2 | D18: CHARLEVILLE MEZIERES | E18: =VLOOKUP($C18,'RECAP SECT'!$G$6:$FJ$253,3,FALSE) -> 54.5 | F18: =VLOOKUP($C18,'RECAP SECT'!$G$6:$FJ$253,126,FALSE) -> 52.51 | G18: =VLOOKUP($C18,'RECAP SECT'!$G$6:$FJ$253,127,FALSE) -> 0.53 | H18: =VLOOKUP($C18,'RECAP SECT'!$G$6:$FJ$253,128,FALSE) -> 3% | I18: =VLOOKUP($C18,'RECAP SECT'!$G$6:$FJ$253,129,FALSE) -> 2 | J18: =VLOOKUP($C18,'RECAP SECT'!$G$6:$FJ$253,130,FALSE) -> 23.04 | K18: =VLOOKUP($C18,'RECAP SECT'!$G$6:$FJ$253,131,FALSE) -> 1.15 | L18: =VLOOKUP($C18,'RECAP SECT'!$G$6:$FJ$253,132,FALSE) -> 9% | M18: =VLOOKUP($C18,'RECAP SECT'!$G$6:$FJ$253,133,FALSE) -> 6 | N18: =VLOOKUP($C18,'RECAP SECT'!$G$6:$FJ$253,134,FALSE) -> 18.52 | O18: =VLOOKUP($C18,'RECAP SECT'!$G$6:$FJ$253,135,FALSE) -> 0.28 | P18: =VLOOKUP($C18,'RECAP SECT'!$G$6:$FJ$253,136,FALSE) -> 63% | Q18: =VLOOKUP($C18,'RECAP SECT'!$G$6:$FJ$253,137,FALSE) -> 7 | R18: =VLOOKUP($C18,'RECAP SECT'!$G$6:$FJ$253,138,FALSE) -> -88.56 | S18: =VLOOKUP($C18,'RECAP SECT'!$G$6:$FJ$253,139,FALSE) -> -1.63 | T18: =VLOOKUP($C18,'RECAP SECT'!$G$6:$FJ$253,140,FALSE) -> 13% | U18: =VLOOKUP($C18,'RECAP SECT'!$G$6:$FJ$253,141,FALSE) -> 3 | V18: =VLOOKUP($C18,'RECAP SECT'!$G$6:$FJ$253,142,FALSE) -> 18% | W18: =VLOOKUP($C18,'RECAP SECT'!$G$6:$FJ$253,143,FALSE) -> 0% | X18: =VLOOKUP($C18,'RECAP SECT'!$G$6:$FJ$253,144,FALSE) -> 1
A19: 30 | B19: MARNE-ARDENNES | C19: 11 | D19: REIMS | E19: =VLOOKUP($C19,'RECAP SECT'!$G$6:$FJ$253,3,FALSE) -> 78.1 | F19: =VLOOKUP($C19,'RECAP SECT'!$G$6:$FJ$253,126,FALSE) -> 46.03 | G19: =VLOOKUP($C19,'RECAP SECT'!$G$6:$FJ$253,127,FALSE) -> 0.46 | H19: =VLOOKUP($C19,'RECAP SECT'!$G$6:$FJ$253,128,FALSE) -> 15% | I19: =VLOOKUP($C19,'RECAP SECT'!$G$6:$FJ$253,129,FALSE) -> 4 | J19: =VLOOKUP($C19,'RECAP SECT'!$G$6:$FJ$253,130,FALSE) -> 24.88 | K19: =VLOOKUP($C19,'RECAP SECT'!$G$6:$FJ$253,131,FALSE) -> 1.24 | L19: =VLOOKUP($C19,'RECAP SECT'!$G$6:$FJ$253,132,FALSE) -> 2% | M19: =VLOOKUP($C19,'RECAP SECT'!$G$6:$FJ$253,133,FALSE) -> 2 | N19: =VLOOKUP($C19,'RECAP SECT'!$G$6:$FJ$253,134,FALSE) -> 13.12 | O19: =VLOOKUP($C19,'RECAP SECT'!$G$6:$FJ$253,135,FALSE) -> 0.20 | P19: =VLOOKUP($C19,'RECAP SECT'!$G$6:$FJ$253,136,FALSE) -> 74% | Q19: =VLOOKUP($C19,'RECAP SECT'!$G$6:$FJ$253,137,FALSE) -> 14 | R19: =VLOOKUP($C19,'RECAP SECT'!$G$6:$FJ$253,138,FALSE) -> -201.05 | S19: =VLOOKUP($C19,'RECAP SECT'!$G$6:$FJ$253,139,FALSE) -> -2.57 | T19: =VLOOKUP($C19,'RECAP SECT'!$G$6:$FJ$253,140,FALSE) -> 79% | U19: =VLOOKUP($C19,'RECAP SECT'!$G$6:$FJ$253,141,FALSE) -> 18 | V19: =VLOOKUP($C19,'RECAP SECT'!$G$6:$FJ$253,142,FALSE) -> 37% | W19: =VLOOKUP($C19,'RECAP SECT'!$G$6:$FJ$253,143,FALSE) -> 19% | X19: =VLOOKUP($C19,'RECAP SECT'!$G$6:$FJ$253,144,FALSE) -> 9
A20: 110 | B20: MEURTHE ET MOSELLE MEUSE | C20: 26 | D20: NANCY | E20: =VLOOKUP($C20,'RECAP SECT'!$G$6:$FJ$253,3,FALSE) -> 63.6 | F20: =VLOOKUP($C20,'RECAP SECT'!$G$6:$FJ$253,126,FALSE) -> 54.31 | G20: =VLOOKUP($C20,'RECAP SECT'!$G$6:$FJ$253,127,FALSE) -> 0.54 | H20: =VLOOKUP($C20,'RECAP SECT'!$G$6:$FJ$253,128,FALSE) -> 0% | I20: =VLOOKUP($C20,'RECAP SECT'!$G$6:$FJ$253,129,FALSE) -> 1 | J20: =VLOOKUP($C20,'RECAP SECT'!$G$6:$FJ$253,130,FALSE) -> 23.05 | K20: =VLOOKUP($C20,'RECAP SECT'!$G$6:$FJ$253,131,FALSE) -> 1.15 | L20: =VLOOKUP($C20,'RECAP SECT'!$G$6:$FJ$253,132,FALSE) -> 9% | M20: =VLOOKUP($C20,'RECAP SECT'!$G$6:$FJ$253,133,FALSE) -> 5 | N20: =VLOOKUP($C20,'RECAP SECT'!$G$6:$FJ$253,134,FALSE) -> 22.01 | O20: =VLOOKUP($C20,'RECAP SECT'!$G$6:$FJ$253,135,FALSE) -> 0.33 | P20: =VLOOKUP($C20,'RECAP SECT'!$G$6:$FJ$253,136,FALSE) -> 56% | Q20: =VLOOKUP($C20,'RECAP SECT'!$G$6:$FJ$253,137,FALSE) -> 5 | R20: =VLOOKUP($C20,'RECAP SECT'!$G$6:$FJ$253,138,FALSE) -> -154.88 | S20: =VLOOKUP($C20,'RECAP SECT'!$G$6:$FJ$253,139,FALSE) -> -2.44 | T20: =VLOOKUP($C20,'RECAP SECT'!$G$6:$FJ$253,140,FALSE) -> 70% | U20: =VLOOKUP($C20,'RECAP SECT'!$G$6:$FJ$253,141,FALSE) -> 16 | V20: =VLOOKUP($C20,'RECAP SECT'!$G$6:$FJ$253,142,FALSE) -> 27% | W20: =VLOOKUP($C20,'RECAP SECT'!$G$6:$FJ$253,143,FALSE) -> 9% | X20: =VLOOKUP($C20,'RECAP SECT'!$G$6:$FJ$253,144,FALSE) -> 4
A21: 110 | B21: MEURTHE ET MOSELLE MEUSE | C21: 27 | D21: PONT A MOUSSON | E21: =VLOOKUP($C21,'RECAP SECT'!$G$6:$FJ$253,3,FALSE) -> 71.9 | F21: =VLOOKUP($C21,'RECAP SECT'!$G$6:$FJ$253,126,FALSE) -> 49.13 | G21: =VLOOKUP($C21,'RECAP SECT'!$G$6:$FJ$253,127,FALSE) -> 0.49 | H21: =VLOOKUP($C21,'RECAP SECT'!$G$6:$FJ$253,128,FALSE) -> 10% | I21: =VLOOKUP($C21,'RECAP SECT'!$G$6:$FJ$253,129,FALSE) -> 3 | J21: =VLOOKUP($C21,'RECAP SECT'!$G$6:$FJ$253,130,FALSE) -> 23.55 | K21: =VLOOKUP($C21,'RECAP SECT'!$G$6:$FJ$253,131,FALSE) -> 1.18 | L21: =VLOOKUP($C21,'RECAP SECT'!$G$6:$FJ$253,132,FALSE) -> 7% | M21: =VLOOKUP($C21,'RECAP SECT'!$G$6:$FJ$253,133,FALSE) -> 4 | N21: =VLOOKUP($C21,'RECAP SECT'!$G$6:$FJ$253,134,FALSE) -> 16.66 | O21: =VLOOKUP($C21,'RECAP SECT'!$G$6:$FJ$253,135,FALSE) -> 0.25 | P21: =VLOOKUP($C21,'RECAP SECT'!$G$6:$FJ$253,136,FALSE) -> 67% | Q21: =VLOOKUP($C21,'RECAP SECT'!$G$6:$FJ$253,137,FALSE) -> 9 | R21: =VLOOKUP($C21,'RECAP SECT'!$G$6:$FJ$253,138,FALSE) -> -156.11 | S21: =VLOOKUP($C21,'RECAP SECT'!$G$6:$FJ$253,139,FALSE) -> -2.17 | T21: =VLOOKUP($C21,'RECAP SECT'!$G$6:$FJ$253,140,FALSE) -> 51% | U21: =VLOOKUP($C21,'RECAP SECT'!$G$6:$FJ$253,141,FALSE) -> 13 | V21: =VLOOKUP($C21,'RECAP SECT'!$G$6:$FJ$253,142,FALSE) -> 29% | W21: =VLOOKUP($C21,'RECAP SECT'!$G$6:$FJ$253,143,FALSE) -> 10% | X21: =VLOOKUP($C21,'RECAP SECT'!$G$6:$FJ$253,144,FALSE) -> 5
A22: 110 | B22: MEURTHE ET MOSELLE MEUSE | C22: 31 | D22: VERDUN | E22: =VLOOKUP($C22,'RECAP SECT'!$G$6:$FJ$253,3,FALSE) -> 51.9 | F22: =VLOOKUP($C22,'RECAP SECT'!$G$6:$FJ$253,126,FALSE) -> 30.74 | G22: =VLOOKUP($C22,'RECAP SECT'!$G$6:$FJ$253,127,FALSE) -> 0.31 | H22: =VLOOKUP($C22,'RECAP SECT'!$G$6:$FJ$253,128,FALSE) -> 43% | I22: =VLOOKUP($C22,'RECAP SECT'!$G$6:$FJ$253,129,FALSE) -> 16 | J22: =VLOOKUP($C22,'RECAP SECT'!$G$6:$FJ$253,130,FALSE) -> 17.40 | K22: =VLOOKUP($C22,'RECAP SECT'!$G$6:$FJ$253,131,FALSE) -> 0.87 | L22: =VLOOKUP($C22,'RECAP SECT'!$G$6:$FJ$253,132,FALSE) -> 31% | M22: =VLOOKUP($C22,'RECAP SECT'!$G$6:$FJ$253,133,FALSE) -> 11 | N22: =VLOOKUP($C22,'RECAP SECT'!$G$6:$FJ$253,134,FALSE) -> 16.07 | O22: =VLOOKUP($C22,'RECAP SECT'!$G$6:$FJ$253,135,FALSE) -> 0.24 | P22: =VLOOKUP($C22,'RECAP SECT'!$G$6:$FJ$253,136,FALSE) -> 68% | Q22: =VLOOKUP($C22,'RECAP SECT'!$G$6:$FJ$253,137,FALSE) -> 10 | R22: =VLOOKUP($C22,'RECAP SECT'!$G$6:$FJ$253,138,FALSE) -> -98.00 | S22: =VLOOKUP($C22,'RECAP SECT'!$G$6:$FJ$253,139,FALSE) -> -1.89 | T22: =VLOOKUP($C22,'RECAP SECT'!$G$6:$FJ$253,140,FALSE) -> 32% | U22: =VLOOKUP($C22,'RECAP SECT'!$G$6:$FJ$253,141,FALSE) -> 6 | V22: =VLOOKUP($C22,'RECAP SECT'!$G$6:$FJ$253,142,FALSE) -> 44% | W22: =VLOOKUP($C22,'RECAP SECT'!$G$6:$FJ$253,143,FALSE) -> 25% | X22: =VLOOKUP($C22,'RECAP SECT'!$G$6:$FJ$253,144,FALSE) -> 14
A23: 160 | B23: MOSELLE | C23: 45 | D23: METZ | E23: =VLOOKUP($C23,'RECAP SECT'!$G$6:$FJ$253,3,FALSE) -> 85.7 | F23: =VLOOKUP($C23,'RECAP SECT'!$G$6:$FJ$253,126,FALSE) -> 44.04 | G23: =VLOOKUP($C23,'RECAP SECT'!$G$6:$FJ$253,127,FALSE) -> 0.44 | H23: =VLOOKUP($C23,'RECAP SECT'!$G$6:$FJ$253,128,FALSE) -> 19% | I23: =VLOOKUP($C23,'RECAP SECT'!$G$6:$FJ$253,129,FALSE) -> 5 | J23: =VLOOKUP($C23,'RECAP SECT'!$G$6:$FJ$253,130,FALSE) -> 17.51 | K23: =VLOOKUP($C23,'RECAP SECT'!$G$6:$FJ$253,131,FALSE) -> 0.88 | L23: =VLOOKUP($C23,'RECAP SECT'!$G$6:$FJ$253,132,FALSE) -> 31% | M23: =VLOOKUP($C23,'RECAP SECT'!$G$6:$FJ$253,133,FALSE) -> 10 | N23: =VLOOKUP($C23,'RECAP SECT'!$G$6:$FJ$253,134,FALSE) -> 6.49 | O23: =VLOOKUP($C23,'RECAP SECT'!$G$6:$FJ$253,135,FALSE) -> 0.10 | P23: =VLOOKUP($C23,'RECAP SECT'!$G$6:$FJ$253,136,FALSE) -> 87% | Q23: =VLOOKUP($C23,'RECAP SECT'!$G$6:$FJ$253,137,FALSE) -> 17 | R23: =VLOOKUP($C23,'RECAP SECT'!$G$6:$FJ$253,138,FALSE) -> -184.77 | S23: =VLOOKUP($C23,'RECAP SECT'!$G$6:$FJ$253,139,FALSE) -> -2.16 | T23: =VLOOKUP($C23,'RECAP SECT'!$G$6:$FJ$253,140,FALSE) -> 50% | U23: =VLOOKUP($C23,'RECAP SECT'!$G$6:$FJ$253,141,FALSE) -> 12 | V23: =VLOOKUP($C23,'RECAP SECT'!$G$6:$FJ$253,142,FALSE) -> 41% | W23: =VLOOKUP($C23,'RECAP SECT'!$G$6:$FJ$253,143,FALSE) -> 23% | X23: =VLOOKUP($C23,'RECAP SECT'!$G$6:$FJ$253,144,FALSE) -> 12
A24: 160 | B24: MOSELLE | C24: 42 | D24: MOSELLE EST | E24: =VLOOKUP($C24,'RECAP SECT'!$G$6:$FJ$253,3,FALSE) -> 70.1 | F24: =VLOOKUP($C24,'RECAP SECT'!$G$6:$FJ$253,126,FALSE) -> 37.00 | G24: =VLOOKUP($C24,'RECAP SECT'!$G$6:$FJ$253,127,FALSE) -> 0.37 | H24: =VLOOKUP($C24,'RECAP SECT'!$G$6:$FJ$253,128,FALSE) -> 32% | I24: =VLOOKUP($C24,'RECAP SECT'!$G$6:$FJ$253,129,FALSE) -> 11 | J24: =VLOOKUP($C24,'RECAP SECT'!$G$6:$FJ$253,130,FALSE) -> 13.50 | K24: =VLOOKUP($C24,'RECAP SECT'!$G$6:$FJ$253,131,FALSE) -> 0.67 | L24: =VLOOKUP($C24,'RECAP SECT'!$G$6:$FJ$253,132,FALSE) -> 47% | M24: =VLOOKUP($C24,'RECAP SECT'!$G$6:$FJ$253,133,FALSE) -> 18 | N24: =VLOOKUP($C24,'RECAP SECT'!$G$6:$FJ$253,134,FALSE) -> 3.11 | O24: =VLOOKUP($C24,'RECAP SECT'!$G$6:$FJ$253,135,FALSE) -> 0.05 | P24: =VLOOKUP($C24,'RECAP SECT'!$G$6:$FJ$253,136,FALSE) -> 94% | Q24: =VLOOKUP($C24,'RECAP SECT'!$G$6:$FJ$253,137,FALSE) -> 18 | R24: =VLOOKUP($C24,'RECAP SECT'!$G$6:$FJ$253,138,FALSE) -> -124.73 | S24: =VLOOKUP($C24,'RECAP SECT'!$G$6:$FJ$253,139,FALSE) -> -1.78 | T24: =VLOOKUP($C24,'RECAP SECT'!$G$6:$FJ$253,140,FALSE) -> 24% | U24: =VLOOKUP($C24,'RECAP SECT'!$G$6:$FJ$253,141,FALSE) -> 5 | V24: =VLOOKUP($C24,'RECAP SECT'!$G$6:$FJ$253,142,FALSE) -> 46% | W24: =VLOOKUP($C24,'RECAP SECT'!$G$6:$FJ$253,143,FALSE) -> 27% | X24: =VLOOKUP($C24,'RECAP SECT'!$G$6:$FJ$253,144,FALSE) -> 15
A25: 160 | B25: MOSELLE | C25: 44 | D25: MOSELLE NORD | E25: =VLOOKUP($C25,'RECAP SECT'!$G$6:$FJ$253,3,FALSE) -> 68.2 | F25: =VLOOKUP($C25,'RECAP SECT'!$G$6:$FJ$253,126,FALSE) -> 41.98 | G25: =VLOOKUP($C25,'RECAP SECT'!$G$6:$FJ$253,127,FALSE) -> 0.42 | H25: =VLOOKUP($C25,'RECAP SECT'!$G$6:$FJ$253,128,FALSE) -> 23% | I25: =VLOOKUP($C25,'RECAP SECT'!$G$6:$FJ$253,129,FALSE) -> 9 | J25: =VLOOKUP($C25,'RECAP SECT'!$G$6:$FJ$253,130,FALSE) -> 17.67 | K25: =VLOOKUP($C25,'RECAP SECT'!$G$6:$FJ$253,131,FALSE) -> 0.88 | L25: =VLOOKUP($C25,'RECAP SECT'!$G$6:$FJ$253,132,FALSE) -> 30% | M25: =VLOOKUP($C25,'RECAP SECT'!$G$6:$FJ$253,133,FALSE) -> 9 | N25: =VLOOKUP($C25,'RECAP SECT'!$G$6:$FJ$253,134,FALSE) -> 14.09 | O25: =VLOOKUP($C25,'RECAP SECT'!$G$6:$FJ$253,135,FALSE) -> 0.21 | P25: =VLOOKUP($C25,'RECAP SECT'!$G$6:$FJ$253,136,FALSE) -> 72% | Q25: =VLOOKUP($C25,'RECAP SECT'!$G$6:$FJ$253,137,FALSE) -> 13 | R25: =VLOOKUP($C25,'RECAP SECT'!$G$6:$FJ$253,138,FALSE) -> -117.56 | S25: =VLOOKUP($C25,'RECAP SECT'!$G$6:$FJ$253,139,FALSE) -> -1.72 | T25: =VLOOKUP($C25,'RECAP SECT'!$G$6:$FJ$253,140,FALSE) -> 20% | U25: =VLOOKUP($C25,'RECAP SECT'!$G$6:$FJ$253,141,FALSE) -> 4 | V25: =VLOOKUP($C25,'RECAP SECT'!$G$6:$FJ$253,142,FALSE) -> 34% | W25: =VLOOKUP($C25,'RECAP SECT'!$G$6:$FJ$253,143,FALSE) -> 15% | X25: =VLOOKUP($C25,'RECAP SECT'!$G$6:$FJ$253,144,FALSE) -> 7
A26: 80 | B26: VOSGES | C26: 57 | D26: EPINAL | E26: =VLOOKUP($C26,'RECAP SECT'!$G$6:$FJ$253,3,FALSE) -> 59.2 | F26: =VLOOKUP($C26,'RECAP SECT'!$G$6:$FJ$253,126,FALSE) -> 29.64 | G26: =VLOOKUP($C26,'RECAP SECT'!$G$6:$FJ$253,127,FALSE) -> 0.30 | H26: =VLOOKUP($C26,'RECAP SECT'!$G$6:$FJ$253,128,FALSE) -> 45% | I26: =VLOOKUP($C26,'RECAP SECT'!$G$6:$FJ$253,129,FALSE) -> 17 | J26: =VLOOKUP($C26,'RECAP SECT'!$G$6:$FJ$253,130,FALSE) -> 16.55 | K26: =VLOOKUP($C26,'RECAP SECT'!$G$6:$FJ$253,131,FALSE) -> 0.83 | L26: =VLOOKUP($C26,'RECAP SECT'!$G$6:$FJ$253,132,FALSE) -> 35% | M26: =VLOOKUP($C26,'RECAP SECT'!$G$6:$FJ$253,133,FALSE) -> 12 | N26: =VLOOKUP($C26,'RECAP SECT'!$G$6:$FJ$253,134,FALSE) -> 11.22 | O26: =VLOOKUP($C26,'RECAP SECT'!$G$6:$FJ$253,135,FALSE) -> 0.17 | P26: =VLOOKUP($C26,'RECAP SECT'!$G$6:$FJ$253,136,FALSE) -> 78% | Q26: =VLOOKUP($C26,'RECAP SECT'!$G$6:$FJ$253,137,FALSE) -> 15 | R26: =VLOOKUP($C26,'RECAP SECT'!$G$6:$FJ$253,138,FALSE) -> -119.84 | S26: =VLOOKUP($C26,'RECAP SECT'!$G$6:$FJ$253,139,FALSE) -> -2.02 | T26: =VLOOKUP($C26,'RECAP SECT'!$G$6:$FJ$253,140,FALSE) -> 41% | U26: =VLOOKUP($C26,'RECAP SECT'!$G$6:$FJ$253,141,FALSE) -> 10 | V26: =VLOOKUP($C26,'RECAP SECT'!$G$6:$FJ$253,142,FALSE) -> 49% | W26: =VLOOKUP($C26,'RECAP SECT'!$G$6:$FJ$253,143,FALSE) -> 30% | X26: =VLOOKUP($C26,'RECAP SECT'!$G$6:$FJ$253,144,FALSE) -> 16
A27: 80 | B27: VOSGES | C27: 55 | D27: SAINT DIE | E27: =VLOOKUP($C27,'RECAP SECT'!$G$6:$FJ$253,3,FALSE) -> 47.9 | F27: =VLOOKUP($C27,'RECAP SECT'!$G$6:$FJ$253,126,FALSE) -> 39.01 | G27: =VLOOKUP($C27,'RECAP SECT'!$G$6:$FJ$253,127,FALSE) -> 0.39 | H27: =VLOOKUP($C27,'RECAP SECT'!$G$6:$FJ$253,128,FALSE) -> 28% | I27: =VLOOKUP($C27,'RECAP SECT'!$G$6:$FJ$253,129,FALSE) -> 10 | J27: =VLOOKUP($C27,'RECAP SECT'!$G$6:$FJ$253,130,FALSE) -> 14.15 | K27: =VLOOKUP($C27,'RECAP SECT'!$G$6:$FJ$253,131,FALSE) -> 0.71 | L27: =VLOOKUP($C27,'RECAP SECT'!$G$6:$FJ$253,132,FALSE) -> 44% | M27: =VLOOKUP($C27,'RECAP SECT'!$G$6:$FJ$253,133,FALSE) -> 17 | N27: =VLOOKUP($C27,'RECAP SECT'!$G$6:$FJ$253,134,FALSE) -> 14.48 | O27: =VLOOKUP($C27,'RECAP SECT'!$G$6:$FJ$253,135,FALSE) -> 0.22 | P27: =VLOOKUP($C27,'RECAP SECT'!$G$6:$FJ$253,136,FALSE) -> 71% | Q27: =VLOOKUP($C27,'RECAP SECT'!$G$6:$FJ$253,137,FALSE) -> 12 | R27: =VLOOKUP($C27,'RECAP SECT'!$G$6:$FJ$253,138,FALSE) -> -95.66 | S27: =VLOOKUP($C27,'RECAP SECT'!$G$6:$FJ$253,139,FALSE) -> -2.00 | T27: =VLOOKUP($C27,'RECAP SECT'!$G$6:$FJ$253,140,FALSE) -> 39% | U27: =VLOOKUP($C27,'RECAP SECT'!$G$6:$FJ$253,141,FALSE) -> 9 | V27: =VLOOKUP($C27,'RECAP SECT'!$G$6:$FJ$253,142,FALSE) -> 42% | W27: =VLOOKUP($C27,'RECAP SECT'!$G$6:$FJ$253,143,FALSE) -> 24% | X27: =VLOOKUP($C27,'RECAP SECT'!$G$6:$FJ$253,144,FALSE) -> 13
A28: Total CEGEE Directions Régionales | E28: =SUM(E10:E27) -> 1131

Sheet SE_SATISFACTION
B1: Accueil | F1: BAROMETRE BDD - TERRITOIRES
F2: QUALITE / SATISFACTION
F3: =ACCUEIL!F7 -> 2020-07-19
F7: N P S | I7: Enquête Qualité Haute Définition | L7: Total Satisfaction Clients
F8: =DATEMAJ!C36 -> au 31/05 | G8: coef | H8: ='RECAP DIRCOM'!FC4 -> 8% | I8: =DATEMAJ!C37 -> au 31/05 | J8: coef | K8: ='RECAP DIRCOM'!FF4 -> 7% | M8: coef | N8: ='RECAP DIRCOM'!FI4 -> 15%
B9: Direction | C9: eds | D9: Territoire | E9: ="ETP perf "&DATEMAJ!$C$39 -> ETP perf au 31/05 | G9: % Ecart au 1er | H9: Rang | J9: % Ecart au 1er | K9: Rang | L9: Moyenne ecart au 1er | M9: % Ecart au 1er | N9: Rang CEGEE
A10: 50 | B10: AUBE HAUTE MARNE | C10: 21 | D10: CHAUMONT | E10: =VLOOKUP($C10,'RECAP SECT'!$G$6:$FJ$253,3,FALSE) -> 34.2 | F10: =VLOOKUP($C10,'RECAP SECT'!$G$6:$FJ$253,151,FALSE) -> -4 | G10: =VLOOKUP($C10,'RECAP SECT'!$G$6:$FJ$253,152,FALSE) -> 11% | H10: =VLOOKUP($C10,'RECAP SECT'!$G$6:$FJ$253,153,FALSE) -> 2 | I10: =VLOOKUP($C10,'RECAP SECT'!$G$6:$FJ$253,154,FALSE) -> 48% | J10: =VLOOKUP($C10,'RECAP SECT'!$G$6:$FJ$253,155,FALSE) -> 25% | K10: =VLOOKUP($C10,'RECAP SECT'!$G$6:$FJ$253,156,FALSE) -> 9 | L10: =VLOOKUP($C10,'RECAP SECT'!$G$6:$FJ$253,157,FALSE) -> 17% | M10: =VLOOKUP($C10,'RECAP SECT'!$G$6:$FJ$253,158,FALSE) -> 12% | N10: =VLOOKUP($C10,'RECAP SECT'!$G$6:$FJ$253,159,FALSE) -> 2
A11: 50 | B11: AUBE HAUTE MARNE | C11: 14 | D11: TROYES | E11: =VLOOKUP($C11,'RECAP SECT'!$G$6:$FJ$253,3,FALSE) -> 65.3 | F11: =VLOOKUP($C11,'RECAP SECT'!$G$6:$FJ$253,151,FALSE) -> -14 | G11: =VLOOKUP($C11,'RECAP SECT'!$G$6:$FJ$253,152,FALSE) -> 64% | H11: =VLOOKUP($C11,'RECAP SECT'!$G$6:$FJ$253,153,FALSE) -> 11 | I11: =VLOOKUP($C11,'RECAP SECT'!$G$6:$FJ$253,154,FALSE) -> 42% | J11: =VLOOKUP($C11,'RECAP SECT'!$G$6:$FJ$253,155,FALSE) -> 34% | K11: =VLOOKUP($C11,'RECAP SECT'!$G$6:$FJ$253,156,FALSE) -> 14 | L11: =VLOOKUP($C11,'RECAP SECT'!$G$6:$FJ$253,157,FALSE) -> 50% | M11: =VLOOKUP($C11,'RECAP SECT'!$G$6:$FJ$253,158,FALSE) -> 45% | N11: =VLOOKUP($C11,'RECAP SECT'!$G$6:$FJ$253,159,FALSE) -> 12
A12: 262 | B12: BAS-RHIN | C12: 5060 | D12: HAGUENAU | E12: =VLOOKUP($C12,'RECAP SECT'!$G$6:$FJ$253,3,FALSE) -> 74.3 | F12: =VLOOKUP($C12,'RECAP SECT'!$G$6:$FJ$253,151,FALSE) -> -8 | G12: =VLOOKUP($C12,'RECAP SECT'!$G$6:$FJ$253,152,FALSE) -> 32% | H12: =VLOOKUP($C12,'RECAP SECT'!$G$6:$FJ$253,153,FALSE) -> 6 | I12: =VLOOKUP($C12,'RECAP SECT'!$G$6:$FJ$253,154,FALSE) -> 50% | J12: =VLOOKUP($C12,'RECAP SECT'!$G$6:$FJ$253,155,FALSE) -> 22% | K12: =VLOOKUP($C12,'RECAP SECT'!$G$6:$FJ$253,156,FALSE) -> 8 | L12: =VLOOKUP($C12,'RECAP SECT'!$G$6:$FJ$253,157,FALSE) -> 28% | M12: =VLOOKUP($C12,'RECAP SECT'!$G$6:$FJ$253,158,FALSE) -> 22% | N12: =VLOOKUP($C12,'RECAP SECT'!$G$6:$FJ$253,159,FALSE) -> 7
A13: 262 | B13: BAS-RHIN | C13: 5101 | D13: SELESTAT | E13: =VLOOKUP($C13,'RECAP SECT'!$G$6:$FJ$253,3,FALSE) -> 62.1 | F13: =VLOOKUP($C13,'RECAP SECT'!$G$6:$FJ$253,151,FALSE) -> -25 | G13: =VLOOKUP($C13,'RECAP SECT'!$G$6:$FJ$253,152,FALSE) -> 123% | H13: =VLOOKUP($C13,'RECAP SECT'!$G$6:$FJ$253,153,FALSE) -> 16 | I13: =VLOOKUP($C13,'RECAP SECT'!$G$6:$FJ$253,154,FALSE) -> 38% | J13: =VLOOKUP($C13,'RECAP SECT'!$G$6:$FJ$253,155,FALSE) -> 40% | K13: =VLOOKUP($C13,'RECAP SECT'!$G$6:$FJ$253,156,FALSE) -> 15 | L13: =VLOOKUP($C13,'RECAP SECT'!$G$6:$FJ$253,157,FALSE) -> 84% | M13: =VLOOKUP($C13,'RECAP SECT'!$G$6:$FJ$253,158,FALSE) -> 79% | N13: =VLOOKUP($C13,'RECAP SECT'!$G$6:$FJ$253,159,FALSE) -> 16
A14: 262 | B14: BAS-RHIN | C14: 5006 | D14: STRASBOURG | E14: =VLOOKUP($C14,'RECAP SECT'!$G$6:$FJ$253,3,FALSE) -> 73.4 | F14: =VLOOKUP($C14,'RECAP SECT'!$G$6:$FJ$253,151,FALSE) -> -30 | G14: =VLOOKUP($C14,'RECAP SECT'!$G$6:$FJ$253,152,FALSE) -> 150% | H14: =VLOOKUP($C14,'RECAP SECT'!$G$6:$FJ$253,153,FALSE) -> 18 | I14: =VLOOKUP($C14,'RECAP SECT'!$G$6:$FJ$253,154,FALSE) -> 31% | J14: =VLOOKUP($C14,'RECAP SECT'!$G$6:$FJ$253,155,FALSE) -> 51% | K14: =VLOOKUP($C14,'RECAP SECT'!$G$6:$FJ$253,156,FALSE) -> 18 | L14: =VLOOKUP($C14,'RECAP SECT'!$G$6:$FJ$253,157,FALSE) -> 104% | M14: =VLOOKUP($C14,'RECAP SECT'!$G$6:$FJ$253,158,FALSE) -> 98% | N14: =VLOOKUP($C14,'RECAP SECT'!$G$6:$FJ$253,159,FALSE) -> 18
A15: 264 | B15: HAUT-RHIN | C15: 5130 | D15: COLMAR | E15: =VLOOKUP($C15,'RECAP SECT'!$G$6:$FJ$253,3,FALSE) -> 64.9 | F15: =VLOOKUP($C15,'RECAP SECT'!$G$6:$FJ$253,151,FALSE) -> -18 | G15: =VLOOKUP($C15,'RECAP SECT'!$G$6:$FJ$253,152,FALSE) -> 86% | H15: =VLOOKUP($C15,'RECAP SECT'!$G$6:$FJ$253,153,FALSE) -> 13 | I15: =VLOOKUP($C15,'RECAP SECT'!$G$6:$FJ$253,154,FALSE) -> 43% | J15: =VLOOKUP($C15,'RECAP SECT'!$G$6:$FJ$253,155,FALSE) -> 33% | K15: =VLOOKUP($C15,'RECAP SECT'!$G$6:$FJ$253,156,FALSE) -> 13 | L15: =VLOOKUP($C15,'RECAP SECT'!$G$6:$FJ$253,157,FALSE) -> 61% | M15: =VLOOKUP($C15,'RECAP SECT'!$G$6:$FJ$253,158,FALSE) -> 56% | N15: =VLOOKUP($C15,'RECAP SECT'!$G$6:$FJ$253,159,FALSE) -> 14
A16: 264 | B16: HAUT-RHIN | C16: 5169 | D16: MULHOUSE | E16: =VLOOKUP($C16,'RECAP SECT'!$G$6:$FJ$253,3,FALSE) -> 61.1 | F16: =VLOOKUP($C16,'RECAP SECT'!$G$6:$FJ$253,151,FALSE) -> -26 | G16: =VLOOKUP($C16,'RECAP SECT'!$G$6:$FJ$253,152,FALSE) -> 129% | H16: =VLOOKUP($C16,'RECAP SECT'!$G$6:$FJ$253,153,FALSE) -> 17 | I16: =VLOOKUP($C16,'RECAP SECT'!$G$6:$FJ$253,154,FALSE) -> 34% | J16: =VLOOKUP($C16,'RECAP SECT'!$G$6:$FJ$253,155,FALSE) -> 46% | K16: =VLOOKUP($C16,'RECAP SECT'!$G$6:$FJ$253,156,FALSE) -> 17 | L16: =VLOOKUP($C16,'RECAP SECT'!$G$6:$FJ$253,157,FALSE) -> 90% | M16: =VLOOKUP($C16,'RECAP SECT'!$G$6:$FJ$253,158,FALSE) -> 84% | N16: =VLOOKUP($C16,'RECAP SECT'!$G$6:$FJ$253,159,FALSE) -> 17
A17: 30 | B17: MARNE-ARDENNES | C17: 6 | D17: CHALONS EN CHAMPAGNE | E17: =VLOOKUP($C17,'RECAP SECT'!$G$6:$FJ$253,3,FALSE) -> 45.0 | F17: =VLOOKUP($C17,'RECAP SECT'!$G$6:$FJ$253,151,FALSE) -> -11 | G17: =VLOOKUP($C17,'RECAP SECT'!$G$6:$FJ$253,152,FALSE) -> 48% | H17: =VLOOKUP($C17,'RECAP SECT'!$G$6:$FJ$253,153,FALSE) -> 8 | I17: =VLOOKUP($C17,'RECAP SECT'!$G$6:$FJ$253,154,FALSE) -> 64% | J17: =VLOOKUP($C17,'RECAP SECT'!$G$6:$FJ$253,155,FALSE) -> 0% | K17: =VLOOKUP($C17,'RECAP SECT'!$G$6:$FJ$253,156,FALSE) -> 1 | L17: =VLOOKUP($C17,'RECAP SECT'!$G$6:$FJ$253,157,FALSE) -> 26% | M17: =VLOOKUP($C17,'RECAP SECT'!$G$6:$FJ$253,158,FALSE) -> 20% | N17: =VLOOKUP($C17,'RECAP SECT'!$G$6:$FJ$253,159,FALSE) -> 6
A18: 30 | B18: MARNE-ARDENNES | C18: 2 | D18: CHARLEVILLE MEZIERES | E18: =VLOOKUP($C18,'RECAP SECT'!$G$6:$FJ$253,3,FALSE) -> 54.5 | F18: =VLOOKUP($C18,'RECAP SECT'!$G$6:$FJ$253,151,FALSE) -> -12 | G18: =VLOOKUP($C18,'RECAP SECT'!$G$6:$FJ$253,152,FALSE) -> 54% | H18: =VLOOKUP($C18,'RECAP SECT'!$G$6:$FJ$253,153,FALSE) -> 9 | I18: =VLOOKUP($C18,'RECAP SECT'!$G$6:$FJ$253,154,FALSE) -> 59% | J18: =VLOOKUP($C18,'RECAP SECT'!$G$6:$FJ$253,155,FALSE) -> 8% | K18: =VLOOKUP($C18,'RECAP SECT'!$G$6:$FJ$253,156,FALSE) -> 2 | L18: =VLOOKUP($C18,'RECAP SECT'!$G$6:$FJ$253,157,FALSE) -> 32% | M18: =VLOOKUP($C18,'RECAP SECT'!$G$6:$FJ$253,158,FALSE) -> 27% | N18: =VLOOKUP($C18,'RECAP SECT'!$G$6:$FJ$253,159,FALSE) -> 8
A19: 30 | B19: MARNE-ARDENNES | C19: 11 | D19: REIMS | E19: =VLOOKUP($C19,'RECAP SECT'!$G$6:$FJ$253,3,FALSE) -> 78.1 | F19: =VLOOKUP($C19,'RECAP SECT'!$G$6:$FJ$253,151,FALSE) -> -6 | G19: =VLOOKUP($C19,'RECAP SECT'!$G$6:$FJ$253,152,FALSE) -> 21% | H19: =VLOOKUP($C19,'RECAP SECT'!$G$6:$FJ$253,153,FALSE) -> 4 | I19: =VLOOKUP($C19,'RECAP SECT'!$G$6:$FJ$253,154,FALSE) -> 54% | J19: =VLOOKUP($C19,'RECAP SECT'!$G$6:$FJ$253,155,FALSE) -> 15% | K19: =VLOOKUP($C19,'RECAP SECT'!$G$6:$FJ$253,156,FALSE) -> 5 | L19: =VLOOKUP($C19,'RECAP SECT'!$G$6:$FJ$253,157,FALSE) -> 18% | M19: =VLOOKUP($C19,'RECAP SECT'!$G$6:$FJ$253,158,FALSE) -> 13% | N19: =VLOOKUP($C19,'RECAP SECT'!$G$6:$FJ$253,159,FALSE) -> 3
A20: 110 | B20: MEURTHE ET MOSELLE MEUSE | C20: 26 | D20: NANCY | E20: =VLOOKUP($C20,'RECAP SECT'!$G$6:$FJ$253,3,FALSE) -> 63.6 | F20: =VLOOKUP($C20,'RECAP SECT'!$G$6:$FJ$253,151,FALSE) -> -5 | G20: =VLOOKUP($C20,'RECAP SECT'!$G$6:$FJ$253,152,FALSE) -> 16% | H20: =VLOOKUP($C20,'RECAP SECT'!$G$6:$FJ$253,153,FALSE) -> 3 | I20: =VLOOKUP($C20,'RECAP SECT'!$G$6:$FJ$253,154,FALSE) -> 48% | J20: =VLOOKUP($C20,'RECAP SECT'!$G$6:$FJ$253,155,FALSE) -> 25% | K20: =VLOOKUP($C20,'RECAP SECT'!$G$6:$FJ$253,156,FALSE) -> 10 | L20: =VLOOKUP($C20,'RECAP SECT'!$G$6:$FJ$253,157,FALSE) -> 20% | M20: =VLOOKUP($C20,'RECAP SECT'!$G$6:$FJ$253,158,FALSE) -> 15% | N20: =VLOOKUP($C20,'RECAP SECT'!$G$6:$FJ$253,159,FALSE) -> 5
A21: 110 | B21: MEURTHE ET MOSELLE MEUSE | C21: 27 | D21: PONT A MOUSSON | E21: =VLOOKUP($C21,'RECAP SECT'!$G$6:$FJ$253,3,FALSE) -> 71.9 | F21: =VLOOKUP($C21,'RECAP SECT'!$G$6:$FJ$253,151,FALSE) -> -19 | G21: =VLOOKUP($C21,'RECAP SECT'!$G$6:$FJ$253,152,FALSE) -> 91% | H21: =VLOOKUP($C21,'RECAP SECT'!$G$6:$FJ$253,153,FALSE) -> 14 | I21: =VLOOKUP($C21,'RECAP SECT'!$G$6:$FJ$253,154,FALSE) -> 48% | J21: =VLOOKUP($C21,'RECAP SECT'!$G$6:$FJ$253,155,FALSE) -> 25% | K21: =VLOOKUP($C21,'RECAP SECT'!$G$6:$FJ$253,156,FALSE) -> 11 | L21: =VLOOKUP($C21,'RECAP SECT'!$G$6:$FJ$253,157,FALSE) -> 60% | M21: =VLOOKUP($C21,'RECAP SECT'!$G$6:$FJ$253,158,FALSE) -> 55% | N21: =VLOOKUP($C21,'RECAP SECT'!$G$6:$FJ$253,159,FALSE) -> 13
A22: 110 | B22: MEURTHE ET MOSELLE MEUSE | C22: 31 | D22: VERDUN | E22: =VLOOKUP($C22,'RECAP SECT'!$G$6:$FJ$253,3,FALSE) -> 51.9 | F22: =VLOOKUP($C22,'RECAP SECT'!$G$6:$FJ$253,151,FALSE) -> -2 | G22: =VLOOKUP($C22,'RECAP SECT'!$G$6:$FJ$253,152,FALSE) -> 0% | H22: =VLOOKUP($C22,'RECAP SECT'!$G$6:$FJ$253,153,FALSE) -> 1 | I22: =VLOOKUP($C22,'RECAP SECT'!$G$6:$FJ$253,154,FALSE) -> 56% | J22: =VLOOKUP($C22,'RECAP SECT'!$G$6:$FJ$253,155,FALSE) -> 12% | K22: =VLOOKUP($C22,'RECAP SECT'!$G$6:$FJ$253,156,FALSE) -> 3 | L22: =VLOOKUP($C22,'RECAP SECT'!$G$6:$FJ$253,157,FALSE) -> 6% | M22: =VLOOKUP($C22,'RECAP SECT'!$G$6:$FJ$253,158,FALSE) -> 0% | N22: =VLOOKUP($C22,'RECAP SECT'!$G$6:$FJ$253,159,FALSE) -> 1
A23: 160 | B23: MOSELLE | C23: 45 | D23: METZ | E23: =VLOOKUP($C23,'RECAP SECT'!$G$6:$FJ$253,3,FALSE) -> 85.7 | F23: =VLOOKUP($C23,'RECAP SECT'!$G$6:$FJ$253,151,FALSE) -> -12 | G23: =VLOOKUP($C23,'RECAP SECT'!$G$6:$FJ$253,152,FALSE) -> 54% | H23: =VLOOKUP($C23,'RECAP SECT'!$G$6:$FJ$253,153,FALSE) -> 9 | I23: =VLOOKUP($C23,'RECAP SECT'!$G$6:$FJ$253,154,FALSE) -> 55% | J23: =VLOOKUP($C23,'RECAP SECT'!$G$6:$FJ$253,155,FALSE) -> 14% | K23: =VLOOKUP($C23,'RECAP SECT'!$G$6:$FJ$253,156,FALSE) -> 4 | L23: =VLOOKUP($C23,'RECAP SECT'!$G$6:$FJ$253,157,FALSE) -> 35% | M23: =VLOOKUP($C23,'RECAP SECT'!$G$6:$FJ$253,158,FALSE) -> 30% | N23: =VLOOKUP($C23,'RECAP SECT'!$G$6:$FJ$253,159,FALSE) -> 10
A24: 160 | B24: MOSELLE | C24: 42 | D24: MOSELLE EST | E24: =VLOOKUP($C24,'RECAP SECT'!$G$6:$FJ$253,3,FALSE) -> 70.1 | F24: =VLOOKUP($C24,'RECAP SECT'!$G$6:$FJ$253,151,FALSE) -> -10 | G24: =VLOOKUP($C24,'RECAP SECT'!$G$6:$FJ$253,152,FALSE) -> 43% | H24: =VLOOKUP($C24,'RECAP SECT'!$G$6:$FJ$253,153,FALSE) -> 7 | I24: =VLOOKUP($C24,'RECAP SECT'!$G$6:$FJ$253,154,FALSE) -> 48% | J24: =VLOOKUP($C24,'RECAP SECT'!$G$6:$FJ$253,155,FALSE) -> 26% | K24: =VLOOKUP($C24,'RECAP SECT'!$G$6:$FJ$253,156,FALSE) -> 12 | L24: =VLOOKUP($C24,'RECAP SECT'!$G$6:$FJ$253,157,FALSE) -> 35% | M24: =VLOOKUP($C24,'RECAP SECT'!$G$6:$FJ$253,158,FALSE) -> 29% | N24: =VLOOKUP($C24,'RECAP SECT'!$G$6:$FJ$253,159,FALSE) -> 9
A25: 160 | B25: MOSELLE | C25: 44 | D25: MOSELLE NORD | E25: =VLOOKUP($C25,'RECAP SECT'!$G$6:$FJ$253,3,FALSE) -> 68.2 | F25: =VLOOKUP($C25,'RECAP SECT'!$G$6:$FJ$253,151,FALSE) -> -22 | G25: =VLOOKUP($C25,'RECAP SECT'!$G$6:$FJ$253,152,FALSE) -> 107% | H25: =VLOOKUP($C25,'RECAP SECT'!$G$6:$FJ$253,153,FALSE) -> 15 | I25: =VLOOKUP($C25,'RECAP SECT'!$G$6:$FJ$253,154,FALSE) -> 38% | J25: =VLOOKUP($C25,'RECAP SECT'!$G$6:$FJ$253,155,FALSE) -> 41% | K25: =VLOOKUP($C25,'RECAP SECT'!$G$6:$FJ$253,156,FALSE) -> 16 | L25: =VLOOKUP($C25,'RECAP SECT'!$G$6:$FJ$253,157,FALSE) -> 76% | M25: =VLOOKUP($C25,'RECAP SECT'!$G$6:$FJ$253,158,FALSE) -> 71% | N25: =VLOOKUP($C25,'RECAP SECT'!$G$6:$FJ$253,159,FALSE) -> 15
A26: 80 | B26: VOSGES | C26: 57 | D26: EPINAL | E26: =VLOOKUP($C26,'RECAP SECT'!$G$6:$FJ$253,3,FALSE) -> 59.2 | F26: =VLOOKUP($C26,'RECAP SECT'!$G$6:$FJ$253,151,FALSE) -> -14 | G26: =VLOOKUP($C26,'RECAP SECT'!$G$6:$FJ$253,152,FALSE) -> 64% | H26: =VLOOKUP($C26,'RECAP SECT'!$G$6:$FJ$253,153,FALSE) -> 11 | I26: =VLOOKUP($C26,'RECAP SECT'!$G$6:$FJ$253,154,FALSE) -> 54% | J26: =VLOOKUP($C26,'RECAP SECT'!$G$6:$FJ$253,155,FALSE) -> 16% | K26: =VLOOKUP($C26,'RECAP SECT'!$G$6:$FJ$253,156,FALSE) -> 6 | L26: =VLOOKUP($C26,'RECAP SECT'!$G$6:$FJ$253,157,FALSE) -> 42% | M26: =VLOOKUP($C26,'RECAP SECT'!$G$6:$FJ$253,158,FALSE) -> 36% | N26: =VLOOKUP($C26,'RECAP SECT'!$G$6:$FJ$253,159,FALSE) -> 11
A27: 80 | B27: VOSGES | C27: 55 | D27: SAINT DIE | E27: =VLOOKUP($C27,'RECAP SECT'!$G$6:$FJ$253,3,FALSE) -> 47.9 | F27: =VLOOKUP($C27,'RECAP SECT'!$G$6:$FJ$253,151,FALSE) -> -6 | G27: =VLOOKUP($C27,'RECAP SECT'!$G$6:$FJ$253,152,FALSE) -> 21% | H27: =VLOOKUP($C27,'RECAP SECT'!$G$6:$FJ$253,153,FALSE) -> 4 | I27: =VLOOKUP($C27,'RECAP SECT'!$G$6:$FJ$253,154,FALSE) -> 52% | J27: =VLOOKUP($C27,'RECAP SECT'!$G$6:$FJ$253,155,FALSE) -> 18% | K27: =VLOOKUP($C27,'RECAP SECT'!$G$6:$FJ$253,156,FALSE) -> 7 | L27: =VLOOKUP($C27,'RECAP SECT'!$G$6:$FJ$253,157,FALSE) -> 20% | M27: =VLOOKUP($C27,'RECAP SECT'!$G$6:$FJ$253,158,FALSE) -> 14% | N27: =VLOOKUP($C27,'RECAP SECT'!$G$6:$FJ$253,159,FALSE) -> 4
A28: Total CEGEE Directions Régionales | E28: =SUM(E10:E27) -> 1131

Sheet AG_CLASS
B1: Accueil | H1: BAROMETRE BDD - AGENCES
H2: CLASSEMENTS
H3: =ACCUEIL!F7 -> 2020-07-19
H8: CLASSEMENT GENERAL | I8: CRITERE CLIENTS | J8: Evolution nette clients Bancarisés Principaux | K8: Evolution nette relations PREMIUM | L8: Evolution nette clients Jeunes équipés | M8: Evolution nette clients Pro actif équipés | N8: CRITERE BANCARISATION | O8: Ventes nettes FORFAITS | P8: Ventes nettes IZICARTES débit différé | Q8: Ventes nettes Cartes HDG débit différé | R8: Ventes nettes Forfaits Pro Cartes Pro | S8: CRITERE EPARGNE | T8: Excédent Epargne Liquide | U8: CA UC + arbitrage | V8: Excédent Assurance Vie | W8: CRITERE CREDITS | X8: Engagements crédits conso | Y8: ADE crédits conso | Z8: Engagements crédits immo | AA8: ADE crédits immo | AB8: SACCEF | AC8: Engagement Crédits MLT + Crédits Bail | AD8: CRITERE IARD PREVOYANCE | AE8: Ventes nettes IARD | AF8: Ventes nettes Prévoyance | AG8: CRITERE ACCELERATEURS PNB | AH8: Ventes brutes SED finalisées | AI8: Clients Equipés E documents | AJ8: Economie Opt'in | AK8: Remises Commerciales | AL8: CRITERE Qualité Satisfaction Clients | AM8: Objectifs NPS* | AN8: Enquête Qualité Haute Définition
B9: Direction | C9: eds | D9: Territoire | E9: eds | F9: Agence | G9: ="ETP perf "&DATEMAJ!$C$39 -> ETP perf au 31/05 | H9: Rang | I9: Rang | J9: Rang | K9: Rang | L9: Rang | M9: Rang | N9: Rang | O9: Rang | P9: Rang | Q9: Rang | R9: Rang | S9: Rang | T9: Rang | U9: Rang | V9: Rang | W9: Rang | X9: Rang | Y9: Rang | Z9: Rang | AA9: Rang | AB9: Rang | AC9: Rang | AD9: Rang | AE9: Rang | AF9: Rang | AG9: Rang | AH9: Rang | AI9: Rang | AJ9: Rang | AK9: Rang | AL9: Rang | AM9: Rang | AN9: Rang
A10: 110 | B10: MEURTHE ET MOSELLE MEUSE | C10: 27 | D10: PONT A MOUSSON | E10: 454651 | F10: TOUL REPUBLIQUE | G10: 10.7 | H10: 1 | I10: 1 | J10: 5 | K10: 12 | L10: 6 | M10: 229 | N10: 1 | O10: 1 | P10: 1 | Q10: 2 | R10: 46 | S10: 14 | T10: 38 | U10: 68 | V10: 14 | W10: 1 | X10: 1 | Y10: 1 | Z10: 1 | AA10: 1 | AB10: 1 | AC10: 47 | AD10: 1 | AE10: 1 | AF10: 3 | AG10: 1 | AH10: 4 | AI10: 1 | AJ10: 12 | AK10: 63 | AL10: 261 | AM10: 255 | AN10: 248
A11: 80 | B11: VOSGES | C11: 57 | D11: EPINAL | E11: 488288 | F11: EPINAL LEOPOLD BOURG | G11: 1.8 | H11: 2 | I11: 31 | J11: 22 | K11: 14 | L11: 290 | M11: 47 | N11: 3 | O11: 10 | P11: 23 | Q11: 15 | R11: 1 | S11: 4 | T11: 3 | U11: 107 | V11: 57 | W11: 4 | X11: 33 | Y11: 30 | Z11: 2 | AA11: 9 | AB11: 25 | AC11: 292 | AD11: 37 | AE11: 7 | AF11: 225 | AG11: 21 | AH11: 5 | AI11: 52 | AJ11: 210 | AK11: 261 | AL11: 2 | AM11: 3 | AN11: 18
A12: 80 | B12: VOSGES | C12: 55 | D12: SAINT DIE | E12: 488346 | F12: GRANGES AUMONTZEY | G12: 1.8 | H12: 3 | I12: 267 | J12: 240 | K12: 257 | L12: 210 | M12: 131 | N12: 7 | O12: 11 | P12: 6 | Q12: 6 | R12: 186 | S12: 118 | T12: 264 | U12: 66 | V12: 13 | W12: 38 | X12: 4 | Y12: 7 | Z12: 184 | AA12: 93 | AB12: 160 | AC12: 207 | AD12: 2 | AE12: 3 | AF12: 5 | AG12: 4 | AH12: 2 | AI12: 153 | AJ12: 171 | AK12: 16 | AL12: 5 | AM12: 9 | AN12: 24
A13: 110 | B13: MEURTHE ET MOSELLE MEUSE | C13: 26 | D13: NANCY | E13: 454481 | F13: NANCY PLACE DOMBASLE | G13: 10.0 | H13: 4 | I13: 5 | J13: 6 | K13: 165 | L13: 3 | M13: 15 | N13: 8 | O13: 3 | P13: 24 | Q13: 41 | R13: 18 | S13: 30 | T13: 31 | U13: 7 | V13: 227 | W13: 15 | X13: 247 | Y13: 229 | Z13: 10 | AA13: 16 | AB13: 3 | AC13: 19 | AD13: 13 | AE13: 13 | AF13: 35 | AG13: 6 | AH13: 3 | AI13: 20 | AJ13: 29 | AK13: 265 | AL13: 137 | AM13: 118 | AN13: 156
A14: 30 | B14: MARNE-ARDENNES | C14: 6 | D14: CHALONS EN CHAMPAGNE | E14: 551103 | F14: FAGNIERES LECLERC | G14: 2.7 | H14: 5 | I14: 116 | J14: 1 | K14: 259 | L14: 111 | M14: 131 | N14: 29 | O14: 14 | P14: 194 | Q14: 145 | R14: 9 | S14: 13 | T14: 8 | U14: 159 | V14: 118 | W14: 8 | X14: 96 | Y14: 74 | Z14: 4 | AA14: 3 | AB14: 4 | AC14: 129 | AD14: 36 | AE14: 54 | AF14: 41 | AG14: 16 | AH14: 57 | AI14: 9 | AJ14: 59 | AK14: 15 | AL14: 38 | AM14: 50 | AN14: 51
A15: 30 | B15: MARNE-ARDENNES | C15: 11 | D15: REIMS | E15: 551310 | F15: REIMS CHATILLONS | G15: 3.6 | H15: 6 | I15: 16 | J15: 9 | K15: 11 | L15: 197 | M15: 266 | N15: 15 | O15: 20 | P15: 20 | Q15: 22 | R15: 67 | S15: 190 | T15: 158 | U15: 186 | V15: 177 | W15: 23 | X15: 54 | Y15: 24 | Z15: 33 | AA15: 21 | AB15: 33 | AC15: 68 | AD15: 55 | AE15: 31 | AF15: 133 | AG15: 2 | AH15: 1 | AI15: 10 | AJ15: 11 | AK15: 128 | AL15: 113 | AM15: 94 | AN15: 163
A16: 30 | B16: MARNE-ARDENNES | C16: 11 | D16: REIMS | E16: 551340 | F16: BETHENY | G16: 3.0 | H16: 7 | I16: 3 | J16: 31 | K16: 3 | L16: 139 | M16: 98 | N16: 113 | O16: 54 | P16: 117 | Q16: 165 | R16: 151 | S16: 9 | T16: 32 | U16: 77 | V16: 4 | W16: 22 | X16: 65 | Y16: 147 | Z16: 20 | AA16: 14 | AB16: 15 | AC16: 159 | AD16: 20 | AE16: 25 | AF16: 31 | AG16: 29 | AH16: 28 | AI16: 24 | AJ16: 130 | AK16: 131 | AL16: 86 | AM16: 140 | AN16: 9
A17: 110 | B17: MEURTHE ET MOSELLE MEUSE | C17: 27 | D17: PONT A MOUSSON | E17: 554531 | F17: POMPEY | G17: 2.1 | H17: 8 | I17: 165 | J17: 29 | K17: 238 | L17: 41 | M17: 257 | N17: 6 | O17: 23 | P17: 8 | Q17: 16 | R17: 7 | S17: 246 | T17: 273 | U17: 211 | V17: 133 | W17: 5 | X17: 6 | Y17: 2 | Z17: 7 | AA17: 7 | AB17: 19 | AC17: 207 | AD17: 8 | AE17: 19 | AF17: 8 | AG17: 3 | AH17: 6 | AI17: 15 | AJ17: 61 | AK17: 20 | AL17: 188 | AM17: 203 | AN17: 135
A18: 30 | B18: MARNE-ARDENNES | C18: 2 | D18: CHARLEVILLE MEZIERES | E18: 408822 | F18: CHARLEVILLE MEZIERES | G18: 3.9 | H18: 9 | I18: 38 | J18: 3 | K18: 173 | L18: 10 | M18: 279 | N18: 30 | O18: 12 | P18: 41 | Q18: 68 | R18: 108 | S18: 47 | T18: 231 | U18: 102 | V18: 2 | W18: 14 | X18: 68 | Y18: 91 | Z18: 8 | AA18: 10 | AB18: 9 | AC18: 153 | AD18: 27 | AE18: 33 | AF18: 53 | AG18: 9 | AH18: 11 | AI18: 27 | AJ18: 70 | AK18: 53 | AL18: 83 | AM18: 105 | AN18: 45
A19: 160 | B19: MOSELLE | C19: 44 | D19: MOSELLE NORD | E19: 557508 | F19: NILVANGE | G19: 2.5 | H19: 10 | I19: 154 | J19: 277 | K19: 235 | L19: 2 | M19: 131 | N19: 16 | O19: 21 | P19: 9 | Q19: 20 | R19: 186 | S19: 220 | T19: 258 | U19: 145 | V19: 125 | W19: 45 | X19: 46 | Y19: 18 | Z19: 26 | AA19: 206 | AB19: 38 | AC19: 207 | AD19: 3 | AE19: 2 | AF19: 7 | AG19: 42 | AH19: 60 | AI19: 169 | AJ19: 13 | AK19: 149 | AL19: 91 | AM19: 84 | AN19: 98
A20: 160 | B20: MOSELLE | C20: 45 | D20: METZ | E20: 557447 | F20: METZ SAINT MAXIMIN | G20: 3.0 | H20: 11 | I20: 2 | J20: 2 | K20: 111 | L20: 7 | M20: 14 | N20: 35 | O20: 4 | P20: 140 | Q20: 203 | R20: 33 | S20: 192 | T20: 226 | U20: 184 | V20: 110 | W20: 31 | X20: 126 | Y20: 93 | Z20: 24 | AA20: 8 | AB20: 8 | AC20: 286 | AD20: 51 | AE20: 42 | AF20: 103 | AG20: 14 | AH20: 14 | AI20: 36 | AJ20: 108 | AK20: 46 | AL20: 93 | AM20: 65 | AN20: 143
A21: 30 | B21: MARNE-ARDENNES | C21: 11 | D21: REIMS | E21: 551369 | F21: DAMERY | G21: 3.0 | H21: 12 | I21: 33 | J21: 15 | K21: 223 | L21: 33 | M21: 5 | N21: 27 | O21: 18 | P21: 135 | Q21: 127 | R21: 17 | S21: 94 | T21: 123 | U21: 178 | V21: 45 | W21: 3 | X21: 151 | Y21: 76 | Z21: 11 | AA21: 4 | AB21: 7 | AC21: 1 | AD21: 25 | AE21: 117 | AF21: 11 | AG21: 241 | AH21: 252 | AI21: 90 | AJ21: 111 | AK21: 253 | AL21: 41 | AM21: 30 | AN21: 109
A22: 160 | B22: MOSELLE | C22: 44 | D22: MOSELLE NORD | E22: 557660 | F22: UCKANGE JEANNE D ARC | G22: 1.9 | H22: 13 | I22: 15 | J22: 231 | K22: 2 | L22: 268 | M22: 60 | N22: 5 | O22: 33 | P22: 10 | Q22: 19 | R22: 4 | S22: 43 | T22: 116 | U22: 31 | V22: 25 | W22: 10 | X22: 11 | Y22: 44 | Z22: 17 | AA22: 61 | AB22: 13 | AC22: 36 | AD22: 46 | AE22: 86 | AF22: 47 | AG22: 31 | AH22: 16 | AI22: 130 | AJ22: 134 | AK22: 112 | AL22: 209 | AM22: 195 | AN22: 207
A23: 110 | B23: MEURTHE ET MOSELLE MEUSE | C23: 26 | D23: NANCY | E23: 554266 | F23: DOMBASLE SUR MEURTHE | G23: 3.3 | H23: 14 | I23: 144 | J23: 162 | K23: 67 | L23: 279 | M23: 40 | N23: 10 | O23: 68 | P23: 13 | Q23: 8 | R23: 11 | S23: 137 | T23: 96 | U23: 53 | V23: 229 | W23: 21 | X23: 25 | Y23: 22 | Z23: 50 | AA23: 42 | AB23: 12 | AC23: 157 | AD23: 42 | AE23: 35 | AF23: 86 | AG23: 43 | AH23: 12 | AI23: 62 | AJ23: 120 | AK23: 279 | AL23: 54 | AM23: 53 | AN23: 82
A24: 30 | B24: MARNE-ARDENNES | C24: 2 | D24: CHARLEVILLE MEZIERES | E24: 508833 | F24: VILLERS SEMEUSE CORA | G24: 2.9 | H24: 15 | I24: 184 | J24: 64 | K24: 227 | L24: 184 | M24: 93 | N24: 19 | O24: 26 | P24: 14 | Q24: 12 | R24: 168 | S24: 109 | T24: 108 | U24: 276 | V24: 52 | W24: 52 | X24: 128 | Y24: 95 | Z24: 28 | AA24: 44 | AB24: 36 | AC24: 207 | AD24: 9 | AE24: 12 | AF24: 15 | AG24: 13 | AH24: 7 | AI24: 45 | AJ24: 173 | AK24: 82 | AL24: 106 | AM24: 87 | AN24: 138
A25: 30 | B25: MARNE-ARDENNES | C25: 11 | D25: REIMS | E25: 551314 | F25: FISMES | G25: 2.1 | H25: 16 | I25: 57 | J25: 14 | K25: 129 | L25: 266 | M25: 4 | N25: 76 | O25: 9 | P25: 207 | Q25: 90 | R25: 183 | S25: 284 | T25: 208 | U25: 290 | V25: 279 | W25: 13 | X25: 85 | Y25: 98 | Z25: 14 | AA25: 2 | AB25: 6 | AC25: 56 | AD25: 12 | AE25: 23 | AF25: 13 | AG25: 188 | AH25: 210 | AI25: 19 | AJ25: 278 | AK25: 208 | AL25: 17 | AM25: 36 | AN25: 23
A26: 30 | B26: MARNE-ARDENNES | C26: 11 | D26: REIMS | E26: 451370 | F26: EPERNAY VERRON | G26: 10.2 | H26: 17 | I26: 159 | J26: 86 | K26: 173 | L26: 116 | M26: 131 | N26: 22 | O26: 66 | P26: 31 | Q26: 55 | R26: 24 | S26: 129 | T26: 77 | U26: 23 | V26: 258 | W26: 44 | X26: 155 | Y26: 82 | Z26: 90 | AA26: 23 | AB26: 56 | AC26: 17 | AD26: 17 | AE26: 34 | AF26: 14 | AG26: 160 | AH26: 75 | AI26: 154 | AJ26: 228 | AK26: 230 | AL26: 23 | AM26: 19 | AN26: 88
A27: 262 | B27: BAS-RHIN | C27: 5006 | D27: STRASBOURG | E27: 4010 | F27: STRASBOURG MEINAU | G27: 2.2 | H27: 18 | I27: 207 | J27: 175 | K27: 131 | L27: 283 | M27: 73 | N27: 2 | O27: 161 | P27: 2 | Q27: 1 | R27: 52 | S27: 138 | T27: 266 | U27: 157 | V27: 11 | W27: 115 | X27: 22 | Y27: 39 | Z27: 139 | AA27: 185 | AB27: 288 | AC27: 207 | AD27: 5 | AE27: 28 | AF27: 2 | AG27: 5 | AH27: 19 | AI27: 4 | AJ27: 9 | AK27: 191 | AL27: 255 | AM27: 254 | AN27: 238
A28: 262 | B28: BAS-RHIN | C28: 5006 | D28: STRASBOURG | E28: 4033 | F28: LA WANTZENAU | G28: 1.2 | H28: 19 | I28: 257 | J28: 236 | K28: 86 | L28: 262 | M28: 292 | N28: 56 | O28: 159 | P28: 61 | Q28: 29 | R28: 80 | S28: 1 | T28: 1 | U28: 1 | V28: 261 | W28: 69 | X28: 26 | Y28: 29 | Z28: 123 | AA28: 251 | AB28: 86 | AC28: 88 | AD28: 89 | AE28: 45 | AF28: 187 | AG28: 161 | AH28: 106 | AI28: 98 | AJ28: 60 | AK28: 278 | AL28: 27 | AM28: 43 | AN28: 31
A29: 30 | B29: MARNE-ARDENNES | C29: 2 | D29: CHARLEVILLE MEZIERES | E29: 508839 | F29: GIVET | G29: 2.5 | H29: 20 | I29: 6 | J29: 126 | K29: 88 | L29: 1 | M29: 21 | N29: 78 | O29: 141 | P29: 84 | Q29: 42 | R29: 105 | S29: 78 | T29: 132 | U29: 5 | V29: 184 | W29: 64 | X29: 92 | Y29: 144 | Z29: 62 | AA29: 54 | AB29: 46 | AC29: 131 | AD29: 19 | AE29: 14 | AF29: 48 | AG29: 56 | AH29: 45 | AI29: 50 | AJ29: 89 | AK29: 217 | AL29: 143 | AM29: 140 | AN29: 137
A30: 262 | B30: BAS-RHIN | C30: 5006 | D30: STRASBOURG | E30: 4043 | F30: STRASBOURG HALLES | G30: 8.3 | H30: 21 | I30: 29 | J30: 12 | K30: 74 | L30: 48 | M30: 226 | N30: 9 | O30: 48 | P30: 28 | Q30: 38 | R30: 3 | S30: 26 | T30: 20 | U30: 56 | V30: 183 | W30: 37 | X30: 254 | Y30: 177 | Z30: 75 | AA30: 130 | AB30: 69 | AC30: 3 | AD30: 15 | AE30: 63 | AF30: 9 | AG30: 85 | AH30: 191 | AI30: 34 | AJ30: 34 | AK30: 157 | AL30: 224 | AM30: 226 | AN30: 200
A31: 50 | B31: AUBE HAUTE MARNE | C31: 14 | D31: TROYES | E31: 510570 | F31: NOGENT SUR SEINE | G31: 3.6 | H31: 22 | I31: 35 | J31: 129 | K31: 72 | L31: 22 | M31: 109 | N31: 168 | O31: 189 | P31: 139 | Q31: 135 | R31: 152 | S31: 173 | T31: 210 | U31: 28 | V31: 176 | W31: 48 | X31: 34 | Y31: 75 | Z31: 43 | AA31: 124 | AB31: 82 | AC31: 144 | AD31: 100 | AE31: 168 | AF31: 67 | AG31: 222 | AH31: 272 | AI31: 162 | AJ31: 58 | AK31: 173 | AL31: 3 | AM31: 1 | AN31: 71
A32: 160 | B32: MOSELLE | C32: 44 | D32: MOSELLE NORD | E32: 557633 | F32: THIONVILLE COTE DES ROSES | G32: 1.8 | H32: 23 | I32: 213 | J32: 133 | K32: 217 | L32: 204 | M32: 131 | N32: 54 | O32: 16 | P32: 49 | Q32: 94 | R32: 186 | S32: 5 | T32: 19 | U32: 91 | V32: 3 | W32: 11 | X32: 3 | Y32: 5 | Z32: 55 | AA32: 80 | AB32: 5 | AC32: 207 | AD32: 24 | AE32: 6 | AF32: 195 | AG32: 18 | AH32: 8 | AI32: 33 | AJ32: 288 | AK32: 76 | AL32: 187 | AM32: 248 | AN32: 40
A33: 30 | B33: MARNE-ARDENNES | C33: 2 | D33: CHARLEVILLE MEZIERES | E33: 508819 | F33: MOUZON | G33: 1.9 | H33: 24 | I33: 27 | J33: 169 | K33: 13 | L33: 156 | M33: 131 | N33: 151 | O33: 62 | P33: 245 | Q33: 215 | R33: 81 | S33: 207 | T33: 114 | U33: 291 | V33: 218 | W33: 7 | X33: 7 | Y33: 8 | Z33: 6 | AA33: 17 | AB33: 16 | AC33: 207 | AD33: 229 | AE33: 163 | AF33: 243 | AG33: 75 | AH33: 48 | AI33: 79 | AJ33: 95 | AK33: 223 | AL33: 26 | AM33: 24 | AN33: 75
A34: 30 | B34: MARNE-ARDENNES | C34: 11 | D34: REIMS | E34: 551349 | F34: REIMS SAINT REMI | G34: 2.7 | H34: 25 | I34: 23 | J34: 283 | K34: 28 | L34: 25 | M34: 25 | N34: 100 | O34: 74 | P34: 48 | Q34: 67 | R34: 255 | S34: 35 | T34: 4 | U34: 270 | V34: 282 | W34: 92 | X34: 224 | Y34: 230 | Z34: 63 | AA34: 12 | AB34: 68 | AC34: 207 | AD34: 192 | AE34: 261 | AF34: 87 | AG34: 11 | AH34: 10 | AI34: 3 | AJ34: 148 | AK34: 267 | AL34: 63 | AM34: 73 | AN34: 60
A35: 50 | B35: AUBE HAUTE MARNE | C35: 14 | D35: TROYES | E35: 410524 | F35: SAINT JULIEN LES VILLAS | G35: 5.3 | H35: 26 | I35: 170 | J35: 62 | K35: 159 | L35: 87 | M35: 278 | N35: 103 | O35: 167 | P35: 218 | Q35: 225 | R35: 12 | S35: 19 | T35: 10 | U35: 82 | V35: 226 | W35: 39 | X35: 240 | Y35: 232 | Z35: 36 | AA35: 74 | AB35: 43 | AC35: 8 | AD35: 103 | AE35: 132 | AF35: 85 | AG35: 140 | AH35: 155 | AI35: 166 | AJ35: 160 | AK35: 80 | AL35: 10 | AM35: 9 | AN35: 65
A36: 262 | B36: BAS-RHIN | C36: 5006 | D36: STRASBOURG | E36: 4019 | F36: STRASBOURG ANVERS | G36: 4.3 | H36: 27 | I36: 143 | J36: 160 | K36: 142 | L36: 207 | M36: 32 | N36: 12 | O36: 7 | P36: 32 | Q36: 9 | R36: 27 | S36: 61 | T36: 39 | U36: 8 | V36: 262 | W36: 12 | X36: 199 | Y36: 48 | Z36: 5 | AA36: 6 | AB36: 24 | AC36: 11 | AD36: 10 | AE36: 9 | AF36: 39 | AG36: 133 | AH36: 79 | AI36: 32 | AJ36: 78 | AK36: 284 | AL36: 219 | AM36: 195 | AN36: 225
A37: 160 | B37: MOSELLE | C37: 45 | D37: METZ | E37: 557441 | F37: METZ PLAPPEVILLE | G37: 2.3 | H37: 28 | I37: 127 | J37: 278 | K37: 10 | L37: 287 | M37: 131 | N37: 183 | O37: 241 | P37: 131 | Q37: 106 | R37: 184 | S37: 7 | T37: 21 | U37: 55 | V37: 5 | W37: 9 | X37: 5 | Y37: 11 | Z37: 41 | AA37: 38 | AB37: 31 | AC37: 21 | AD37: 85 | AE37: 97 | AF37: 96 | AG37: 220 | AH37: 25 | AI37: 82 | AJ37: 285 | AK37: 291 | AL37: 39 | AM37: 43 | AN37: 72
A38: 30 | B38: MARNE-ARDENNES | C38: 6 | D38: CHALONS EN CHAMPAGNE | E38: 451101 | F38: CHALONS VIVIERS | G38: 9.4 | H38: 29 | I38: 106 | J38: 116 | K38: 202 | L38: 32 | M38: 37 | N38: 75 | O38: 75 | P38: 72 | Q38: 95 | R38: 99 | S38: 93 | T38: 84 | U38: 11 | V38: 240 | W38: 24 | X38: 49 | Y38: 54 | Z38: 21 | AA38: 34 | AB38: 51 | AC38: 81 | AD38: 18 | AE38: 17 | AF38: 36 | AG38: 23 | AH38: 47 | AI38: 12 | AJ38: 22 | AK38: 158 | AL38: 161 | AM38: 236 | AN38: 24
A39: 30 | B39: MARNE-ARDENNES | C39: 2 | D39: CHARLEVILLE MEZIERES | E39: 408814 | F39: VRIGNE AUX BOIS | G39: 0.9 | H39: 30 | I39: 281 | J39: 168 | K39: 293 | L39: 24 | M39: 131 | N39: 14 | O39: 103 | P39: 7 | Q39: 10 | R39: 65 | S39: 18 | T39: 14 | U39: 14 | V39: 202 | W39: 42 | X39: 15 | Y39: 49 | Z39: 82 | AA39: 88 | AB39: 117 | AC39: 108 | AD39: 6 | AE39: 5 | AF39: 33 | AG39: 33 | AH39: 64 | AI39: 16 | AJ39: 52 | AK39: 110 | AL39: 141 | AM39: 183 | AN39: 76
A40: 30 | B40: MARNE-ARDENNES | C40: 2 | D40: CHARLEVILLE MEZIERES | E40: 408862 | F40: REVIN | G40: 4.0 | H40: 31 | I40: 169 | J40: 152 | K40: 215 | L40: 101 | M40: 63 | N40: 42 | O40: 37 | P40: 53 | Q40: 77 | R40: 68 | S40: 269 | T40: 243 | U40: 281 | V40: 246 | W40: 117 | X40: 41 | Y40: 35 | Z40: 196 | AA40: 160 | AB40: 202 | AC40: 87 | AD40: 22 | AE40: 20 | AF40: 49 | AG40: 45 | AH40: 44 | AI40: 112 | AJ40: 163 | AK40: 27 | AL40: 32 | AM40: 65 | AN40: 7
A41: 30 | B41: MARNE-ARDENNES | C41: 2 | D41: CHARLEVILLE MEZIERES | E41: 508820 | F41: VOUZIERS | G41: 2.9 | H41: 32 | I41: 128 | J41: 273 | K41: 55 | L41: 185 | M41: 92 | N41: 4 | O41: 30 | P41: 3 | Q41: 4 | R41: 139 | S41: 148 | T41: 256 | U41: 199 | V41: 17 | W41: 29 | X41: 8 | Y41: 4 | Z41: 65 | AA41: 92 | AB41: 93 | AC41: 174 | AD41: 4 | AE41: 4 | AF41: 19 | AG41: 34 | AH41: 17 | AI41: 208 | AJ41: 83 | AK41: 88 | AL41: 271 | AM41: 279 | AN41: 206
A42: 262 | B42: BAS-RHIN | C42: 5101 | D42: SELESTAT | E42: 4113 | F42: BARR | G42: 3.0 | H42: 33 | I42: 193 | J42: 170 | K42: 110 | L42: 186 | M42: 272 | N42: 34 | O42: 13 | P42: 51 | Q42: 62 | R42: 128 | S42: 105 | T42: 182 | U42: 64 | V42: 44 | W42: 55 | X42: 259 | Y42: 271 | Z42: 29 | AA42: 35 | AB42: 35 | AC42: 24 | AD42: 161 | AE42: 155 | AF42: 149 | AG42: 110 | AH42: 97 | AI42: 150 | AJ42: 99 | AK42: 167 | AL42: 6 | AM42: 11 | AN42: 27
A43: 262 | B43: BAS-RHIN | C43: 5006 | D43: STRASBOURG | E43: 4029 | F43: SCHILTIGHEIM KLEBER | G43: 1.7 | H43: 34 | I43: 17 | J43: 172 | K43: 173 | L43: 80 | M43: 1 | N43: 13 | O43: 149 | P43: 5 | Q43: 5 | R43: 156 | S43: 121 | T43: 164 | U43: 72 | V43: 78 | W43: 109 | X43: 39 | Y43: 182 | Z43: 120 | AA43: 197 | AB43: 140 | AC43: 142 | AD43: 57 | AE43: 237 | AF43: 12 | AG43: 32 | AH43: 22 | AI43: 25 | AJ43: 21 | AK43: 275 | AL43: 193 | AM43: 94 | AN43: 270
A44: 50 | B44: AUBE HAUTE MARNE | C44: 21 | D44: CHAUMONT | E44: 410541 | F44: LANGRES | G44: 6.6 | H44: 35 | I44: 130 | J44: 72 | K44: 144 | L44: 217 | M44: 41 | N44: 107 | O44: 137 | P44: 107 | Q44: 216 | R44: 37 | S44: 101 | T44: 99 | U44: 158 | V44: 100 | W44: 71 | X44: 43 | Y44: 19 | Z44: 210 | AA44: 85 | AB44: 70 | AC44: 51 | AD44: 90 | AE44: 50 | AF44: 170 | AG44: 67 | AH44: 52 | AI44: 185 | AJ44: 107 | AK44: 92 | AL44: 29 | AM44: 24 | AN44: 89
A45: 80 | B45: VOSGES | C45: 55 | D45: SAINT DIE | E45: 488616 | F45: SENONES | G45: 1.8 | H45: 36 | I45: 25 | J45: 19 | K45: 22 | L45: 26 | M45: 291 | N45: 79 | O45: 147 | P45: 158 | Q45: 210 | R45: 8 | S45: 144 | T45: 206 | U45: 21 | V45: 128 | W45: 124 | X45: 27 | Y45: 14 | Z45: 228 | AA45: 199 | AB45: 198 | AC45: 207 | AD45: 31 | AE45: 11 | AF45: 136 | AG45: 48 | AH45: 67 | AI45: 83 | AJ45: 40 | AK45: 93 | AL45: 119 | AM45: 94 | AN45: 170
A46: 110 | B46: MEURTHE ET MOSELLE MEUSE | C46: 31 | D46: VERDUN | E46: 554700 | F46: VILLERUPT | G46: 2.5 | H46: 37 | I46: 24 | J46: 212 | K46: 20 | L46: 46 | M46: 131 | N46: 57 | O46: 152 | P46: 33 | Q46: 28 | R46: 127 | S46: 177 | T46: 270 | U46: 54 | V46: 71 | W46: 103 | X46: 51 | Y46: 113 | Z46: 117 | AA46: 112 | AB46: 152 | AC46: 207 | AD46: 99 | AE46: 47 | AF46: 191 | AG46: 143 | AH46: 249 | AI46: 92 | AJ46: 31 | AK46: 156 | AL46: 50 | AM46: 71 | AN46: 27
A47: 30 | B47: MARNE-ARDENNES | C47: 6 | D47: CHALONS EN CHAMPAGNE | E47: 551330 | F47: MONTMIRAIL | G47: 3.3 | H47: 38 | I47: 98 | J47: 30 | K47: 173 | L47: 42 | M47: 131 | N47: 148 | O47: 81 | P47: 155 | Q47: 172 | R47: 164 | S47: 187 | T47: 81 | U47: 210 | V47: 266 | W47: 161 | X47: 267 | Y47: 254 | Z47: 84 | AA47: 40 | AB47: 76 | AC47: 204 | AD47: 81 | AE47: 136 | AF47: 64 | AG47: 39 | AH47: 61 | AI47: 123 | AJ47: 119 | AK47: 5 | AL47: 14 | AM47: 24 | AN47: 44
A48: 30 | B48: MARNE-ARDENNES | C48: 11 | D48: REIMS | E48: 551309 | F48: REIMS EUROPE | G48: 2.9 | H48: 39 | I48: 34 | J48: 17 | K48: 122 | L48: 99 | M48: 33 | N48: 106 | O48: 47 | P48: 118 | Q48: 143 | R48: 186 | S48: 28 | T48: 26 | U48: 255 | V48: 65 | W48: 79 | X48: 44 | Y48: 109 | Z48: 85 | AA48: 133 | AB48: 111 | AC48: 111 | AD48: 154 | AE48: 109 | AF48: 184 | AG48: 174 | AH48: 231 | AI48: 18 | AJ48: 57 | AK48: 273 | AL48: 31 | AM48: 19 | AN48: 107
A49: 30 | B49: MARNE-ARDENNES | C49: 6 | D49: CHALONS EN CHAMPAGNE | E49: 551110 | F49: CHALONS ROOSEVELT | G49: 5.3 | H49: 40 | I49: 126 | J49: 104 | K49: 194 | L49: 43 | M49: 121 | N49: 138 | O49: 97 | P49: 113 | Q49: 182 | R49: 132 | S49: 11 | T49: 6 | U49: 101 | V49: 120 | W49: 133 | X49: 192 | Y49: 192 | Z49: 125 | AA49: 73 | AB49: 98 | AC49: 71 | AD49: 108 | AE49: 71 | AF49: 166 | AG49: 157 | AH49: 188 | AI49: 141 | AJ49: 166 | AK49: 84 | AL49: 11 | AM49: 43 | AN49: 4
A50: 30 | B50: MARNE-ARDENNES | C50: 6 | D50: CHALONS EN CHAMPAGNE | E50: 451115 | F50: MOURMELON suippes | G50: 3.0 | H50: 41 | I50: 45 | J50: 75 | K50: 164 | L50: 4 | M50: 131 | N50: 53 | O50: 25 | P50: 77 | Q50: 112 | R50: 84 | S50: 262 | T50: 220 | U50: 249 | V50: 251 | W50: 100 | X50: 48 | Y50: 17 | Z50: 144 | AA50: 139 | AB50: 168 | AC50: 148 | AD50: 11 | AE50: 8 | AF50: 43 | AG50: 12 | AH50: 21 | AI50: 41 | AJ50: 20 | AK50: 67 | AL50: 217 | AM50: 273 | AN50: 53
A51: 30 | B51: MARNE-ARDENNES | C51: 2 | D51: CHARLEVILLE MEZIERES | E51: 408840 | F51: RETHEL | G51: 5.9 | H51: 42 | I51: 129 | J51: 69 | K51: 224 | L51: 70 | M51: 64 | N51: 69 | O51: 115 | P51: 34 | Q51: 64 | R51: 148 | S51: 261 | T51: 248 | U51: 189 | V51: 232 | W51: 138 | X51: 188 | Y51: 163 | Z51: 104 | AA51: 50 | AB51: 113 | AC51: 147 | AD51: 105 | AE51: 80 | AF51: 140 | AG51: 17 | AH51: 27 | AI51: 39 | AJ51: 113 | AK51: 9 | AL51: 40 | AM51: 24 | AN51: 120
A52: 30 | B52: MARNE-ARDENNES | C52: 6 | D52: CHALONS EN CHAMPAGNE | E52: 551354 | F52: VERTUS | G52: 2.9 | H52: 43 | I52: 132 | J52: 56 | K52: 225 | L52: 9 | M52: 274 | N52: 209 | O52: 122 | P52: 197 | Q52: 149 | R52: 264 | S52: 34 | T52: 29 | U52: 171 | V52: 98 | W52: 265 | X52: 222 | Y52: 208 | Z52: 138 | AA52: 175 | AB52: 205 | AC52: 293 | AD52: 92 | AE52: 141 | AF52: 73 | AG52: 55 | AH52: 40 | AI52: 171 | AJ52: 122 | AK52: 120 | AL52: 4 | AM52: 15 | AN52: 1
A53: 30 | B53: MARNE-ARDENNES | C53: 6 | D53: CHALONS EN CHAMPAGNE | E53: 451120 | F53: SARRY | G53: 2.5 | H53: 44 | I53: 21 | J53: 51 | K53: 90 | L53: 5 | M53: 131 | N53: 157 | O53: 44 | P53: 203 | Q53: 218 | R53: 211 | S53: 97 | T53: 213 | U53: 58 | V53: 27 | W53: 240 | X53: 169 | Y53: 127 | Z53: 248 | AA53: 198 | AB53: 231 | AC53: 207 | AD53: 135 | AE53: 58 | AF53: 218 | AG53: 15 | AH53: 217 | AI53: 2 | AJ53: 23 | AK53: 2 | AL53: 70 | AM53: 78 | AN53: 59
A54: 110 | B54: MEURTHE ET MOSELLE MEUSE | C54: 27 | D54: PONT A MOUSSON | E54: 554416 | F54: LUDRES | G54: 3.9 | H54: 45 | I54: 44 | J54: 85 | K54: 24 | L54: 243 | M54: 114 | N54: 111 | O54: 35 | P54: 159 | Q54: 188 | R54: 135 | S54: 8 | T54: 15 | U54: 24 | V54: 22 | W54: 139 | X54: 220 | Y54: 238 | Z54: 162 | AA54: 96 | AB54: 30 | AC54: 59 | AD54: 215 | AE54: 87 | AF54: 269 | AG54: 105 | AH54: 42 | AI54: 51 | AJ54: 169 | AK54: 276 | AL54: 43 | AM54: 84 | AN54: 2
A55: 264 | B55: HAUT-RHIN | C55: 5130 | D55: COLMAR | E55: 4132 | F55: COLMAR MARAICHERS | G55: 2.5 | H55: 46 | I55: 53 | J55: 158 | K55: 70 | L55: 67 | M55: 83 | N55: 137 | O55: 71 | P55: 88 | Q55: 73 | R55: 271 | S55: 21 | T55: 23 | U55: 44 | V55: 122 | W55: 113 | X55: 29 | Y55: 21 | Z55: 180 | AA55: 282 | AB55: 208 | AC55: 96 | AD55: 216 | AE55: 236 | AF55: 153 | AG55: 46 | AH55: 15 | AI55: 152 | AJ55: 190 | AK55: 172 | AL55: 51 | AM55: 19 | AN55: 177
A56: 160 | B56: MOSELLE | C56: 45 | D56: METZ | E56: 557444 | F56: METZ SAINT JULIEN | G56: 6.0 | H56: 47 | I56: 51 | J56: 65 | K56: 59 | L56: 89 | M56: 219 | N56: 63 | O56: 52 | P56: 70 | Q56: 58 | R56: 133 | S56: 45 | T56: 146 | U56: 30 | V56: 15 | W56: 93 | X56: 139 | Y56: 194 | Z56: 45 | AA56: 84 | AB56: 92 | AC56: 178 | AD56: 102 | AE56: 44 | AF56: 206 | AG56: 173 | AH56: 117 | AI56: 224 | AJ56: 180 | AK56: 176 | AL56: 61 | AM56: 50 | AN56: 110
A57: 50 | B57: AUBE HAUTE MARNE | C57: 14 | D57: TROYES | E57: 410551 | F57: BRIENNE LE CHÂTEAU | G57: 2.7 | H57: 48 | I57: 222 | J57: 221 | K57: 265 | L57: 15 | M57: 131 | N57: 194 | O57: 153 | P57: 160 | Q57: 189 | R57: 186 | S57: 289 | T57: 293 | U57: 212 | V57: 193 | W57: 202 | X57: 45 | Y57: 67 | Z57: 267 | AA57: 241 | AB57: 272 | AC57: 207 | AD57: 21 | AE57: 55 | AF57: 16 | AG57: 153 | AH57: 256 | AI57: 250 | AJ57: 144 | AK57: 1 | AL57: 1 | AM57: 2 | AN57: 41
A58: 30 | B58: MARNE-ARDENNES | C58: 11 | D58: REIMS | E58: 551306 | F58: REIMS SAINT MARCEAUX | G58: 4.9 | H58: 49 | I58: 8 | J58: 28 | K58: 35 | L58: 35 | M58: 82 | N58: 20 | O58: 8 | P58: 11 | Q58: 138 | R58: 100 | S58: 120 | T58: 69 | U58: 92 | V58: 225 | W58: 59 | X58: 184 | Y58: 210 | Z58: 46 | AA58: 29 | AB58: 66 | AC58: 44 | AD58: 58 | AE58: 110 | AF58: 50 | AG58: 151 | AH58: 159 | AI58: 116 | AJ58: 234 | AK58: 103 | AL58: 181 | AM58: 240 | AN58: 58
A59: 30 | B59: MARNE-ARDENNES | C59: 2 | D59: CHARLEVILLE MEZIERES | E59: 508815 | F59: CARIGNAN | G59: 2.9 | H59: 50 | I59: 41 | J59: 123 | K59: 107 | L59: 8 | M59: 131 | N59: 73 | O59: 126 | P59: 39 | Q59: 81 | R59: 113 | S59: 59 | T59: 98 | U59: 152 | V59: 34 | W59: 99 | X59: 40 | Y59: 46 | Z59: 146 | AA59: 159 | AB59: 223 | AC59: 67 | AD59: 147 | AE59: 239 | AF59: 63 | AG59: 19 | AH59: 32 | AI59: 30 | AJ59: 87 | AK59: 23 | AL59: 128 | AM59: 159 | AN59: 93
A60: 160 | B60: MOSELLE | C60: 45 | D60: METZ | E60: 557434 | F60: MARLY | G60: 3.6 | H60: 51 | I60: 28 | J60: 119 | K60: 44 | L60: 86 | M60: 53 | N60: 55 | O60: 19 | P60: 92 | Q60: 52 | R60: 172 | S60: 117 | T60: 68 | U60: 250 | V60: 168 | W60: 130 | X60: 182 | Y60: 153 | Z60: 66 | AA60: 191 | AB60: 61 | AC60: 207 | AD60: 235 | AE60: 179 | AF60: 247 | AG60: 22 | AH60: 13 | AI60: 167 | AJ60: 90 | AK60: 70 | AL60: 94 | AM60: 159 | AN60: 10
A61: 160 | B61: MOSELLE | C61: 42 | D61: MOSELLE EST | E61: 457163 | F61: BEHREN LES FORBACH | G61: 2.3 | H61: 52 | I61: 260 | J61: 105 | K61: 290 | L61: 83 | M61: 76 | N61: 31 | O61: 56 | P61: 94 | Q61: 93 | R61: 16 | S61: 264 | T61: 255 | U61: 280 | V61: 196 | W61: 33 | X61: 12 | Y61: 34 | Z61: 38 | AA61: 114 | AB61: 102 | AC61: 135 | AD61: 87 | AE61: 81 | AF61: 117 | AG61: 87 | AH61: 72 | AI61: 109 | AJ61: 192 | AK61: 129 | AL61: 20 | AM61: 5 | AN61: 145
A62: 160 | B62: MOSELLE | C62: 44 | D62: MOSELLE NORD | E62: 457449 | F62: METZERVISSE | G62: 2.2 | H62: 53 | I62: 190 | J62: 130 | K62: 48 | L62: 273 | M62: 283 | N62: 171 | O62: 101 | P62: 73 | Q62: 99 | R62: 277 | S62: 130 | T62: 200 | U62: 99 | V62: 43 | W62: 224 | X62: 107 | Y62: 149 | Z62: 239 | AA62: 237 | AB62: 237 | AC62: 199 | AD62: 29 | AE62: 10 | AF62: 159 | AG62: 53 | AH62: 114 | AI62: 26 | AJ62: 92 | AK62: 72 | AL62: 28 | AM62: 5 | AN62: 172
A63: 160 | B63: MOSELLE | C63: 45 | D63: METZ | E63: 457443 | F63: METZ REPUBLIQUE | G63: 4.1 | H63: 54 | I63: 79 | J63: 191 | K63: 29 | L63: 161 | M63: 259 | N63: 211 | O63: 204 | P63: 109 | Q63: 82 | R63: 276 | S63: 57 | T63: 67 | U63: 20 | V63: 162 | W63: 70 | X63: 219 | Y63: 169 | Z63: 51 | AA63: 178 | AB63: 84 | AC63: 13 | AD63: 152 | AE63: 206 | AF63: 92 | AG63: 236 | AH63: 130 | AI63: 217 | AJ63: 264 | AK63: 233 | AL63: 9 | AM63: 19 | AN63: 11
A64: 110 | B64: MEURTHE ET MOSELLE MEUSE | C64: 26 | D64: NANCY | E64: 454671 | F64: VANDOEUVRE LES NANCY | G64: 3.9 | H64: 55 | I64: 62 | J64: 159 | K64: 82 | L64: 31 | M64: 131 | N64: 124 | O64: 77 | P64: 74 | Q64: 164 | R64: 205 | S64: 24 | T64: 82 | U64: 119 | V64: 12 | W64: 143 | X64: 154 | Y64: 190 | Z64: 113 | AA64: 83 | AB64: 107 | AC64: 207 | AD64: 233 | AE64: 170 | AF64: 248 | AG64: 114 | AH64: 192 | AI64: 46 | AJ64: 27 | AK64: 225 | AL64: 15 | AM64: 4 | AN64: 173
A65: 30 | B65: MARNE-ARDENNES | C65: 11 | D65: REIMS | E65: 451336 | F65: TINQUEUX | G65: 4.7 | H65: 56 | I65: 201 | J65: 155 | K65: 173 | L65: 213 | M65: 119 | N65: 155 | O65: 183 | P65: 227 | Q65: 187 | R65: 44 | S65: 3 | T65: 2 | U65: 131 | V65: 76 | W65: 27 | X65: 148 | Y65: 123 | Z65: 67 | AA65: 32 | AB65: 64 | AC65: 5 | AD65: 52 | AE65: 88 | AF65: 59 | AG65: 63 | AH65: 37 | AI65: 77 | AJ65: 218 | AK65: 197 | AL65: 122 | AM65: 118 | AN65: 125
A66: 30 | B66: MARNE-ARDENNES | C66: 2 | D66: CHARLEVILLE MEZIERES | E66: 408801 | F66: CHARLEVILLE JEAN JAURES | G66: 8.5 | H66: 57 | I66: 70 | J66: 103 | K66: 101 | L66: 181 | M66: 17 | N66: 47 | O66: 39 | P66: 112 | Q66: 137 | R66: 22 | S66: 92 | T66: 95 | U66: 46 | V66: 154 | W66: 19 | X66: 142 | Y66: 104 | Z66: 9 | AA66: 13 | AB66: 14 | AC66: 104 | AD66: 209 | AE66: 162 | AF66: 224 | AG66: 65 | AH66: 98 | AI66: 49 | AJ66: 127 | AK66: 101 | AL66: 117 | AM66: 132 | AN66: 101
A67: 110 | B67: MEURTHE ET MOSELLE MEUSE | C67: 26 | D67: NANCY | E67: 554636 | F67: TOMBLAINE | G67: 2.9 | H67: 58 | I67: 182 | J67: 77 | K67: 205 | L67: 147 | M67: 131 | N67: 134 | O67: 67 | P67: 146 | Q67: 208 | R67: 112 | S67: 74 | T67: 107 | U67: 96 | V67: 60 | W67: 140 | X67: 103 | Y67: 121 | Z67: 167 | AA67: 75 | AB67: 130 | AC67: 207 | AD67: 54 | AE67: 43 | AF67: 107 | AG67: 70 | AH67: 131 | AI67: 61 | AJ67: 66 | AK67: 97 | AL67: 52 | AM67: 73 | AN67: 22
A68: 50 | B68: AUBE HAUTE MARNE | C68: 21 | D68: CHAUMONT | E68: 410560 | F68: BOURBONNE LES BAINS | G68: 1.8 | H68: 59 | I68: 191 | J68: 33 | K68: 271 | L68: 53 | M68: 56 | N68: 115 | O68: 148 | P68: 68 | Q68: 97 | R68: 173 | S68: 209 | T68: 196 | U68: 163 | V68: 181 | W68: 205 | X68: 42 | Y68: 31 | Z68: 280 | AA68: 273 | AB68: 280 | AC68: 207 | AD68: 79 | AE68: 84 | AF68: 97 | AG68: 41 | AH68: 24 | AI68: 257 | AJ68: 136 | AK68: 28 | AL68: 24 | AM68: 23 | AN68: 79
A69: 80 | B69: VOSGES | C69: 57 | D69: EPINAL | E69: 488561 | F69: REMIREMONT | G69: 6.4 | H69: 60 | I69: 18 | J69: 90 | K69: 37 | L69: 75 | M69: 22 | N69: 80 | O69: 124 | P69: 126 | Q69: 157 | R69: 26 | S69: 46 | T69: 76 | U69: 67 | V69: 62 | W69: 244 | X69: 266 | Y69: 276 | Z69: 252 | AA69: 161 | AB69: 135 | AC69: 57 | AD69: 88 | AE69: 174 | AF69: 56 | AG69: 72 | AH69: 167 | AI69: 43 | AJ69: 24 | AK69: 165 | AL69: 109 | AM69: 132 | AN69: 80
A70: 262 | B70: BAS-RHIN | C70: 5101 | D70: SELESTAT | E70: 4126 | F70: MUTZIG | G70: 2.8 | H70: 61 | I70: 173 | J70: 176 | K70: 173 | L70: 73 | M70: 131 | N70: 26 | O70: 15 | P70: 63 | Q70: 75 | R70: 51 | S70: 10 | T70: 7 | U70: 79 | V70: 90 | W70: 20 | X70: 70 | Y70: 45 | Z70: 34 | AA70: 48 | AB70: 17 | AC70: 28 | AD70: 143 | AE70: 102 | AF70: 178 | AG70: 28 | AH70: 18 | AI70: 58 | AJ70: 65 | AK70: 181 | AL70: 216 | AM70: 208 | AN70: 208
A71: 30 | B71: MARNE-ARDENNES | C71: 11 | D71: REIMS | E71: 451361 | F71: PIERRY LECLERC | G71: 1.8 | H71: 62 | I71: 65 | J71: 206 | K71: 151 | L71: 11 | M71: 55 | N71: 24 | O71: 29 | P71: 29 | Q71: 72 | R71: 59 | S71: 140 | T71: 91 | U71: 279 | V71: 146 | W71: 75 | X71: 122 | Y71: 106 | Z71: 57 | AA71: 41 | AB71: 78 | AC71: 182 | AD71: 80 | AE71: 38 | AF71: 176 | AG71: 88 | AH71: 125 | AI71: 67 | AJ71: 226 | AK71: 50 | AL71: 148 | AM71: 190 | AN71: 73
A72: 50 | B72: AUBE HAUTE MARNE | C72: 14 | D72: TROYES | E72: 510511 | F72: TROYES BROSSOLETTE | G72: 3.2 | H72: 63 | I72: 66 | J72: 71 | K72: 113 | L72: 134 | M72: 38 | N72: 66 | O72: 36 | P72: 22 | Q72: 33 | R72: 281 | S72: 249 | T72: 289 | U72: 147 | V72: 87 | W72: 82 | X72: 73 | Y72: 124 | Z72: 70 | AA72: 119 | AB72: 73 | AC72: 207 | AD72: 94 | AE72: 268 | AF72: 17 | AG72: 62 | AH72: 77 | AI72: 241 | AJ72: 42 | AK72: 49 | AL72: 98 | AM72: 118 | AN72: 57
A73: 110 | B73: MEURTHE ET MOSELLE MEUSE | C73: 31 | D73: VERDUN | E73: 555679 | F73: VERDUN MAZEL | G73: 3.8 | H73: 64 | I73: 231 | J73: 67 | K73: 254 | L73: 215 | M73: 131 | N73: 221 | O73: 160 | P73: 157 | Q73: 191 | R73: 260 | S73: 150 | T73: 233 | U73: 69 | V73: 67 | W73: 136 | X73: 37 | Y73: 43 | Z73: 191 | AA73: 246 | AB73: 158 | AC73: 207 | AD73: 56 | AE73: 213 | AF73: 18 | AG73: 108 | AH73: 74 | AI73: 272 | AJ73: 135 | AK73: 71 | AL73: 8 | AM73: 11 | AN73: 33
A74: 50 | B74: AUBE HAUTE MARNE | C74: 21 | D74: CHAUMONT | E74: 551157 | F74: SAINT DIZIER EUROPE | G74: 2.4 | H74: 65 | I74: 197 | J74: 290 | K74: 158 | L74: 36 | M74: 131 | N74: 87 | O74: 96 | P74: 65 | Q74: 37 | R74: 229 | S74: 27 | T74: 42 | U74: 208 | V74: 30 | W74: 60 | X74: 13 | Y74: 12 | Z74: 142 | AA74: 215 | AB74: 96 | AC74: 207 | AD74: 101 | AE74: 248 | AF74: 25 | AG74: 145 | AH74: 151 | AI74: 91 | AJ74: 243 | AK74: 147 | AL74: 69 | AM74: 43 | AN74: 150
A75: 110 | B75: MEURTHE ET MOSELLE MEUSE | C75: 27 | D75: PONT A MOUSSON | E75: 454696 | F75: VILLERS GENERAL LECLERC | G75: 4.5 | H75: 66 | I75: 4 | J75: 7 | K75: 38 | L75: 100 | M75: 19 | N75: 125 | O75: 145 | P75: 190 | Q75: 175 | R75: 43 | S75: 25 | T75: 18 | U75: 137 | V75: 140 | W75: 17 | X75: 60 | Y75: 25 | Z75: 32 | AA75: 60 | AB75: 54 | AC75: 14 | AD75: 16 | AE75: 133 | AF75: 4 | AG75: 142 | AH75: 33 | AI75: 117 | AJ75: 269 | AK75: 277 | AL75: 274 | AM75: 281 | AN75: 212
A76: 264 | B76: HAUT-RHIN | C76: 5169 | D76: MULHOUSE | E76: 4180 | F76: RIEDISHEIM | G76: 3.4 | H76: 67 | I76: 52 | J76: 122 | K76: 36 | L76: 171 | M76: 131 | N76: 128 | O76: 64 | P76: 170 | Q76: 110 | R76: 175 | S76: 145 | T76: 171 | U76: 74 | V76: 127 | W76: 85 | X76: 194 | Y76: 231 | Z76: 44 | AA76: 56 | AB76: 79 | AC76: 65 | AD76: 140 | AE76: 79 | AF76: 199 | AG76: 129 | AH76: 129 | AI76: 140 | AJ76: 49 | AK76: 211 | AL76: 71 | AM76: 36 | AN76: 181
A77: 262 | B77: BAS-RHIN | C77: 5006 | D77: STRASBOURG | E77: 4037 | F77: MUNDOLSHEIM | G77: 4.3 | H77: 68 | I77: 72 | J77: 143 | K77: 105 | L77: 65 | M77: 69 | N77: 28 | O77: 121 | P77: 17 | Q77: 31 | R77: 70 | S77: 51 | T77: 74 | U77: 12 | V77: 164 | W77: 178 | X77: 88 | Y77: 65 | Z77: 240 | AA77: 208 | AB77: 127 | AC77: 163 | AD77: 150 | AE77: 214 | AF77: 84 | AG77: 79 | AH77: 113 | AI77: 76 | AJ77: 93 | AK77: 108 | AL77: 108 | AM77: 94 | AN77: 138
A78: 160 | B78: MOSELLE | C78: 44 | D78: MOSELLE NORD | E78: 557113 | F78: AUDUN LE TICHE | G78: 2.2 | H78: 69 | I78: 156 | J78: 228 | K78: 79 | L78: 188 | M78: 131 | N78: 23 | O78: 5 | P78: 80 | Q78: 11 | R78: 235 | S78: 260 | T78: 286 | U78: 167 | V78: 141 | W78: 25 | X78: 53 | Y78: 10 | Z78: 40 | AA78: 18 | AB78: 22 | AC78: 207 | AD78: 39 | AE78: 103 | AF78: 32 | AG78: 37 | AH78: 80 | AI78: 6 | AJ78: 38 | AK78: 255 | AL78: 197 | AM78: 226 | AN78: 119
A79: 262 | B79: BAS-RHIN | C79: 5006 | D79: STRASBOURG | E79: 4054 | F79: STRASBOURG MONTAGNE VERTE | G79: 2.7 | H79: 70 | I79: 7 | J79: 53 | K79: 6 | L79: 130 | M79: 85 | N79: 175 | O79: 220 | P79: 174 | Q79: 134 | R79: 106 | S79: 122 | T79: 165 | U79: 161 | V79: 42 | W79: 180 | X79: 119 | Y79: 161 | Z79: 204 | AA79: 254 | AB79: 124 | AC79: 64 | AD79: 7 | AE79: 94 | AF79: 1 | AG79: 182 | AH79: 278 | AI79: 21 | AJ79: 64 | AK79: 206 | AL79: 210 | AM79: 236 | AN79: 129
A80: 160 | B80: MOSELLE | C80: 42 | D80: MOSELLE EST | E80: 457165 | F80: BITCHE | G80: 3.3 | H80: 71 | I80: 204 | J80: 78 | K80: 201 | L80: 214 | M80: 131 | N80: 18 | O80: 6 | P80: 54 | Q80: 24 | R80: 60 | S80: 123 | T80: 218 | U80: 114 | V80: 28 | W80: 210 | X80: 156 | Y80: 117 | Z80: 179 | AA80: 264 | AB80: 153 | AC80: 188 | AD80: 160 | AE80: 218 | AF80: 88 | AG80: 58 | AH80: 46 | AI80: 125 | AJ80: 246 | AK80: 48 | AL80: 66 | AM80: 87 | AN80: 38
A81: 30 | B81: MARNE-ARDENNES | C81: 11 | D81: REIMS | E81: 551341 | F81: REIMS JEAN JAURES | G81: 3.9 | H81: 72 | I81: 71 | J81: 26 | K81: 93 | L81: 71 | M81: 263 | N81: 213 | O81: 112 | P81: 221 | Q81: 257 | R81: 162 | S81: 107 | T81: 45 | U81: 258 | V81: 189 | W81: 35 | X81: 102 | Y81: 118 | Z81: 22 | AA81: 26 | AB81: 26 | AC81: 105 | AD81: 66 | AE81: 66 | AF81: 94 | AG81: 36 | AH81: 59 | AI81: 22 | AJ81: 117 | AK81: 60 | AL81: 157 | AM81: 140 | AN81: 169
A82: 50 | B82: AUBE HAUTE MARNE | C82: 21 | D82: CHAUMONT | E82: 510590 | F82: CHAUMONT REPUBLIQUE | G82: 2.4 | H82: 73 | I82: 11 | J82: 8 | K82: 26 | L82: 49 | M82: 254 | N82: 242 | O82: 89 | P82: 288 | Q82: 293 | R82: 85 | S82: 167 | T82: 187 | U82: 140 | V82: 114 | W82: 41 | X82: 16 | Y82: 16 | Z82: 68 | AA82: 98 | AB82: 109 | AC82: 167 | AD82: 205 | AE82: 276 | AF82: 77 | AG82: 185 | AH82: 269 | AI82: 85 | AJ82: 112 | AK82: 95 | AL82: 58 | AM82: 33 | AN82: 164
A83: 264 | B83: HAUT-RHIN | C83: 5130 | D83: COLMAR | E83: 4162 | F83: ENSISHEIM | G83: 4.6 | H83: 74 | I83: 9 | J83: 57 | K83: 17 | L83: 96 | M83: 34 | N83: 92 | O83: 60 | P83: 71 | Q83: 141 | R83: 143 | S83: 70 | T83: 55 | U83: 214 | V83: 124 | W83: 187 | X83: 236 | Y83: 204 | Z83: 96 | AA83: 165 | AB83: 101 | AC83: 181 | AD83: 49 | AE83: 128 | AF83: 30 | AG83: 81 | AH83: 87 | AI83: 56 | AJ83: 94 | AK83: 180 | AL83: 189 | AM83: 226 | AN83: 99
A84: 262 | B84: BAS-RHIN | C84: 5060 | D84: HAGUENAU | E84: 4071 | F84: WISSEMBOURG | G84: 8.4 | H84: 75 | I84: 148 | J84: 154 | K84: 172 | L84: 140 | M84: 43 | N84: 188 | O84: 178 | P84: 189 | Q84: 160 | R84: 157 | S84: 151 | T84: 149 | U84: 123 | V84: 135 | W84: 235 | X84: 195 | Y84: 207 | Z84: 217 | AA84: 216 | AB84: 225 | AC84: 101 | AD84: 67 | AE84: 90 | AF84: 79 | AG84: 112 | AH84: 199 | AI84: 211 | AJ84: 28 | AK84: 52 | AL84: 16 | AM84: 13 | AN84: 95
A85: 30 | B85: MARNE-ARDENNES | C85: 11 | D85: REIMS | E85: 551307 | F85: REIMS SAINTE ANNE | G85: 3.3 | H85: 76 | I85: 80 | J85: 24 | K85: 132 | L85: 16 | M85: 284 | N85: 59 | O85: 45 | P85: 89 | Q85: 125 | R85: 45 | S85: 291 | T85: 292 | U85: 221 | V85: 265 | W85: 102 | X85: 196 | Y85: 256 | Z85: 52 | AA85: 68 | AB85: 62 | AC85: 146 | AD85: 28 | AE85: 26 | AF85: 60 | AG85: 76 | AH85: 104 | AI85: 42 | AJ85: 115 | AK85: 153 | AL85: 132 | AM85: 78 | AN85: 220
A86: 80 | B86: VOSGES | C86: 55 | D86: SAINT DIE | E86: 588551 | F86: RAMBERVILLERS | G86: 3.5 | H86: 77 | I86: 49 | J86: 10 | K86: 134 | L86: 165 | M86: 46 | N86: 82 | O86: 59 | P86: 201 | Q86: 83 | R86: 66 | S86: 217 | T86: 282 | U86: 191 | V86: 41 | W86: 76 | X86: 86 | Y86: 60 | Z86: 89 | AA86: 57 | AB86: 112 | AC86: 99 | AD86: 114 | AE86: 164 | AF86: 83 | AG86: 235 | AH86: 174 | AI86: 258 | AJ86: 167 | AK86: 205 | AL86: 65 | AM86: 87 | AN86: 35
A87: 160 | B87: MOSELLE | C87: 44 | D87: MOSELLE NORD | E87: 457306 | F87: FLORANGE | G87: 2.7 | H87: 78 | I87: 36 | J87: 138 | K87: 33 | L87: 91 | M87: 131 | N87: 86 | O87: 2 | P87: 240 | Q87: 213 | R87: 242 | S87: 243 | T87: 157 | U87: 141 | V87: 269 | W87: 2 | X87: 24 | Y87: 57 | Z87: 3 | AA87: 24 | AB87: 2 | AC87: 207 | AD87: 86 | AE87: 41 | AF87: 188 | AG87: 30 | AH87: 20 | AI87: 23 | AJ87: 98 | AK87: 224 | AL87: 264 | AM87: 255 | AN87: 249
A88: 160 | B88: MOSELLE | C88: 42 | D88: MOSELLE EST | E88: 557305 | F88: FAULQUEMONT | G88: 2.9 | H88: 79 | I88: 250 | J88: 112 | K88: 204 | L88: 264 | M88: 273 | N88: 58 | O88: 34 | P88: 45 | Q88: 108 | R88: 122 | S88: 124 | T88: 135 | U88: 190 | V88: 59 | W88: 32 | X88: 81 | Y88: 175 | Z88: 18 | AA88: 15 | AB88: 23 | AC88: 207 | AD88: 48 | AE88: 48 | AF88: 80 | AG88: 25 | AH88: 9 | AI88: 202 | AJ88: 197 | AK88: 41 | AL88: 167 | AM88: 232 | AN88: 56
A89: 30 | B89: MARNE-ARDENNES | C89: 2 | D89: CHARLEVILLE MEZIERES | E89: 508802 | F89: CHARLEVILLE NEVERS | G89: 3.8 | H89: 80 | I89: 39 | J89: 20 | K89: 135 | L89: 19 | M89: 131 | N89: 123 | O89: 55 | P89: 151 | Q89: 174 | R89: 124 | S89: 200 | T89: 161 | U89: 256 | V89: 169 | W89: 125 | X89: 104 | Y89: 171 | Z89: 121 | AA89: 134 | AB89: 115 | AC89: 106 | AD89: 26 | AE89: 74 | AF89: 21 | AG89: 126 | AH89: 115 | AI89: 182 | AJ89: 174 | AK89: 107 | AL89: 139 | AM89: 168 | AN89: 102
A90: 30 | B90: MARNE-ARDENNES | C90: 11 | D90: REIMS | E90: 551305 | F90: REIMS HIPPODROME | G90: 3.6 | H90: 81 | I90: 61 | J90: 16 | K90: 108 | L90: 193 | M90: 110 | N90: 251 | O90: 190 | P90: 269 | Q90: 243 | R90: 215 | S90: 91 | T90: 33 | U90: 287 | V90: 199 | W90: 74 | X90: 248 | Y90: 155 | Z90: 35 | AA90: 19 | AB90: 21 | AC90: 160 | AD90: 122 | AE90: 92 | AF90: 155 | AG90: 251 | AH90: 136 | AI90: 63 | AJ90: 260 | AK90: 286 | AL90: 30 | AM90: 15 | AN90: 117
A91: 80 | B91: VOSGES | C91: 55 | D91: SAINT DIE | E91: 488326 | F91: GERARDMER | G91: 5.0 | H91: 82 | I91: 246 | J91: 34 | K91: 258 | L91: 237 | M91: 251 | N91: 67 | O91: 76 | P91: 64 | Q91: 76 | R91: 95 | S91: 38 | T91: 79 | U91: 41 | V91: 47 | W91: 146 | X91: 181 | Y91: 101 | Z91: 135 | AA91: 126 | AB91: 148 | AC91: 55 | AD91: 111 | AE91: 72 | AF91: 169 | AG91: 202 | AH91: 95 | AI91: 222 | AJ91: 178 | AK91: 243 | AL91: 21 | AM91: 43 | AN91: 21
A92: 30 | B92: MARNE-ARDENNES | C92: 2 | D92: CHARLEVILLE MEZIERES | E92: 408806 | F92: SEDAN LA HALLE | G92: 8.5 | H92: 83 | I92: 103 | J92: 121 | K92: 146 | L92: 61 | M92: 89 | N92: 150 | O92: 205 | P92: 145 | Q92: 181 | R92: 64 | S92: 31 | T92: 134 | U92: 50 | V92: 7 | W92: 184 | X92: 190 | Y92: 214 | Z92: 170 | AA92: 103 | AB92: 146 | AC92: 119 | AD92: 44 | AE92: 119 | AF92: 28 | AG92: 82 | AH92: 134 | AI92: 103 | AJ92: 68 | AK92: 78 | AL92: 120 | AM92: 132 | AN92: 103
A93: 160 | B93: MOSELLE | C93: 45 | D93: METZ | E93: 557105 | F93: ARS SUR MOSELLE | G93: 4.2 | H93: 84 | I93: 273 | J93: 94 | K93: 281 | L93: 180 | M93: 131 | N93: 45 | O93: 32 | P93: 150 | Q93: 59 | R93: 47 | S93: 147 | T93: 163 | U93: 51 | V93: 157 | W93: 6 | X93: 2 | Y93: 15 | Z93: 15 | AA93: 36 | AB93: 10 | AC93: 207 | AD93: 110 | AE93: 89 | AF93: 141 | AG93: 44 | AH93: 43 | AI93: 44 | AJ93: 162 | AK93: 85 | AL93: 163 | AM93: 203 | AN93: 84
A94: 160 | B94: MOSELLE | C94: 42 | D94: MOSELLE EST | E94: 557503 | F94: NEUNKIRCH | G94: 2.9 | H94: 85 | I94: 115 | J94: 101 | K94: 124 | L94: 51 | M94: 238 | N94: 109 | O94: 106 | P94: 67 | Q94: 120 | R94: 163 | S94: 171 | T94: 119 | U94: 236 | V94: 180 | W94: 65 | X94: 21 | Y94: 94 | Z94: 78 | AA94: 77 | AB94: 218 | AC94: 175 | AD94: 172 | AE94: 129 | AF94: 190 | AG94: 232 | AH94: 239 | AI94: 290 | AJ94: 175 | AK94: 26 | AL94: 42 | AM94: 53 | AN94: 48
A95: 262 | B95: BAS-RHIN | C95: 5006 | D95: STRASBOURG | E95: 4047 | F95: STRASBOURG CRONENBOURG | G95: 5.8 | H95: 86 | I95: 87 | J95: 44 | K95: 123 | L95: 127 | M95: 124 | N95: 17 | O95: 61 | P95: 12 | Q95: 25 | R95: 39 | S95: 214 | T95: 186 | U95: 216 | V95: 187 | W95: 204 | X95: 279 | Y95: 274 | Z95: 129 | AA95: 117 | AB95: 45 | AC95: 196 | AD95: 250 | AE95: 204 | AF95: 250 | AG95: 24 | AH95: 23 | AI95: 29 | AJ95: 25 | AK95: 199 | AL95: 116 | AM95: 179 | AN95: 43
A96: 80 | B96: VOSGES | C96: 55 | D96: SAINT DIE | E96: 588186 | F96: BRUYERES | G96: 2.5 | H96: 87 | I96: 254 | J96: 208 | K96: 173 | L96: 274 | M96: 253 | N96: 93 | O96: 95 | P96: 98 | Q96: 78 | R96: 142 | S96: 40 | T96: 66 | U96: 26 | V96: 80 | W96: 26 | X96: 19 | Y96: 9 | Z96: 31 | AA96: 46 | AB96: 108 | AC96: 207 | AD96: 60 | AE96: 178 | AF96: 26 | AG96: 216 | AH96: 123 | AI96: 107 | AJ96: 157 | AK96: 280 | AL96: 80 | AM96: 65 | AN96: 113
A97: 110 | B97: MEURTHE ET MOSELLE MEUSE | C97: 26 | D97: NANCY | E97: 554471 | F97: NANCY JEAN JAURES | G97: 2.0 | H97: 88 | I97: 245 | J97: 73 | K97: 275 | L97: 114 | M97: 131 | N97: 130 | O97: 151 | P97: 42 | Q97: 96 | R97: 252 | S97: 103 | T97: 75 | U97: 165 | V97: 147 | W97: 40 | X97: 163 | Y97: 176 | Z97: 27 | AA97: 22 | AB97: 11 | AC97: 110 | AD97: 96 | AE97: 75 | AF97: 132 | AG97: 90 | AH97: 86 | AI97: 195 | AJ97: 46 | AK97: 166 | AL97: 72 | AM97: 118 | AN97: 6
A98: 80 | B98: VOSGES | C98: 55 | D98: SAINT DIE | E98: 488556 | F98: RAON L ETAPE | G98: 3.4 | H98: 89 | I98: 200 | J98: 161 | K98: 166 | L98: 172 | M98: 231 | N98: 48 | O98: 143 | P98: 104 | Q98: 53 | R98: 19 | S98: 248 | T98: 288 | U98: 195 | V98: 72 | W98: 90 | X98: 20 | Y98: 27 | Z98: 232 | AA98: 182 | AB98: 194 | AC98: 75 | AD98: 132 | AE98: 157 | AF98: 104 | AG98: 259 | AH98: 242 | AI98: 200 | AJ98: 270 | AK98: 169 | AL98: 25 | AM98: 53 | AN98: 5
A99: 110 | B99: MEURTHE ET MOSELLE MEUSE | C99: 27 | D99: PONT A MOUSSON | E99: 554516 | F99: PAGNY SUR MOSELLE | G99: 2.6 | H99: 90 | I99: 134 | J99: 58 | K99: 47 | L99: 275 | M99: 249 | N99: 212 | O99: 240 | P99: 177 | Q99: 197 | R99: 137 | S99: 29 | T99: 41 | U99: 259 | V99: 29 | W99: 108 | X99: 79 | Y99: 56 | Z99: 86 | AA99: 173 | AB99: 136 | AC99: 150 | AD99: 59 | AE99: 37 | AF99: 125 | AG99: 156 | AH99: 81 | AI99: 157 | AJ99: 184 | AK99: 229 | AL99: 92 | AM99: 105 | AN99: 62
A100: 160 | B100: MOSELLE | C100: 45 | D100: METZ | E100: 457453 | F100: MONTIGNY CENTRALE | G100: 7.3 | H100: 91 | I100: 64 | J100: 38 | K100: 150 | L100: 84 | M100: 54 | N100: 205 | O100: 91 | P100: 242 | Q100: 249 | R100: 130 | S100: 189 | T100: 130 | U100: 9 | V100: 278 | W100: 51 | X100: 140 | Y100: 72 | Z100: 39 | AA100: 148 | AB100: 28 | AC100: 41 | AD100: 210 | AE100: 121 | AF100: 245 | AG100: 100 | AH100: 50 | AI100: 94 | AJ100: 104 | AK100: 256 | AL100: 67 | AM100: 94 | AN100: 26
A101: 50 | B101: AUBE HAUTE MARNE | C101: 21 | D101: CHAUMONT | E101: 410582 | F101: NOGENT EN BASSIGNY | G101: 2.1 | H101: 92 | I101: 95 | J101: 99 | K101: 60 | L101: 21 | M101: 289 | N101: 101 | O101: 116 | P101: 90 | Q101: 151 | R101: 83 | S101: 247 | T101: 239 | U101: 277 | V101: 171 | W101: 241 | X101: 162 | Y101: 185 | Z101: 238 | AA101: 232 | AB101: 238 | AC101: 172 | AD101: 65 | AE101: 60 | AF101: 98 | AG101: 97 | AH101: 138 | AI101: 143 | AJ101: 240 | AK101: 8 | AL101: 76 | AM101: 108 | AN101: 19
A102: 160 | B102: MOSELLE | C102: 44 | D102: MOSELLE NORD | E102: 557307 | F102: FONTOY | G102: 3.0 | H102: 93 | I102: 104 | J102: 13 | K102: 173 | L102: 56 | M102: 236 | N102: 83 | O102: 92 | P102: 110 | Q102: 119 | R102: 58 | S102: 88 | T102: 170 | U102: 135 | V102: 20 | W102: 101 | X102: 35 | Y102: 103 | Z102: 111 | AA102: 127 | AB102: 211 | AC102: 207 | AD102: 231 | AE102: 149 | AF102: 254 | AG102: 73 | AH102: 133 | AI102: 207 | AJ102: 109 | AK102: 3 | AL102: 95 | AM102: 132 | AN102: 32
